{"text_format":"1","workbook":"xlsx","n_sheets":1,"sheets":["Sheet1"],"not_rendered":{"charts":0,"images":0,"macros":1,"external_links":0,"defined_names":1,"comments":0,"pivot_tables":0},"unopened":[],"bounds":{"document_bytes":16777216,"sheet_cells":100000,"rows_first":2000,"rows_last":500,"rows_between":2000,"halvings":0,"cell_chars":16384,"cell_head_chars":4096},"cells_cut":0,"cells_raw":0,"read":"whole","date_system":"1900"}

{"sheet":"Sheet1","index":0,"n_rows":501,"n_cols":236,"rows_kept":501,"cut":false,"hidden":false,"merged":[]}
["物件番号","データ種類","物件種別","物件種目","会員名","代表電話番号","問合せ担当者（1）","問合せ電話番号（1）","Eメールアドレス（1）","図面","登録年月日","変更年月日","取引条件の有効期限","新築中古区分","都道府県名","所在地名1","所在地名2","所在地名3","建物名","部屋番号","その他所在地表示","棟番号","沿線略称（1）","駅名（1）","徒歩（分）1（1）","徒歩（m）2（1）","バス（1）","バス路線名（1）","バス停名称（1）","停歩（分）（1）","停歩（m）（1）","車（km）（1）","その他交通手段","交通（分）1","交通（m）2","現況","現況予定年月","引渡時期","引渡年月（西暦）","引渡旬","入居年月（西暦）","入居日","取引態様","報酬形態","手数料割合率","手数料","価格","価格消費税","坪単価","㎡単価","想定利回り（％）","面積計測方式","土地面積","土地共有持分面積","土地共有持分（分子）","土地共有持分（分母）","建物面積1","専有面積","私道負担有無","私道面積","バルコニー（テラス）面積","専用庭面積","セットバック区分","後退距離（m）","セットバック面積（㎡）","開発面積／総面積","販売総面積","販売区画数","工事完了年月（西暦）","建築面積","延べ面積","敷地延長の有無","敷地延長（30%以上表示）","借地料","借地期間","借地期限（西暦）","施設費用項目（1）","施設費用（1）","国土法届出","登記簿地目","現況地目","都市計画","用途地域（1）","用途地域（2）","最適用途","建ぺい率","容積率","土地×容積率","容積率÷30平米","四捨五入（部屋数）","一部屋賃料(月々)","合計賃料(年間)","建物坪換算(坪)","建物価格(万円)","建物土地合計価格(万円)","利回り","土地面積×建ぺい","左記に÷30m2で切り捨て","3階建と仮定した延面積","容積と比較した述べ床面積","注意！","定借保証金","定借敷金","地勢","建築条件","オーナーチェンジ","管理組合有無","管理形態","管理会社名","管理人状況","管理費","管理費消費税","修繕積立金","その他月額費名称1","その他月額費用金額1","施主","施工会社名","分譲会社名","一括下請負人","接道状況","接道種別1","接道接面1","接道位置指定1","接道方向1","接道幅員1","接道種別2","接道接面2","接道位置指定2","接道方向2","接道幅員2","接道種別3","接道接面3","接道位置指定3","接道方向3","接道幅員3","接道種別4","接道接面4","接道位置指定4","接道方向4","接道幅員4","接道舗装","間取タイプ（1）","間取部屋数（1）","部屋位置","納戸数","室所在階1（1）","室タイプ1（1）","室広さ1（1）","室数1（1）","室所在階2（1）","室タイプ2（1）","室広さ2（1）","室数2（1）","室所在階3（1）","室タイプ3（1）","室広さ3（1）","室数3（1）","室所在階4（1）","室タイプ4（1）","室広さ4（1）","室数4（1）","室所在階5（1）","室タイプ5（1）","室広さ5（1）","室数5（1）","室所在階6（1）","室タイプ6（1）","室広さ6（1）","室数6（1）","室所在階7（1）","室タイプ7（1）","室広さ7（1）","室数7（1）","間取りその他（1）","駐車場在否","駐車場月額","駐車場月額消費税","駐車場敷金（額）","駐車場敷金（ヶ月）","駐車場礼金（額）","駐車場礼金（ヶ月）","建物構造","建物工法","建物形式","地上階層","地下階層","所在階","築年月（西暦）","総戸数","棟総戸数","連棟戸数","バルコニー方向（1）","増改築年月1","増改築履歴1","増改築年月2","増改築履歴2","増改築年月3","増改築履歴3","周辺環境1（フリー）","距離1","時間1","周辺アクセス１","備考1","備考2","自社管理欄","再建築不可フラグ"]
[100098809856,1,1,1,"（株）マルモト不動産　","0475-24-1313",null,null,null,2,"2019-05-08",null,null,null,"千葉県","茂原市","上永吉","８０７－２",null,null,"８５４－４",null,"外房線","茂原",null,null,null,null,null,null,null,null,null,null,null,1,null,2,null,null,null,null,4,1,null,null,10850000,null,31000,10000,null,1,1187.0899999999999,null,null,null,null,null,null,null,null,null,null,null,null,null,null,null,null,null,null,null,null,null,null,null,null,null,null,null,null,null,null,null,null,null,null,{"$f":"IF(ISBLANK(CI2),100,CI2)/100*BA2","v":1187.0899999999999},{"$f":"CJ2/30","v":39.569666666666663},{"$f":"ROUND(CK2,0)","v":40},5,{"$f":"CM2*12*CL2","v":2400},{"$f":"CJ2/3.3","v":359.72424242424239},{"$f":"CO2*40*1.2","v":17266.763636363634},{"$f":"CP2+(AU2/10000)","v":18351.763636363634},{"$f":"CN2/CQ2","v":0.13077762157117426},{"$f":"IF(ISBLANK(CH2),60,CH2)/100*BA2","v":712.25399999999991},{"$f":"ROUNDDOWN((CS2/30),0)","v":23},{"$f":"CT2*30*3","v":2070},{"$f":"CJ2-CU2","v":-882.91000000000008},{"$f":"IF(CV2>0, \"!\",\"\")","v":""}]
[100098810661,1,1,1,"スウィートホーム（株）　","043-272-0071",null,null,null,2,"2019-05-08",null,null,null,"千葉県","千葉市若葉区","加曽利町",null,null,null,null,null,"総武線","千葉",null,null,16,"千城台車庫","加曽利町入口",3,null,null,null,null,null,2,null,1,null,null,null,null,1,null,3,null,12300000,null,227000,69000,null,1,179.89,null,null,null,null,null,2,null,null,null,null,null,null,null,null,null,null,null,null,null,null,null,null,null,null,null,3,1,null,1,1,null,1,60,150,{"$f":"IF(ISBLANK(CI3),100,CI3)/100*BA3","v":269.83499999999998},{"$f":"CJ3/30","v":8.9944999999999986},{"$f":"ROUND(CK3,0)","v":9},5,{"$f":"CM3*12*CL3","v":540},{"$f":"CJ3/3.3","v":81.768181818181816},{"$f":"CO3*40*1.2","v":3924.8727272727269},{"$f":"CP3+(AU3/10000)","v":5154.8727272727265},{"$f":"CN3/CQ3","v":0.10475525363468988},{"$f":"IF(ISBLANK(CH3),60,CH3)/100*BA3","v":107.93399999999998},{"$f":"ROUNDDOWN((CS3/30),0)","v":3},{"$f":"CT3*30*3","v":270},{"$f":"CJ3-CU3","v":-0.16500000000002046},{"$f":"IF(CV3>0, \"!\",\"\")","v":""},null,null,4,2,null,null,null,null,null,null,null,null,null,null,null,null,null,null,1,1,12,null,6,6]
[100098810893,1,1,1,"（株）タープ不動産情報　","03-5803-9292","橋本","090-9390-2902",null,2,"2019-05-08",null,null,null,"千葉県","富津市","富津","９２８－１",null,null,null,null,"内房線","大貫",48,3776,null,null,null,null,null,null,null,null,null,2,null,1,null,null,null,null,4,1,null,null,5000000,null,54000,17000,null,null,309.39999999999998,null,null,null,null,null,null,null,null,null,null,null,null,null,null,null,null,null,null,null,null,null,null,null,null,null,null,null,null,null,1,null,null,60,150,464.09999999999997,15.469999999999999,15,5,900,140.63636363636363,6750.545454545454,7250.545454545454,0.124128592206229,185.64,6,540,-75.900000000000034,"",null,null,null,2,null,null,null,null,null,null,null,null,null,null,null,null,null,null,1,null,null,null,2,3.9,null,null,null,null,null,null,null,null,null,null,null,null,null,null,null,null,null,null,null,null,null,null,null,null,null,null,null,null,null,null,null,null,null,null,null,null,null,null,null,null,null,null,null,null,null,null,null,null,null,null,null,null,null,null,null,null,null,null,null,null,null,null,null,null,null,null,null,null,null,null,null,null,null,null,null,null,null,null,null,80056]
[100098810908,1,1,1,"（株）タープ不動産情報　","03-5803-9292","橋本","090-9390-2902",null,2,"2019-05-08",null,null,null,"千葉県","富津市","富津","９２８－１",null,null,null,null,"内房線","大貫",48,3776,null,null,null,null,null,null,null,null,null,2,null,1,null,null,null,null,4,1,null,null,12000000,null,43000,13000,null,2,928.21,null,null,null,null,null,null,null,null,null,null,null,null,null,null,null,null,null,null,null,null,null,null,null,null,null,null,null,null,null,1,null,null,60,150,1392.3150000000001,46.410499999999999,46,5,2760,421.91363636363639,20251.854545454546,21451.854545454546,0.12866020483925103,556.92600000000004,18,1620,-227.68499999999995,"",null,null,null,null,null,null,null,null,2,null,null,null,null,null,null,null,null,null,null,null,null,null,null,1,null,null,null,2,3.9,null,null,null,null,null,null,null,null,null,null,null,null,null,null,null,null,null,null,null,null,null,null,null,null,null,null,null,null,null,null,null,null,null,null,null,null,null,null,null,null,null,null,null,null,null,null,null,null,null,null,null,null,null,null,null,null,null,null,null,null,null,null,null,null,null,null,null,null,null,null,null,null,null,null,null,null,null,null,null,80033,null,null,null,null,null,null,null,null,null,null,null,null,null,null,null,null,null,null,null,null,null,null,null,null,null,"開発申請、最低敷地面積：８０㎡"]
[100098811738,1,1,1,"（有）プロパティ　","03-6380-9921","松野",null,"fudosan@property-estate.jp",2,"2019-05-08",null,null,null,"千葉県","市川市","宮久保１丁目","2019-11-20",null,null,null,null,"総武中央線","本八幡",21,null,7,null,null,5,null,null,null,null,null,2,null,1,null,null,null,null,4,null,null,null,16800000,null,691000,209000,null,1,80.430000000000007,null,null,null,null,null,1,17.09,null,null,0,null,null,null,null,null,null,null,null,null,null,null,null,null,null,null,null,1,null,1,1,null,null,50,100,80.430000000000007,2.681,3,5,180,24.372727272727275,1169.8909090909092,2849.8909090909092,6.3160312356453835E-2,40.215000000000003,1,90,-9.5699999999999932,"",null,null,1,2,null,null,null,null,null,null,null,null,null,null,null,null,null,null,1,2,6.7,null,2,4.2]
[100098812398,1,1,1,"（株）エステート・プランナー　","042-729-3618","岩崎","090-4720-5590","iwasakimasanori519@yahoo.co.jp",2,"2019-05-08",null,"2019-07-06",null,"千葉県","野田市","山崎",null,null,null,"野田市山崎字南大和田１１９３－８",null,"東武野田線","梅郷",12,960,null,null,null,null,null,null,null,null,null,1,null,1,null,null,null,null,4,1,null,null,13000000,null,261000,79000,null,2,165.13,null,null,null,null,null,2,null,null,null,1,null,null,null,null,null,null,null,null,null,null,null,null,null,null,null,3,1,null,1,12,3,1,60,200,330.26,11.008666666666667,11,5,660,100.07878787878788,4803.7818181818175,6103.7818181818175,0.10812968413025607,99.077999999999989,3,270,60.259999999999991,"!",null,null,1,2,null,null,null,null,null,null,null,null,null,null,null,null,null,null,5,1,17,2,4,4.5999999999999996,null,null,null,null,null,null,null,null,null,null,null,null,null,null,null,1]
[100098812485,1,1,1,"（株）ブランデスト　","03-3542-8826","寺田",null,null,2,"2019-05-08",null,null,null,"千葉県","柏市","宿連寺","４４８－２２",null,null,null,null,"常磐緩行線","北柏",20,null,null,null,null,null,null,null,null,null,null,1,null,1,null,null,null,null,5,1,null,null,28000000,null,242000,74000,null,1,382.69,null,null,null,null,null,null,null,null,null,1,null,null,null,null,null,null,null,null,null,null,null,null,null,null,null,null,1,1,1,1,null,15,50,100,382.69,12.756333333333334,13,5,780,115.96666666666667,5566.4000000000005,8366.4000000000015,9.3230063109581165E-2,191.345,6,540,-157.31,"",null,null,1,2,null,null,null,null,null,null,null,null,null,null,null,null,null,null,1,1,11,null,6,3.5,null,null,null,null,null,null,null,null,null,null,null,null,null,null,null,1,null,null,null,null,null,null,null,null,null,null,null,null,null,null,null,null,null,null,null,null,null,null,null,null,null,null,null,null,null,null,null,null,null,null,null,null,null,null,null,null,null,null,null,null,null,null,null,null,null,null,null,null,null,null,null,null,null,"カスミＦＯＯＤ　ＯＦＦ　（スーパー）",null,2,1]
[100098812765,1,1,1,"コジマ住宅（株）　","043-237-2822","コジマ","043-237-2822",null,3,"2019-05-08","2019-05-14",null,null,"千葉県","木更津市","矢那","４５０３番",null,null,null,null,"内房線","木更津",43,3440,22,null,"請西東３丁目",1,80,null,null,null,null,1,null,1,null,null,null,null,3,1,null,null,8800000,null,172000,53000,null,2,169.18,null,null,null,null,null,2,null,null,null,null,null,null,null,null,null,null,null,null,null,null,null,null,null,null,null,null,1,null,3,null,null,1,60,200,338.36,11.278666666666668,11,5,660,102.53333333333335,4921.6000000000004,5801.6,0.11376172090457803,101.508,3,270,68.360000000000014,"!",null,null,1,null,null,null,null,null,null,null,null,null,null,null,null,null,null,null,null,1,11,null,8,6]
[100098815237,1,1,1,"（株）大和リーディング　","047-469-8883",null,null,null,2,"2019-05-08","2019-05-09",null,null,"千葉県","八千代市","八千代台南２丁目",null,null,null,null,null,"京成本線","八千代台",8,null,null,null,null,null,null,null,null,null,null,1,null,1,null,null,null,null,1,null,3,60000,32800000,null,524000,159000,null,null,207.1,null,null,null,null,null,null,null,null,null,null,null,null,null,null,null,null,null,null,null,null,null,null,null,null,null,null,4,1,1,1,null,1,50,100,207.1,6.9033333333333333,7,5,420,62.757575757575758,3012.3636363636365,6292.363636363636,6.6747572815533979E-2,103.55,3,270,-62.900000000000006,"",null,null,null,2,null,null,null,null,null,null,null,null,null,null,null,null,null,null,5]
[100098815404,1,1,1,"一宮不動産（株）　","0475-40-6123",null,null,null,2,"2019-05-08",null,null,null,"千葉県","長生郡一宮町","一宮","8075-03-01",null,null,null,null,"外房線","上総一ノ宮",null,null,null,null,null,null,null,3,null,null,null,1,null,2,null,null,null,null,4,1,null,null,6300000,null,55000,17000,null,1,383,null,null,null,null,null,2,null,null,null,null,null,null,null,null,null,null,null,null,null,null,null,null,null,null,null,3,2,null,3,99,null,1,60,200,766,25.533333333333335,26,5,1560,232.12121212121212,11141.81818181818,11771.81818181818,0.13251988570545989,229.79999999999998,7,630,136,"!",null,null,1,2,null,null,null,null,null,null,null,null,null,null,null,null,null,null,1,1,null,null,4,5,null,null,null,null,null,null,null,null,null,null,null,null,null,null,null,1,null,null,null,null,null,null,null,null,null,null,null,null,null,null,null,null,null,null,null,null,null,null,null,null,null,null,null,null,null,null,null,null,null,null,null,null,null,null,null,null,null,null,null,null,null,null,null,null,null,null,null,null,null,null,null,null,null,null,null,null,null,"要農地転用・排水負担金"]
[100098815410,1,1,1,"一宮不動産（株）　","0475-40-6123",null,null,null,2,"2019-05-08",null,null,null,"千葉県","長生郡一宮町","東浪見","5202-01-01",null,null,null,null,"外房線","上総一ノ宮",15,1200,null,null,null,null,null,null,null,null,null,1,null,2,null,null,null,null,4,1,null,null,6500000,null,79000,24000,null,1,272,null,null,null,null,null,2,null,null,null,null,null,null,null,null,null,null,null,null,null,null,null,null,null,null,null,null,2,null,3,99,null,1,60,200,544,18.133333333333333,18,5,1080,164.84848484848484,7912.7272727272721,8562.7272727272721,0.12612803906996498,163.19999999999999,5,450,94,"!",null,null,1,2,null,null,null,null,null,null,null,null,null,null,null,null,null,null,1,1,null,null,null,null,null,null,null,null,null,null,null,null,null,null,null,null,null,null,null,1]
[100098815423,1,1,1,"一宮不動産（株）　","0475-40-6123",null,null,null,2,"2019-05-08",null,null,null,"千葉県","長生郡一宮町","船頭給","１２７４‐２",null,null,null,null,"外房線","上総一ノ宮",29,2300,null,null,null,null,null,null,null,null,null,1,null,2,null,null,null,null,4,1,null,null,15000000,null,49000,15000,null,1,1025,null,null,null,null,null,2,null,null,null,null,null,null,null,null,null,null,null,null,null,null,null,null,null,null,null,null,1,null,3,99,null,null,60,200,2050,68.333333333333329,68,5,4080,621.21212121212125,29818.181818181816,31318.181818181816,0.13027576197387519,615,20,1800,250,"!",null,null,1,2,null,null,null,null,null,null,null,null,null,null,null,null,null,null,1,1,null,null,null,null,null,null,null,null,null,null,null,null,null,null,null,null,null,null,null,1]
[100098815727,1,1,1,"三井住友トラスト不動産（株）　柏センター","04-7142-3331","松永　龍之介","04-7142-3331","kashiwa@smtrc.jp",2,"2019-05-08",null,null,null,"千葉県","松戸市","八ケ崎４丁目",null,null,null,null,null,"新京成線","常盤平",24,null,null,null,null,null,null,null,null,null,null,1,null,1,null,null,null,null,4,null,null,null,15000000,null,252000,77000,null,1,197,null,null,null,null,null,1,null,null,null,0,null,null,null,null,null,null,null,null,null,null,null,null,null,null,null,3,4,1,1,1,null,null,50,100,197,6.5666666666666664,7,5,420,59.696969696969703,2865.4545454545455,4365.454545454546,9.6209912536443135E-2,98.5,3,270,-73,"",null,null,2,2,null,null,null,null,null,null,null,null,null,null,null,null,null,null,1,null,14.2,null,2,3.8,null,null,null,null,null,null,null,null,null,null,null,null,null,null,null,null,null,null,null,null,null,null,null,null,null,null,null,null,null,null,null,null,null,null,null,null,null,null,null,null,null,null,null,null,null,null,null,null,null,null,null,null,null,null,null,null,null,null,null,null,null,null,null,null,null,null,null,null,null,null,null,null,null,"松戸市立高木小学校",1150,null,null,null,null,"Ｂｋｓ１８０９２７"]
[100098815794,1,1,1,"三井住友トラスト不動産（株）　津田沼センター","047-472-5661","菊池　敏浩","047-472-5661","tsudanuma@smtrc.jp",2,"2019-05-08",null,null,null,"千葉県","船橋市","二宮１丁目",null,null,null,null,null,"新京成線","前原",9,null,null,null,null,null,null,null,null,null,null,1,null,2,null,null,null,null,4,null,null,null,6000000,null,72000,22000,null,2,277.81,null,null,null,null,null,2,null,null,null,0,null,null,null,null,null,null,null,null,null,null,null,null,null,null,null,3,4,1,1,11,null,null,60,160,444.49600000000004,14.816533333333334,15,5,900,134.6957575757576,6465.3963636363651,7065.3963636363651,0.12738138862697787,166.68600000000001,5,450,-5.5039999999999623,"",null,null,5,2,null,null,null,null,null,null,null,null,null,null,null,null,null,null,1,2,5,1,5,4,null,null,null,null,null,null,null,null,null,null,null,null,null,null,null,null,null,null,null,null,null,null,null,null,null,null,null,null,null,null,null,null,null,null,null,null,null,null,null,null,null,null,null,null,null,null,null,null,null,null,null,null,null,null,null,null,null,null,null,null,null,null,null,null,null,null,null,null,null,null,null,null,null,null,null,null,null,null,null,"Ｂｔｄ１６１７７６"]
[100098815798,1,1,1,"三井住友トラスト不動産（株）　津田沼センター","047-472-5661","大竹　伸弥","047-472-5661","tsudanuma@smtrc.jp",2,"2019-05-08",null,null,null,"千葉県","千葉市若葉区","千城台南４丁目",null,null,null,null,null,"千葉モノレ","千城台",17,null,null,null,null,null,null,null,null,null,null,2,null,2,null,null,null,null,4,null,null,null,12800000,null,219000,67000,null,1,193.23,null,null,null,null,null,2,null,null,null,0,null,null,null,null,null,null,null,null,null,null,null,null,null,null,null,3,1,1,1,11,null,null,60,200,386.46,12.882,13,5,780,{"$f":"CJ16/3.3","v":117.10909090909091},5621.2363636363634,{"$f":"CP16+(AU16/10000)","v":6901.2363636363634},{"$f":"CN16/CQ16","v":0.11302322640475489},115.93799999999999,3,270,116.45999999999998,"!",null,null,null,2,null,null,null,null,null,null,null,null,null,null,null,null,null,null,1,1,null,2,1,6.2,null,null,null,null,null,null,null,null,null,null,null,null,null,null,null,null,null,null,null,null,null,null,null,null,null,null,null,null,null,null,null,null,null,null,null,null,null,null,null,null,null,null,null,null,null,null,null,null,null,null,null,null,null,null,null,null,null,null,null,null,null,null,null,null,null,null,null,null,null,null,null,null,null,"ファミリーマート千葉大草町店",1120,null,null,null,null,"Ｂｔｄ１７１２４５"]
[100098815801,1,1,1,"三井住友トラスト不動産（株）　津田沼センター","047-472-5661","足利　隆幸","047-472-5661","tsudanuma@smtrc.jp",2,"2019-05-08",null,null,null,"千葉県","船橋市","宮本８丁目",null,null,null,null,null,"京成本線","船橋競馬場",9,null,null,null,null,null,null,null,null,null,null,2,null,2,null,null,null,null,4,null,null,null,31500000,null,651000,197000,null,1,160.03,null,null,null,null,null,1,17.52,null,null,0,null,null,null,null,null,null,null,null,null,null,null,null,null,null,null,3,1,1,1,1,null,null,40,80,128.024,4.2674666666666665,4,5,240,38.795151515151517,1862.1672727272728,5012.1672727272726,4.7883477733457351E-2,64.012,2,180,-51.975999999999999,"",null,null,1,2,null,null,null,null,null,null,null,null,null,null,null,null,null,null,1,2,2.2999999999999998,1,2,3.9,null,null,null,null,null,null,null,null,null,null,null,null,null,null,null,null,null,null,null,null,null,null,null,null,null,null,null,null,null,null,null,null,null,null,null,null,null,null,null,null,null,null,null,null,null,null,null,null,null,null,null,null,null,null,null,null,null,null,null,null,null,null,null,null,null,null,null,null,null,null,null,null,null,"セブンイレブン東船橋５丁目店",340,null,null,null,null,"Ｂｔｄ１８０１９８"]
[100098815804,1,1,1,"三井住友トラスト不動産（株）　津田沼センター","047-472-5661","早坂　憲一郎","047-472-5661","tsudanuma@smtrc.jp",2,"2019-05-08",null,null,null,"千葉県","船橋市","金杉５丁目",null,null,null,null,null,"新京成線","滝不動",14,null,null,null,null,null,null,null,null,null,null,2,null,2,null,null,null,null,4,null,null,null,39800000,null,222000,67000,null,2,594.82000000000005,null,null,null,null,null,2,null,null,null,0,null,null,null,null,null,null,null,null,null,null,null,null,null,null,null,3,4,1,1,3,1,null,60,200,1189.6400000000001,39.654666666666671,40,5,2400,360.49696969696976,17303.854545454546,21283.854545454546,0.11276152986642884,356.892,11,990,199.6400000000001,"!",null,null,1,2,null,null,null,null,null,null,null,null,null,null,null,null,null,null,1,1,9,2,4,13,null,null,null,null,null,null,null,null,null,null,null,null,null,null,null,null,null,null,null,null,null,null,null,null,null,null,null,null,null,null,null,null,null,null,null,null,null,null,null,null,null,null,null,null,null,null,null,null,null,null,null,null,null,null,null,null,null,null,null,null,null,null,null,null,null,null,null,null,null,null,null,null,null,"マルエツ金杉店",410,null,null,null,null,"Ｂｔｄ１８０３０１"]
[100098815806,1,1,1,"三井住友トラスト不動産（株）　津田沼センター","047-472-5661","駒井　政明","047-472-5661","tsudanuma@smtrc.jp",2,"2019-05-08",null,null,null,"千葉県","千葉市若葉区","都賀の台４丁目",null,null,null,null,null,"総武線","都賀",14,null,null,null,null,null,null,null,null,null,null,2,null,2,null,null,null,null,4,null,null,null,19800000,null,345000,105000,null,1,190.27,null,null,null,null,null,2,null,null,null,0,null,null,null,null,null,null,null,null,null,null,null,null,null,null,null,3,1,1,1,1,null,null,50,100,190.27,6.3423333333333334,6,5,360,57.657575757575763,2767.5636363636363,4747.5636363636368,7.5828367468864413E-2,95.135000000000005,3,270,-79.72999999999999,"",null,null,null,2,null,null,null,null,null,null,null,null,null,null,null,null,null,null,1,1,15,null,6,5.9,null,null,null,null,null,null,null,null,null,null,null,null,null,null,null,null,null,null,null,null,null,null,null,null,null,null,null,null,null,null,null,null,null,null,null,null,null,null,null,null,null,null,null,null,null,null,null,null,null,null,null,null,null,null,null,null,null,null,null,null,null,null,null,null,null,null,null,null,null,null,null,null,null,null,null,null,null,null,null,"Ｂｔｄ１８１１９４"]
[100098815861,1,1,1,"三井住友トラスト不動産（株）　津田沼センター","047-472-5661","早坂　憲一郎","047-472-5661","tsudanuma@smtrc.jp",2,"2019-05-08","2019-05-11",null,null,"千葉県","習志野市","鷺沼台３丁目",null,null,null,null,null,"京成本線","京成大久保",12,null,null,null,null,null,null,null,null,null,null,2,null,2,null,null,null,null,4,null,null,null,6500000,null,295000,89000,null,1,73.040000000000006,null,null,null,null,null,2,null,null,null,0,null,null,null,null,null,null,null,null,null,null,null,null,null,null,null,3,1,1,1,12,null,null,60,160,116.86400000000002,3.8954666666666671,4,5,240,35.413333333333341,1699.8400000000004,2349.84,0.1021346134204882,43.824000000000005,1,90,26.864000000000019,"!",null,null,1,2,null,null,null,null,null,null,null,null,null,null,null,null,null,null,2,1,7.8,2,2,4,2,5.5,2,4,4,null,null,null,null,null,null,null,null,null,null,null,null,null,null,null,null,null,null,null,null,null,null,null,null,null,null,null,null,null,null,null,null,null,null,null,null,null,null,null,null,null,null,null,null,null,null,null,null,null,null,null,null,null,null,null,null,null,null,null,null,null,null,null,null,null,null,null,null,"習志野市立鷺沼小学校",1250,null,null,null,null,"Ｂｔｄ１８０１７７"]
[100098817986,1,1,1,"（有）サンオフィス　","0475-42-6856","鶴岡　亮輔","0475-42-6856","info@sun-o.co.jp",2,"2019-05-08",null,null,null,"千葉県","長生郡一宮町","本給","2019-08-24",null,null,null,null,"外房線","上総一ノ宮",15,null,null,null,null,null,null,null,null,null,null,1,null,1,null,null,null,null,3,1,null,null,10440000,null,118000,36000,null,2,293.98,null,null,null,null,null,2,null,null,null,null,null,null,null,null,null,null,null,null,null,null,null,null,null,null,null,null,4,1,3,11,null,1,60,200,587.96,19.598666666666666,20,5,1200,178.16969696969699,8552.1454545454562,9596.1454545454562,0.125050209553836,176.38800000000001,5,450,137.96000000000004,"!",null,null,2,2,null,null,null,null,null,null,null,null,null,null,null,null,null,null,1,1,null,null,null,6,null,null,null,null,null,null,null,null,null,null,null,null,null,null,null,1]
[100098820020,1,1,1,"シーランドホームズ（株）　","03-3402-1391","さとう","090-9010-0202","sealandhom@ace.ocn.ne.jp",2,"2019-05-08",null,null,null,"千葉県","鴨川市","来秀","１９７－２",null,null,null,null,"外房線","安房鴨川",38,3000,7,null,"貝渚　橋　バス停",15,1000,null,"安房鴨川駅タクシー約料金１２００円",null,null,1,null,1,null,null,null,null,1,9,3,60000,9760000,null,175000,53000,null,2,185.4,null,null,null,null,null,1,18,null,null,null,null,null,null,null,null,null,null,null,null,null,null,null,null,null,null,3,1,null,4,99,null,1,70,200,370.8,12.360000000000001,12,5,720,112.36363636363637,5393.454545454546,6369.454545454546,0.11303950673669787,129.78,4,360,10.800000000000011,"!",null,null,2,2,null,null,null,null,null,null,null,null,null,null,null,null,null,null,1,2,11,2,7,4,null,null,null,null,null,null,null,null,null,null,null,null,null,null,null,1,null,null,null,null,null,null,null,null,null,null,null,null,null,null,null,null,null,null,null,null,null,null,null,null,null,null,null,null,null,null,null,null,null,null,null,null,null,null,null,null,null,null,null,null,null,null,null,null,null,null,null,null,null,null,null,null,null,null,null,null,null,null,"鴨川市街地及び太平洋海一望分譲地他７区画","自主管理組合にて共同管理する。"]
[100098820318,1,1,1,"東日総業（株）　","0475-42-5511",null,null,null,2,"2019-05-08",null,null,null,"千葉県","長生郡一宮町","新地","１２５番３",null,null,null,null,"外房線","上総一ノ宮",25,2000,null,null,null,null,null,null,null,null,null,1,null,2,null,null,null,null,3,1,null,null,6100000,null,50000,16000,null,1,404,null,null,null,null,null,2,null,null,null,null,null,null,null,null,null,null,null,null,null,null,null,null,null,null,null,3,3,null,3,null,null,1,60,200,808,26.933333333333334,27,5,1620,244.84848484848487,11752.727272727274,12362.727272727274,0.13103904698874916,242.39999999999998,8,720,88,"!",null,null,1,2,null,null,null,null,null,null,null,null,null,null,null,null,null,null,2,1,13.6,null,5,4.8,2,29.5,2,3,5.6,null,null,null,null,null,null,null,null,null,null,1,null,null,null,null,null,null,null,null,null,null,null,null,null,null,null,null,null,null,null,null,null,null,null,null,null,null,null,null,null,null,null,null,null,null,null,null,null,null,null,null,null,null,null,null,null,null,null,null,null,null,null,null,null,null,null,null,null,null,null,null,null,null,null,"仲一宮　１０７"]
[100098820331,1,1,1,"東日総業（株）　","0475-42-5511",null,null,null,2,"2019-05-08",null,null,null,"千葉県","長生郡一宮町","一宮",null,null,null,null,null,"外房線","上総一ノ宮",4,300,null,null,null,null,null,null,null,null,null,1,null,2,null,null,null,null,3,1,null,null,7300000,null,101000,31000,null,1,239.46,null,null,null,null,null,2,null,null,null,1,null,null,null,null,null,null,null,null,null,null,null,null,null,null,null,3,1,null,3,12,null,1,60,200,478.92,15.964,16,5,960,145.12727272727275,6966.1090909090917,7696.1090909090917,0.12473835657215215,143.67599999999999,4,360,118.92000000000002,"!",null,null,1,2,null,null,null,null,null,null,null,null,null,null,null,null,null,null,1,1,null,null,3,3.5,null,null,null,null,null,null,null,null,null,null,null,null,null,null,null,1,null,null,null,null,null,null,null,null,null,null,null,null,null,null,null,null,null,null,null,null,null,null,null,null,null,null,null,null,null,null,null,null,null,null,null,null,null,null,null,null,null,null,null,null,null,null,null,null,null,null,null,null,null,null,null,null,null,null,null,null,null,null,null,"仲一宮　１８５"]
[100098820528,1,1,1,"くらしあ（株）　","0479-74-3173",null,null,null,2,"2019-05-08",null,null,null,"千葉県","銚子市","愛宕町",null,null,null,null,null,"銚子電鉄","本銚子",7,null,null,null,null,null,null,null,null,null,null,1,null,1,null,null,null,null,4,null,null,null,9800000,null,23000,7000,null,1,1441,null,null,null,null,null,null,null,null,null,null,null,null,null,null,null,null,null,null,null,null,null,null,null,null,null,3,3,null,3,12,null,null,60,200,2882,96.066666666666663,96,5,5760,873.33333333333337,41920,42900,0.13426573426573427,864.6,28,2520,362,"!",null,null,1,2,null,null,null,null,null,null,null,null,null,null,null,null,null,null,1,1,null,null,3,3.8]
[100098820604,1,1,1,"（株）コンティゴ　","047-368-6771","今村",null,null,2,"2019-05-08",null,null,null,"千葉県","八千代市","米本",null,null,null,null,null,"東葉高速線","八千代中央",46,null,null,null,null,null,null,null,null,null,null,2,null,2,null,null,null,null,4,1,null,null,9800000,null,159000,49000,null,1,204,null,null,null,null,null,2,null,null,null,0,null,null,null,null,null,null,null,null,2,null,null,null,null,null,null,3,1,1,1,1,null,1,50,100,204,6.8,7,5,420,61.81818181818182,2967.2727272727275,3947.2727272727275,0.10640257945647166,102,3,270,-66,"",null,null,1,2,null,null,null,null,null,null,null,null,null,null,null,null,null,null,1,1,13.6,2,2,6.5,null,null,null,null,null,null,null,null,null,null,null,null,null,null,null,1]
[100098820808,1,1,1,"（株）日進プランニング　","043-202-5252",null,"043-202-5252",null,2,"2019-05-08",null,null,null,"千葉県","南房総市","千倉町北朝夷","1947-01-01",null,null,"他４筆",null,"内房線","千倉",15,1200,null,null,null,null,null,null,null,null,null,1,null,1,null,null,null,null,4,4,null,null,19800000,null,26000,8000,null,null,2548.81,null,null,null,null,null,null,null,null,null,null,null,null,null,null,null,null,null,null,null,null,null,null,null,null,null,null,1,5,4,99,null,null,70,400,10195.24,339.84133333333335,340,5,20400,3089.4666666666667,148294.39999999999,150274.4,0.13575166495424371,1784.1669999999999,59,5310,4885.24,"!",null,null,1,null,null,null,null,null,null,null,null,null,null,null,null,null,null,null,1,1,4,null,7]
[100098823495,1,1,1,"アークホームズ（株）　","03-3233-4881","吉江","090-8847-2287",null,2,"2019-05-08",null,null,null,"千葉県","松戸市","古ケ崎２丁目",null,null,null,null,null,"常磐緩行線","松戸",20,null,null,null,null,null,null,null,null,null,null,1,null,1,null,null,null,null,2,4,3,null,17500000,null,717000,217000,null,2,80.72,null,null,null,null,null,2,null,null,null,0,null,null,null,null,null,null,null,null,null,null,null,null,null,null,null,3,1,null,1,3,null,null,60,200,161.44,5.3813333333333331,5,5,300,48.921212121212122,2348.2181818181821,4098.2181818181816,7.3202544786647866E-2,48.431999999999995,1,90,71.44,"!",null,null,1,2,null,null,null,null,null,null,null,null,null,null,null,null,null,null,1,1,5.9,null,7,18]
[100098824682,1,1,1,"（株）ジーエスコンサルタント　","047-426-1001","佐俣正彦（さまた）","090-8948-5458","samata_gsc@yahoo.co.jp",2,"2019-05-08",null,null,null,"千葉県","佐倉市","新臼井田","2019-10-07",null,null,null,null,"京成本線","京成臼井",17,null,null,null,null,null,null,null,null,null,null,1,null,2,null,null,null,null,1,4,null,null,11000000,null,192000,59000,null,2,189.65,null,null,null,null,null,null,null,null,null,null,null,null,null,null,null,null,null,null,null,null,null,null,null,null,null,null,1,null,1,1,null,1,50,100,189.65,6.3216666666666672,6,5,360,57.469696969696976,2758.5454545454545,3858.5454545454545,9.3299406276505514E-2,94.825000000000003,3,270,-80.349999999999994,"",null,null,1,2,null,null,null,null,null,null,null,null,null,null,null,null,null,null,1,1,12,null,5,4.4000000000000004,null,null,null,null,null,null,null,null,null,null,null,null,null,null,null,1]
[100098827697,1,1,1,"（株）ランドインベスター　","043-224-9191",null,null,null,2,"2019-05-08","2019-05-10",null,null,"千葉県","市原市","海保",null,null,null,null,null,null,null,null,null,null,null,null,null,null,null,null,null,null,null,null,null,null,null,null,null,5,null,null,null,7500000,null,25000,8000,null,1,997,null,null,null,null,null,null,null,null,null,null,null,null,null,null,null,null,null,null,null,null,null,null,null,null,null,null,3,5,2,null,null,null,null,null,997,33.233333333333334,33,5,1980,302.12121212121212,14501.81818181818,15251.81818181818,0.12982058770936403,598.19999999999993,19,1710,-713,"",null,null,1]
[100098828129,1,1,1,"（株）ランドインベスター　","043-224-9191",null,null,null,2,"2019-05-08","2019-05-10",null,null,"千葉県","市原市","島野","３９２－１",null,null,null,null,null,null,null,null,null,null,null,null,null,null,null,null,null,1,null,null,null,null,null,null,1,null,null,null,5000000,null,7000,2000,null,1,2742,null,null,null,null,null,2,null,null,null,null,null,null,null,null,null,null,null,null,null,null,null,null,null,null,null,null,2,2,2,null,null,null,null,null,2742,91.4,91,5,5460,830.90909090909099,39883.636363636368,40383.636363636368,0.13520327765521586,1645.2,54,4860,-2118,"",null,null,3,null,null,null,null,null,null,null,null,null,null,null,null,null,null,null,5,1,6.3,null,null,null,null,null,null,null,null,null,null,null,null,null,null,null,null,null,null,1]
[100098828152,1,1,1,"ファインドエステート（株）　","047-498-8655",null,null,null,2,"2019-05-08",null,null,null,"千葉県","鎌ケ谷市","初富本町２丁目",null,null,null,null,null,"新京成線","初富",4,null,null,null,null,null,null,null,null,null,null,2,null,1,null,null,null,null,3,null,null,null,110000000,null,365000,111000,null,2,998.25,null,null,null,null,null,2,null,null,null,null,null,null,null,null,null,null,null,null,null,null,null,null,null,null,null,null,1,null,1,3,null,null,null,null,998.25,33.274999999999999,33,5,1980,302.5,14520,25520,7.7586206896551727E-2,598.94999999999993,19,1710,-711.75,"",null,null,1,2,null,null,null,null,null,null,null,null,null,null,null,null,null,null,1,1,4.5999999999999996,2,3,11,null,null,null,null,null,null,null,null,null,null,null,null,null,null,null,1]
[100098828207,1,1,1,"（株）Ｏｃｅａｎ　ｅｓｔａｔｅ　","043-312-3156","安井　義行",null,"yasui@ocean-estate.jp",2,"2019-05-09",null,null,null,"千葉県","千葉市緑区","あすみが丘東５丁目",null,null,null,null,null,"外房線","土気",17,null,null,null,null,null,null,1.4,null,null,null,1,null,1,null,null,null,null,5,null,null,null,15000000,null,226000,69000,null,1,220.25,null,null,null,null,null,2,null,null,null,null,null,null,null,null,null,null,null,null,null,null,null,null,null,null,null,null,1,null,1,1,null,null,50,100,220.25,7.3416666666666668,7,5,420,66.742424242424249,3203.636363636364,4703.636363636364,8.929261693080788E-2,110.125,3,270,-49.75,"",null,null,1,null,null,null,null,null,null,null,null,null,null,null,null,null,null,null,1,1,3.1,null,1,610,null,null,null,null,null,null,null,null,null,null,null,null,null,null,null,null,null,null,null,null,null,null,null,null,null,null,null,null,null,null,null,null,null,null,null,null,null,null,null,null,null,null,null,null,null,null,null,null,null,null,null,null,null,null,null,null,null,null,null,null,null,null,null,null,null,null,null,null,null,null,null,null,null,"［コンビニ］ローソン千葉あすみが丘四丁目",430,6,1]
[100098828878,1,1,1,"（株）飯田産業本八幡店　","047-379-9888","宮澤","090-2200-9558","motoyawata@iidasangyo.co.jp",2,"2019-05-09",null,null,null,"千葉県","千葉市中央区","亀井町","１０－３５",null,null,null,null,"総武線","千葉",22,null,null,null,null,null,null,null,null,null,null,1,null,4,201909,3,null,null,1,4,3,null,25070000,null,714000,216000,null,2,116.11,null,null,null,null,null,1,null,null,null,0,null,null,null,null,null,null,null,null,2,null,null,null,null,null,null,null,1,null,1,12,null,1,60,200,232.22,7.7406666666666668,8,5,480,70.369696969696975,3377.7454545454548,5884.7454545454548,8.1566824547906605E-2,69.665999999999997,2,180,52.22,"!",null,null,1,1,null,null,null,null,null,null,null,null,null,null,null,null,null,null,2,1,3.4,2,7,5.8,2,19.100000000000001,1,5,4,null,null,null,null,null,null,null,null,null,null,1,null,null,null,null,null,null,null,null,null,null,null,null,null,null,null,null,null,null,null,null,null,null,null,null,null,null,null,null,null,null,null,null,null,null,null,null,null,null,null,null,null,null,null,null,null,null,null,null,null,null,null,null,null,null,null,null,null,"院内保育園",1360,17,1,"建築条件付き売地♪","条件外しも可能！　是非とも連絡ください。　憧れの角地！","Ａ号地"]
[100098828907,1,1,1,"（株）飯田産業本八幡店　","047-379-9888","渡辺","090-2200-9558","yoshiaki.watanabe@iidasangyo.co.jp",2,"2019-05-09",null,null,null,"千葉県","市川市","宮久保４丁目","２５－１５",null,null,null,null,"総武中央線","本八幡",null,null,13,null,null,2,null,null,null,null,null,1,null,2,null,null,null,null,1,4,3,null,23900000,null,648000,196000,null,2,122.05,null,null,null,null,null,1,null,null,null,1,null,null,null,null,null,null,null,null,null,null,null,null,null,null,null,null,1,null,1,12,null,1,60,200,244.1,8.1366666666666667,8,5,480,73.969696969696969,3550.5454545454545,5940.545454545454,8.0800661096318074E-2,73.22999999999999,2,180,64.099999999999994,"!",null,null,1,2,null,null,null,null,null,null,null,null,null,null,null,null,null,null,1,1,null,null,2,null,null,null,null,null,null,null,null,null,null,null,null,null,null,null,null,1,null,null,null,null,null,null,null,null,null,null,null,null,null,null,null,null,null,null,null,null,null,null,null,null,null,null,null,null,null,null,null,null,null,null,null,null,null,null,null,null,null,null,null,null,null,null,null,null,null,null,null,null,null,null,null,null,null,"ベルクス市川宮久保店",160,2,1,"売地　（条件なし）　","理想と夢の実現を求められる売地♪","Ａ号地"]
[100098828919,1,1,1,"（株）飯田産業本八幡店　","047-379-9888","渡辺","047-379-9888","yoshiaki.watanabe@iidasangyo.co.jp",2,"2019-05-09",null,null,null,"千葉県","市川市","曽谷４丁目","４４－１３",null,null,null,null,"総武線","市川",null,null,20,null,null,5,400,null,null,null,null,1,null,2,null,null,null,null,1,4,3,null,14900000,null,493000,150000,null,2,99.99,null,null,null,null,null,1,null,null,null,0,null,null,null,null,null,null,null,null,2,null,null,null,null,null,null,null,1,null,1,1,null,1,50,100,99.99,3.3329999999999997,3,5,180,30.3,1454.3999999999999,2944.3999999999996,6.1132998233935615E-2,49.994999999999997,1,90,9.9899999999999949,"!",null,null,1,2,null,null,null,null,null,null,null,null,null,null,null,null,null,null,2,1,3.4,2,2,6,2,15,1,4,4.5,null,null,null,null,null,null,null,null,null,null,1,null,null,null,null,null,null,null,null,null,null,null,null,null,null,null,null,null,null,null,null,null,null,null,null,null,null,null,null,null,null,null,null,null,null,null,null,null,null,null,null,null,null,null,null,null,null,null,null,null,null,null,null,null,null,null,null,null,"曽谷小学校",519,7,1,"売地（条件なし）　嬉しい角地！","自慢の邸宅をこの地で！","Ｃ号地"]
[100098828964,1,1,1,"（株）飯田産業本八幡店　","047-379-9888","渡辺","090-2200-9558","yoshiaki.watanabe@iidasangyo.co.jp",2,"2019-05-09",null,null,null,"千葉県","市川市","曽谷４丁目","2019-09-25",null,null,null,null,"総武線","市川",null,null,19,null,"曽谷坂上",3,null,null,null,null,null,1,null,4,201906,2,null,null,1,4,3,null,23900000,null,495000,150000,null,2,159.65,null,null,null,null,null,null,null,null,null,0,null,null,null,null,null,null,null,null,1,null,null,null,null,null,null,null,1,null,1,1,null,1,50,100,159.65,5.3216666666666672,5,5,300,48.378787878787882,2322.181818181818,4712.181818181818,6.3664776015742566E-2,79.825000000000003,2,180,-20.349999999999994,"",null,null,1,2,null,null,null,null,null,null,null,null,null,null,null,null,null,null,1,1,null,2,3,5,null,null,null,null,null,null,null,null,null,null,null,null,null,null,null,1,null,null,null,null,null,null,null,null,null,null,null,null,null,null,null,null,null,null,null,null,null,null,null,null,null,null,null,null,null,null,null,null,null,null,null,null,null,null,null,null,null,null,null,null,null,null,null,null,null,null,null,null,null,null,null,null,null,"曽谷小学校",720,9,1,"土地売り　（条件付きなし）　","情熱の曽谷４丁目で、素敵なマイホームを！","Ｅ号地"]
[100098828980,1,1,1,"（株）飯田産業本八幡店　","047-379-9888","宮澤","047-379-9888","motoyawata@iidasangyo.co.jp",2,"2019-05-09",null,null,null,"千葉県","市川市","本北方３丁目","１８－１４",null,null,null,null,"武蔵野線","船橋法典",21,1680,null,null,null,null,null,null,null,null,null,null,null,4,201905,3,null,null,1,4,3,null,25900000,null,857000,259000,null,2,100.01,null,null,null,null,null,null,null,null,null,null,null,null,null,null,null,null,null,null,null,null,null,null,null,null,null,null,1,null,1,1,null,1,50,100,100.01,3.3336666666666668,3,5,180,30.306060606060608,1454.6909090909091,4044.6909090909094,4.450278254771687E-2,50.005000000000003,1,90,10.010000000000005,"!",null,null,1,2,null,null,null,null,null,null,null,null,null,null,null,null,null,null,1,1,8.6,2,3,6,null,null,null,null,null,null,null,null,null,null,null,null,null,null,null,1,null,null,null,null,null,null,null,null,null,null,null,null,null,null,null,null,null,null,null,null,null,null,null,null,null,null,null,null,null,null,null,null,null,null,null,null,null,null,null,null,null,null,null,null,null,null,null,null,null,null,null,null,null,null,null,null,null,"市立若宮保育園",760,10,1,"売地　（条件なし）　　","希望のハウスメーカーで夢の邸宅を♪","Ｅ号地"]
[100098828999,1,1,1,"三井不動産リアルティ千葉（株）三井のリハウス四街道センター　","043-421-5111",null,null,null,2,"2019-05-09","2019-05-10",null,null,"千葉県","四街道市","旭ケ丘１丁目",null,null,null,null,null,"総武線","四街道",null,null,8,null,"団地入口",4,null,null,null,null,null,1,null,1,null,null,null,null,4,1,null,null,6500000,null,131000,40000,null,1,165,null,null,null,null,null,null,null,null,null,null,null,null,null,null,null,null,null,null,null,null,null,null,null,null,null,3,1,1,1,1,null,1,50,100,165,5.5,6,5,360,50,2400,3050,0.11803278688524591,82.5,2,180,-15,"",null,null,1,2,null,null,null,null,null,null,null,null,null,null,null,null,null,null,1,1,10,2,2,5,null,null,null,null,null,null,null,null,null,null,null,null,null,null,null,1,null,null,null,null,null,null,null,null,null,null,null,null,null,null,null,null,null,null,null,null,null,null,null,null,null,null,null,null,null,null,null,null,null,null,null,null,null,null,null,null,null,null,null,null,null,null,null,null,null,null,null,null,null,null,null,null,null,"旭ヶ丘郵便局",410,6,1,"ＦＥ５Ｗ４Ａ１２"]
[100098829010,1,1,1,"三井不動産リアルティ（株）三井のリハウス船橋センター　","047-426-5531",null,null,null,2,"2019-05-09","2019-05-11",null,null,"千葉県","船橋市","前貝塚町",null,null,null,null,null,"東武野田線","塚田",6,null,null,null,null,null,null,null,null,null,null,2,null,1,null,null,null,null,3,null,null,null,38000000,null,496000,150000,null,1,253.38,null,null,null,null,null,null,null,null,null,null,null,null,null,null,null,null,null,null,null,null,null,null,null,null,null,3,1,null,1,1,null,1,50,100,253.38,8.4459999999999997,8,5,480,76.781818181818181,3685.5272727272722,7485.5272727272722,6.4123739385577985E-2,126.69,4,360,-106.62,"",null,null,null,2,null,null,null,null,null,null,null,null,null,null,null,null,null,null,2,1,15.4,2,2,6,1,12.1,2,8,4.5,null,null,null,null,null,null,null,null,null,null,null,null,null,null,null,null,null,null,null,null,null,null,null,null,null,null,null,null,null,null,null,null,null,null,null,null,null,null,null,null,null,null,null,null,null,null,null,null,null,null,null,null,null,null,null,null,null,null,null,null,null,null,null,null,null,null,null,null,"セブンイレブン船橋塚田駅前店",450,6,1,"ＦＬ７Ｗ４Ａ１Ｂ　古家有り"]
[100098829164,1,1,1,"三井不動産リアルティ（株）三井のリハウス柏センター　","04-7146-3131",null,null,null,2,"2019-05-09","2019-05-10",null,null,"千葉県","柏市","酒井根２丁目",null,null,null,null,null,"東武野田線","増尾",20,null,null,null,null,null,null,null,null,null,null,2,null,1,null,null,null,null,4,null,null,null,17000000,null,202000,62000,null,1,278.58999999999997,null,null,null,null,null,null,null,null,null,null,null,null,null,null,null,null,null,null,null,null,null,null,null,null,null,3,1,1,1,1,null,1,50,100,278.58999999999997,9.2863333333333333,9,5,540,84.421212121212122,4052.2181818181816,5752.2181818181816,9.3876828543613219E-2,139.29499999999999,4,360,-81.410000000000025,"",null,null,1,2,null,null,null,null,null,null,null,null,null,null,null,null,null,null,1,1,14.1,2,6,4,null,null,null,null,null,null,null,null,null,null,null,null,null,null,null,1,null,null,null,null,null,null,null,null,null,null,null,null,null,null,null,null,null,null,null,null,null,null,null,null,null,null,null,null,null,null,null,null,null,null,null,null,null,null,null,null,null,null,null,null,null,null,null,null,null,null,null,null,null,null,null,null,null,"マツモトキヨシ柏酒井根店",770,10,1,"Ｆ６２Ｗ４Ａ１３　古家有り"]
[100098829194,1,1,1,"（株）飯田産業本八幡店　","047-379-9888","宮澤",null,"motoyawata@iidasangyo.co.jp",2,"2019-05-09","2019-05-09",null,null,"千葉県","船橋市","三山６丁目","2019-04-11",null,null,null,null,"総武線","津田沼",null,null,16,"三山",null,3,null,null,null,null,null,1,null,2,null,null,null,null,1,4,null,null,14900000,null,467000,142000,null,2,105.52,null,null,null,null,null,2,null,null,null,0,null,null,null,null,null,null,null,null,1,null,null,null,null,null,null,null,1,null,1,11,null,1,60,160,168.83199999999999,5.6277333333333335,6,5,360,51.161212121212124,2455.7381818181816,3945.7381818181816,9.1237680609135938E-2,63.311999999999998,2,180,-11.168000000000006,"",null,null,1,2,null,null,null,null,null,null,null,null,null,null,null,null,null,null,1,1,null,null,7,6,null,null,null,null,null,null,null,null,null,null,null,null,null,null,null,1,null,null,null,null,null,null,null,null,null,null,null,null,null,null,null,null,null,null,null,null,null,null,null,null,null,null,null,null,null,null,null,null,null,null,null,null,null,null,null,null,null,null,null,null,null,null,null,null,null,null,null,null,null,null,null,null,null,"小鳩幼稚園",540,7,1,"前面道路広々６ｍ公道！","売地（条件なし）　全１３棟の大型現場の魅力をご覧あれ！","Ｉ号地"]
[100098829257,1,1,1,"（株）飯田産業本八幡店　","047-379-9888","渡辺","090-2200-9558","yoshiaki.watanabe@iidasangyo.co.jp",2,"2019-05-09",null,null,null,"千葉県","船橋市","二和東５丁目","2019-05-03",null,null,null,null,"新京成線","二和向台",7,null,null,null,null,null,null,null,null,null,null,2,null,2,null,null,null,null,1,4,3,null,19470000,null,455000,138000,null,2,141.47999999999999,null,null,null,null,null,2,null,null,null,0,null,null,null,null,null,null,null,null,2,null,null,null,null,null,null,null,1,null,1,11,null,1,60,200,282.95999999999998,9.4319999999999986,9,5,540,85.74545454545455,4115.7818181818184,6062.7818181818184,8.9068024579176078E-2,84.887999999999991,2,180,102.95999999999998,"!",null,null,1,1,null,null,null,null,null,null,null,null,null,null,null,null,null,null,1,1,7.7,null,6,4,null,null,null,null,null,null,null,null,null,null,null,null,null,null,null,1,null,null,null,null,null,null,null,null,null,null,null,null,null,null,null,null,null,null,null,null,null,null,null,null,null,null,null,null,null,null,null,null,null,null,null,null,null,null,null,null,null,null,null,null,null,null,null,null,null,null,null,null,null,null,null,null,null,"二和ひつじ幼稚園",720,13,1,"日差しが眩しい南向き物件！","売地　（条件付）⇒　条件付き外し可能です♪","１号地"]
[100098829297,1,1,1,"（株）飯田産業本八幡店　","047-379-9888","渡辺","090-2200-9558","yoshiaki.watanabe@iidasangyo.co.jp",2,"2019-05-09",null,null,null,"千葉県","船橋市","浜町１丁目","２７－１８",null,null,null,null,"総武線","船橋",22,null,null,null,null,null,null,null,null,null,null,null,null,4,201906,2,null,null,1,4,3,null,26900000,null,1445000,438000,null,2,61.55,null,null,null,null,null,2,null,null,null,null,null,null,null,null,null,null,null,null,null,null,null,null,null,null,null,null,1,null,1,12,null,1,60,200,123.1,4.1033333333333335,4,5,240,37.303030303030305,1790.5454545454547,4480.545454545455,5.3564906870105095E-2,36.93,1,90,33.099999999999994,"!",null,null,1,2,null,null,null,null,null,null,null,null,null,null,null,null,null,null,1,1,6.4,null,7,5.4,null,null,null,null,null,null,null,null,null,null,null,null,null,null,null,1,null,null,null,null,null,null,null,null,null,null,null,null,null,null,null,null,null,null,null,null,null,null,null,null,null,null,null,null,null,null,null,null,null,null,null,null,null,null,null,null,null,null,null,null,null,null,null,null,null,null,null,null,null,null,null,null,null,"宮本小学校",1020,13,1,"都心へアクセス良好！３路線ＯＫ","ららぽーと・ビビット南船橋が至近！生活環境に恵まれています。","１号地"]
[100098829350,1,1,1,"（株）飯田産業本八幡店　","047-379-9888","渡辺","090-2200-9558","yoshiaki.watanabe@iidasangyo.co.jp",2,"2019-05-09",null,null,null,"千葉県","船橋市","習志野２丁目","2019-08-20",null,null,null,null,"新京成線","習志野",21,null,null,null,null,null,null,null,null,null,null,1,null,3,201906,3,null,null,1,4,3,null,15900000,null,599000,182000,null,2,87.82,null,null,null,null,null,2,null,null,null,0,null,null,null,null,null,null,null,null,null,null,null,null,null,null,null,null,1,null,1,12,null,1,60,200,175.64,5.8546666666666658,6,5,360,53.224242424242426,2554.7636363636361,4144.7636363636357,8.6856581360051255E-2,52.691999999999993,1,90,85.639999999999986,"!",null,null,1,2,null,null,null,null,null,null,null,null,null,null,null,null,null,null,1,1,7.8,null,5,5.4,null,null,null,null,null,null,null,null,null,null,null,null,null,null,null,1,null,null,null,null,null,null,null,null,null,null,null,null,null,null,null,null,null,null,null,null,null,null,null,null,null,null,null,null,null,null,null,null,null,null,null,null,null,null,null,null,null,null,null,null,null,null,null,null,null,null,null,null,null,null,null,null,null,"三山保育園",810,11,1,"陽当り自慢物件！","お手頃価格で登場！理想の家が造れます！","１号地"]
[100098832354,1,1,1,"藤和ホーム（株）　","042-985-3325",null,null,null,2,"2019-05-09",null,null,null,"千葉県","山武郡九十九里町","小関",null,null,null,null,null,"東金線","東金",null,null,null,null,null,null,null,10.5,null,null,null,2,null,2,null,null,null,null,4,1,null,null,18000000,null,48000,15000,null,1,1243.19,null,null,null,null,null,null,null,null,null,null,null,null,null,null,null,null,null,null,null,null,null,null,null,null,null,null,1,null,1,6,null,null,60,200,2486.38,82.879333333333335,83,5,4980,753.4484848484849,36165.527272727275,37965.527272727275,0.13117162746683114,745.91399999999999,24,2160,326.38000000000011,"!",null,null,1,2,null,null,null,null,null,null,null,null,null,null,null,null,null,null,1,1,26,null,8,14,null,null,null,null,null,null,null,null,null,null,null,null,null,null,null,null,null,null,null,null,null,null,null,null,null,null,null,null,null,null,null,null,null,null,null,null,null,null,null,null,null,null,null,null,null,null,null,null,null,null,null,null,null,null,null,null,null,null,null,null,null,null,null,null,null,null,null,null,null,null,null,null,null,"九十九里小学校",1650,null,null,"現況有姿"]
[100098833354,1,1,1,"藤和ホーム（株）　","042-985-3325",null,null,null,2,"2019-05-09",null,null,null,"千葉県","山武郡九十九里町","小関",null,null,null,null,null,"東金線","東金",null,null,null,null,null,null,null,10.5,null,null,null,1,null,2,null,null,null,null,4,1,null,null,8300000,null,62000,19000,null,1,446.28,null,null,null,null,null,null,null,null,null,null,null,null,null,null,null,null,null,null,null,null,null,null,null,null,null,null,1,null,1,6,null,null,60,200,892.56,29.751999999999999,30,5,1800,270.4727272727273,12982.69090909091,13812.69090909091,0.13031494093705656,267.76799999999997,8,720,172.55999999999995,"!",null,null,1,2,null,null,null,null,null,null,null,null,null,null,null,null,null,null,1,1,45.1,null,6,10,null,null,null,null,null,null,null,null,null,null,null,null,null,null,null,null,null,null,null,null,null,null,null,null,null,null,null,null,null,null,null,null,null,null,null,null,null,null,null,null,null,null,null,null,null,null,null,null,null,null,null,null,null,null,null,null,null,null,null,null,null,null,null,null,null,null,null,null,null,null,null,null,null,"九十九里小学校",1650]
[100098833366,1,1,1,"藤和ホーム（株）　","042-985-3325",null,null,null,2,"2019-05-09",null,null,null,"千葉県","山武郡九十九里町","小関",null,null,null,null,null,"東金線","東金",null,null,null,null,null,null,null,10,null,null,null,1,null,1,null,null,null,null,4,1,null,null,16800000,null,63000,19000,null,1,888,null,null,null,null,null,null,null,null,null,null,null,null,null,null,null,null,null,null,null,null,null,null,null,null,null,null,5,null,1,12,null,null,60,200,1776,59.2,59,5,3540,538.18181818181824,25832.727272727272,27512.727272727272,0.12866772402854879,532.79999999999995,17,1530,246,"!",null,null,1,2,null,null,null,null,null,null,null,null,null,null,null,null,null,null,2,1,13.5,null,4,7,1,null,null,2,2,null,null,null,null,null,null,null,null,null,null,1,null,null,null,null,null,null,null,null,null,null,null,null,null,null,null,null,null,null,null,null,null,null,null,null,null,null,null,null,null,null,null,null,null,null,null,null,null,null,null,null,null,null,null,null,null,null,null,null,null,null,null,null,null,null,null,null,null,"九十九里小学校",1400]
[100098833495,1,1,1,"京葉リネット（株）　","047-422-3131","村山",null,null,2,"2019-05-09",null,null,null,"千葉県","佐倉市","八幡台２丁目","2019-01-04",null,null,null,null,"京成本線","京成臼井",20,null,null,null,null,null,null,null,null,null,null,2,null,2,null,null,null,null,4,1,3,60000,6000000,null,113000,35000,null,null,176.44,null,null,null,null,null,null,null,null,null,null,null,null,null,null,null,null,null,null,null,null,null,null,null,null,null,null,1,null,1,1,null,null,50,100,176.44,5.8813333333333331,6,5,360,53.466666666666669,2566.4,3166.4,0.11369378473976756,88.22,2,180,-3.5600000000000023,"",null,null,1,null,null,null,null,null,null,null,null,null,null,null,null,null,null,null,1,1,12.6,null,6,12,null,null,null,null,null,null,null,null,null,null,null,null,null,null,null,1,null,null,null,null,null,null,null,null,null,null,null,null,null,null,null,null,null,null,null,null,null,null,null,null,null,null,null,null,null,null,null,null,null,null,null,null,null,null,null,null,null,null,null,null,null,null,null,null,null,null,null,null,null,null,null,null,null,null,null,null,null,"更地渡し"]
[100098834829,1,1,1,"（有）エステート宮入　","04-7140-0231","宮入",null,null,2,"2019-05-09",null,null,null,"千葉県","柏市","旭町６丁目","２－３５",null,null,null,null,"常磐線","柏",17,null,null,null,null,null,null,null,null,null,null,1,null,1,null,null,null,null,1,9,null,null,44800000,null,489000,148000,null,2,303.14999999999998,null,null,null,null,null,2,null,null,null,0,null,null,null,null,null,null,null,null,2,null,null,null,null,null,null,3,4,1,1,1,null,1,50,100,303.14999999999998,10.104999999999999,10,5,600,91.86363636363636,4409.454545454545,8889.4545454545441,6.7495704818784266E-2,151.57499999999999,5,450,-146.85000000000002,"",null,null,1,2,null,null,null,null,null,null,null,null,null,null,null,null,null,null,1,1,8.8000000000000007,2,8,6.1,null,null,null,null,null,null,null,null,null,null,null,null,null,null,null,1,null,null,null,null,null,null,null,null,null,null,null,null,null,null,null,null,null,null,null,null,null,null,null,null,null,null,null,null,null,null,null,null,null,null,null,null,null,null,null,null,null,null,null,null,null,null,null,null,null,null,null,null,null,null,null,null,null,null,null,null,null,"閑静な住宅地、戸建・アパートに"]
[100098835291,1,1,1,"京葉リネット（株）　","047-422-3131","村山",null,null,2,"2019-05-09",null,null,null,"千葉県","四街道市","栗山","１０００－８２",null,null,null,null,"総武線","四街道",null,null,7,null,"栗山",7,null,null,null,null,null,2,null,2,null,null,null,null,4,1,3,60000,11000000,null,171000,52000,null,1,213.53,null,null,null,null,null,null,null,null,null,null,null,null,null,null,null,null,null,null,null,null,null,null,null,null,null,null,1,null,1,1,null,null,50,100,213.53,7.1176666666666666,7,5,420,64.706060606060603,3105.8909090909087,4205.8909090909092,9.9859936712144007E-2,106.765,3,270,-56.47,"",null,null,1,null,null,null,null,null,null,null,null,null,null,null,null,null,null,null,1,1,null,null,4,6.2,null,null,null,null,null,null,null,null,null,null,null,null,null,null,null,1,null,null,null,null,null,null,null,null,null,null,null,null,null,null,null,null,null,null,null,null,null,null,null,null,null,null,null,null,null,null,null,null,null,null,null,null,null,null,null,null,null,null,null,null,null,null,null,null,null,null,null,null,null,null,null,null,null,null,null,null,null,"更地渡し"]
[100098835314,1,1,1,"（株）スマートハウジング　","043-239-6180","永井",null,"info@smart-h.co.jp",2,"2019-05-09",null,null,null,"千葉県","千葉市稲毛区","作草部町",null,null,null,null,null,"千葉モノレ","作草部",11,null,null,null,null,null,null,null,null,null,null,1,null,2,null,null,null,null,1,null,3,null,12900000,null,310000,94000,null,1,137.63999999999999,null,null,null,null,null,null,null,null,null,null,null,null,null,null,null,null,null,null,null,null,null,null,null,null,null,3,1,null,1,2,null,1,60,200,275.27999999999997,9.1759999999999984,9,5,540,83.418181818181807,4004.0727272727263,5294.0727272727263,0.10200086546188879,82.583999999999989,2,180,95.279999999999973,"!",null,null,4,2,null,null,null,null,null,null,null,null,null,null,null,null,null,null,5,2,null,null,2,5,null,null,null,null,null,null,null,null,null,null,null,null,null,null,null,1,null,null,null,null,null,null,null,null,null,null,null,null,null,null,null,null,null,null,null,null,null,null,null,null,null,null,null,null,null,null,null,null,null,null,null,null,null,null,null,null,null,null,null,null,null,null,null,null,null,null,null,null,null,null,null,null,null,null,null,null,null,"私道の持分無し・ガス引込無し"]
[100098835695,1,1,1,"ティアラ・エステート（株）　","043-488-4561",null,null,null,2,"2019-05-09",null,null,null,"千葉県","八街市","朝日",null,null,null,null,null,"総武線","八街",null,null,null,null,null,null,null,2.6,null,null,null,1,null,1,null,null,null,null,1,null,3,null,28000000,null,55000,17000,null,2,1686.91,null,null,null,null,null,null,null,null,null,null,null,null,null,null,null,null,null,null,null,null,null,null,null,null,null,3,9,5,3,null,null,null,60,200,3373.82,112.46066666666667,112,5,6720,1022.3696969696971,49073.74545454546,51873.74545454546,0.12954530159940778,1012.146,33,2970,403.82000000000016,"!",null,null,1,2,null,null,null,null,null,null,null,null,null,null,null,null,null,null,2,1]
[100098837201,1,1,1,"（有）エステートリサーチ　","03-5292-2103","西田","03-5292-2103",null,2,"2019-05-09",null,null,null,"千葉県","木更津市","畑沢１丁目","１－５９",null,null,null,null,"内房線","君津",null,null,null,null,null,null,null,2,null,null,null,2,null,2,null,null,null,null,4,9,null,null,51800000,null,117000,36000,null,1,1471.31,null,null,null,null,null,null,null,null,null,null,null,null,null,null,null,null,null,null,null,null,null,null,null,null,null,null,1,null,1,6,null,7,60,200,2942.62,98.087333333333333,98,5,5880,891.70303030303035,42801.74545454546,47981.74545454546,0.12254660484517596,882.78599999999994,29,2610,332.61999999999989,"!",null,null,1,null,null,null,null,null,null,null,null,null,null,null,null,null,null,null,1,1,null,null,null,8.3000000000000007,null,null,null,null,null,null,null,null,null,null,null,null,null,null,null,1]
[100098837241,1,1,1,"（有）エステートリサーチ　","03-5292-2103","西田","03-5292-2103",null,2,"2019-05-09",null,null,null,"千葉県","銚子市","清水町",1347,null,null,null,null,"銚子電鉄","本銚子",3,null,null,null,null,null,null,null,null,null,null,2,null,2,null,null,null,null,2,4,3,null,38800000,null,37000,12000,null,1,3520.69,null,null,null,null,null,2,null,null,null,1,null,null,null,null,null,null,null,null,null,null,null,null,null,null,null,1,1,null,1,12,1,1,60,200,7041.38,234.71266666666668,235,5,14100,2133.7515151515154,102420.07272727272,106300.07272727272,0.13264337114966482,2112.4139999999998,70,6300,741.38000000000011,"!",null,null,2,null,null,null,null,null,null,null,null,null,null,null,null,null,null,null,3,1,null,null,null,null,null,null,null,null,null,null,null,null,null,null,null,null,null,null,null,1]
[100098837280,1,1,1,"（有）マック・ホーム　","047-493-9399","小倉","047-493-9399","info@mac-home.co.jp",2,"2019-05-09",null,null,null,"千葉県","習志野市","鷺沼台３丁目","１４－３３",null,null,null,null,"京成本線","京成大久保",15,1200,null,null,null,null,null,null,null,null,null,2,null,2,null,null,null,null,3,1,null,null,9600000,null,384000,117000,null,2,82.75,null,null,null,null,null,null,null,null,null,null,null,null,null,null,null,null,null,null,null,null,null,null,null,null,null,null,1,null,1,1,null,1,50,100,82.75,2.7583333333333333,3,5,180,25.075757575757578,1203.6363636363637,2163.636363636364,8.3193277310924352E-2,41.375,1,90,-7.25,"",null,null,2,null,null,null,null,null,null,null,null,null,null,null,null,null,null,null,null,2,6.9,1,2,6,null,null,null,null,null,null,null,null,null,null,null,null,null,null,null,null,null,null,null,null,null,null,null,null,null,null,null,null,null,null,null,null,null,null,null,null,null,null,null,null,null,null,null,null,null,null,null,null,null,null,null,null,null,null,null,null,null,null,null,null,null,null,null,null,null,null,null,null,null,null,null,null,null,null,null,null,null,null,"前面道路６ｍと広く、開放感あります。"]
[100098837296,1,1,1,"（有）マック・ホーム　","047-493-9399",null,null,null,2,"2019-05-09",null,null,null,"千葉県","八千代市","八千代台南３丁目","１５－２３",null,null,null,null,"京成本線","八千代台",10,800,null,null,null,null,null,null,null,null,null,1,null,2,null,null,null,null,3,1,null,null,12600000,null,444000,135000,null,1,94,null,null,null,null,null,2,null,null,null,null,null,null,null,null,null,null,null,null,null,null,null,null,null,null,null,null,3,null,1,1,null,1,50,100,94,3.1333333333333333,3,5,180,28.484848484848488,1367.2727272727273,2627.272727272727,6.8512110726643607E-2,47,1,90,4,"!",null,null,1,null,null,null,null,null,null,null,null,null,null,null,null,null,null,null,null,2,9.5,1,4,4.5,null,null,null,null,null,null,null,null,null,null,null,null,null,null,null,null,null,null,null,null,null,null,null,null,null,null,null,null,null,null,null,null,null,null,null,null,null,null,null,null,null,null,null,null,null,null,null,null,null,null,null,null,null,null,null,null,null,null,null,null,null,null,null,null,null,null,null,null,null,null,null,null,null,null,null,null,null,null,"特急停車駅　徒歩１０分圏内"]
[100098837304,1,1,1,"（有）マック・ホーム　","047-493-9399",null,null,null,2,"2019-05-09",null,null,null,"千葉県","習志野市","藤崎６丁目","2019-03-05",null,null,null,null,"京成本線","京成大久保",9,720,null,null,null,null,null,null,null,null,null,1,null,1,null,null,null,null,1,9,null,null,18800000,null,522000,158000,null,2,119.1,null,null,null,null,null,null,null,null,null,null,null,null,null,null,null,null,null,null,null,null,null,null,null,null,null,null,1,null,1,1,null,1,50,100,119.1,3.9699999999999998,4,5,240,36.090909090909093,1732.3636363636365,3612.3636363636365,6.6438494060801281E-2,59.55,1,90,29.099999999999994,"!",null,null,1,null,null,null,null,null,null,null,null,null,null,null,null,null,null,null,null,2,8.4,1,2,4]
[100098837502,1,1,1,"（株）畔蒜不動産　","0479-82-0017","畔蒜","0479-82-0017","abiru@sweet.ocn.ne.jp",2,"2019-05-09","2019-05-11",null,null,"千葉県","山武郡横芝光町","宮川","5950-08-01",null,null,null,null,"総武線","横芝",22,1760,null,null,null,null,null,null,null,null,null,1,null,2,null,null,null,null,1,9,3,60000,8040000,null,80000,25000,null,2,332.49,null,null,null,null,null,2,null,null,null,null,null,null,null,null,5,201903,null,null,null,null,null,null,null,null,null,null,1,null,3,12,null,1,60,200,664.98,22.166,22,5,1320,201.50909090909093,9672.4363636363632,10476.436363636363,0.12599704271403878,199.494,6,540,124.98000000000002,"!",null,null,1,null,null,null,null,null,null,null,null,null,null,null,null,null,null,null,null,null,null,null,null,null,null,null,null,null,null,null,null,null,null,null,null,null,null,null,null,null,null,null,null,null,null,null,null,null,null,null,null,null,null,null,null,null,null,null,null,null,null,null,null,null,null,null,null,null,null,null,null,null,null,null,null,null,null,null,null,null,null,null,null,null,null,null,null,null,null,null,null,null,null,null,null,null,null,null,null,null,null,null,"横芝光インタ－近くアクセス便利です。"]
[100098837789,1,1,1,"（有）ダイシンホーム　","043-291-2131",null,null,null,2,"2019-05-09",null,null,null,"千葉県","千葉市緑区","高田町",null,null,null,"７８１－１",null,"外房線","誉田",28,2200,null,null,null,null,null,2.2000000000000002,"千葉東金道路「高田」ＩＣまで約１．４ｋｍ",null,null,2,null,1,null,null,null,null,1,4,3,null,18800000,null,66000,20000,null,1,949.68,null,null,null,null,null,2,null,null,null,null,null,null,null,null,null,null,null,null,null,null,null,null,null,null,null,3,1,null,2,99,null,1,60,200,1899.36,63.311999999999998,63,5,3780,575.56363636363642,27627.054545454546,29507.054545454546,0.12810495856768919,569.80799999999999,18,1620,279.3599999999999,"!",null,null,1,2,null,null,null,null,null,null,null,null,null,null,null,null,null,null,1,1,35,null,6,7.4,null,null,null,null,null,null,null,null,null,null,null,null,null,null,null,1,null,null,null,null,null,null,null,null,null,null,null,null,null,null,null,null,null,null,null,null,null,null,null,null,null,null,null,null,null,null,null,null,null,null,null,null,null,null,null,null,null,null,null,null,null,null,null,null,null,null,null,null,null,null,null,null,null,"千葉東金道路「高田」ＩＣ",1400,null,null,"２８７坪の広い土地！","道路と平坦で整形地です！多種多彩な趣味の方におすすめです！"]
[100098838534,1,1,1,"（株）新昭和ウィザース東関東　","043-209-6372",null,null,null,2,"2019-05-09",null,null,null,"千葉県","船橋市","湊町３丁目",null,null,null,null,null,"総武線","船橋",17,1300,null,null,null,null,null,null,null,null,null,1,null,2,null,null,null,null,1,null,3,60000,25500000,null,842000,255000,null,1,100.22,null,null,null,null,null,null,null,null,null,null,null,null,null,null,null,null,null,null,null,null,null,null,null,null,null,null,5,1,1,12,null,1,60,172,172.3784,5.7459466666666668,6,5,360,52.235878787878789,2507.3221818181819,5057.3221818181819,7.1183916518954046E-2,60.131999999999998,2,180,-7.6216000000000008,"",null,null,1,1,null,null,null,null,null,null,null,null,null,null,null,null,null,null,1,1,11.8,null,8,4.3,null,null,null,null,null,null,null,null,null,null,null,null,null,null,null,1,null,null,null,null,null,null,null,null,null,null,null,null,null,null,null,null,null,null,null,null,null,null,null,null,null,null,null,null,null,null,null,null,null,null,null,null,null,null,null,null,null,null,null,null,null,null,null,null,null,null,null,null,null,null,null,null,null,null,null,null,null,"区画番号１が対象土地です"]
[100098838853,1,1,1,"（株）新昭和ウィザース東関東　","043-209-6372",null,null,null,2,"2019-05-09",null,null,null,"千葉県","船橋市","湊町３丁目",null,null,null,null,null,"総武線","船橋",17,1300,null,null,null,null,null,null,null,null,null,1,null,2,null,null,null,null,1,null,3,60000,23500000,null,654000,198000,null,1,118.79,null,null,null,null,null,null,null,null,null,null,null,null,null,null,null,null,null,null,null,null,null,null,null,null,null,null,5,1,1,12,null,1,60,172,204.31880000000001,6.8106266666666668,7,5,420,61.914787878787884,2971.9098181818185,5321.909818181819,7.8919037403660686E-2,71.274000000000001,2,180,24.31880000000001,"!",null,null,1,1,null,null,null,null,null,null,null,null,null,null,null,null,null,null,1,1,2.6,null,8,4.3,null,null,null,null,null,null,null,null,null,null,null,null,null,null,null,1,null,null,null,null,null,null,null,null,null,null,null,null,null,null,null,null,null,null,null,null,null,null,null,null,null,null,null,null,null,null,null,null,null,null,null,null,null,null,null,null,null,null,null,null,null,null,null,null,null,null,null,null,null,null,null,null,null,null,null,null,null,"区画番号２が対象土地です"]
[100098838960,1,1,1,"（有）住まいるハウス　","043-483-6001","川村",null,null,2,"2019-05-09","2019-05-09",null,null,"千葉県","山武市","木原",null,null,null,null,null,"総武線","日向",null,null,null,null,null,null,null,2.7,null,null,null,1,null,2,null,null,null,null,4,null,null,null,12000000,null,20000,6000,null,null,2024,null,null,null,null,null,null,null,null,null,null,null,null,null,null,null,null,null,null,null,null,null,null,null,null,null,null,null,null,3,99,null,null,60,200,4048,134.93333333333334,135,5,8100,1226.6666666666667,58880.000000000007,60080.000000000007,0.13482023968042608,1214.3999999999999,40,3600,448,"!",null,null,null,null,null,null,null,null,null,null,null,null,null,null,null,null,null,null,2]
[100098839171,1,1,1,"（株）リアルタイムクリエーション　","03-3625-7770",null,null,null,2,"2019-05-09",null,null,null,"千葉県","柏市","五條谷",null,null,null,null,null,"常磐線","柏",null,null,20,null,"大木戸団地",null,null,null,null,null,null,1,null,2,null,null,null,null,1,null,null,null,39800000,null,257000,78000,null,2,512.98,null,null,null,null,null,2,null,null,null,null,null,null,null,null,null,null,null,null,null,null,null,null,null,null,null,null,1,null,1,12,null,4,60,200,1025.96,34.198666666666668,34,5,2040,310.89696969696973,14923.054545454546,18903.054545454546,0.10791906647121965,307.78800000000001,10,900,125.96000000000004,"!",null,null,null,null,null,null,null,null,null,null,null,null,null,null,null,null,null,null,5,1,9.5,null,1,11,2,43.7,1,3,4,null,null,null,null,null,null,null,null,null,null,1]
[100098839303,1,1,1,"（株）ベストハウジング千葉　","047-426-1101","幸",null,null,2,"2019-05-09",null,null,null,"千葉県","船橋市","芝山５丁目","４０‐６",null,null,null,null,"新京成線","高根公団",11,null,null,null,null,null,null,null,null,null,null,1,null,1,null,null,null,null,5,1,null,null,25500000,null,492000,149000,null,null,171.49,null,null,null,null,null,null,null,null,null,null,null,null,null,null,null,null,null,null,null,null,null,null,null,null,null,null,1,null,1,1,3,null,50,100,171.49,5.7163333333333339,6,5,360,51.966666666666676,2494.4,5044.3999999999996,7.136626754420744E-2,85.745000000000005,2,180,-8.5099999999999909,"",null,null,null,2,null,null,null,null,null,null,null,null,null,null,null,null,null,null,1,1,null,null,6,4]
[100098839429,1,1,1,"日本住宅流通（株）　東京支社","03-5214-2717","小島","080-4086-9858",null,2,"2019-05-09",null,null,null,"千葉県","船橋市","夏見６丁目",null,null,null,null,null,"東武野田線","塚田",24,null,null,null,null,null,null,null,null,null,null,2,null,1,null,null,null,null,5,null,null,null,14800000,null,529000,160000,null,1,92.56,null,null,null,null,null,2,null,null,null,null,null,null,null,null,null,null,null,null,null,null,null,null,null,null,null,3,1,null,1,11,null,null,60,200,185.12,6.1706666666666665,6,5,360,56.096969696969701,2692.6545454545453,4172.6545454545449,8.6276013525290213E-2,55.536000000000001,1,90,95.12,"!",null,null,2,2,null,null,null,null,null,null,null,null,null,null,null,null,null,null,1,1,null,null,6,5.9]
[100098839453,1,1,1,"（有）同和不動産　","03-3387-3351",null,null,null,2,"2019-05-09",null,null,null,"千葉県","君津市","山滝野",680,null,null,null,null,"久留里線","平山",null,null,null,null,null,null,null,null,null,null,null,1,null,2,null,null,null,null,4,1,null,null,8000000,null,19000,6000,null,1,1418.87,null,null,null,null,null,null,null,null,null,null,null,null,null,null,null,null,null,null,null,null,null,null,null,null,null,null,null,null,null,null,null,null,null,null,{"$f":"IF(ISBLANK(CI67),100,CI67)/100*BA67","v":1418.87},{"$f":"CJ67/30","v":47.295666666666662},{"$f":"ROUND(CK67,0)","v":47},5,{"$f":"CM67*12*CL67","v":2820},{"$f":"CJ67/3.3","v":429.96060606060604},{"$f":"CO67*40*1.2","v":20638.109090909089},{"$f":"CP67+(AU67/10000)","v":21438.109090909089},{"$f":"CN67/CQ67","v":0.13154145209550369},{"$f":"IF(ISBLANK(CH67),60,CH67)/100*BA67","v":851.32199999999989},{"$f":"ROUNDDOWN((CS67/30),0)","v":28},{"$f":"CT67*30*3","v":2520},{"$f":"CJ67-CU67","v":-1101.1300000000001},{"$f":"IF(CV67>0, \"!\",\"\")","v":""},null,null,1]
[100098840153,1,1,1,"住友不動産販売（株）　勝田台営業センター","047-486-0861","武村　一","047-486-0861",null,2,"2019-05-09","2019-05-10",null,null,"千葉県","八千代市","下市場２丁目",null,null,null,null,null,"東葉高速線","東葉勝田台",15,1200,null,null,null,null,null,null,null,null,null,1,null,1,null,null,null,null,5,1,null,null,24800000,null,168000,51000,null,1,489,null,null,null,null,null,null,null,null,null,1,1.1000000000000001,11,null,null,null,null,null,null,null,null,null,null,null,null,null,3,3,null,1,1,null,1,60,150,733.5,24.45,24,5,1440,222.27272727272728,10669.09090909091,13149.09090909091,0.10951327433628318,293.39999999999998,9,810,-76.5,"",null,null,1,2,null,null,null,null,null,null,null,null,null,null,null,null,null,null,1,1,9.1999999999999993,2,8,1.8,null,null,null,null,0,null,null,null,null,0,null,null,null,null,0,2,null,null,null,null,null,null,null,null,null,null,null,null,null,null,null,null,null,null,null,null,null,null,null,null,null,null,null,null,null,null,null,null,null,null,null,null,null,null,null,null,null,null,null,null,null,null,null,null,null,null,null,null,null,null,null,null,null,"フルルガーデン八千代",800,10,1]
[100098840190,1,1,1,"住友不動産販売（株）　津田沼営業センター","047-477-6050","渡辺　亮太","047-477-6050",null,2,"2019-05-09","2019-05-13",null,null,"千葉県","船橋市","飯山満町２丁目",null,null,null,null,null,"新京成線","前原",13,1040,null,null,null,null,null,null,null,null,null,2,null,2,null,null,null,null,5,1,null,null,9800000,null,327000,99000,null,1,99.24,null,null,null,null,null,2,null,null,null,null,null,null,null,null,null,null,null,null,null,null,null,null,null,null,null,3,1,1,1,11,null,null,60,160,158.78399999999999,5.2927999999999997,5,5,300,48.116363636363637,2309.5854545454545,3289.5854545454545,9.1196901295106547E-2,59.543999999999997,1,90,68.783999999999992,"!",null,null,2,2,null,null,null,null,null,null,null,null,null,null,null,null,null,null,1,2,8.5,2,3,4,null,null,null,null,0,null,null,null,null,0,null,null,null,null,0,1,null,null,null,null,null,null,null,null,null,null,null,null,null,null,null,null,null,null,null,null,null,null,null,null,null,null,null,null,null,null,null,null,null,null,null,null,null,null,null,null,null,null,null,null,null,null,null,null,null,null,null,null,null,null,null,null,null,"ワイズマートディスカ飯山満店",450,6,1,"土地面積／９９．２４㎡","建築条件無し、お好きなハウスメーカーにて建築可能"]
[100098840365,1,1,1,"住友不動産販売（株）　千葉営業センター","043-224-8151","宇田川瞬也","043-224-8151",null,2,"2019-05-09",null,null,null,"千葉県","千葉市中央区","稲荷町３丁目",null,null,null,null,null,"京葉線","蘇我",10,800,null,null,null,null,null,null,null,null,null,1,null,1,null,null,null,null,4,1,null,null,21800000,null,732000,222000,null,2,98.46,null,null,null,null,null,2,null,null,null,null,null,null,null,null,null,null,null,null,2,null,null,null,null,null,null,3,1,1,1,3,null,1,70,200,196.92,6.5639999999999992,7,5,420,59.672727272727272,2864.2909090909093,5044.2909090909088,8.3262446113698305E-2,68.921999999999997,2,180,16.919999999999987,"!",null,null,1,2,null,null,null,null,null,null,null,null,null,null,null,null,null,null,2,1,14.1,2,2,14.9,1,6.4,2,4,5.9,null,null,null,null,0,null,null,null,null,0,1]
[100098840371,1,1,1,"住友不動産販売（株）　千葉営業センター","043-224-8151","宇田川瞬也","043-224-8151",null,2,"2019-05-09",null,null,null,"千葉県","千葉市中央区","稲荷町３丁目",null,null,null,null,null,"京葉線","蘇我",10,800,null,null,null,null,null,null,null,null,null,1,null,1,null,null,null,null,4,1,null,null,19800000,null,665000,202000,null,2,98.46,null,null,null,null,null,2,null,null,null,null,null,null,null,null,null,null,null,null,2,null,null,null,null,null,null,3,1,1,1,3,null,1,60,200,196.92,6.5639999999999992,7,5,420,59.672727272727272,2864.2909090909093,4844.2909090909088,8.6699995496104132E-2,59.075999999999993,1,90,106.91999999999999,"!",null,null,1,2,null,null,null,null,null,null,null,null,null,null,null,null,null,null,1,1,6.9,2,4,5.9,null,null,null,null,0,null,null,null,null,0,null,null,null,null,0,1]
[100098840893,1,1,1,"三井住友トラスト不動産（株）　市川センター","047-325-8282","黒川　大輝","047-325-8282","ichikawa@smtrc.jp",2,"2019-05-09","2019-05-09",null,null,"千葉県","市川市","堀之内４丁目",null,null,null,null,null,"北総線","北国分",6,null,null,null,null,null,null,null,null,null,null,1,null,2,null,null,null,null,4,null,null,null,59800000,null,868000,263000,null,1,228,null,null,null,null,null,2,null,null,null,0,null,null,null,null,null,null,null,null,null,null,null,null,null,null,null,3,3,1,1,10,null,null,60,200,456,15.2,15,5,900,138.18181818181819,6632.727272727273,12612.727272727272,7.1356494161741391E-2,136.79999999999998,4,360,96,"!",null,null,null,2,null,null,null,null,null,null,null,null,null,null,null,null,null,null,5,1,13.2,null,3,6,1,11.9,null,5,5.9,null,null,null,null,null,null,null,null,null,null,null,null,null,null,null,null,null,null,null,null,null,null,null,null,null,null,null,null,null,null,null,null,null,null,null,null,null,null,null,null,null,null,null,null,null,null,null,null,null,null,null,null,null,null,null,null,null,null,null,null,null,null,null,null,null,null,null,null,null,null,null,null,null,null,"Ｂｉｃ１８０６４４"]
[100098841385,1,1,1,"東急リバブル（株）　柏センター","04-7164-3661",null,null,null,2,"2019-05-09",null,null,null,"千葉県","佐倉市","上志津",null,null,null,null,null,"京成本線","志津",10,null,null,null,null,null,null,null,null,null,null,2,null,2,null,null,null,null,4,1,null,null,14800000,null,186000,57000,null,1,264.27,null,null,null,null,null,null,null,null,null,null,null,null,null,null,null,null,null,null,null,null,null,null,null,null,null,3,1,null,1,1,null,1,60,150,396.40499999999997,13.2135,13,5,780,120.12272727272727,5765.8909090909092,7245.8909090909092,0.10764721823528821,158.56199999999998,5,450,-53.595000000000027,"",null,null,null,2,null,null,null,null,null,null,null,null,null,null,null,null,null,null,2,1,null,2,8,7.5,1,null,2,2,6.8,null,null,null,null,null,null,null,null,null,null,null,null,null,null,null,null,null,null,null,null,null,null,null,null,null,null,null,null,null,null,null,null,null,null,null,null,null,null,null,null,null,null,null,null,null,null,null,null,null,null,null,null,null,null,null,null,null,null,null,null,null,null,null,null,null,null,null,null,null,null,null,null,null,null,"ＣＺＭ１９４０１５"]
[100098841830,1,1,1,"（株）ホームネット　","0438-22-7880",null,null,null,2,"2019-05-09",null,null,null,"千葉県","袖ケ浦市","長浦駅前２丁目",null,null,null,null,null,"内房線","長浦",8,null,null,null,null,null,null,null,null,null,null,1,null,2,null,null,null,null,4,1,null,null,21000000,null,330000,100000,null,1,211,null,null,null,null,null,null,null,null,null,null,null,null,null,null,null,null,null,null,null,null,null,null,null,null,null,null,3,null,1,1,null,1,50,100,211,7.0333333333333332,7,5,420,63.939393939393945,3069.0909090909095,5169.0909090909099,8.1252198381990839E-2,105.5,3,270,-59,""]
[100098842028,1,1,1,"（株）ホームネット　","0438-22-7880",null,null,null,2,"2019-05-09",null,null,null,"千葉県","木更津市","請西東２丁目",null,null,null,null,null,null,null,null,null,null,null,null,null,null,null,null,null,null,1,null,2,null,null,null,null,5,1,null,null,9480000,null,150000,46000,null,1,209,null,null,null,null,null,null,null,null,null,null,null,null,null,null,null,null,null,null,null,null,null,null,null,null,null,null,5,null,1,null,null,1,50,100,209,6.9666666666666668,7,5,420,63.333333333333336,3040,3988,0.10531594784353059,104.5,3,270,-61,""]
[100098842058,1,1,1,"（株）ホームネット　","0438-22-7880",null,null,null,2,"2019-05-09",null,null,null,"千葉県","木更津市","畑沢",null,null,null,null,null,"内房線","君津",34,2700,null,null,null,null,null,null,null,null,null,1,null,2,null,null,null,null,1,4,null,null,12800000,null,147000,45000,null,1,288.41000000000003,null,null,null,null,null,null,null,null,null,null,null,null,null,null,null,null,null,null,null,null,null,null,null,null,null,null,1,null,1,3,null,1,60,200,576.82000000000005,19.227333333333334,19,5,1140,174.79393939393941,8390.1090909090908,9670.1090909090908,0.11788905267591228,173.04600000000002,5,450,126.82000000000005,"!"]
[100098842101,1,1,1,"（株）ホームネット　","0438-22-7880",null,null,null,2,"2019-05-09",null,null,null,"千葉県","木更津市","畑沢南６丁目",null,null,null,null,null,"内房線","君津",12,null,null,null,null,null,null,null,null,null,null,1,null,2,null,null,null,null,5,1,null,null,13500000,null,173000,53000,null,1,258.17,null,null,null,null,null,null,null,null,null,null,null,null,null,null,null,null,null,null,null,null,null,null,null,null,null,null,1,null,1,1,null,1,50,100,258.17,8.6056666666666679,9,5,540,78.233333333333348,3755.2000000000007,5105.2000000000007,0.10577450442685887,129.08500000000001,4,360,-101.82999999999998,"",null,null,null,null,null,null,null,null,null,null,null,null,null,null,null,null,null,null,2]
[100098842139,1,1,1,"（株）ホームネット　","0438-22-7880",null,null,null,2,"2019-05-09",null,null,null,"千葉県","君津市","杢師４丁目",null,null,null,null,null,"内房線","君津",null,null,11,"杢師４丁目",null,3,null,null,null,null,null,1,null,2,null,null,null,null,4,1,null,null,13300000,null,231000,70000,null,1,190.87,null,null,null,null,null,null,null,null,null,null,null,null,null,null,null,null,null,null,null,null,null,null,null,null,null,null,1,null,1,11,null,1,60,200,381.74,12.724666666666668,13,5,780,115.67878787878789,5552.5818181818186,6882.5818181818186,0.11332956448689974,114.52200000000001,3,270,111.74000000000001,"!",null,null,null,2,null,null,null,null,null,null,null,null,null,null,null,null,null,null,1,1,null,null,1,6]
[100098842170,1,1,1,"（株）ホームネット　","0438-22-7880",null,null,null,2,"2019-05-09",null,null,null,"千葉県","君津市","戸崎",null,null,null,null,null,"久留里線","小櫃",26,null,null,null,null,null,null,null,null,null,null,1,null,2,null,null,null,null,4,1,null,null,9800000,null,49000,15000,null,null,671.83,null,null,null,null,null,null,null,null,null,null,null,null,null,null,null,null,null,null,null,null,null,null,null,null,null,null,1,null,4,null,null,null,null,null,671.83,22.394333333333336,22,5,1320,203.58484848484852,9772.072727272729,10752.072727272729,0.12276702673818492,403.09800000000001,13,1170,-498.16999999999996,""]
[100098844107,1,1,1,"リバティーワールド（株）　","047-401-9450",null,null,null,2,"2019-05-09","2019-05-13",null,null,"千葉県","船橋市","みやぎ台１丁目",null,null,null,null,null,"新京成線","三咲",12,null,null,null,null,null,null,null,null,null,null,1,null,2,null,null,null,null,1,null,3,null,16800000,null,331000,100000,null,null,168.2,null,null,null,null,null,2,null,null,null,null,null,null,null,null,null,null,null,null,null,null,null,null,null,null,null,null,5,null,2,null,null,null,null,null,168.2,5.6066666666666665,6,5,360,50.969696969696969,2446.5454545454545,4126.545454545454,8.7240042298202342E-2,100.91999999999999,3,270,-101.80000000000001,"",null,null,1,2,null,null,null,null,null,null,null,null,null,null,null,null,null,null,1,1,null,null,6,6,null,null,null,null,null,null,null,null,null,null,null,null,null,null,null,1]
[100098846230,1,1,1,"（株）ベストハウジング千葉　","047-426-1101",null,null,null,2,"2019-05-09",null,null,null,"千葉県","市川市","二俣２丁目","１３―２８",null,null,null,null,"総武中央線","西船橋",9,null,null,null,null,null,null,null,null,null,null,1,null,1,null,null,null,null,1,1,null,null,30600000,null,916000,277000,null,2,110.5,null,null,null,null,null,1,483.11,null,null,null,null,null,2758.25,null,null,null,null,null,null,null,null,null,null,null,null,null,1,null,1,12,null,1,60,200,221,7.3666666666666663,7,5,420,66.969696969696969,3214.5454545454545,6274.545454545454,6.6937119675456389E-2,66.3,2,180,41,"!",null,null,null,2,null,null,null,null,null,null,null,null,null,null,null,null,null,null,5,2,null,1,1,6,2,null,1,3,6,null,null,null,null,null,null,null,null,null,null,1,null,null,null,null,null,null,null,null,null,null,null,null,null,null,null,null,null,null,null,null,null,null,null,null,null,null,null,null,null,null,null,null,null,null,null,null,null,null,null,null,null,null,null,null,null,null,null,null,null,null,null,null,null,null,null,null,null,null,null,null,null,"１４号棟"]
[100098847897,1,1,1,"（株）ベストハウジング千葉　","047-426-1101",null,null,null,2,"2019-05-09",null,null,null,"千葉県","船橋市","習志野台４丁目",null,null,null,null,null,"新京成線","習志野",12,null,null,null,null,null,null,null,null,null,null,1,null,1,null,null,null,null,5,9,1.5,null,20180000,null,629000,191000,null,null,106.09,null,null,null,null,null,null,null,null,null,null,null,null,null,null,null,null,null,null,null,null,null,null,null,null,null,null,1,null,1,11,null,null,60,200,212.18,7.0726666666666667,7,5,420,64.296969696969697,3086.2545454545457,5104.2545454545452,8.2284297591314198E-2,63.653999999999996,2,180,32.180000000000007,"!",null,null,null,2,null,null,null,null,null,null,null,null,null,null,null,null,null,null,1,1,null,null,6,4,null,null,null,null,null,null,null,null,null,null,null,null,null,null,null,null,null,null,null,null,null,null,null,null,null,null,null,null,null,null,null,null,null,null,null,null,null,null,null,null,null,null,null,null,null,null,null,null,null,null,null,null,null,null,null,null,null,null,null,null,null,null,null,null,null,null,null,null,null,null,null,null,null,null,null,null,null,"２号棟"]
[100098847932,1,1,1,"（株）ベストハウジング千葉　","047-426-1101",null,null,null,2,"2019-05-09",null,null,null,"千葉県","船橋市","習志野台４丁目",null,null,null,null,null,"新京成線","習志野",12,null,null,null,null,null,null,null,null,null,null,1,null,1,null,null,null,null,5,9,1.5,null,46160000,null,654000,198000,null,null,233.57,null,null,null,null,null,null,null,null,null,null,null,null,null,null,null,null,null,null,null,null,null,null,null,null,null,null,1,null,1,11,null,null,60,200,467.14,15.571333333333333,16,5,960,141.55757575757576,6794.7636363636357,11410.763636363636,8.413109153717703E-2,140.142,4,360,107.13999999999999,"!",null,null,null,2,null,null,null,null,null,null,null,null,null,null,null,null,null,null,1,1,null,null,6,5.3,1,null,null,6,4]
[100098848079,1,1,1,"住宅情報館（株）　","042-704-7240","瀬戸山",489465010,null,2,"2019-05-09",null,null,null,"千葉県","船橋市","夏見台５丁目",null,null,null,null,null,"東武野田線","塚田",17,null,null,null,null,null,null,null,null,null,null,1,null,1,null,null,null,null,1,null,null,null,22300000,null,700000,212000,null,1,105.46,null,null,null,null,null,1,20.05,null,null,null,null,null,null,null,null,null,null,null,null,null,null,null,null,null,null,null,1,null,1,1,null,1,50,100,105.46,3.515333333333333,4,5,240,31.957575757575757,1533.9636363636362,3763.9636363636364,6.3762571370605453E-2,52.73,1,90,15.459999999999994,"!",null,null,1,null,null,null,null,null,null,null,null,null,null,null,null,null,null,null,1,2,null,null,null,4,null,null,null,null,null,null,null,null,null,null,null,null,null,null,null,null,null,null,null,null,null,null,null,null,null,null,null,null,null,null,null,null,null,null,null,null,null,null,null,null,null,null,null,null,null,null,null,null,null,null,null,null,null,null,null,null,null,null,null,null,null,null,null,null,null,null,null,null,null,null,null,null,null,null,null,null,null,"その他協定部分約４．２㎡有り"]
[100098848459,1,1,1,"（株）ベストハウジング千葉　","047-426-1101",null,null,null,2,"2019-05-09",null,null,null,"千葉県","船橋市","海神６丁目",null,null,null,null,null,"総武線","船橋",15,null,null,null,null,null,null,null,null,null,null,1,null,1,null,null,null,null,5,1,null,null,30100000,null,996000,301000,null,2,100,null,null,null,null,null,1,3.58,null,null,2,null,null,null,null,null,null,null,null,null,null,null,null,null,null,null,null,1,1,1,3,null,1,60,160,160,5.333333333333333,5,5,300,48.484848484848484,2327.2727272727275,5337.2727272727279,5.6208482370975976E-2,60,2,180,-20,"",null,null,1,2,null,null,null,null,null,null,null,null,null,null,null,null,null,null,2,1,null,null,5,9.1,1,null,null,3,3.3]
[100098848503,1,1,1,"（株）ベストハウジング千葉　","047-426-1101",null,null,null,2,"2019-05-09",null,null,null,"千葉県","船橋市","夏見台２丁目",null,null,null,null,null,"総武線","船橋",null,null,8,null,"エステート夏見",3,null,null,null,null,null,1,null,1,null,null,null,null,5,1,null,null,25000000,null,648000,196000,null,null,127.68,null,null,null,null,null,null,null,null,null,null,null,null,null,null,null,null,null,null,null,null,null,null,null,null,null,null,5,null,1,11,null,null,60,200,255.36,8.5120000000000005,9,5,540,77.38181818181819,3714.3272727272729,6214.3272727272724,8.6895970601659517E-2,76.608000000000004,2,180,75.360000000000014,"!",null,null,null,2,null,null,null,null,null,null,null,null,null,null,null,null,null,null,null,null,null,null,7,4.5]
[100098848563,1,1,1,"（株）ベストハウジング千葉　","047-426-1101","早川",null,null,2,"2019-05-09",null,null,null,"千葉県","千葉市花見川区","幕張町１丁目",null,null,null,null,null,"総武中央線","幕張",12,null,null,null,null,null,null,null,null,null,null,1,null,1,null,null,null,null,5,1,null,null,24340000,null,696000,211000,null,null,115.66,null,null,null,null,null,null,null,null,null,null,null,null,null,null,null,null,null,null,null,null,null,null,null,null,null,null,null,null,1,12,null,null,60,200,231.32,7.7106666666666666,8,5,480,70.096969696969694,3364.6545454545453,5798.6545454545449,8.2777823068674247E-2,69.396000000000001,2,180,51.319999999999993,"!",null,null,null,2,null,null,null,null,null,null,null,null,null,null,null,null,null,null,1,1,null,null,4]
[100098848574,1,1,1,"（株）ベストハウジング千葉　","047-426-1101",null,null,null,2,"2019-05-09",null,null,null,"千葉県","千葉市花見川区","幕張町１丁目",null,null,null,null,null,"総武中央線","幕張",12,null,null,null,null,null,null,null,null,null,null,1,null,1,null,null,null,null,5,1,null,null,47000000,null,672000,204000,null,null,231.36,null,null,null,null,null,null,null,null,null,null,null,null,null,null,null,null,null,null,null,null,null,null,null,null,null,null,null,null,1,12,null,null,60,200,462.72,15.424000000000001,15,5,900,140.21818181818185,6730.4727272727287,11430.472727272729,7.8736901042826504E-2,138.816,4,360,102.72000000000003,"!",null,null,null,2,null,null,null,null,null,null,null,null,null,null,null,null,null,null,1,1,null,null,4]
[100098848982,1,1,1,"セキスイハイム不動産（株）　千葉営業所　","043-299-5961","徳武",null,null,2,"2019-05-09",null,null,null,"千葉県","船橋市","西習志野１丁目",null,null,null,"８９５－６０の一部、８９５－８４",null,"東葉高速線","北習志野",15,null,null,null,null,null,null,null,null,null,null,2,null,2,null,null,null,null,4,1,null,null,29800000,null,579000,176000,null,2,170.18,null,null,null,null,null,null,null,null,null,null,null,null,null,null,null,null,null,null,null,null,null,null,null,null,null,null,9,9,1,1,null,null,50,100,170.18,5.6726666666666672,6,5,360,51.569696969696977,2475.3454545454547,5455.3454545454551,6.5990321419525128E-2,85.09,2,180,-9.8199999999999932,"",null,null,4,2,null,null,null,null,null,null,null,null,null,null,null,null,null,null,5,1,10.199999999999999,null,5,6,1,15.9,null,7,4]
[100098849512,1,1,1,"（有）越川ライフ　","043-215-7131",null,null,"info@koshikawa-life.co.jp",2,"2019-05-09",null,null,null,"千葉県","千葉市若葉区","更科町",null,null,null,null,null,null,null,null,null,null,null,null,null,null,null,null,null,null,1,null,2,null,null,null,null,5,1,null,null,9800000,null,56000,17000,null,1,588,null,null,null,null,null,null,null,null,null,null,null,null,null,null,null,null,null,null,null,null,null,null,null,null,null,null,3,null,null,null,null,null,null,null,588,19.600000000000001,20,5,1200,178.18181818181819,8552.7272727272739,9532.7272727272739,0.1258821285523555,352.8,11,990,-402,""]
[100098853171,1,1,1,"（株）アーネスト　茂原店　","0475-27-3821","志田",null,null,2,"2019-05-09",null,null,null,"千葉県","夷隅郡御宿町","岩和田",null,null,null,"他５筆",null,"外房線","御宿",null,null,null,null,null,null,null,2.2999999999999998,null,null,null,1,null,2,null,null,null,null,4,1,null,null,45000000,null,50000,16000,null,1,2988,null,null,null,null,null,null,null,null,null,null,null,null,null,null,null,null,null,null,null,null,null,null,null,null,null,null,4,null,null,null,null,null,null,null,2988,99.6,100,5,6000,905.4545454545455,43461.818181818184,47961.818181818184,0.12509951097463892,1792.8,59,5310,-2322,""]
[100098853701,1,1,1,"（株）アーネスト　茂原店　","0475-27-3821","志田",null,null,2,"2019-05-09",null,null,null,"千葉県","茂原市","長尾",null,null,null,null,null,"外房線","新茂原",3,null,null,null,null,null,null,null,null,null,null,1,null,2,null,null,null,null,4,1,null,null,9300000,null,79000,24000,null,1,390,null,null,null,null,null,2,null,null,null,null,null,null,null,null,null,null,null,null,null,null,null,null,null,null,null,null,1,null,3,null,null,null,null,null,390,13,13,5,780,118.18181818181819,5672.727272727273,6602.727272727273,0.1181330028913672,234,7,630,-240,"",null,null,1,null,null,null,null,null,null,null,null,null,null,null,null,null,null,null,1,null,null,null,null,null,null,null,null,null,null,null,null,null,null,null,null,null,null,null,null,1]
[100098854432,1,1,1,"（株）久松商事　","03-3661-3211",null,null,null,2,"2019-05-09",null,null,null,"千葉県","山武市","野堀",null,null,null,null,null,"総武線","成東",null,null,10,null,null,5,null,null,null,null,null,null,null,1,null,null,null,null,4,1,null,null,25560000,null,15000,5000,null,1,5634.79,null,null,null,null,null,null,null,null,null,null,null,null,null,null,null,null,null,null,null,null,null,null,null,null,null,null,4,null,3,99,null,null,60,200,11269.58,375.65266666666668,376,5,22560,3415.0242424242424,163921.16363636364,166477.16363636364,0.13551408197509809,3380.8739999999998,112,10080,1189.58,"!"]
[100098855616,1,1,1,"（有）仲良不動産　","047-710-6667",null,null,null,2,"2019-05-09",null,null,null,"千葉県","市川市","曽谷４丁目","2019-04-13",null,null,null,null,"総武中央線","市川",null,null,20,null,"曽谷坂上",5,null,null,null,null,null,1,null,2,null,null,null,null,4,null,null,null,5500000,null,276000,84000,null,1,66,null,null,null,null,null,1,6.61,null,null,null,null,null,null,null,null,null,null,null,null,null,null,null,null,null,null,null,1,null,1,1,null,null,50,100,66,2.2000000000000002,2,5,120,20,960,1510,7.9470198675496692E-2,33,1,90,-24,"",null,null,null,2,null,null,null,null,null,null,null,null,null,null,null,null,null,null,1,2,7.3,1,4,4,null,null,null,null,null,null,null,null,null,null,null,null,null,null,null,1]
[100098856137,1,1,1,"（株）スマートハウジング　","043-239-6180",null,null,null,2,"2019-05-09",null,null,null,"千葉県","千葉市稲毛区","黒砂３丁目",null,null,null,null,null,"総武線","稲毛",null,null,null,null,null,null,null,null,null,null,null,1,null,2,null,null,null,null,1,null,null,null,21900000,null,630000,191000,null,2,115,null,null,null,null,null,null,null,null,null,null,null,null,null,null,null,null,null,null,null,null,null,null,null,null,null,null,null,null,1,11,null,null,null,null,115,3.8333333333333335,4,5,240,34.848484848484851,1672.7272727272727,3862.727272727273,6.2132266415627205E-2,69,2,180,-65,"",null,null,1]
[100098856203,1,1,1,"（株）スマートハウジング　","043-239-6180",null,null,null,2,"2019-05-09",null,null,null,"千葉県","千葉市稲毛区","黒砂３丁目",null,null,null,null,null,"総武線","稲毛",null,null,null,null,null,null,null,null,null,null,null,1,null,2,null,null,null,null,1,null,null,null,23900000,null,629000,191000,null,2,125.66,null,null,null,null,null,null,null,null,null,null,null,null,null,null,null,null,null,null,null,null,null,null,null,null,null,null,null,null,1,11,null,null,null,null,125.66,4.1886666666666663,4,5,240,38.078787878787878,1827.7818181818179,4217.7818181818184,5.6901947598479163E-2,75.396000000000001,2,180,-54.34,"",null,null,1]
[100098856232,1,1,1,"（株）スマートハウジング　","043-239-6180",null,null,null,2,"2019-05-09",null,null,null,"千葉県","千葉市稲毛区","黒砂３丁目",null,null,null,null,null,"総武線","稲毛",null,null,null,null,null,null,null,null,null,null,null,1,null,2,null,null,null,null,1,null,null,null,24000000,null,601000,182000,null,2,132.06,null,null,null,null,null,null,null,null,null,null,null,null,null,null,null,null,null,null,null,null,null,null,null,null,null,null,null,null,1,11,null,null,null,null,132.06,4.4020000000000001,4,5,240,40.018181818181823,1920.8727272727274,4320.8727272727274,5.5544334477883255E-2,79.236000000000004,2,180,-47.94,"",null,null,1]
[100098856383,1,1,1,"アイディホーム（株）　松戸店","047-703-5188","早坂","047-703-5188",null,2,"2019-05-09","2019-05-09",null,null,"千葉県","松戸市","五香西３丁目",null,null,null,null,null,"新京成線","五香",13,null,null,null,null,null,null,null,null,null,null,null,null,4,201908,3,null,null,1,null,3,null,23700000,null,602000,182000,null,2,130.34,null,null,null,null,null,null,null,null,null,null,null,null,null,null,null,null,null,null,null,null,null,null,null,null,null,null,1,null,1,3,null,null,50,100,130.34,4.3446666666666669,4,5,240,39.4969696969697,1895.8545454545456,4265.8545454545456,5.6260708714442803E-2,65.17,2,180,-49.66,"",null,null,null,null,null,null,null,null,null,null,null,null,null,null,null,null,null,null,1,1,null,null,5,5.5]
[100098856550,1,1,1,"アイディホーム（株）　松戸店","047-703-5188","早坂","047-703-5188",null,2,"2019-05-09","2019-05-10",null,null,"千葉県","松戸市","五香西３丁目",null,null,null,null,null,"新京成線","五香",13,null,null,null,null,null,null,null,null,null,null,null,null,4,201908,3,null,null,1,null,3,null,23700000,null,602000,182000,null,2,130.33000000000001,null,null,null,null,null,null,null,null,null,null,null,null,null,null,null,null,null,null,null,null,null,null,null,null,null,null,1,null,1,3,null,null,50,100,130.33000000000001,4.344333333333334,4,5,240,39.493939393939399,1895.7090909090912,4265.7090909090912,5.6262627123701052E-2,65.165000000000006,2,180,-49.669999999999987,"",null,null,null,null,null,null,null,null,null,null,null,null,null,null,null,null,null,null,1,1,null,null,5,5.5]
[100098856580,1,1,1,"アイディホーム（株）　松戸店","047-703-5188","早坂","047-703-5188",null,2,"2019-05-09","2019-05-09",null,null,"千葉県","松戸市","五香西３丁目",null,null,null,null,null,"新京成線","五香",13,null,null,null,null,null,null,null,null,null,null,null,null,4,201908,3,null,null,1,null,3,null,23700000,null,602000,182000,null,2,130.34,null,null,null,null,null,null,null,null,null,null,null,null,null,null,null,null,null,null,null,null,null,null,null,null,null,null,1,null,1,3,null,null,50,100,130.34,4.3446666666666669,4,5,240,39.4969696969697,1895.8545454545456,4265.8545454545456,5.6260708714442803E-2,65.17,2,180,-49.66,"",null,null,null,null,null,null,null,null,null,null,null,null,null,null,null,null,null,null,1,1,null,null,5,5.5]
[100098856601,1,1,1,"アイディホーム（株）　松戸店","047-703-5188","早坂","047-703-5188",null,2,"2019-05-09","2019-05-10",null,null,"千葉県","松戸市","五香西３丁目",null,null,null,null,null,"新京成線","五香",13,null,null,null,null,null,null,null,null,null,null,null,null,4,201908,3,null,null,1,null,3,null,24100000,null,612000,185000,null,2,130.34,null,null,null,null,null,null,null,null,null,null,null,null,null,null,null,null,null,null,null,null,null,null,null,null,null,null,1,null,1,3,null,null,50,100,130.34,4.3446666666666669,4,5,240,39.4969696969697,1895.8545454545456,4305.8545454545456,5.5738064875729451E-2,65.17,2,180,-49.66,"",null,null,null,null,null,null,null,null,null,null,null,null,null,null,null,null,null,null,1,1,null,null,5,5.5,1,null,null,1,6]
[100098856613,1,1,1,"アイディホーム（株）　松戸店","047-703-5188","早坂","047-703-5188",null,2,"2019-05-09","2019-05-10",null,null,"千葉県","松戸市","五香西３丁目",null,null,null,null,null,"新京成線","五香",13,null,null,null,null,null,null,null,null,null,null,null,null,4,201908,3,null,null,1,null,3,null,24100000,null,612000,185000,null,2,130.34,null,null,null,null,null,null,null,null,null,null,null,null,null,null,null,null,null,null,null,null,null,null,null,null,null,null,1,null,1,3,null,null,50,100,130.34,4.3446666666666669,4,5,240,39.4969696969697,1895.8545454545456,4305.8545454545456,5.5738064875729451E-2,65.17,2,180,-49.66,"",null,null,null,null,null,null,null,null,null,null,null,null,null,null,null,null,null,null,5,1,null,null,5,5.5,1,null,null,1,6]
[100098856625,1,1,1,"アイディホーム（株）　松戸店","047-703-5188","早坂","047-703-5188",null,2,"2019-05-09","2019-05-10",null,null,"千葉県","松戸市","五香西３丁目",null,null,null,null,null,"新京成線","五香",13,null,null,null,null,null,null,null,null,null,null,null,null,4,201908,3,null,null,1,null,3,null,24100000,null,612000,185000,null,2,130.34,null,null,null,null,null,null,null,null,null,null,null,null,null,null,null,null,null,null,null,null,null,null,null,null,null,null,1,null,1,3,null,null,50,100,130.34,4.3446666666666669,4,5,240,39.4969696969697,1895.8545454545456,4305.8545454545456,5.5738064875729451E-2,65.17,2,180,-49.66,"",null,null,null,null,null,null,null,null,null,null,null,null,null,null,null,null,null,null,1,1,null,null,5,5.5,1,null,null,1,6]
[100098856628,1,1,1,"アイディホーム（株）　松戸店","047-703-5188","早坂","047-703-5188",null,2,"2019-05-09","2019-05-10",null,null,"千葉県","松戸市","五香西３丁目",null,null,null,null,null,"新京成線","五香",13,null,null,null,null,null,null,null,null,null,null,null,null,4,201908,3,null,null,1,null,3,null,24100000,null,612000,185000,null,2,130.34,null,null,null,null,null,null,null,null,null,null,null,null,null,null,null,null,null,null,null,null,null,null,null,null,null,null,1,null,1,3,null,null,50,100,130.34,4.3446666666666669,4,5,240,39.4969696969697,1895.8545454545456,4305.8545454545456,5.5738064875729451E-2,65.17,2,180,-49.66,"",null,null,null,null,null,null,null,null,null,null,null,null,null,null,null,null,null,null,5,1,null,null,5,5.5,1,null,null,1,6]
[100098856658,1,1,1,"アイディホーム（株）　松戸店","047-703-5188","早坂","047-703-5188",null,2,"2019-05-09","2019-05-10",null,null,"千葉県","松戸市","五香西３丁目",null,null,null,null,null,"新京成線","五香",13,null,null,null,null,null,null,null,null,null,null,null,null,4,201908,3,null,null,1,null,3,null,25800000,null,655000,198000,null,2,130.38999999999999,null,null,null,null,null,null,null,null,null,null,null,null,null,null,null,null,null,null,null,null,null,null,null,null,null,null,1,null,1,3,null,null,50,100,130.38999999999999,4.3463333333333329,4,5,240,39.512121212121208,1896.5818181818179,4476.5818181818177,5.3612334086072175E-2,65.194999999999993,2,180,-49.610000000000014,"",null,null,null,null,null,null,null,null,null,null,null,null,null,null,null,null,null,null,2,1,null,null,5,5.5,1,null,null,7,5.5,1,null,null,1,6]
[100098856719,1,1,1,"アイディホーム（株）　松戸店","047-703-5188","早坂","047-703-5188",null,2,"2019-05-09","2019-05-09",null,null,"千葉県","松戸市","五香西３丁目",null,null,null,null,null,"新京成線","五香",13,null,null,null,null,null,null,null,null,null,null,null,null,4,201908,3,null,null,1,null,3,null,22800000,null,588000,178000,null,2,128.35,null,null,null,null,null,null,null,null,null,null,null,null,null,null,null,null,null,null,null,null,null,null,null,null,null,null,1,null,1,3,null,null,50,100,128.35,4.2783333333333333,4,5,240,38.893939393939391,1866.9090909090905,4146.9090909090901,5.7874430024552802E-2,64.174999999999997,2,180,-51.650000000000006,"",null,null,null,null,null,null,null,null,null,null,null,null,null,null,null,null,null,null,2,1,null,null,2,5.5]
[100098856760,1,1,1,"アイディホーム（株）　松戸店","047-703-5188","早坂","047-703-5188",null,2,"2019-05-09","2019-05-09",null,null,"千葉県","松戸市","五香西３丁目",null,null,null,null,null,"新京成線","五香",13,null,null,null,null,null,null,null,null,null,null,null,null,4,201908,3,null,null,1,null,3,null,21800000,null,562000,170000,null,2,128.35,null,null,null,null,null,null,null,null,null,null,null,null,null,null,null,null,null,null,null,null,null,null,null,null,null,null,1,null,1,3,null,null,50,100,128.35,4.2783333333333333,4,5,240,38.893939393939391,1866.9090909090905,4046.9090909090905,5.9304519723245581E-2,64.174999999999997,2,180,-51.650000000000006,"",null,null,null,null,null,null,null,null,null,null,null,null,null,null,null,null,null,null,1,1,null,null,3,5.5]
[100098856785,1,1,1,"アイディホーム（株）　松戸店","047-703-5188","早坂","047-703-5188",null,2,"2019-05-09","2019-05-09",null,null,"千葉県","松戸市","五香西３丁目",null,null,null,null,null,"新京成線","五香",13,null,null,null,null,null,null,null,null,null,null,null,null,4,201908,3,null,null,1,null,3,null,22200000,null,607000,184000,null,2,121.02,null,null,null,null,null,null,null,null,null,null,null,null,null,null,null,null,null,null,null,null,null,null,null,null,null,null,1,null,1,3,null,null,50,100,121.02,4.0339999999999998,4,5,240,36.672727272727272,1760.2909090909091,3980.2909090909088,6.0297100257633067E-2,60.51,2,180,-58.980000000000004,"",null,null,null,null,null,null,null,null,null,null,null,null,null,null,null,null,null,null,1,1,null,null,1,5.5]
[100098856798,1,1,1,"アイディホーム（株）　松戸店","047-703-5188","早坂","047-703-5188",null,2,"2019-05-09","2019-05-09",null,null,"千葉県","松戸市","五香西３丁目",null,null,null,null,null,"新京成線","五香",13,null,null,null,null,null,null,null,null,null,null,null,null,4,201908,3,null,null,1,null,3,null,22200000,null,607000,184000,null,2,121.03,null,null,null,null,null,null,null,null,null,null,null,null,null,null,null,null,null,null,null,null,null,null,null,null,null,null,1,null,1,3,null,null,50,100,121.03,4.0343333333333335,4,5,240,36.675757575757579,1760.4363636363639,3980.4363636363641,6.0294896859184002E-2,60.515000000000001,2,180,-58.97,"",null,null,null,null,null,null,null,null,null,null,null,null,null,null,null,null,null,null,1,1,null,null,1,5.5]
[100098856804,1,1,1,"アイディホーム（株）　松戸店","047-703-5188","早坂","047-703-5188",null,2,"2019-05-09","2019-05-09",null,null,"千葉県","松戸市","五香西３丁目",null,null,null,null,null,"新京成線","五香",13,null,null,null,null,null,null,null,null,null,null,null,null,4,201908,3,null,null,1,null,3,null,22200000,null,607000,184000,null,2,121.03,null,null,null,null,null,null,null,null,null,null,null,null,null,null,null,null,null,null,null,null,null,null,null,null,null,null,1,null,1,3,null,null,50,100,121.03,4.0343333333333335,4,5,240,36.675757575757579,1760.4363636363639,3980.4363636363641,6.0294896859184002E-2,60.515000000000001,2,180,-58.97,"",null,null,null,null,null,null,null,null,null,null,null,null,null,null,null,null,null,null,1,1,null,null,1,5.5]
[100098856817,1,1,1,"アイディホーム（株）　松戸店","047-703-5188","早坂","047-703-5188",null,2,"2019-05-09","2019-05-09",null,null,"千葉県","松戸市","五香西３丁目",null,null,null,null,null,"新京成線","五香",13,null,null,null,null,null,null,null,null,null,null,null,null,4,201908,3,null,null,1,null,3,null,21700000,null,593000,180000,null,2,121.03,null,null,null,null,null,null,null,null,null,null,null,null,null,null,null,null,null,null,null,null,null,null,null,null,null,null,1,null,1,3,null,null,50,100,121.03,4.0343333333333335,4,5,240,36.675757575757579,1760.4363636363639,3930.4363636363641,6.1061922340336944E-2,60.515000000000001,2,180,-58.97,"",null,null,null,null,null,null,null,null,null,null,null,null,null,null,null,null,null,null,1,1,null,null,1,5.5]
[100098856824,1,1,1,"アイディホーム（株）　松戸店","047-703-5188","早坂","047-703-5188",null,2,"2019-05-09","2019-05-09",null,null,"千葉県","松戸市","五香西３丁目",null,null,null,null,null,"新京成線","五香",13,null,null,null,null,null,null,null,null,null,null,null,null,4,201908,3,null,null,1,null,3,null,21700000,null,593000,180000,null,2,121.03,null,null,null,null,null,null,null,null,null,null,null,null,null,null,null,null,null,null,null,null,null,null,null,null,null,null,1,null,1,3,null,null,50,100,121.03,4.0343333333333335,4,5,240,36.675757575757579,1760.4363636363639,3930.4363636363641,6.1061922340336944E-2,60.515000000000001,2,180,-58.97,"",null,null,null,null,null,null,null,null,null,null,null,null,null,null,null,null,null,null,1,1,null,null,1,5.5]
[100098856829,1,1,1,"アイディホーム（株）　松戸店","047-703-5188","早坂","047-703-5188",null,2,"2019-05-09","2019-05-09",null,null,"千葉県","松戸市","五香西３丁目",null,null,null,null,null,"新京成線","五香",13,null,null,null,null,null,null,null,null,null,null,null,null,4,201908,3,null,null,1,null,3,null,21700000,null,593000,180000,null,2,121.03,null,null,null,null,null,null,null,null,null,null,null,null,null,null,null,null,null,null,null,null,null,null,null,null,null,null,1,null,1,3,null,null,50,100,121.03,4.0343333333333335,4,5,240,36.675757575757579,1760.4363636363639,3930.4363636363641,6.1061922340336944E-2,60.515000000000001,2,180,-58.97,"",null,null,null,null,null,null,null,null,null,null,null,null,null,null,null,null,null,null,1,1,null,null,1,5.5]
[100098856849,1,1,1,"アイディホーム（株）　松戸店","047-703-5188","早坂","047-703-5188",null,2,"2019-05-09","2019-05-09",null,null,"千葉県","松戸市","五香西３丁目",null,null,null,null,null,"新京成線","五香",13,null,null,null,null,null,null,null,null,null,null,null,null,4,201908,3,null,null,1,null,3,null,21600000,null,591000,179000,null,2,121.02,null,null,null,null,null,null,null,null,null,null,null,null,null,null,null,null,null,null,null,null,null,null,null,null,null,null,1,null,1,3,null,null,50,100,121.02,4.0339999999999998,4,5,240,36.672727272727272,1760.2909090909091,3920.2909090909088,6.1219946571682997E-2,60.51,2,180,-58.980000000000004,"",null,null,null,null,null,null,null,null,null,null,null,null,null,null,null,null,null,null,1,1,null,null,1,5.5]
[100098856855,1,1,1,"（株）第一開発　","03-5744-7277","千葉","080-6622-8906","chiba.fumiya@sokoti.com",2,"2019-05-09",null,null,null,"千葉県","船橋市","海神５丁目","2019-01-20",null,null,null,null,"京成本線","海神",1,50,null,null,null,null,null,null,null,null,null,2,201811,2,null,null,null,null,1,null,null,null,31800000,null,1058000,320000,null,1,99.44,null,null,null,null,null,2,null,null,null,null,null,null,null,null,null,null,null,null,null,null,null,null,null,null,null,null,1,1,1,12,null,null,60,200,198.88,6.6293333333333333,7,5,420,60.266666666666666,2892.7999999999997,6072.7999999999993,6.9160848373073389E-2,59.663999999999994,1,90,108.88,"!",null,null,1,null,null,null,null,null,null,null,null,null,null,null,null,null,null,null,1,1,4,2,4,6,null,null,null,null,null,null,null,null,null,null,null,null,null,null,null,1]
[100098856876,1,1,1,"アイディホーム（株）　松戸店","047-703-5188","早坂","047-703-5188",null,2,"2019-05-09","2019-05-09",null,null,"千葉県","松戸市","五香西３丁目",null,null,null,null,null,"新京成線","五香",13,null,null,null,null,null,null,null,null,null,null,null,null,4,201908,3,null,null,1,null,3,null,20700000,null,566000,172000,null,2,121.02,null,null,null,null,null,null,null,null,null,null,null,null,null,null,null,null,null,null,null,null,null,null,null,null,null,null,1,null,1,3,null,null,50,100,121.02,4.0339999999999998,4,5,240,36.672727272727272,1760.2909090909091,3830.2909090909088,6.2658426134259926E-2,60.51,2,180,-58.980000000000004,"",null,null,null,null,null,null,null,null,null,null,null,null,null,null,null,null,null,null,1,1,null,null,1,5.5]
[100098856911,1,1,1,"アイディホーム（株）　松戸店","047-703-5188","早坂","047-703-5188",null,2,"2019-05-09","2019-05-10",null,null,"千葉県","松戸市","五香西３丁目",null,null,null,null,null,"新京成線","五香",13,null,null,null,null,null,null,null,null,null,null,null,null,4,201908,3,null,null,1,null,3,null,19800000,null,541000,164000,null,2,121.01,null,null,null,null,null,null,null,null,null,null,null,null,null,null,null,null,null,null,null,null,null,null,null,null,null,null,1,null,1,3,null,null,50,100,121.01,4.033666666666667,4,5,240,36.669696969696972,1760.1454545454546,3740.1454545454544,6.416862737472534E-2,60.505000000000003,2,180,-58.989999999999995,"",null,null,null,null,null,null,null,null,null,null,null,null,null,null,null,null,null,null,5,1,null,null,2,5.5,1,null,null,3,6.3]
[100098857276,1,1,1,"（株）第一ホーム佐倉　","043-486-8500",null,null,null,2,"2019-05-09",null,null,null,"千葉県","印旛郡酒々井町","下岩橋",null,null,null,null,null,"京成本線","宗吾参道",6,null,null,null,null,null,null,null,null,null,null,1,null,2,null,null,null,null,5,1,null,null,18000000,null,26000,8000,null,1,2300.8200000000002,null,null,null,null,null,2,null,null,null,0,null,null,null,null,null,null,null,null,1,null,null,null,null,null,null,null,1,null,1,1,null,null,60,150,3451.2300000000005,115.04100000000001,115,5,6900,1045.8272727272729,50199.709090909091,51999.709090909091,0.13269305003104911,1380.492,46,4140,-688.76999999999953,"",null,null,null,2,null,null,null,null,null,null,null,null,null,null,null,null,null,null,1,1,4,null,2,11,null,null,null,null,null,null,null,null,null,null,null,null,null,null,null,1]
[100098857575,1,1,1,"三井不動産リアルティ（株）三井のリハウス新松戸センター　","047-349-3131",null,null,null,2,"2019-05-09","2019-05-10",null,null,"千葉県","松戸市","大谷口",null,null,null,null,null,"常磐緩行線","北小金",6,null,null,null,null,null,null,null,null,null,null,2,null,1,null,null,null,null,4,null,null,null,38000000,null,591000,179000,null,1,212.68,null,null,null,null,null,null,null,null,null,null,null,null,null,null,null,null,null,null,null,null,null,null,null,null,null,3,1,null,1,11,null,1,60,200,425.36,14.178666666666667,14,5,840,128.89696969696971,6187.0545454545454,9987.0545454545463,8.4108882771879223E-2,127.608,4,360,65.360000000000014,"!",null,null,1,2,null,null,null,null,null,null,null,null,null,null,null,null,null,null,1,1,9.6,2,5,8,null,null,null,null,null,null,null,null,null,null,null,null,null,null,null,1,null,null,null,null,null,null,null,null,null,null,null,null,null,null,null,null,null,null,null,null,null,null,null,null,null,null,null,null,null,null,null,null,null,null,null,null,null,null,null,null,null,null,null,null,null,null,null,null,null,null,null,null,null,null,null,null,null,"ファミリーマート北小金駅前店",470,6,1,"Ｆ７７Ｗ５Ａ０１　古家有り"]
[100098857898,1,1,1,"住友林業ホームサービス（株）　柏店　","04-7163-4181","権田　健太朗","04-7163-4181",null,2,"2019-05-09",null,null,null,"千葉県","柏市","千代田３丁目",null,null,null,null,null,"常磐線","柏",18,1371,null,null,null,null,null,null,null,null,null,1,null,2,null,null,null,null,4,1,null,null,34900000,null,674000,204000,null,1,171.3,null,null,null,null,null,1,24.67,null,null,0,null,null,null,null,null,null,null,null,2,null,null,null,null,null,null,3,1,1,1,1,null,1,50,100,171.3,5.71,6,5,360,51.909090909090914,2491.6363636363635,5981.636363636364,6.0184200127663449E-2,85.65,2,180,-8.6999999999999886,"",null,null,null,2,null,null,null,null,null,null,null,null,null,null,null,null,null,null,1,2,12.3,1,3,4,null,null,null,null,null,null,null,null,null,null,null,null,null,null,null,null,null,null,null,null,null,null,null,null,null,null,null,null,null,null,null,null,null,null,null,null,null,null,null,null,null,null,null,null,null,null,null,null,null,null,null,null,null,null,null,null,null,null,null,null,null,null,null,null,null,null,null,null,null,null,null,null,null,"柏第三小学校",510,7,1,"ＳＭＡ８９６６５"]
[100098860596,1,1,1,"（株）グッドリビング　","04-7123-8682",null,null,null,2,"2019-05-09",null,null,null,"千葉県","野田市","花井","２５０－１２２",null,null,null,null,"東武野田線","野田市",11,null,null,null,null,null,null,null,null,null,null,2,null,2,null,null,null,null,1,9,null,null,12300000,null,238000,72000,null,1,171.07,null,null,null,null,null,null,null,null,null,null,null,null,null,null,null,null,null,null,null,null,null,null,null,null,null,null,1,null,1,11,null,1,60,200,342.14,11.404666666666666,11,5,660,103.67878787878789,4976.5818181818186,6206.5818181818186,0.10633872545860405,102.642,3,270,72.139999999999986,"!",null,null,1,1,null,null,null,null,null,null,null,null,null,null,null,null,null,null,2,1,null,null,3,6,1,null,null,1,5,null,null,null,null,null,null,null,null,null,null,1,null,null,null,null,null,null,null,null,null,null,null,null,null,null,null,null,null,null,null,null,null,null,null,null,null,null,null,null,null,null,null,null,null,null,null,null,null,null,null,null,null,null,null,null,null,null,null,null,null,null,null,null,null,null,null,null,null,"野田中央幼稚園",null,2,1,"更地渡し"]
[100098862311,1,1,1,"三井不動産リアルティ千葉（株）三井のリハウス四街道センター　","043-421-5111",null,null,null,2,"2019-05-10","2019-05-13",null,null,"千葉県","四街道市","大日",null,null,null,null,null,"総武線","四街道",17,null,null,null,null,null,null,null,null,null,null,2,null,2,null,null,null,null,4,null,null,null,53800000,null,255000,77000,null,2,700.01,null,null,null,null,null,null,null,null,null,null,null,null,null,null,null,null,null,null,null,null,null,null,null,null,null,3,9,null,1,1,null,1,50,100,700.01,23.333666666666666,23,5,1380,212.12424242424242,10181.963636363635,15561.963636363635,8.8677755085826995E-2,350.005,11,990,-289.99,"",null,null,1,2,null,null,null,null,null,null,null,null,null,null,null,null,null,null,1,1,32.4,2,6,4.0999999999999996,null,null,null,null,null,null,null,null,null,null,null,null,null,null,null,2,null,null,null,null,null,null,null,null,null,null,null,null,null,null,null,null,null,null,null,null,null,null,null,null,null,null,null,null,null,null,null,null,null,null,null,null,null,null,null,null,null,null,null,null,null,null,null,null,null,null,null,null,null,null,null,null,null,"セブンイレブン四街道市文化センター入口店",240,3,1,"ＦＥ５Ｗ４Ａ１３　古家有り"]
[100098867263,1,1,1,"みずほ不動産販売（株）　柏センター","04-7167-9511","根本　悠司",null,null,2,"2019-05-10",null,null,null,"千葉県","松戸市","古ケ崎",null,null,null,null,null,"常磐線","松戸",15,null,null,null,null,null,null,null,null,null,null,2,null,2,null,null,null,null,4,1,null,null,6500000,null,369000,112000,null,1,58.26,null,null,null,null,null,2,null,null,null,1,null,4.5,null,null,null,null,null,null,null,null,null,null,null,null,null,null,1,null,1,null,null,null,60,160,93.216000000000008,3.1072000000000002,3,5,180,28.24727272727273,1355.869090909091,2005.869090909091,8.9736663681487416E-2,34.955999999999996,1,90,3.2160000000000082,"!",null,null,null,2,null,null,null,null,null,null,null,null,null,null,null,null,null,null,null,null,null,null,4,3.5]
[100098868002,1,1,1,"ファースト・クラス（株）　","045-370-7739",null,null,null,2,"2019-05-10",null,null,null,"千葉県","市原市","五井",null,null,null,null,null,"内房線","五井",21,null,null,null,null,null,null,null,null,null,null,2,null,2,null,null,null,null,4,1,null,null,12000000,null,266000,81000,null,null,149.33000000000001,null,null,null,null,null,null,null,null,null,null,null,null,null,null,null,null,null,null,null,null,null,null,null,null,null,null,1,null,1,12,null,null,60,200,298.66000000000003,9.9553333333333338,10,5,600,90.503030303030314,4344.1454545454544,5544.1454545454544,0.10822226886346942,89.597999999999999,2,180,118.66000000000003,"!",null,null,null,null,null,null,null,null,null,null,null,null,null,null,null,null,null,null,2]
[100098868014,1,1,1,"ファースト・クラス（株）　","045-370-7739",null,null,null,2,"2019-05-10",null,null,null,"千葉県","木更津市","清見台２丁目",null,null,null,null,null,"久留里線","祇園",18,null,null,null,null,null,null,null,null,null,null,2,null,2,null,null,null,null,4,1,null,null,11500000,null,163000,50000,null,1,233.58,null,null,null,null,null,null,null,null,null,null,null,null,null,null,null,null,null,null,null,null,null,null,null,null,null,null,1,null,1,12,null,null,60,200,467.16,15.572000000000001,16,5,960,141.56363636363639,6795.0545454545472,7945.0545454545472,0.12082988159586978,140.148,4,360,107.16000000000003,"!"]
[100098868189,1,1,1,"（株）桧家住宅　","03-6858-7720","山下","070-1575-1658",null,2,"2019-05-10",null,null,null,"千葉県","船橋市","宮本５丁目",null,null,null,null,null,"京成本線","大神宮下",4,null,null,null,null,null,null,null,null,null,null,2,null,2,null,null,null,null,4,1,null,null,28000000,null,658000,199000,null,2,140.71,null,null,null,null,null,null,null,null,null,1,null,null,null,null,null,null,null,null,null,null,null,null,null,null,null,null,1,null,1,1,null,1,50,100,140.71,4.6903333333333332,5,5,300,42.639393939393948,2046.6909090909094,4846.6909090909094,6.1897902223822812E-2,70.355000000000004,2,180,-39.289999999999992,"",null,null,null,null,null,null,null,null,null,null,null,null,null,null,null,null,null,null,1,1,null,null,null,null,null,null,null,null,null,null,null,null,null,null,null,null,null,null,null,1]
[100098868662,1,1,1,"（有）坂巻不動産　","0476-42-2845",null,null,null,2,"2019-05-10","2019-05-10",null,null,"千葉県","印西市","別所",null,null,null,null,null,"成田線","木下",32,null,null,null,null,null,null,null,null,null,null,1,null,1,null,null,null,null,5,1,null,null,19800000,null,47000,15000,null,1,1411.99,null,null,null,null,null,2,null,null,null,0,null,null,null,null,null,null,null,null,null,null,null,null,null,null,null,null,1,null,1,null,null,null,60,200,2823.98,94.132666666666665,94,5,5640,855.75151515151515,41076.072727272731,43056.072727272731,0.13099197494683465,847.19399999999996,28,2520,303.98,"!",null,null,1,2,null,null,null,null,null,null,null,null,null,null,null,null,null,null,null,1,24.1,null,4,5]
[100098868786,1,1,1,"日比野不動産（株）　","043-301-5656",null,null,null,2,"2019-05-10",null,null,null,"千葉県","長生郡一宮町","一宮",null,null,null,null,null,"外房線","上総一ノ宮",33,null,null,null,null,null,null,2.6,null,null,null,1,null,1,null,null,null,null,1,null,null,null,9800000,null,80000,25000,null,2,405.31,null,null,null,null,null,null,null,null,null,null,null,null,null,null,null,null,null,null,null,null,null,null,null,null,null,null,9,null,3,99,null,11,60,200,810.62,27.020666666666667,27,5,1620,245.64242424242425,11790.836363636363,12770.836363636363,0.12685151965557892,243.18599999999998,8,720,90.62,"!",null,null,1,2,null,null,null,null,null,null,null,null,null,null,null,null,null,null,1,1,17.399999999999999,null,7,5,null,null,null,null,null,null,null,null,null,null,null,null,null,null,null,1,null,null,null,null,null,null,null,null,null,null,null,null,null,null,null,null,null,null,null,null,null,null,null,null,null,null,null,null,null,null,null,null,null,null,null,null,null,null,null,null,null,null,null,null,null,null,null,null,null,null,null,null,null,null,null,null,null,null,null,null,null,"住宅用地・別荘用地として有効。","一宮海岸まで近くサーフィン等の趣味に最適！一括販売可能。"]
[100098868807,1,1,1,"（株）カーサデザイン　","043-307-2611","武藤",null,null,2,"2019-05-10",null,null,null,"千葉県","千葉市稲毛区","黒砂台１丁目",null,null,null,null,null,"総武中央線","西千葉",11,null,null,null,null,null,null,null,null,null,null,1,null,1,null,null,null,null,4,1,null,null,42800000,null,1091000,330000,null,1,129.69999999999999,null,null,null,null,null,2,null,null,null,0,null,null,null,null,null,null,null,null,null,null,null,null,null,null,null,null,3,null,1,11,null,1,60,200,259.39999999999998,8.6466666666666665,9,5,540,78.606060606060609,3773.090909090909,8053.090909090909,6.7054998645353567E-2,77.819999999999993,2,180,79.399999999999977,"!",null,null,1,2,null,null,null,null,null,null,null,null,null,null,null,null,null,null,1,1,null,null,null,6,null,null,null,null,null,null,null,null,null,null,null,null,null,null,null,1]
[100098868938,1,1,1,"（株）深川商事　","0436-61-0111","荒木利明","090-3087-6871","araki@fukagawa-epm.com",2,"2019-05-10",null,null,null,"千葉県","市原市","桜台１丁目",null,null,null,null,null,"内房線","姉ヶ崎",null,null,12,null,null,1,null,null,null,null,null,1,null,2,null,null,null,null,4,1,null,null,7200000,null,139000,42000,null,2,171.8,null,null,null,null,null,2,null,null,null,0,null,null,null,null,null,null,null,null,2,null,null,null,null,null,null,null,1,null,1,1,null,1,50,100,171.8,5.7266666666666675,6,5,360,52.060606060606069,2498.9090909090914,3218.9090909090914,0.11183913239945772,85.9,2,180,-8.1999999999999886,"",null,null,null,2,null,null,null,null,null,null,null,null,null,null,null,null,null,null,5,1,9.9,2,3,12,1,11.9,2,7,6,null,null,null,null,null,null,null,null,null,null,1]
[100098868945,1,1,1,"（株）深川商事　","0436-61-0111","荒木利明","090-3087-6871","araki@fukagawa-epm.com",2,"2019-05-10",null,null,null,"千葉県","市原市","桜台１丁目","2019-10-06",null,null,null,null,"内房線","姉ヶ崎",null,null,12,null,null,1,null,null,null,null,null,1,null,2,null,null,null,null,4,1,null,null,9800000,null,128000,39000,null,2,255,null,null,null,null,null,2,null,null,null,0,null,null,null,null,null,null,null,null,2,null,null,null,null,null,null,null,1,null,1,1,null,1,50,100,{"$f":"IF(ISBLANK(CI131),100,CI131)/100*BA131","v":255},{"$f":"CJ131/30","v":8.5},{"$f":"ROUND(CK131,0)","v":9},5,{"$f":"CM131*12*CL131","v":540},{"$f":"CJ131/3.3","v":77.27272727272728},{"$f":"CO131*40*1.2","v":3709.090909090909},{"$f":"CP131+(AU131/10000)","v":4689.090909090909},{"$f":"CN131/CQ131","v":0.11516091508336565},{"$f":"IF(ISBLANK(CH131),60,CH131)/100*BA131","v":127.5},{"$f":"ROUNDDOWN((CS131/30),0)","v":4},{"$f":"CT131*30*3","v":360},{"$f":"CJ131-CU131","v":-105},{"$f":"IF(CV131>0, \"!\",\"\")","v":""},null,null,4,2,null,null,null,null,null,null,null,null,null,null,null,null,null,null,5,1,15,2,3,12,1,17,2,7,6,null,null,null,null,null,null,null,null,null,null,1]
[100098868970,1,1,1,"日比野不動産（株）　","043-301-5656",null,null,null,2,"2019-05-10",null,null,null,"千葉県","千葉市花見川区","南花園１丁目",null,null,null,null,null,"総武中央線","新検見川",12,null,null,null,null,null,null,null,null,null,null,1,null,1,null,null,null,null,1,4,null,null,8800000,null,383000,116000,null,2,76.09,null,null,null,null,null,null,null,null,null,null,null,null,null,null,null,null,null,null,null,null,null,null,null,null,null,null,1,null,1,1,null,1,60,150,114.13500000000001,3.8045,4,5,240,34.586363636363643,1660.1454545454549,2540.1454545454549,9.4482778366306863E-2,45.654000000000003,1,90,24.135000000000005,"!",null,null,1,2,null,null,null,null,null,null,null,null,null,null,null,null,null,null,1,2,null,1,5,4,null,null,null,null,null,null,null,null,null,null,null,null,null,null,null,1,null,null,null,null,null,null,null,null,null,null,null,null,null,null,null,null,null,null,null,null,null,null,null,null,null,null,null,null,null,null,null,null,null,null,null,null,null,null,null,null,null,null,null,null,null,null,null,null,null,null,null,null,null,null,null,null,null,null,null,null,null,"南道路のため、日当たり良好！","建築条件なし"]
[100098869068,1,1,1,"日比野不動産（株）　","043-301-5656",null,null,null,2,"2019-05-10",null,null,null,"千葉県","千葉市美浜区","稲毛海岸３丁目",null,null,null,null,null,"京葉線","稲毛海岸",13,null,null,null,null,null,null,null,null,null,null,1,null,1,null,null,null,null,1,null,null,null,180000000,null,900000,273000,null,2,661.36,null,null,null,null,null,null,null,null,null,null,null,null,null,null,null,null,null,null,null,null,null,null,null,null,null,null,1,null,1,12,11,null,60,200,1322.72,44.090666666666671,44,5,2640,400.82424242424247,19239.56363636364,37239.563636363644,7.0892345189085298E-2,396.81599999999997,13,1170,152.72000000000003,"!",null,null,1,2,null,null,null,null,null,null,null,null,null,null,null,null,null,null,null,1,21,null,8,25,null,null,null,null,null,null,null,null,null,null,null,null,null,null,null,1]
[100098869108,1,1,1,"日比野不動産（株）　","043-301-5656",null,null,null,2,"2019-05-10",null,null,null,"千葉県","千葉市花見川区","検見川町５丁目",null,null,null,null,null,"総武中央線","新検見川",10,null,null,null,null,null,null,null,null,null,null,1,null,1,null,null,null,null,1,4,3,null,26900000,null,741000,224000,null,2,120.1,null,null,null,null,null,null,null,null,null,null,null,null,null,null,null,null,null,null,null,null,null,null,null,null,null,null,3,null,1,1,null,1,50,100,120.1,4.003333333333333,4,5,240,36.393939393939391,1746.9090909090905,4436.9090909090901,5.4091710035651365E-2,60.05,2,180,-59.900000000000006,"",null,null,1,2,null,null,null,null,null,null,null,null,null,null,null,null,null,null,1,1,null,null,null,null,null,null,null,null,null,null,null,null,null,null,null,null,null,null,null,1]
[100098869739,1,1,1,"サクラホールディングス（株）　","043-216-2880",null,null,null,2,"2019-05-10","2019-05-11",null,null,"千葉県","千葉市若葉区","桜木８丁目","７－５２",null,null,null,null,"千葉モノレ","桜木",7,560,null,null,null,null,null,null,null,null,null,2,null,2,null,null,null,null,4,1,null,null,20000000,null,287000,87000,null,1,231,null,null,null,null,null,1,56,null,null,null,null,null,null,null,null,null,null,null,null,null,null,null,null,null,null,null,1,null,1,1,null,1,50,100,231,7.7,8,5,480,70,3360,5360,8.9552238805970144E-2,115.5,3,270,-39,"",null,null,1]
[100098869753,1,1,1,"みどり不動産　","043-287-1851","段　　　木　　　　修","043-287-1851",null,3,"2019-05-10","2019-05-12",null,null,"千葉県","千葉市稲毛区","園生町","５０７－１，－８，－",null,null,null,null,"総武中央線","稲毛",null,null,11,null,"第二あやめ入口",2,100,null,null,null,null,2,null,1,null,null,null,null,5,1,null,null,85000000,null,166000,51000,null,1,1697,null,null,null,null,null,null,null,null,null,null,null,null,null,null,null,null,null,null,null,null,null,null,null,null,null,null,4,null,1,11,null,1,60,200,3394,113.13333333333334,113,5,6780,1028.4848484848485,49367.272727272721,57867.272727272721,0.11716467150532568,1018.1999999999999,33,2970,424,"!",null,null,null,null,null,null,null,null,null,null,null,null,null,null,null,null,null,null,5,1,10,null,5,8,1,70,null,7,5.3,null,null,null,null,null,null,null,null,null,null,null,null,null,null,null,null,null,null,null,null,null,null,null,null,null,null,null,null,null,null,null,null,null,null,null,null,null,null,null,null,null,null,null,null,null,null,null,null,null,null,null,null,null,null,null,null,null,null,null,null,null,null,null,null,null,null,null,null,null,null,null,null,"昭４８年建築建物約８００平米、","斜面部分に樹木が生えている"]
[100098869773,1,1,1,"（株）コーデック　","043-252-2445",null,null,null,3,"2019-05-10","2019-05-10",null,null,"千葉県","成田市","東ノ台",951,null,null,null,null,"成田線","大戸",88,7000,null,null,null,null,null,null,null,null,null,null,null,1,null,null,null,null,5,1,null,null,29000000,null,31000,10000,null,1,3180.48,null,null,null,null,null,2,null,null,null,null,null,null,null,null,null,null,null,null,null,null,null,null,null,null,null,null,1,null,3,null,null,19,60,200,6360.96,212.03200000000001,212,5,12720,1927.5636363636365,92523.05454545455,95423.05454545455,0.13330111953124343,1908.288,63,5670,690.96,"!",null,null,1,null,null,null,null,null,null,null,null,null,null,null,null,null,null,null,null,1,24.5,null,5,4.5999999999999996,1,10,null,1,3,null,null,null,null,null,null,null,null,null,null,null,null,null,null,null,null,null,null,null,null,null,null,null,null,null,null,null,null,null,null,null,null,null,null,null,null,null,null,null,null,null,null,null,null,null,null,null,null,null,null,null,null,null,null,null,null,null,null,null,null,null,null,null,null,null,null,null,null,null,null,null,null,null,"宅地９６２坪"]
[100098870835,1,1,1,"（株）ベストハウジング　","0439-57-6263",null,null,null,3,"2019-05-10",null,null,null,"千葉県","君津市","南子安８丁目",null,null,null,null,null,"内房線","君津",42,3300,null,null,null,null,null,null,null,null,null,1,null,2,null,null,null,null,1,null,3,null,12600000,null,209000,64000,null,1,199.65,null,null,null,null,null,null,null,null,null,null,null,null,null,null,null,null,null,null,null,null,null,null,null,null,null,null,1,null,1,1,null,1,null,null,199.65,6.6550000000000002,7,5,420,60.500000000000007,2904.0000000000005,4164,0.10086455331412104,119.78999999999999,3,270,-70.349999999999994,"",null,null,null,null,null,null,null,null,null,null,null,null,null,null,null,null,null,null,1,1,null,null,1,10]
[100098871471,1,1,1,"（株）エム・ケーエステート　","0475-25-5219","細谷",null,null,2,"2019-05-10",null,null,null,"千葉県","長生郡長生村","岩沼",null,null,null,null,null,"外房線","八積",4,300,null,null,null,null,null,null,null,null,null,1,null,2,null,null,null,null,1,null,null,null,10400000,null,60000,18000,null,1,577.78,null,null,null,null,null,2,null,null,null,null,null,null,null,null,null,null,null,null,null,null,null,null,null,null,null,null,1,null,3,99,null,1,60,200,1155.56,38.518666666666668,39,5,2340,350.16969696969699,16808.145454545454,17848.145454545454,0.13110605838345313,346.66799999999995,11,990,165.55999999999995,"!",null,null,1,2,null,null,null,null,null,null,null,null,null,null,null,null,null,null,1,1,20.3,null,8,12,null,null,null,null,null,null,null,null,null,null,null,null,null,null,null,1,null,null,null,null,null,null,null,null,null,null,null,null,null,null,null,null,null,null,null,null,null,null,null,null,null,null,null,null,null,null,null,null,null,null,null,null,null,null,null,null,null,null,null,null,null,null,null,null,null,null,null,null,null,null,null,null,null,null,null,null,null,"長生村文化会館すぐ近く"]
[100098871657,1,1,1,"王子台不動産（株）　","03-6240-4421",null,null,null,2,"2019-05-10","2019-05-10",null,null,"千葉県","松戸市","小金原２丁目",null,null,null,null,null,"常磐緩行線","北小金",null,null,9,null,null,2,null,null,null,null,null,1,null,1,null,null,null,null,1,4,3,null,13900000,null,351000,107000,null,1,131.04,null,null,null,null,null,2,null,null,null,null,null,null,null,null,null,null,null,null,null,null,null,null,null,null,null,null,1,null,1,1,null,1,50,100,131.04,4.3679999999999994,4,5,240,39.709090909090911,1906.0363636363636,3296.0363636363636,7.2814730640659311E-2,65.52,2,180,-48.960000000000008,"",null,null,2,2,null,null,null,null,null,null,null,null,null,null,null,null,null,null,1,1,null,null,null,null,null,null,null,null,null,null,null,null,null,null,null,null,null,null,null,1]
[100098871719,1,1,1,"王子台不動産（株）　","03-6240-4421",null,null,null,2,"2019-05-10","2019-05-10",null,null,"千葉県","松戸市","小金原２丁目",null,null,null,null,null,"常磐緩行線","北小金",null,null,9,null,null,2,null,null,null,null,null,1,null,1,null,null,null,null,1,4,3,null,14600000,null,372000,113000,null,1,130,null,null,null,null,null,2,null,null,null,null,null,null,null,null,null,null,null,null,null,null,null,null,null,null,null,null,1,null,1,1,null,1,50,100,130,4.333333333333333,4,5,240,39.393939393939398,1890.909090909091,3350.909090909091,7.1622354856212697E-2,65,2,180,-50,"",null,null,2,2,null,null,null,null,null,null,null,null,null,null,null,null,null,null,1,1,null,null,null,null,null,null,null,null,null,null,null,null,null,null,null,null,null,null,null,1]
[100098871762,1,1,1,"（有）藤森住宅　","047-346-7446","藤森",null,null,2,"2019-05-10",null,null,null,"千葉県","松戸市","新松戸南２丁目",null,null,null,null,null,"常磐緩行線","新松戸",18,null,null,null,null,null,null,null,null,null,null,1,null,2,null,null,null,null,4,1,null,null,27000000,null,499000,151000,null,1,179,null,null,null,null,null,2,null,null,null,null,null,null,null,null,null,null,null,null,null,null,null,null,null,null,null,null,3,null,1,1,null,1,50,100,179,5.9666666666666668,6,5,360,54.242424242424242,2603.6363636363635,5303.636363636364,6.7877956804936579E-2,89.5,2,180,-1,"",null,null,1,2,null,null,null,null,null,null,null,null,null,null,null,null,null,null,1,1,7.7,2,1,6,null,null,null,null,null,null,null,null,null,null,null,null,null,null,null,1]
[100098871800,1,1,1,"王子台不動産（株）　","03-6240-4421",null,null,null,2,"2019-05-10","2019-05-10",null,null,"千葉県","松戸市","小金原２丁目",null,null,null,null,null,"常磐緩行線","北小金",null,null,9,null,null,2,null,null,null,null,null,1,null,1,null,null,null,null,1,4,3,null,14900000,null,378000,115000,null,1,130.52000000000001,null,null,null,null,null,2,null,null,null,null,null,null,null,null,null,null,null,null,null,null,null,null,null,null,null,null,1,null,1,1,null,1,50,100,130.52000000000001,4.3506666666666671,4,5,240,39.551515151515154,1898.4727272727273,3388.4727272727273,7.0828369981649014E-2,65.260000000000005,2,180,-49.47999999999999,"",null,null,2,2,null,null,null,null,null,null,null,null,null,null,null,null,null,null,1,1,null,null,null,null,null,null,null,null,null,null,null,null,null,null,null,null,null,null,null,1]
[100098871809,1,1,1,"王子台不動産（株）　","03-6240-4421",null,null,null,2,"2019-05-10","2019-05-10",null,null,"千葉県","松戸市","小金原２丁目",null,null,null,null,null,"常磐緩行線","北小金",null,null,9,null,null,2,null,null,null,null,null,1,null,1,null,null,null,null,1,4,3,null,16500000,null,414000,126000,null,1,131.76,null,null,null,null,null,2,null,null,null,null,null,null,null,null,null,null,null,null,null,null,null,null,null,null,null,null,1,null,1,1,null,1,50,100,131.76,4.3919999999999995,4,5,240,39.927272727272729,1916.5090909090909,3566.5090909090909,6.7292692625332634E-2,65.88,2,180,-48.240000000000009,"",null,null,2,2,null,null,null,null,null,null,null,null,null,null,null,null,null,null,1,1,null,null,null,null,null,null,null,null,null,null,null,null,null,null,null,null,null,null,null,1]
[100098871820,1,1,1,"王子台不動産（株）　","03-6240-4421",null,null,null,2,"2019-05-10","2019-05-10",null,null,"千葉県","松戸市","小金原２丁目",null,null,null,null,null,"常磐緩行線","北小金",null,null,9,null,null,2,null,null,null,null,null,1,null,1,null,null,null,null,1,4,3,null,16000000,null,404000,123000,null,1,131.05000000000001,null,null,null,null,null,2,null,null,null,null,null,null,null,null,null,null,null,null,null,null,null,null,null,null,null,null,1,null,1,1,null,1,50,100,131.05000000000001,4.3683333333333341,4,5,240,39.712121212121218,1906.1818181818185,3506.1818181818185,6.8450528935905405E-2,65.525000000000006,2,180,-48.949999999999989,"",null,null,2,2,null,null,null,null,null,null,null,null,null,null,null,null,null,null,1,1,null,null,null,null,null,null,null,null,null,null,null,null,null,null,null,null,null,null,null,1]
[100098871824,1,1,1,"王子台不動産（株）　","03-6240-4421",null,null,null,2,"2019-05-10","2019-05-10",null,null,"千葉県","松戸市","小金原２丁目",null,null,null,null,null,"常磐緩行線","北小金",null,null,9,null,null,2,null,null,null,null,null,1,null,1,null,null,null,null,1,4,3,null,16600000,null,421000,128000,null,1,130.5,null,null,null,null,null,2,null,null,null,null,null,null,null,null,null,null,null,null,null,null,null,null,null,null,null,null,1,null,1,1,null,1,50,100,130.5,4.3499999999999996,4,5,240,39.545454545454547,1898.1818181818182,3558.181818181818,6.7450178845171183E-2,65.25,2,180,-49.5,"",null,null,2,2,null,null,null,null,null,null,null,null,null,null,null,null,null,null,1,1,null,null,null,null,null,null,null,null,null,null,null,null,null,null,null,null,null,null,null,1]
[100098871842,1,1,1,"王子台不動産（株）　","03-6240-4421",null,null,null,2,"2019-05-10","2019-05-10",null,null,"千葉県","松戸市","小金原２丁目",null,null,null,null,null,"常磐緩行線","北小金",null,null,9,null,null,2,null,null,null,null,null,1,null,1,null,null,null,null,1,4,3,null,16600000,null,421000,128000,null,1,130.5,null,null,null,null,null,2,null,null,null,null,null,null,null,null,null,null,null,null,null,null,null,null,null,null,null,null,1,null,1,1,null,1,50,100,130.5,4.3499999999999996,4,5,240,39.545454545454547,1898.1818181818182,3558.181818181818,6.7450178845171183E-2,65.25,2,180,-49.5,"",null,null,2,2,null,null,null,null,null,null,null,null,null,null,null,null,null,null,1,1,null,null,null,null,null,null,null,null,null,null,null,null,null,null,null,null,null,null,null,1]
[100098871844,1,1,1,"王子台不動産（株）　","03-6240-4421",null,null,null,2,"2019-05-10","2019-05-10",null,null,"千葉県","松戸市","小金原２丁目",null,null,null,null,null,"常磐緩行線","北小金",null,null,9,null,null,2,null,null,null,null,null,1,null,1,null,null,null,null,1,4,3,null,16600000,null,421000,128000,null,1,130.5,null,null,null,null,null,2,null,null,null,null,null,null,null,null,null,null,null,null,null,null,null,null,null,null,null,null,1,null,1,1,null,1,50,100,130.5,4.3499999999999996,4,5,240,39.545454545454547,1898.1818181818182,3558.181818181818,6.7450178845171183E-2,65.25,2,180,-49.5,"",null,null,2,2,null,null,null,null,null,null,null,null,null,null,null,null,null,null,1,1,null,null,null,null,null,null,null,null,null,null,null,null,null,null,null,null,null,null,null,1]
[100098871965,1,1,1,"三井林業（株）　","03-3202-5339","池田",null,"mitsuiringyo@yahoo.co.jp",2,"2019-05-10",null,null,null,"千葉県","千葉市緑区","越智町","１７６９－１",null,null,null,null,"外房線","誉田",29,2300,null,null,null,null,null,null,null,null,null,1,null,1,null,null,null,null,3,9,null,null,10000000,null,26000,8000,null,2,1320,null,null,null,null,null,null,null,null,null,null,null,null,null,null,null,null,null,null,null,null,null,null,null,null,null,null,null,null,null,null,null,null,null,null,1320,44,44,5,2640,400,19200,20200,0.1306930693069307,792,26,2340,-1020,""]
[100098871973,1,1,1,"三井林業（株）　","03-3202-5339","池田",null,"mitsuiringyo@yahoo.co.jp",2,"2019-05-10",null,null,null,"千葉県","千葉市緑区","越智町","１７６９－１",null,null,null,null,"外房線","誉田",29,2300,null,null,null,null,null,null,null,null,null,1,null,1,null,null,null,null,3,9,null,null,29000000,null,26000,8000,null,2,3695,null,null,null,null,null,null,null,null,null,null,null,null,null,null,null,null,null,null,null,null,null,null,null,null,null,null,null,null,null,null,null,null,null,null,3695,123.16666666666667,123,5,7380,1119.6969696969697,53745.454545454551,56645.454545454551,0.13028406355320171,2217,73,6570,-2875,""]
[100098871985,1,1,1,"（有）藤森住宅　","047-346-7446","藤森",null,null,2,"2019-05-10",null,null,null,"千葉県","松戸市","三ケ月",null,null,null,null,null,"常磐緩行線","馬橋",10,null,null,null,null,null,null,null,null,null,null,1,null,2,null,null,null,null,5,1,null,null,22900000,null,451000,137000,null,1,168,null,null,null,null,null,2,null,null,null,null,null,null,null,null,null,null,null,null,1,13,null,null,null,null,null,null,3,null,1,11,null,null,60,200,336,11.2,11,5,660,101.81818181818183,4887.272727272727,7177.272727272727,9.1956934768841037E-2,100.8,3,270,66,"!",null,null,1,2,null,null,null,null,null,null,null,null,null,null,null,null,null,null,1,1,2.5,2,3,6,null,null,null,null,null,null,null,null,null,null,null,null,null,null,null,1]
[100098872234,1,1,1,"住友不動産販売（株）　津田沼営業センター","047-477-6050","花澤　卓","047-477-6050",null,2,"2019-05-10","2019-05-11",null,null,"千葉県","千葉市花見川区","幕張本郷６丁目",null,null,null,null,null,"総武中央線","幕張本郷",7,560,null,null,null,null,null,null,null,null,null,2,null,2,null,null,null,null,5,1,null,null,14800000,null,495000,150000,null,1,99,null,null,null,null,null,2,null,null,null,null,null,null,null,null,null,null,null,null,1,22.32,null,null,null,null,null,3,3,null,1,11,null,null,60,200,198,6.6,7,5,420,60,2880,4360,9.6330275229357804E-2,59.4,1,90,108,"!",null,null,1,2,null,null,null,null,null,null,null,null,null,null,null,null,null,null,1,1,null,2,6,6,null,null,null,null,0,null,null,null,null,0,null,null,null,null,0,null,null,null,null,null,null,null,null,null,null,null,null,null,null,null,null,null,null,null,null,null,null,null,null,null,null,null,null,null,null,null,null,null,null,null,null,null,null,null,null,null,null,null,null,null,null,null,null,null,null,null,null,null,null,null,null,null,null,null,null,null,null,null,"農地法の規定による農地転用届出書の申請必要"]
[100098872338,1,1,1,"住友不動産販売（株）　船橋営業センター","047-423-6321","兄父　智史","047-423-6321",null,2,"2019-05-10",null,null,null,"千葉県","船橋市","小室町",null,null,null,null,null,"北総線","小室",9,720,null,null,null,null,null,null,null,null,null,2,null,2,null,null,null,null,3,1,null,null,19800000,null,288000,87000,null,1,227.83,null,null,null,null,null,2,null,null,null,null,null,null,null,null,null,null,null,null,2,null,null,null,null,null,null,3,1,1,1,1,null,1,40,80,182.26400000000001,6.0754666666666672,6,5,360,55.231515151515154,2651.1127272727276,4631.1127272727281,7.77350976321418E-2,91.132000000000005,3,270,-87.73599999999999,"",null,null,1,2,null,null,null,null,null,null,null,null,null,null,null,null,null,null,5,1,13.3,2,1,6,1,13.3,2,5,9.9,null,null,null,null,0,null,null,null,null,0,1]
[100098872352,1,1,1,"住友不動産販売（株）　千葉営業センター","043-224-8151","宇田川瞬也","043-224-8151",null,2,"2019-05-10",null,null,null,"千葉県","千葉市中央区","椿森２丁目",null,null,null,null,null,"総武線","千葉",15,1200,null,null,null,null,null,null,null,null,null,2,null,2,null,null,null,null,4,1,null,null,54800000,null,783000,237000,null,1,231.4,null,null,null,null,null,2,null,null,null,null,null,null,null,null,null,null,null,null,null,null,null,null,null,null,null,3,1,1,1,11,null,1,60,200,462.8,15.426666666666668,15,5,900,140.24242424242425,6731.636363636364,12211.636363636364,7.3700196533857426E-2,138.84,4,360,102.80000000000001,"!",null,null,1,2,null,null,null,null,null,null,null,null,null,null,null,null,null,null,1,1,12.6,2,8,6,null,null,null,null,0,null,null,null,null,0,null,null,null,null,0,2,null,null,null,null,null,null,null,null,null,null,null,null,null,null,null,null,null,null,null,null,null,null,null,null,null,null,null,null,null,null,null,null,null,null,null,null,null,null,null,null,null,null,null,null,null,null,null,null,null,null,null,null,null,null,null,null,null,null,null,null,null,"整然と区画された閑静な住宅街","土地面積／２３１．４０㎡（６９．９９坪）"]
[100098872400,1,1,1,"住友不動産販売（株）　稲毛営業センター","043-285-6101","南　登志博","043-285-6101",null,2,"2019-05-10",null,null,null,"千葉県","千葉市花見川区","宮野木台４丁目",null,null,null,null,null,"総武線","稲毛",null,null,13,null,"平和交通本社",5,400,null,null,null,null,1,null,1,null,null,null,null,3,1,null,null,12300000,null,357000,108000,null,1,114,null,null,null,null,null,1,18.8,null,null,null,null,null,null,null,null,null,null,null,null,null,null,null,null,null,null,3,5,null,1,1,null,1,70,150,171,5.7,6,5,360,51.81818181818182,2487.2727272727275,3717.2727272727275,9.6845194424064557E-2,79.8,2,180,-9,"",null,null,4,2,null,null,null,null,null,null,null,null,null,null,null,null,null,null,2,1,10.3,2,4,7.7,2,4.3,1,6,4.5,null,null,null,null,0,null,null,null,null,0,1,null,null,null,null,null,null,null,null,null,null,null,null,null,null,null,null,null,null,null,null,null,null,null,null,null,null,null,null,null,null,null,null,null,null,null,null,null,null,null,null,null,null,null,null,null,null,null,null,null,null,null,null,null,null,null,null,null,"市立さつきが丘東小学校",750,10,1]
[100098872403,1,1,1,"住友不動産販売（株）　稲毛営業センター","043-285-6101","井部　周斗","043-285-6101",null,2,"2019-05-10","2019-05-11",null,null,"千葉県","千葉市稲毛区","稲毛３丁目",null,null,null,null,null,"京成千葉線","京成稲毛",5,400,null,null,null,null,null,null,null,null,null,2,null,2,null,null,null,null,3,1,null,null,12000000,null,592000,180000,null,1,67.010000000000005,null,null,null,null,null,1,14.7,null,null,null,null,null,null,null,null,null,null,null,null,null,null,null,null,null,null,3,1,null,1,12,null,1,60,160,107.21600000000001,3.573866666666667,4,5,240,32.489696969696972,1559.5054545454548,2759.505454545455,8.6972105673743902E-2,40.206000000000003,1,90,17.216000000000008,"!",null,null,1,2,null,null,null,null,null,null,null,null,null,null,null,null,null,null,1,2,8.1999999999999993,1,8,3.5,null,null,null,null,0,null,null,null,null,0,null,null,null,null,0,2]
[100098872453,1,1,1,"みのり開発（株）　柏支店　","04-7176-1221","高野",null,null,2,"2019-05-10",null,null,null,"千葉県","柏市","加賀２丁目",null,null,null,null,null,"東武野田線","増尾",10,null,null,null,null,null,null,null,null,null,null,2,null,2,null,null,null,null,5,null,null,null,16800000,null,271000,82000,null,1,205.52,null,null,null,null,null,null,null,null,null,null,null,null,null,null,null,null,null,null,null,null,null,null,null,null,null,null,1,4,1,1,null,null,50,100,205.52,6.8506666666666671,7,5,420,62.278787878787888,2989.3818181818183,4669.3818181818187,8.9947666812036628E-2,102.76,3,270,-64.47999999999999,"",null,null,2,2,null,null,null,null,null,null,null,null,null,null,null,null,null,null,1,2,null,1,2,4.5,null,null,null,null,null,null,null,null,null,null,null,null,null,null,null,null,null,null,null,null,null,null,null,null,null,null,null,null,null,null,null,null,null,null,null,null,null,null,null,null,null,null,null,null,null,null,null,null,null,null,null,null,null,null,null,null,null,null,null,null,null,null,null,null,null,null,null,null,null,null,null,null,null,null,null,null,null,"現況有姿","加賀地区計画内"]
[100098872561,1,1,1,"（株）国栄ハウジング　","047-371-4100","曽根",null,null,2,"2019-05-10",null,null,null,"千葉県","市川市","東菅野４丁目",null,null,null,null,null,"総武線","市川",26,null,null,null,null,null,null,null,null,null,null,2,null,2,null,null,null,null,4,1,null,null,17000000,null,651000,197000,null,1,86.45,null,null,null,null,null,1,null,null,null,null,null,null,null,null,null,null,null,null,null,null,null,null,null,null,null,3,1,null,1,1,null,1,50,100,86.45,2.8816666666666668,3,5,180,26.196969696969699,1257.4545454545455,2957.4545454545455,6.0863150129103649E-2,43.225000000000001,1,90,-3.5499999999999972,"",null,null,1,null,null,null,null,null,null,null,null,null,null,null,null,null,null,null,1,2,null,1,null,4,null,null,null,null,null,null,null,null,null,null,null,null,null,null,null,1]
[100098873224,1,1,1,"（株）中央住宅　ポラス住まいの情報館松戸営業所　","047-363-8811","小吹　光康","047-363-8811","rt.matsudo-qt@polus.co.jp",2,"2019-05-10","2019-05-11",null,null,"千葉県","松戸市","古ケ崎２丁目",null,null,null,null,null,"常磐線","松戸",20,1600,null,null,null,null,null,null,null,null,null,2,null,2,null,null,null,null,4,1,null,null,12000000,null,486000,147000,null,1,81.680000000000007,null,null,null,null,null,null,6.99,null,null,null,null,null,null,null,null,null,null,null,null,null,null,null,null,null,null,3,1,null,1,1,null,null,60,100,81.680000000000007,2.722666666666667,3,5,180,24.751515151515154,1188.0727272727272,2388.0727272727272,7.5374588865878916E-2,49.008000000000003,1,90,-8.3199999999999932,"",null,null,1,2,null,null,null,null,null,null,null,null,null,null,null,null,null,null,1,2,null,null,1,4,null,null,null,null,null,null,null,null,null,null,null,null,null,null,null,null,null,null,null,null,null,null,null,null,null,null,null,null,null,null,null,null,null,null,null,null,null,null,null,null,null,null,null,null,null,null,null,null,null,null,null,null,null,null,null,null,null,null,null,null,null,null,null,null,null,null,null,null,null,null,null,null,null,null,null,null,null,468759]
[100098873235,1,1,1,"（株）中央住宅　ポラス住まいの情報館柏営業所　","04-7146-3911","澄川　知行","04-7146-3911","rt.kashiwa-qs@polus.co.jp",2,"2019-05-10","2019-05-11",null,null,"千葉県","柏市","つくしが丘４丁目",null,null,null,null,null,"東武野田線","新柏",7,560,null,null,null,null,null,null,null,null,null,2,null,2,null,null,null,null,4,1,null,null,33800000,null,654000,198000,null,1,171.04,null,null,null,null,null,null,null,null,null,null,null,null,null,null,null,null,null,null,null,null,null,null,null,null,null,3,1,null,1,1,null,null,60,150,256.56,8.5519999999999996,9,5,540,77.74545454545455,3731.7818181818184,7111.7818181818184,7.5930338388538354E-2,102.624,3,270,-13.439999999999998,"",null,null,2,2,null,null,null,null,null,null,null,null,null,null,null,null,null,null,2,1,null,null,2,4.9000000000000004,null,null,null,8,4.3,null,null,null,null,null,null,null,null,null,null,null,null,null,null,null,null,null,null,null,null,null,null,null,null,null,null,null,null,null,null,null,null,null,null,null,null,null,null,null,null,null,null,null,null,null,null,null,null,null,null,null,null,null,null,null,null,null,null,null,null,null,null,null,null,null,null,null,null,null,null,null,null,467726]
[100098873257,1,1,1,"（株）中央住宅　ポラス住まいの情報館南柏営業所　","04-7170-9000","岩見　亮","04-7170-9000","rt.mkashiwa-qq@polus.co.jp",2,"2019-05-10","2019-05-12",null,null,"千葉県","柏市","高柳",null,null,null,null,null,"東武野田線","高柳",8,640,null,null,null,null,null,null,null,null,null,1,null,1,null,null,null,null,4,1,null,null,18800000,null,399000,121000,null,1,156.02000000000001,null,null,null,null,null,null,null,null,null,null,null,null,null,null,null,null,null,null,null,null,null,null,null,null,null,3,1,null,1,1,null,null,50,100,156.02000000000001,5.2006666666666668,5,5,300,47.278787878787881,2269.3818181818183,4149.3818181818187,7.2299926385529484E-2,78.010000000000005,2,180,-23.97999999999999,"",null,null,1,2,null,null,null,null,null,null,null,null,null,null,null,null,null,null,1,1,null,null,8,5,null,null,null,null,null,null,null,null,null,null,null,null,null,null,null,null,null,null,null,null,null,null,null,null,null,null,null,null,null,null,null,null,null,null,null,null,null,null,null,null,null,null,null,null,null,null,null,null,null,null,null,null,null,null,null,null,null,null,null,null,null,null,null,null,null,null,null,null,null,null,null,null,null,null,null,null,null,467651]
[100098873284,1,1,1,"三井住友トラスト不動産（株）　柏センター","04-7142-3331","中山　智","04-7142-3331","kashiwa@smtrc.jp",2,"2019-05-10",null,null,null,"千葉県","柏市","花野井",null,null,null,null,null,"つくばＥＸ","柏の葉キャンパス",14,null,null,null,null,null,null,null,null,null,null,2,null,2,null,null,null,null,4,null,null,null,45000000,null,551000,167000,null,1,270.32,null,null,null,null,null,2,null,null,null,0,null,null,null,null,null,null,null,null,null,null,null,null,null,null,null,3,1,1,1,12,null,null,60,200,540.64,18.021333333333335,18,5,1080,163.83030303030304,7863.8545454545456,12363.854545454546,8.7351399681182093E-2,162.19199999999998,5,450,90.639999999999986,"!",null,null,null,2,null,null,null,null,null,null,null,null,null,null,null,null,null,null,2,1,16.100000000000001,null,4,4.5999999999999996,1,13,null,2,6.6,null,null,null,null,null,null,null,null,null,null,null,null,null,null,null,null,null,null,null,null,null,null,null,null,null,null,null,null,null,null,null,null,null,null,null,null,null,null,null,null,null,null,null,null,null,null,null,null,null,null,null,null,null,null,null,null,null,null,null,null,null,null,null,null,null,null,null,null,"ファミリーマート柏大室店",360,null,null,null,null,"Ｂｋｓ１６０８４８"]
[100098873295,1,1,1,"三井住友トラスト不動産（株）　柏センター","04-7142-3331","松永　龍之介","04-7142-3331","kashiwa@smtrc.jp",2,"2019-05-10",null,null,null,"千葉県","我孫子市","高野山",null,null,null,null,null,"常磐線","天王台",13,null,null,null,null,null,null,null,null,null,null,2,null,1,null,null,null,null,4,null,null,null,16000000,null,286000,87000,null,2,185.57,null,null,null,null,null,1,29.4,null,null,0,null,null,null,null,null,null,null,null,null,null,null,null,null,null,null,3,1,1,1,1,null,null,50,100,185.57,6.1856666666666662,6,5,360,56.233333333333334,2699.2000000000003,4299.2000000000007,8.3736509117975422E-2,92.784999999999997,3,270,-84.43,"",null,null,1,2,null,null,null,null,null,null,null,null,null,null,null,null,null,null,1,2,14.7,1,5,4,null,null,null,null,null,null,null,null,null,null,null,null,null,null,null,null,null,null,null,null,null,null,null,null,null,null,null,null,null,null,null,null,null,null,null,null,null,null,null,null,null,null,null,null,null,null,null,null,null,null,null,null,null,null,null,null,null,null,null,null,null,null,null,null,null,null,null,null,null,null,null,null,null,"我孫子市立高野山小学校",1030,null,null,null,null,"Ｂｋｓ１８０６９６"]
[100098874069,1,1,1,"（株）アクロス・シティ　","03-6304-0518","ヤスマツ","080-4005-4603","yasumatsu@akros-city.co.jp",2,"2019-05-10",null,null,null,"千葉県","柏市","東逆井１丁目",null,null,null,null,null,"東武野田線","逆井",6,null,null,null,null,null,null,null,null,null,null,1,null,1,null,null,null,null,1,null,null,null,16990000,null,242000,74000,null,2,232.3,null,null,null,null,null,2,null,null,null,null,null,null,null,null,null,null,null,null,null,null,null,null,null,null,null,null,1,null,1,1,null,1,60,150,348.45000000000005,11.615000000000002,12,5,720,105.59090909090911,5068.3636363636369,6767.3636363636369,0.10639298236187046,139.38,4,360,-11.549999999999955,"",null,null,null,2,null,null,null,null,null,null,null,null,null,null,null,null,null,null,1,1,13,null,8,6]
[100098875616,1,1,1,"シンワハウス（株）　","04-7160-6633",null,null,null,2,"2019-05-10","2019-05-10",null,null,"千葉県","我孫子市","南新木３丁目",10,null,null,null,null,"成田線","新木",4,null,null,null,null,null,null,null,null,null,null,1,201905,1,null,null,null,null,3,1,null,null,13000000,null,215000,65000,null,2,200,null,null,null,null,null,null,null,null,null,null,null,null,null,null,null,null,null,null,null,null,null,null,null,null,null,null,1,null,1,3,null,null,60,200,400,13.333333333333334,13,5,780,121.21212121212122,5818.1818181818189,7118.1818181818189,0.10957854406130267,120,4,360,40,"!",null,null,4,2,null,null,null,null,null,null,null,null,null,null,null,null,null,null,null,1,15,null,3,13.3]
[100098875643,1,1,1,"（株）トミオ　","043-309-5617","三浦",null,null,2,"2019-05-10",null,null,null,"千葉県","木更津市","港南台４丁目","１０ー１４",null,null,null,null,"内房線","君津",null,null,9,null,null,4,null,null,null,null,null,1,null,1,null,null,null,null,4,1,null,null,8300000,null,167000,51000,null,1,165.01,null,null,null,null,null,2,null,null,null,null,null,null,null,null,null,null,null,null,null,null,null,null,null,null,null,null,1,null,1,1,null,1,50,100,165.01,5.5003333333333329,6,5,360,50.0030303030303,2400.1454545454544,3230.1454545454544,0.11145008949779915,82.504999999999995,2,180,-14.990000000000009,"",null,null,1,2,null,null,null,null,null,null,null,null,null,null,null,null,null,null,1,1,null,2,7,9.1999999999999993,null,null,null,null,null,null,null,null,null,null,null,null,null,null,null,1]
[100098875770,1,1,1,"（株）コネクト　","043-306-6676","大場　直樹","043-306-6676",null,2,"2019-05-10","2019-05-10",null,null,"千葉県","八千代市","八千代台東５丁目",null,null,null,null,null,"京成本線","八千代台",16,1280,null,null,null,null,null,null,null,null,null,2,null,2,null,null,null,null,1,4,null,null,18800000,null,431000,131000,null,2,144.52000000000001,null,null,null,null,null,1,23.87,null,null,1,0.6,9.77,null,null,null,null,null,null,null,null,null,null,null,null,null,null,4,1,1,12,null,null,60,200,289.04000000000002,9.6346666666666678,10,5,600,87.587878787878793,4204.2181818181825,6084.2181818181825,9.8615792870974675E-2,86.712000000000003,2,180,109.04000000000002,"!",null,null,1,null,null,null,null,null,null,null,null,null,null,null,null,null,null,null,2,null,null,null,null,null,null,null,null,null,null,null,null,null,null,null,null,null,null,null,null,1]
[100098875829,1,1,1,"（株）トミオ　","043-309-5617",null,null,null,2,"2019-05-10",null,null,null,"千葉県","千葉市中央区","汐見丘町","2019-06-01",null,null,null,null,"総武線","千葉",11,null,null,null,null,null,null,null,null,null,null,1,null,1,null,null,null,null,1,4,null,null,43800000,null,895000,271000,null,1,161.80000000000001,null,null,null,null,null,2,null,null,null,null,null,null,null,null,null,null,null,null,null,null,null,null,null,null,null,null,1,null,1,12,null,null,60,200,323.60000000000002,10.786666666666667,11,5,660,98.060606060606077,4706.909090909091,9086.9090909090919,7.2631958061547069E-2,97.08,3,270,53.600000000000023,"!",null,null,1,2,null,null,null,null,null,null,null,null,null,null,null,null,null,null,1,1,null,2,6,6,null,null,null,null,null,null,null,null,null,null,null,null,null,null,null,1]
[100098875947,1,1,1,"（有）明友不動産　","047-487-6777","０８０－８８３５－８４１９",null,null,2,"2019-05-10",null,null,null,"千葉県","佐倉市","上座",null,null,null,null,null,"京成本線","ユーカリが丘",17,null,null,null,null,null,null,null,null,null,null,2,null,2,null,null,null,null,4,1,null,null,19800000,null,108000,33000,null,1,606.35,null,null,null,null,null,2,null,null,null,null,null,null,null,null,null,null,null,null,null,null,null,null,null,null,null,null,1,null,2,1,null,1,50,100,606.35,20.211666666666666,20,5,1200,183.74242424242425,8819.636363636364,10799.636363636364,0.11111485235193104,303.17500000000001,10,900,-293.64999999999998,"",null,null,1,2,null,null,null,null,null,null,null,null,null,null,null,null,null,null,2,1,42,null,4,4,null,null,null,null,null,null,null,null,null,null,null,null,null,null,null,1]
[100098876669,1,1,1,"（株）Ｙ’ｓプロデュース　","048-716-1030",null,null,null,2,"2019-05-10","2019-05-13",null,null,"千葉県","流山市","向小金１丁目","８４３番９",null,null,null,null,"常磐緩行線","南柏",15,null,null,null,null,null,null,null,null,null,null,2,null,2,null,null,null,null,1,4,3,null,8800000,null,445000,135000,null,1,65.5,null,null,null,null,null,1,11.11,null,null,0,null,null,null,null,null,null,null,null,null,null,null,null,null,null,null,3,1,null,1,12,null,1,60,180,117.9,3.93,4,5,240,35.727272727272734,1714.9090909090912,2594.909090909091,9.2488789237668165E-2,39.299999999999997,1,90,27.900000000000006,"!",null,null,1,2,null,null,null,null,null,null,null,null,null,null,null,null,null,null,1,2,6.4,1,5,4.5,null,null,null,null,null,null,null,null,null,null,null,null,null,null,null,1]
[100098876767,1,1,1,"（株）飯田産業　松戸営業所　","047-360-8878",null,null,null,2,"2019-05-10","2019-05-10",null,null,"千葉県","松戸市","二十世紀が丘美野里町",null,null,null,null,null,"常磐線","松戸",20,1600,null,null,null,null,null,null,null,null,null,null,null,null,null,null,null,null,1,null,null,null,23800000,null,626000,190000,null,null,125.71,null,null,null,null,null,null,null,null,null,null,null,null,null,null,null,null,null,null,null,null,null,null,null,null,null,null,3,null,1,1,null,null,50,100,125.71,4.1903333333333332,4,5,240,38.093939393939394,1828.5090909090909,4208.5090909090904,5.7027321271190839E-2,62.854999999999997,2,180,-54.290000000000006,"",null,null,null,null,null,null,null,null,null,null,null,null,null,null,null,null,null,null,null,1,null,null,1,6]
[100098876799,1,1,1,"遠田建設（株）　","047-370-8700","古谷",null,null,2,"2019-05-10",null,null,null,"千葉県","市川市","大町",null,null,null,null,null,"北総線","松飛台",17,1330,null,null,null,null,null,null,null,null,null,null,null,2,null,null,null,null,3,1,null,null,60000000,null,51000,16000,null,1,3964.59,null,null,null,null,null,null,null,null,null,null,null,null,null,null,null,null,null,null,null,null,null,null,null,null,null,null,3,null,2,null,null,null,null,null,3964.59,132.15299999999999,132,5,7920,1201.3909090909092,57666.763636363641,63666.763636363641,0.12439771629096043,2378.7539999999999,79,7110,-3145.41,"",null,null,1,null,null,null,null,null,null,null,null,null,null,null,null,null,null,null,1,1,13,null,5,10,null,null,null,null,null,null,null,null,null,null,null,null,null,null,null,1]
[100098877173,1,1,1,"加藤建設（株）　","03-3633-6669",null,null,null,2,"2019-05-10",null,null,null,"千葉県","袖ケ浦市","蔵波台３丁目","2019-07-13",null,null,null,null,"内房線","長浦",11,null,null,null,null,null,null,null,null,null,null,1,null,2,null,null,null,null,4,1,null,null,12900000,null,176000,54000,null,1,242.77,null,null,null,null,null,2,null,null,null,null,null,null,null,null,null,null,null,null,null,null,null,null,null,null,null,null,1,null,1,1,null,null,50,100,242.77,8.0923333333333343,8,5,480,73.566666666666677,3531.2000000000003,4821.2000000000007,9.9560275450095395E-2,121.38500000000001,4,360,-117.22999999999999,"",null,null,null,null,null,null,null,null,null,null,null,null,null,null,null,null,null,null,1,1,11.8,null,1,6,null,null,null,null,null,null,null,null,null,null,null,null,null,null,null,1]
[100098877198,1,1,1,"（有）あさの不動産　","043-272-1511",null,null,null,2,"2019-05-10",null,null,null,"千葉県","千葉市花見川区","千種町",null,null,null,null,null,"総武中央線","新検見川",null,null,19,null,null,4,null,null,null,null,null,2,null,2,null,null,null,null,4,1,null,null,7000000,null,141000,43000,null,1,165,null,null,null,null,null,null,null,null,null,1,null,null,null,null,null,null,null,null,null,null,null,null,null,null,null,null,null,null,1,12,null,null,60,200,330,11,11,5,660,100,4800,5500,0.12,99,3,270,60,"!",null,null,1,2,null,null,null,null,null,null,null,null,null,null,null,null,null,null,1,1,null,null,null,null,null,null,null,null,null,null,null,null,null,null,null,null,null,null,null,1]
[100098877201,1,1,1,"（有）あさの不動産　","043-272-1511",null,null,null,2,"2019-05-10","2019-05-10",null,null,"千葉県","千葉市花見川区","さつきが丘２丁目",null,null,null,null,null,"総武中央線","新検見川",null,null,11,null,"さつきが丘第一",4,null,null,null,null,null,1,null,1,null,null,null,null,4,1,null,null,24000000,null,382000,116000,null,1,208,null,null,null,null,null,2,null,null,null,0,null,null,null,null,null,null,null,null,null,null,null,null,null,null,null,null,3,null,1,1,null,1,50,100,208,6.9333333333333336,7,5,420,63.030303030303031,3025.454545454545,5425.454545454545,7.7412868632707785E-2,104,3,270,-62,"",null,null,1,2,null,null,null,null,null,null,null,null,null,null,null,null,null,null,1,1,10.3,null,null,6,null,null,null,null,null,null,null,null,null,null,null,null,null,null,null,1]
[100098877461,1,1,1,"（株）ベストランド　","047-456-3031","諸岡","080-7944-4409",null,2,"2019-05-10",null,null,null,"千葉県","船橋市","宮本８丁目",null,null,null,null,null,"京成本線","船橋競馬場",9,720,null,null,null,null,null,null,null,null,null,2,null,2,null,null,null,null,1,null,null,null,33100000,null,828000,251000,null,null,132.24,null,null,null,null,null,2,null,null,null,0,null,null,null,null,null,null,null,null,2,null,null,null,null,null,null,null,1,null,1,1,null,1,40,80,105.79200000000002,3.5264000000000006,4,5,240,32.058181818181822,1538.7927272727275,4848.7927272727275,4.9496856949583702E-2,52.896000000000008,1,90,15.792000000000016,"!",null,null,1,1,null,null,null,null,null,null,null,null,null,null,null,null,null,null,1,1,null,null,4,6.8,null,null,null,null,null,null,null,null,null,null,null,null,null,null,null,1]
[100098877485,1,1,1,"（株）東洋コーポレーション　","047-458-1121","髙木",null,null,2,"2019-05-10",null,null,null,"千葉県","市川市","曽谷３丁目",null,null,null,null,null,"総武線","市川",null,null,13,null,"曽谷公民館",7,null,null,null,null,null,2,null,2,null,null,null,null,1,4,3,null,18800000,null,653000,198000,null,1,95.19,null,null,null,null,null,null,null,null,null,null,null,null,null,null,null,null,null,null,null,null,null,null,null,null,null,null,1,null,1,1,null,1,null,null,95.19,3.173,3,5,180,28.845454545454547,1384.5818181818183,3264.5818181818186,5.5137230440206728E-2,57.113999999999997,1,90,5.1899999999999977,"!",null,null,1,1,null,null,null,null,null,null,null,null,null,null,null,null,null,null,1,1,8.6999999999999993,null,5,6,null,null,null,null,null,null,null,null,null,null,null,null,null,null,null,null,null,null,null,null,null,null,null,null,null,null,null,null,null,null,null,null,null,null,null,null,null,null,null,null,null,null,null,null,null,null,null,null,null,null,null,null,null,null,null,null,null,null,null,null,null,null,null,null,null,null,null,null,null,null,null,null,null,"百合台小学校",390,5,1,"■司法書士は売主指定となります"]
[100098877539,1,1,1,"（株）東洋コーポレーション　","047-458-1121","袋",null,null,2,"2019-05-10","2019-05-11",null,null,"千葉県","船橋市","駿河台２丁目",null,null,null,null,null,"総武中央線","東船橋",15,null,null,null,null,null,null,null,null,null,null,2,null,2,null,null,null,null,1,4,3,null,18800000,null,595000,180000,null,1,104.6,null,null,null,null,null,2,null,null,null,null,null,null,null,null,null,null,null,null,null,null,null,null,null,null,null,3,1,null,1,1,null,null,50,100,104.6,3.4866666666666664,3,5,180,31.696969696969695,1521.4545454545453,3401.454545454545,5.2918537524053885E-2,52.3,1,90,14.599999999999994,"!",null,null,1,1,null,null,null,null,null,null,null,null,null,null,null,null,null,null,1,1,null,null,8,4.5999999999999996,null,null,null,null,null,null,null,null,null,null,null,null,null,null,null,null,null,null,null,null,null,null,null,null,null,null,null,null,null,null,null,null,null,null,null,null,null,null,null,null,null,null,null,null,null,null,null,null,null,null,null,null,null,null,null,null,null,null,null,null,null,null,null,null,null,null,null,null,null,null,null,null,null,"飯山満南小学校",600,8,1,"※司法書士は売主指定となります","※現在測量中のため面積に差異が生じる場合があります"]
[100098877547,1,1,1,"（株）東洋コーポレーション　","047-458-1121","袋",null,null,2,"2019-05-10","2019-05-11",null,null,"千葉県","船橋市","駿河台２丁目",null,null,null,null,null,"総武中央線","東船橋",15,null,null,null,null,null,null,null,null,null,null,2,null,2,null,null,null,null,1,4,3,null,17800000,null,457000,139000,null,1,128.85,null,null,null,null,null,2,null,null,null,null,null,null,null,null,null,null,null,null,null,null,null,null,null,null,null,3,1,null,1,1,null,null,50,100,128.85,4.2949999999999999,4,5,240,39.045454545454547,1874.1818181818182,3654.181818181818,6.567817693302816E-2,64.424999999999997,2,180,-51.150000000000006,"",null,null,1,1,null,null,null,null,null,null,null,null,null,null,null,null,null,null,1,1,null,null,8,4.5999999999999996,null,null,null,null,null,null,null,null,null,null,null,null,null,null,null,null,null,null,null,null,null,null,null,null,null,null,null,null,null,null,null,null,null,null,null,null,null,null,null,null,null,null,null,null,null,null,null,null,null,null,null,null,null,null,null,null,null,null,null,null,null,null,null,null,null,null,null,null,null,null,null,null,null,"飯山満南小学校",600,8,1,"※司法書士は売主指定となります","※現在測量中のため面積に差異が生じる場合があります"]
[100098877555,1,1,1,"（株）東洋コーポレーション　","047-458-1121","袋",null,null,2,"2019-05-10","2019-05-11",null,null,"千葉県","船橋市","駿河台２丁目",null,null,null,null,null,"総武中央線","東船橋",15,null,null,null,null,null,null,null,null,null,null,2,null,2,null,null,null,null,1,4,3,null,15800000,null,396000,120000,null,1,131.91,null,null,null,null,null,2,null,null,null,null,null,null,null,null,null,null,null,null,null,null,null,null,null,null,null,3,1,null,1,1,null,null,50,100,131.91,4.3970000000000002,4,5,240,39.972727272727276,1918.6909090909091,3498.6909090909094,6.8597085663209087E-2,65.954999999999998,2,180,-48.09,"",null,null,1,1,null,null,null,null,null,null,null,null,null,null,null,null,null,null,1,1,null,null,8,4.5999999999999996,null,null,null,null,null,null,null,null,null,null,null,null,null,null,null,null,null,null,null,null,null,null,null,null,null,null,null,null,null,null,null,null,null,null,null,null,null,null,null,null,null,null,null,null,null,null,null,null,null,null,null,null,null,null,null,null,null,null,null,null,null,null,null,null,null,null,null,null,null,null,null,null,null,"飯山満南小学校",600,8,1,"※司法書士は売主指定となります","※現在測量中のため面積に差異が生じる場合があります"]
[100098877799,1,1,1,"安財（株）　","03-5931-4860","星野",null,"hoshino@anzai-c.com",2,"2019-05-10","2019-05-10",null,null,"千葉県","柏市","大島田",null,null,null,"１３３－９",null,"常磐線","柏",null,null,null,null,null,null,null,4.8,null,null,null,1,null,2,null,null,null,null,2,null,null,null,29800000,null,307000,93000,null,1,321,null,null,null,null,null,null,null,null,null,null,null,null,null,null,null,null,null,null,null,null,null,null,null,null,null,null,null,null,1,12,null,null,60,200,642,21.4,21,5,1260,194.54545454545456,9338.181818181818,12318.181818181818,0.10228782287822878,192.6,6,540,102,"!",null,null,1,null,null,null,null,null,null,null,null,null,null,null,null,null,null,null,1,1,null,null,1]
[100098877868,1,1,1,"（株）サンヴィクトワール　","0476-37-5910",null,null,null,2,"2019-05-10",null,"2019-08-09",null,"千葉県","千葉市花見川区","幕張町３丁目","１１２４－１２",null,null,null,null,"総武中央線","幕張",10,null,null,null,null,null,null,null,null,null,null,2,null,3,201910,3,null,null,4,1,null,null,54800000,null,388000,118000,null,1,467.09,null,null,null,null,null,2,null,null,null,null,null,null,null,null,null,null,null,null,null,null,null,null,null,null,null,3,1,null,1,12,null,1,60,160,747.34400000000005,24.911466666666669,25,5,1500,226.46787878787882,10870.458181818183,16350.458181818183,9.1740548388302035E-2,280.25399999999996,9,810,-62.655999999999949,"",null,null,1,2,null,null,null,null,null,null,null,null,null,null,null,null,null,null,1,1,null,null,null,null,null,null,null,null,null,null,null,null,null,null,null,null,null,null,null,1]
[100098880226,1,1,1,"（株）飯田産業　松戸営業所　","047-360-8878",null,null,null,2,"2019-05-10","2019-05-10",null,null,"千葉県","市川市","八幡６丁目",null,null,null,"2002-06-14",null,"総武中央線","本八幡",18,1440,null,null,null,null,null,null,null,null,null,null,null,null,null,null,null,null,1,null,null,null,29800000,null,835000,253000,null,null,118.03,null,null,null,null,null,null,null,null,null,null,null,null,null,null,null,null,null,null,null,null,null,null,null,null,null,null,null,null,null,1,null,null,40,80,94.424000000000007,3.1474666666666669,3,5,180,28.613333333333337,1373.4400000000003,4353.4400000000005,4.1346613252967762E-2,47.212000000000003,1,90,4.4240000000000066,"!",null,null,null,null,null,null,null,null,null,null,null,null,null,null,null,null,null,null,5,1,null,null,7,3.5,1,null,null,3,4.3]
[100098880792,1,1,1,"ピーロネット（株）　","04-7128-8855",null,null,null,2,"2019-05-10",null,null,null,"千葉県","流山市","美田",null,null,null,null,null,"つくばＥＸ","流山おおたかの森",18,null,null,null,null,null,null,null,null,null,null,1,null,1,null,null,null,null,2,null,null,null,25000000,null,574000,174000,null,1,144.07,null,null,null,null,null,2,null,null,null,null,null,null,null,null,null,null,null,null,null,null,null,null,null,null,null,null,1,null,1,1,null,null,60,150,216.10499999999999,7.2035,7,5,420,65.486363636363635,3143.3454545454547,5643.3454545454551,7.4423939378318468E-2,86.441999999999993,2,180,36.10499999999999,"!",null,null,1,2,null,null,null,null,null,null,null,null,null,null,null,null,null,null,5,1,null,null,4,6,1,null,null,2,4.5,null,null,null,null,null,null,null,null,null,null,1,null,null,null,null,null,null,null,null,null,null,null,null,null,null,null,null,null,null,null,null,null,null,null,null,null,null,null,null,null,null,null,null,null,null,null,null,null,null,null,null,null,null,null,null,null,null,null,null,null,null,null,null,null,null,null,null,null,null,null,null,null,"建築条件なし"]
[100098880875,1,1,1,"（株）雅エステート　","04-7142-2788",null,null,null,2,"2019-05-10",null,null,null,"千葉県","野田市","山崎梅の台",null,null,null,null,null,"東武野田線","梅郷",17,null,null,null,null,null,null,null,null,null,null,1,null,2,null,null,null,null,1,9,3,null,8400000,null,167000,51000,null,2,166.3,null,null,null,null,null,null,null,null,null,null,null,null,null,null,null,null,null,null,null,null,null,null,null,null,null,null,1,null,1,1,null,1,50,100,166.3,5.5433333333333339,6,5,360,50.393939393939398,2418.909090909091,3258.909090909091,0.11046641374693149,83.15,2,180,-13.699999999999989,"",null,null,1,2,null,null,null,null,null,null,null,null,null,null,null,null,null,null,1,1,2.7,null,6,6,null,null,null,null,null,null,null,null,null,null,null,null,null,null,null,1]
[100098881808,1,1,1,"住宅情報館（株）　柏店","04-7193-1500",null,null,null,2,"2019-05-10","2019-05-11","2019-08-09",null,"千葉県","柏市","高柳",null,null,null,null,null,"東武野田線","高柳",23,null,null,null,null,null,null,null,null,null,null,1,null,2,null,null,null,null,5,1,null,null,10000000,null,187000,57000,null,1,177,null,null,null,null,null,2,null,null,null,0,null,null,null,null,null,null,null,null,null,null,null,null,null,null,null,null,4,null,2,null,null,1,50,100,177,5.9,6,5,360,53.63636363636364,2574.5454545454545,3574.5454545454545,0.10071210579857579,88.5,2,180,-3,"",null,null,1,2,null,null,null,null,null,null,null,null,null,null,null,null,null,null,1,1,12,null,null,6,null,null,null,null,null,null,null,null,null,null,null,null,null,null,null,1]
[100098882968,1,1,1,"（同）クラウド　","0475-20-5005",null,null,null,2,"2019-05-10",null,null,null,"千葉県","茂原市","早野","３９－３他",null,null,null,null,"外房線","茂原",37,2900,null,null,null,null,null,null,null,null,null,null,null,1,null,null,null,null,1,9,3,60000,5900000,null,69000,21000,null,2,285.66000000000003,null,null,null,null,null,2,null,null,null,null,null,null,null,null,null,null,null,null,null,null,null,null,null,null,null,null,1,null,3,99,null,1,60,200,571.32000000000005,19.044,19,5,1140,173.12727272727275,8310.1090909090908,8900.1090909090908,0.12808831760999864,171.39600000000002,5,450,121.32000000000005,"!",null,null,1,null,null,null,null,null,null,null,null,null,null,null,null,null,null,null,null,1,13.5,null,1,6]
[100098883028,1,1,1,"（株）アルカンジュ不動産　","043-310-5642",null,null,null,2,"2019-05-10",null,null,null,"千葉県","千葉市中央区","椿森３丁目",null,null,null,null,null,"総武線","東千葉",10,null,null,null,null,null,null,null,null,null,null,1,null,1,null,null,null,null,1,null,null,null,26500000,null,660000,200000,null,1,132.78,null,null,null,null,null,1,null,null,null,null,null,null,null,null,null,null,null,null,null,null,null,null,null,null,null,3,1,null,1,11,null,1,60,160,212.44800000000001,7.0815999999999999,7,5,420,64.378181818181829,3090.1527272727276,5740.1527272727271,7.3168784866034606E-2,79.667999999999992,2,180,32.448000000000008,"!",null,null,1,2,null,null,null,null,null,null,null,null,null,null,null,null,null,null,1,2,null,null,null,null,null,null,null,null,null,null,null,null,null,null,null,null,null,null,null,1]
[100098883034,1,1,1,"東海住宅（株）鎌ヶ谷支店　","047-446-3011",null,null,null,2,"2019-05-10",null,null,null,"千葉県","白井市","神々廻",null,null,null,null,null,"北総線","小室",44,null,null,null,null,null,null,null,null,null,null,null,null,1,null,null,null,null,3,1,null,null,19800000,null,27000,9000,null,1,2444,null,null,null,null,null,2,null,null,null,0,null,null,null,null,null,null,null,null,2,null,null,null,null,null,null,3,4,5,2,99,null,13,null,null,2444,81.466666666666669,81,5,4860,740.60606060606062,35549.090909090904,37529.090909090904,0.12949953975098108,1466.3999999999999,48,4320,-1876,"",null,null,1,null,null,null,null,null,null,null,null,null,null,null,null,null,null,null,1,1,13.7,2,null,5.5,null,null,null,null,null,null,null,null,null,null,null,null,null,null,null,1,null,null,null,null,null,null,null,null,null,null,null,null,null,null,null,null,null,null,null,null,null,null,null,null,null,null,null,null,null,null,null,null,null,null,null,null,null,null,null,null,null,null,null,null,null,null,null,null,null,null,null,null,null,null,null,null,null,null,null,null,null,null,null,null,1]
[100098883117,1,1,1,"（株）三栄地所　","03-5875-4567",null,null,null,2,"2019-05-10","2019-05-10",null,null,"千葉県","船橋市","東船橋７丁目","2019-12-06",null,null,null,null,"総武中央線","東船橋",13,null,null,null,null,null,null,null,null,null,null,1,null,2,null,null,null,null,1,null,3,1044000,29800000,null,501000,152000,null,2,197.02,null,null,null,null,null,2,null,null,null,2,null,null,null,null,null,null,null,null,null,null,null,null,null,null,null,null,1,null,1,1,null,null,40,80,157.61600000000001,5.2538666666666671,5,5,300,47.762424242424252,2292.596363636364,5272.596363636364,5.6897964363253152E-2,78.808000000000007,2,180,-22.383999999999986,"",null,null,null,1,null,null,null,null,null,null,null,null,null,null,null,null,null,null,5,1,2,null,5,3.4,null,null,null,null,null,null,null,null,null,null,null,null,null,null,null,1,null,null,null,null,null,null,null,null,null,null,null,null,null,null,null,null,null,null,null,null,null,null,null,null,null,null,null,null,null,null,null,null,null,null,null,null,null,null,null,null,null,null,null,null,null,null,null,null,null,null,null,null,null,null,null,null,null,"宮本小学校",60,1,1,"工務店：建築工房　櫓"]
[100098883510,1,1,1,"（有）クサノ　成田支店","0476-37-3480",null,null,null,2,"2019-05-10","2019-05-12",null,null,"千葉県","成田市","滑川",null,null,null,null,null,"成田線","滑河",16,null,null,null,null,null,null,null,null,null,null,1,null,null,null,null,null,null,4,null,null,null,10000000,null,29000,9000,null,1,1140.6400000000001,null,null,null,null,null,null,null,null,null,null,null,null,null,null,null,null,null,null,null,null,null,null,null,null,null,null,null,null,null,null,null,null,null,null,1140.6400000000001,38.021333333333338,38,5,2280,345.64848484848488,16591.127272727274,17591.127272727274,0.12961079552501673,684.38400000000001,22,1980,-839.3599999999999,""]
[100098883555,1,1,1,"大里綜合管理（株）　","0475-72-3473","白１２０",null,null,2,"2019-05-10",null,null,null,"千葉県","長生郡白子町","関","6973-01-01",null,null,null,null,"外房線","新茂原",88,7000,null,null,null,null,null,null,null,null,null,1,null,2,null,null,null,null,5,1,null,null,25000000,null,29000,9000,null,1,2927,null,null,null,null,null,null,null,null,null,null,null,null,null,null,null,null,null,null,null,null,null,null,null,null,null,null,3,null,3,99,null,null,60,200,5854,195.13333333333333,195,5,11700,1773.939393939394,85149.090909090912,87649.090909090912,0.13348683801107722,1756.2,58,5220,634,"!",null,null,1,null,null,null,null,null,null,null,null,null,null,null,null,null,null,null,1,1,28.9,null,5,7.6,null,null,null,null,null,null,null,null,null,null,null,null,null,null,null,1]
[100098883566,1,1,1,"東海住宅（株）鎌ヶ谷支店　","047-446-3011",null,null,null,2,"2019-05-10",null,null,null,"千葉県","千葉市若葉区","大宮台３丁目",null,null,null,null,null,"総武線","千葉",null,null,30,null,null,2,null,null,null,null,null,2,null,1,null,null,null,null,3,1,null,null,5800000,null,89000,27000,null,1,217.22,null,null,null,null,null,2,null,null,null,0,null,null,null,null,null,null,null,null,2,null,null,null,null,null,null,3,1,null,1,1,null,1,50,100,217.22,7.2406666666666668,7,5,420,65.824242424242428,3159.5636363636363,3739.5636363636363,0.11231256928372781,108.61,3,270,-52.78,"",null,null,2,2,null,null,null,null,null,null,null,null,null,null,null,null,null,null,5,1,null,2,null,null,null,null,null,null,null,null,null,null,null,null,null,null,null,null,null,1]
[100098883701,1,1,1,"三井不動産リアルティ（株）三井のリハウス松戸センター　","047-361-4131",null,null,null,2,"2019-05-10","2019-05-11",null,null,"千葉県","松戸市","小金原５丁目",null,null,null,null,null,"常磐緩行線","馬橋",29,null,null,null,null,null,null,null,null,null,null,2,null,2,null,null,null,null,4,null,null,null,32800000,null,438000,133000,null,1,248,null,null,null,null,null,null,null,null,null,null,null,null,null,null,null,null,null,null,null,null,null,null,null,null,null,3,1,null,1,1,null,null,50,100,248,8.2666666666666675,8,5,480,75.151515151515156,3607.272727272727,6887.272727272727,6.9693769799366423E-2,124,4,360,-112,"",null,null,null,2,null,null,null,null,null,null,null,null,null,null,null,null,null,null,1,1,13.1,2,6,8,null,null,null,null,null,null,null,null,null,null,null,null,null,null,null,1,null,null,null,null,null,null,null,null,null,null,null,null,null,null,null,null,null,null,null,null,null,null,null,null,null,null,null,null,null,null,null,null,null,null,null,null,null,null,null,null,null,null,null,null,null,null,null,null,null,null,null,null,null,null,null,null,null,"ゆうちょ銀行松戸店",470,6,1,"Ｆ７４Ｗ４Ａ２１　古家有り"]
[100098885582,1,1,1,"ライフトラスト（株）　","043-312-0912","一ノ関　進也","043-312-0912",null,2,"2019-05-10",null,null,null,"千葉県","千葉市若葉区","源町",null,null,null,null,null,"総武中央線","西千葉",null,null,13,null,null,2,null,null,null,null,null,1,null,2,null,null,null,null,4,null,null,null,11400000,null,174000,53000,null,1,217,null,null,null,null,null,null,null,null,null,null,null,null,null,null,null,null,null,null,null,null,null,null,null,null,null,null,null,null,2,99,null,null,50,100,{"$f":"IF(ISBLANK(CI195),100,CI195)/100*BA195","v":217},{"$f":"CJ195/30","v":7.2333333333333334},{"$f":"ROUND(CK195,0)","v":7},5,{"$f":"CM195*12*CL195","v":420},{"$f":"CJ195/3.3","v":65.757575757575765},{"$f":"CO195*40*1.2","v":3156.3636363636365},{"$f":"CP195+(AU195/10000)","v":4296.363636363636},{"$f":"CN195/CQ195","v":9.7757088446889559E-2},{"$f":"IF(ISBLANK(CH195),60,CH195)/100*BA195","v":108.5},{"$f":"ROUNDDOWN((CS195/30),0)","v":3},{"$f":"CT195*30*3","v":270},{"$f":"CJ195-CU195","v":-53},{"$f":"IF(CV195>0, \"!\",\"\")","v":""},null,null,null,null,null,null,null,null,null,null,null,null,null,null,null,null,null,null,5,null,null,null,5,3.8,2,null,null,1,3.9]
[100098885656,1,1,1,"ライフトラスト（株）　","043-312-0912","藤澤　敏行","043-312-0912",null,2,"2019-05-10",null,null,null,"千葉県","千葉市中央区","村田町",null,null,null,null,null,"内房線","浜野",14,null,null,null,null,null,null,null,null,null,null,2,null,1,null,null,null,null,4,1,null,null,11000000,null,198000,60000,null,1,183.92,null,null,null,null,null,null,null,null,null,null,null,null,null,null,null,null,null,null,null,null,null,null,null,null,null,3,1,null,1,12,null,null,60,200,367.84,12.261333333333333,12,5,720,111.46666666666667,5350.4000000000005,6450.4000000000005,0.11162098474513207,110.35199999999999,3,270,97.839999999999975,"!"]
[100098885693,1,1,1,"ライフトラスト（株）　","043-312-0912","船津　泰彦","043-312-0912",null,2,"2019-05-10",null,null,null,"千葉県","千葉市稲毛区","長沼町",null,null,null,null,null,"千葉モノレ","スポーツセンター",25,null,null,null,null,null,null,null,"稲毛駅よりバス便有り",null,null,1,null,2,null,null,null,null,4,null,null,null,6500000,null,301000,91000,null,1,71.47,null,null,null,null,null,null,null,null,null,null,null,null,null,null,null,null,null,null,null,null,null,null,null,null,null,null,1,null,1,1,null,1,60,150,107.205,3.5735000000000001,4,5,240,32.486363636363635,1559.3454545454545,2209.3454545454542,0.10862945833401914,42.881999999999998,1,90,17.204999999999998,"!",null,null,1,2,null,null,null,null,null,null,null,null,null,null,null,null,null,null,1,2,null,null,null,4,null,null,null,null,null,null,null,null,null,null,null,null,null,null,null,1,null,null,null,null,null,null,null,null,null,null,null,null,null,null,null,null,null,null,null,null,null,null,null,null,null,null,null,null,null,null,null,null,null,null,null,null,null,null,null,null,null,null,null,null,null,null,null,null,null,null,null,null,null,null,null,null,null,"閑静な住宅地"]
[100098885737,1,1,1,"ライフトラスト（株）　","043-312-0912","藤澤　敏行","043-312-0912",null,2,"2019-05-10",null,null,null,"千葉県","佐倉市","上志津原",null,null,null,"2019-03-16",null,"京成本線","志津",22,null,null,null,null,null,null,null,null,null,null,2,null,2,null,null,null,null,4,null,null,null,10800000,null,108000,33000,null,1,332,null,null,null,null,null,null,null,null,null,null,null,null,null,null,null,null,null,null,null,null,null,null,null,null,null,null,null,null,2,null,null,null,50,100,332,11.066666666666666,11,5,660,100.60606060606061,4829.090909090909,5909.090909090909,0.11169230769230769,166,5,450,-118,"",null,null,null,2,null,null,null,null,null,null,null,null,null,null,null,null,null,null,1,1,null,null,8,7.5]
[100098886136,1,1,1,"（株）アセットインベスター　","03-3552-2103","呉原","03-3552-2103",null,2,"2019-05-10",null,null,null,"千葉県","千葉市中央区","弁天３丁目","2019-05-10",null,null,"Ａ区画",null,"総武線","千葉",9,700,null,null,null,null,null,null,null,null,null,1,null,1,null,null,null,null,1,null,null,null,37600000,null,1181000,358000,null,2,105.26,null,null,null,null,null,2,null,null,null,0,null,null,null,null,null,null,null,null,2,null,null,null,null,null,null,null,1,1,1,12,null,1,60,200,210.52,7.0173333333333341,7,5,420,63.793939393939404,3062.1090909090913,6822.1090909090908,6.1564538825636436E-2,63.155999999999999,2,180,30.52000000000001,"!",null,null,5,2,null,null,null,null,null,null,null,null,null,null,null,null,null,null,1,1,10.1,2,1,4,null,null,null,null,null,null,null,null,null,null,null,null,null,null,null,1]
[100098886364,1,1,1,"（株）デザイン工房みらい　","0436-63-5955","鵜川","070-6969-5935","d-mirai@oboe.ocn.ne.jp",2,"2019-05-11","2019-05-11",null,null,"千葉県","市原市","今津朝山","１７９－１",null,null,null,null,"内房線","姉ヶ崎",null,null,4,null,"姉崎新田",3,240,null,null,null,null,1,null,2,null,null,null,null,4,1,null,null,21000000,null,140000,43000,null,1,499,null,null,null,null,null,null,null,null,null,null,null,null,null,null,null,null,null,null,null,null,null,null,null,null,null,null,2,null,1,1,null,1,30,50,249.5,8.3166666666666664,8,5,480,75.606060606060609,3629.0909090909095,5729.0909090909099,8.3782926055220558E-2,149.69999999999999,4,360,-110.5,"",null,null,null,null,null,null,null,null,null,null,null,null,null,null,null,null,null,null,null,1,11.5,null,6,10.1,1,11.5,null,2,5.8,null,null,null,null,null,null,null,null,null,null,null,null,null,null,null,null,null,null,null,null,null,null,null,null,null,null,null,null,null,null,null,null,null,null,null,null,null,null,null,null,null,null,null,null,null,null,null,null,null,null,null,null,null,null,null,null,null,null,null,null,null,null,null,null,null,null,null,null,null,null,null,null,null,"要農地法届出"]
[100098888497,1,1,1,"三井不動産リアルティ（株）三井のリハウス綾瀬センター　","03-5697-3131",null,null,null,2,"2019-05-11","2019-05-11",null,null,"千葉県","松戸市","上本郷",null,null,null,null,null,"常磐緩行線","北松戸",15,1187,null,null,null,null,null,null,null,null,null,2,null,2,null,null,null,null,4,null,null,null,46800000,null,646000,196000,null,1,239.53,null,null,null,null,null,null,null,null,null,null,null,null,null,null,null,null,null,null,null,null,null,null,null,null,null,3,1,1,1,1,null,null,50,100,239.53,7.9843333333333337,8,5,480,72.584848484848493,3484.0727272727277,8164.0727272727272,5.8794184720638541E-2,119.765,3,270,-30.47,"",null,null,2,2,null,null,null,null,null,null,null,null,null,null,null,null,null,null,1,1,13.8,2,7,5,null,null,null,null,null,null,null,null,null,null,null,null,null,null,null,1,null,null,null,null,null,null,null,null,null,null,null,null,null,null,null,null,null,null,null,null,null,null,null,null,null,null,null,null,null,null,null,null,null,null,null,null,null,null,null,null,null,null,null,null,null,null,null,null,null,null,null,null,null,null,null,null,null,"ファミリーマート専大松戸高校前店",290,4,1,"ＦＥ６Ｗ４Ａ１Ｄ　古家有り"]
[100098888906,1,1,1,"南総土地建物（株）　","0475-24-2410",null,null,null,2,"2019-05-11","2019-05-11",null,null,"千葉県","茂原市","中部","１９―４",null,null,null,null,"外房線","茂原",null,null,null,null,null,null,null,3,null,null,null,1,null,1,null,null,null,null,4,1,null,null,6700000,null,80000,24000,null,1,280.08,null,null,null,null,null,null,null,null,null,null,null,null,null,null,null,null,null,null,null,null,null,null,null,null,null,null,4,null,3,1,null,1,50,100,280.08,9.3360000000000003,9,5,540,84.872727272727275,4073.8909090909092,4743.8909090909092,0.1138306108526181,140.04,4,360,-79.920000000000016,"",null,null,null,null,null,null,null,null,null,null,null,null,null,null,null,null,null,null,1,1,15.5,null,1,6,null,null,null,null,null,null,null,null,null,null,null,null,null,null,null,1]
[100098890420,1,1,1,"（株）サンアイク不動産　","0475-47-2323",null,null,null,3,"2019-05-11",null,null,null,"千葉県","茂原市","庄吉",null,null,null,null,null,"外房線","茂原",null,null,14,null,null,2,null,null,null,null,null,1,null,2,null,null,null,null,5,1,null,null,40000000,null,66000,20000,null,1,2010.44,null,null,null,null,null,null,null,null,null,null,null,null,null,null,null,null,null,null,null,null,null,null,null,null,null,null,1,null,3,99,null,null,60,200,4020.88,134.02933333333334,134,5,8040,1218.4484848484849,58485.527272727268,62485.527272727268,0.12866979524567726,1206.2639999999999,40,3600,420.88000000000011,"!",null,null,null,null,null,null,null,null,null,null,null,null,null,null,null,null,null,null,3,1,null,null,5,9,null,null,null,null,null,null,null,null,null,null,null,null,null,null,null,null,null,null,null,null,null,null,null,null,null,null,null,null,null,null,null,null,null,null,null,null,null,null,null,null,null,null,null,null,null,null,null,null,null,null,null,null,null,null,null,null,null,null,null,null,null,null,null,null,null,null,null,null,null,null,null,null,null,null,null,null,null,"※上水引込済み","※都市ガス引込済み"]
[100098891592,1,1,1,"（株）ライフ東京　","03-5817-8980","代",null,null,2,"2019-05-11",null,null,null,"千葉県","松戸市","大谷口",null,null,null,null,null,"常磐緩行線","北小金",10,null,null,null,null,null,null,null,null,null,null,1,null,2,null,null,null,null,3,null,null,null,6500000,null,347000,105000,null,null,62,null,null,null,null,null,null,null,null,null,null,null,null,null,null,null,null,null,null,null,null,null,null,null,null,null,null,null,null,1,null,null,null,null,null,62,2.0666666666666669,2,5,120,18.787878787878789,901.81818181818176,1551.8181818181818,7.7328646748681895E-2,37.199999999999996,1,90,-28,""]
[100098891894,1,1,1,"（株）ライフ東京　","03-5817-8980","代",null,null,2,"2019-05-11",null,null,null,"千葉県","柏市","東台本町",null,null,null,null,null,"常磐線","柏",19,null,null,null,null,null,null,null,null,null,null,1,null,2,null,null,null,null,3,1,null,null,11000000,null,237000,72000,null,1,153.49,null,null,null,null,null,null,null,null,null,null,null,null,null,null,null,null,null,null,null,null,null,null,null,null,null,null,null,null,1,null,null,null,null,null,153.49,5.1163333333333334,5,5,300,46.512121212121215,2232.5818181818181,3332.5818181818181,9.0020295484800214E-2,92.094000000000008,3,270,-116.50999999999999,""]
[100098892865,1,1,1,"（株）モカ　","03-6418-2594","相川","03-6418-2594","aikawa@mostcasa.com",2,"2019-05-11",null,null,null,"千葉県","大網白里市","北今泉","３４９０－２６",null,null,null,null,"東金線","大網",null,null,null,null,null,null,null,12,null,null,null,1,null,2,null,null,null,null,4,1,null,null,32000000,null,31000,10000,null,1,3427.16,null,null,null,null,null,2,null,null,null,0,null,null,null,null,null,null,null,null,null,null,null,null,null,null,null,null,1,null,1,12,null,8,60,200,6854.32,228.47733333333332,228,5,13680,2077.0666666666666,99699.199999999983,102899.19999999998,0.13294564000497577,2056.2959999999998,68,6120,734.31999999999971,"!",null,null,1,2,null,null,null,null,null,null,null,null,null,null,null,null,null,null,5,1,5.6,2,2,7.1,1,2.2000000000000002,2,5,4.5,null,null,null,null,null,null,null,null,null,null,1]
[100098892870,1,1,1,"（株）モカ　","03-6418-2594","相川","03-6418-2594","aikawa@mostcasa.com",2,"2019-05-11",null,null,null,"千葉県","船橋市","田喜野井５丁目","１６―１",null,null,null,null,"新京成線","薬園台",7,null,null,null,null,null,null,null,null,null,null,2,null,2,null,null,null,null,5,1,null,null,8500000,null,258000,78000,null,1,109,null,null,null,null,null,1,23,null,null,null,null,null,null,null,null,null,null,null,null,null,null,null,null,null,null,null,1,null,1,11,null,1,60,200,218,7.2666666666666666,7,5,420,66.060606060606062,3170.909090909091,4020.909090909091,0.10445399050418268,65.399999999999991,2,180,38,"!",null,null,4,2,null,null,null,null,null,null,null,null,null,null,null,null,null,null,1,2,9,1,8,4,null,null,null,null,null,null,null,null,null,null,null,null,null,null,null,1]
[100098893021,1,1,1,"（有）ラックス　","04-7179-5854","辻井",null,null,2,"2019-05-11",null,null,null,"千葉県","柏市","宿連寺","２３６－１１",null,null,null,null,"常磐緩行線","北柏",null,null,10,null,"コープタウン前",4,null,null,null,null,null,1,null,1,null,null,null,null,1,4,3,null,12800000,null,202000,61000,null,1,209.9,null,null,null,null,null,1,8.19,null,null,null,null,null,null,null,null,null,null,null,null,null,null,null,null,null,null,null,1,null,1,11,null,1,60,200,419.8,13.993333333333334,14,5,840,127.21212121212122,6106.1818181818189,7386.1818181818189,0.11372587632926348,125.94,4,360,59.800000000000011,"!",null,null,null,2,null,null,null,null,null,null,null,null,null,null,null,null,null,null,1,1,null,null,1,4,null,null,null,null,null,null,null,null,null,null,null,null,null,null,null,1]
[100098893184,1,1,1,"ホームファクトリー（株）　","043-268-7887",null,null,null,2,"2019-05-11",null,null,null,"千葉県","千葉市稲毛区","宮野木町",null,null,null,null,null,null,null,null,null,null,null,null,null,null,null,null,null,null,1,null,null,null,null,null,null,1,9,null,null,16800000,null,348000,106000,null,1,159.75,null,null,null,null,null,2,null,null,null,null,null,null,null,null,null,null,null,null,null,null,null,null,null,null,null,null,null,null,null,null,null,null,null,null,159.75,5.3250000000000002,5,5,300,48.409090909090914,2323.6363636363635,4003.6363636363635,7.4931880108991822E-2,95.85,3,270,-110.25,""]
[100098893290,1,1,1,"（株）ゆりのきハウジング　","047-487-8882",null,null,null,2,"2019-05-11",null,null,null,"千葉県","八千代市","大和田新田",null,null,null,null,null,"東葉高速線","八千代中央",11,null,null,null,null,null,null,null,null,null,null,1,null,2,null,null,null,null,4,null,null,null,17800000,null,408000,124000,null,1,144.24,null,null,null,null,null,2,null,null,null,null,null,null,null,null,null,null,null,null,null,null,null,null,null,null,null,null,4,null,1,1,null,1,60,150,216.36,7.2120000000000006,7,5,420,65.563636363636377,3147.0545454545459,4927.0545454545463,8.5243627024074856E-2,86.543999999999997,2,180,36.360000000000014,"!",null,null,1,2,null,null,null,null,null,null,null,null,null,null,null,null,null,null,5,1,12.5,null,8,6]
[100098893927,1,1,1,"（株）新昭和リビンズ　房総移住センター金田店　","0438-40-1055",null,null,null,2,"2019-05-11","2019-05-12",null,null,"千葉県","袖ケ浦市","長浦駅前８丁目","2019-07-13",null,null,null,null,"内房線","長浦",19,1500,null,null,null,null,null,null,null,null,null,1,null,2,null,null,null,null,4,1,null,null,12500000,null,207000,63000,null,1,200,null,null,null,null,null,null,null,null,null,null,null,null,null,null,null,null,null,null,null,null,null,null,null,null,null,null,3,null,1,1,null,1,50,100,200,6.666666666666667,7,5,420,60.606060606060609,2909.0909090909095,4159.0909090909099,0.10098360655737702,100,3,270,-70,"",null,null,null,null,null,null,null,null,null,null,null,null,null,null,null,null,null,null,null,1,12.6,null,8,6,null,null,null,null,null,null,null,null,null,null,null,null,null,null,null,null,null,null,null,null,null,null,null,null,null,null,null,null,null,null,null,null,null,null,null,null,null,null,null,null,null,null,null,null,null,null,null,null,null,null,null,null,null,null,null,null,null,null,null,null,null,null,null,null,null,null,null,null,null,null,null,null,null,null,null,null,null,null,"現況のまま引渡し。農地法第５条届出要。"]
[100098893953,1,1,1,"サンコー住宅産業（株）　","047-485-5595",null,null,null,2,"2019-05-11","2019-05-13",null,null,"千葉県","八千代市","萱田町",null,null,null,null,null,"東葉高速線","八千代中央",13,1040,null,null,null,null,null,null,null,null,null,1,null,2,null,null,null,null,4,1,null,null,21000000,null,426000,129000,null,1,163,null,null,null,null,null,null,null,null,null,null,null,null,null,null,null,null,null,null,null,null,null,null,null,null,null,null,2,null,1,1,null,1,60,150,244.5,8.15,8,5,480,74.090909090909093,3556.3636363636365,5656.363636363636,8.4860173577627776E-2,97.8,3,270,-25.5,"",null,null,1,null,null,null,null,null,null,null,null,null,null,null,null,null,null,null,5,1,null,null,1,6,1,null,null,4,5.5,null,null,null,null,null,null,null,null,null,null,null,null,null,null,null,null,null,null,null,null,null,null,null,null,null,null,null,null,null,null,null,null,null,null,null,null,null,null,null,null,null,null,null,null,null,null,null,null,null,null,null,null,null,null,null,null,null,null,null,null,null,null,null,null,null,null,null,null,null,null,null,null,null,"閑静な住宅街　北東角地　建築条件なし"]
[100098895932,1,1,1,"湖北土地（株）　","04-7188-0527",null,null,null,2,"2019-05-11",null,"2019-08-10",null,"千葉県","我孫子市","古戸",null,null,null,null,null,"成田線","湖北",20,null,null,null,null,null,null,null,null,null,null,1,null,2,null,null,null,null,4,1,null,null,5500000,null,116000,35000,null,1,158,null,null,null,null,null,2,null,null,null,null,null,null,null,null,null,null,null,null,null,null,null,null,null,null,null,3,3,null,1,1,null,1,60,150,237,7.9,8,5,480,71.818181818181827,3447.2727272727275,3997.2727272727275,0.12008187400500341,94.8,3,270,-33,"",null,null,1,2,null,null,null,null,null,null,null,null,null,null,null,null,null,null,1,1,12.7,null,7,4.5,null,null,null,null,null,null,null,null,null,null,null,null,null,null,null,1]
[100098896280,1,1,1,"住宅情報館（株）　土浦店","029-825-0051","浜田","029-825-0051",null,2,"2019-05-11","2019-05-11","2019-08-10",null,"千葉県","印西市","高花６丁目",null,null,null,null,null,"北総線","千葉ニュータウン中央",43,3400,9,"千葉レインボーバス","高花近隣公園",3,null,null,null,null,null,1,null,2,null,null,null,null,5,1,null,null,20500000,null,191000,58000,null,1,355.42,null,null,null,null,null,2,null,null,null,null,null,null,null,null,null,null,null,null,null,null,null,null,null,null,null,null,1,null,1,1,null,1,40,80,284.33600000000001,9.4778666666666673,9,5,540,86.162424242424251,4135.7963636363638,6185.7963636363638,8.7296763141836958E-2,142.16800000000001,4,360,-75.663999999999987,"",null,null,1,2,null,null,null,null,null,null,null,null,null,null,null,null,null,null,1,1,16,null,7,6,null,null,null,null,null,null,null,null,null,null,null,null,null,null,null,1]
[100098896472,1,1,1,"（株）千葉東建設　","043-216-5550","佐々木・小沼",null,null,2,"2019-05-11",null,null,null,"千葉県","千葉市中央区","蘇我３丁目",null,null,null,null,null,"京葉線","蘇我",22,null,null,null,null,null,null,null,null,null,null,1,null,1,null,null,null,null,1,null,null,null,12000000,null,260000,79000,null,2,152.6,null,null,null,null,null,null,null,null,null,null,null,null,null,null,null,null,null,null,null,null,null,null,null,null,null,null,1,1,1,null,null,null,60,200,305.2,10.173333333333334,10,5,600,92.484848484848484,4439.272727272727,5639.272727272727,0.10639669847820481,91.559999999999988,3,270,35.199999999999989,"!"]
[100098896520,1,1,1,"（株）千葉東建設　","043-216-5550","佐々木・小沼",null,null,2,"2019-05-11",null,null,null,"千葉県","千葉市中央区","蘇我３丁目",null,null,null,null,null,"京葉線","蘇我",22,null,null,null,null,null,null,null,null,null,null,1,null,1,null,null,null,null,1,null,null,null,18000000,null,339000,103000,null,1,175.93,null,null,null,null,null,null,null,null,null,null,null,null,null,null,null,null,null,null,null,null,null,null,null,null,null,null,1,1,1,12,null,null,60,200,351.86,11.728666666666667,12,5,720,106.62424242424244,5117.9636363636373,6917.9636363636373,0.10407686970416936,105.55800000000001,3,270,81.860000000000014,"!"]
[100098896751,1,1,1,"住友不動産販売（株）　船橋営業センター","047-423-6321","飯島　弘樹","047-423-6321",null,2,"2019-05-11","2019-05-12",null,null,"千葉県","鎌ケ谷市","東中沢２丁目",null,null,null,null,null,"新京成線","北初富",10,800,null,null,null,null,null,null,null,null,null,2,null,2,null,null,null,null,3,1,null,null,7500000,null,167000,51000,null,1,148.76,null,null,null,null,null,2,null,null,null,null,null,null,null,null,null,null,null,null,null,null,null,null,null,null,null,3,1,1,1,1,null,null,60,150,223.14,7.4379999999999997,7,5,420,67.618181818181824,3245.6727272727276,3995.6727272727276,0.10511371392688452,89.255999999999986,2,180,43.139999999999986,"!",null,null,1,2,null,null,null,null,null,null,null,null,null,null,null,null,null,null,1,2,2.4,1,8,5,null,null,null,null,0,null,null,null,null,0,null,null,null,null,0,2,null,null,null,null,null,null,null,null,null,null,null,null,null,null,null,null,null,null,null,null,null,null,null,null,null,null,null,null,null,null,null,null,null,null,null,null,null,null,null,null,null,null,null,null,null,null,null,null,null,null,null,null,null,null,null,null,null,"鎌ケ谷市立鎌ヶ谷小学校",1300,17,1]
[100098897020,1,1,1,"三菱ＵＦＪ不動産販売（株）　柏センター","04-7144-9595","松本",null,null,2,"2019-05-11",null,"2019-07-24",null,"千葉県","柏市","根戸",null,null,null,null,null,"常磐緩行線","北柏",7,null,null,null,null,null,null,null,null,null,null,2,null,2,null,null,null,null,4,1,null,null,8000000,null,257000,78000,null,1,103.21,null,null,null,null,null,2,null,null,null,null,null,null,null,null,null,null,null,null,null,null,null,null,null,null,null,3,1,null,1,12,null,null,60,160,165.136,5.5045333333333328,6,5,360,50.041212121212119,2401.9781818181814,3201.9781818181814,0.11243049751062981,61.925999999999995,2,180,-14.864000000000004,"",null,null,1,2,null,null,null,null,null,null,null,null,null,null,null,null,null,null,2,1,null,null,2,3.7,null,null,null,null,null,null,null,null,null,null,null,null,null,null,null,null,null,null,null,null,null,null,null,null,null,null,null,null,null,null,null,null,null,null,null,null,null,null,null,null,null,null,null,null,null,null,null,null,null,null,null,null,null,null,null,null,null,null,null,null,null,null,null,null,null,null,null,null,null,null,null,null,null,null,null,null,null,null,"●地目：原野・宅地●現況地目：宅地"]
[100098897305,1,1,1,"三菱ＵＦＪ不動産販売（株）　柏センター","04-7144-9595","渡部",null,null,2,"2019-05-11",null,"2019-07-24",null,"千葉県","松戸市","西馬橋広手町",null,null,null,null,null,"常磐緩行線","馬橋",13,null,null,null,null,null,null,null,null,null,null,2,null,2,null,null,null,null,4,1,null,null,35800000,null,651000,197000,null,1,181.85,null,null,null,null,null,2,null,null,null,null,null,null,null,null,null,null,null,null,null,null,null,null,null,null,null,3,1,null,1,1,null,null,50,100,181.85,6.0616666666666665,6,5,360,55.106060606060609,2645.0909090909095,6225.0909090909099,5.7830480752380391E-2,90.924999999999997,3,270,-88.15,"",null,null,1,null,null,null,null,null,null,null,null,null,null,null,null,null,null,null,2,1,null,null,5,6,1,null,null,7,6]
[100098897764,1,1,1,"（株）千葉東建設　","043-216-5550","佐々木・小沼",null,null,2,"2019-05-11","2019-05-11",null,null,"千葉県","千葉市中央区","花輪町",null,null,null,null,null,"外房線","鎌取",null,null,5,null,null,5,null,null,null,null,null,1,null,1,null,null,null,null,1,null,null,null,168000000,null,337000,102000,null,1,1650.97,null,null,null,null,null,null,null,null,null,null,null,null,null,null,null,null,null,null,null,null,null,null,null,null,null,null,1,1,1,2,null,4,60,200,3301.94,110.06466666666667,110,5,6600,1000.5878787878788,48028.218181818178,64828.218181818178,0.10180751816268561,990.58199999999999,33,2970,331.94000000000005,"!"]
[100098898087,1,1,1,"（株）千葉東建設　","043-216-5550","佐々木　小沼",null,null,2,"2019-05-11",null,null,null,"千葉県","千葉市中央区","仁戸名町",null,null,null,null,null,"京成千原線","大森台",10,null,null,null,null,null,null,null,null,null,null,2,null,2,null,null,null,null,1,null,null,null,16800000,null,341000,104000,null,2,162.97999999999999,null,null,null,null,null,null,null,null,null,null,null,null,null,null,null,null,null,null,null,null,null,null,null,null,null,null,1,null,1,12,null,null,60,200,325.95999999999998,10.865333333333332,11,5,660,98.775757575757581,4741.2363636363634,6421.2363636363634,0.10278394418520365,97.787999999999997,3,270,55.95999999999998,"!",null,null,null,null,null,null,null,null,null,null,null,null,null,null,null,null,null,null,2,null,null,null,null,null,null,null,null,null,null,null,null,null,null,null,null,null,null,null,null,null,null,null,null,null,null,null,null,null,null,null,null,null,null,null,null,null,null,null,null,null,null,null,null,null,null,null,null,null,null,null,null,null,null,null,null,null,null,null,null,null,null,null,null,null,null,null,null,null,null,null,null,null,null,null,null,null,null,null,null,null,null,"更地引渡"]
[100098898094,1,1,1,"（株）千葉東建設　","043-216-5550",null,null,null,2,"2019-05-11",null,null,null,"千葉県","千葉市中央区","末広１丁目",null,null,null,null,null,"内房線","本千葉",7,null,null,null,null,null,null,null,null,null,null,1,null,1,null,null,null,null,1,null,null,null,480000000,null,1087000,329000,null,2,1460.18,null,null,null,null,null,null,null,null,null,null,null,null,null,null,null,null,null,null,null,null,null,null,null,null,null,null,1,null,1,4,null,null,null,null,1460.18,48.672666666666672,49,5,2940,442.4787878787879,21238.981818181819,69238.981818181812,4.2461629602241938E-2,876.10800000000006,29,2610,-1149.82,""]
[100098898100,1,1,1,"（株）千葉東建設　","043-216-5550",null,null,null,2,"2019-05-11",null,null,null,"千葉県","千葉市緑区","誉田町１丁目",null,null,null,null,null,"外房線","誉田",10,null,null,null,null,null,null,null,null,null,null,1,null,1,null,null,null,null,2,null,null,null,10990000,null,274000,83000,null,1,132.75,null,null,null,null,null,null,null,null,null,null,null,null,null,null,null,null,null,null,null,null,null,null,null,null,null,null,1,null,null,null,null,null,50,100,132.75,4.4249999999999998,4,5,240,40.227272727272727,1930.9090909090908,3029.909090909091,7.921029733865402E-2,66.375,2,180,-47.25,""]
[100098898106,1,1,1,"（株）千葉東建設　","043-216-5550",null,null,null,2,"2019-05-11",null,null,null,"千葉県","千葉市中央区","蘇我３丁目",null,null,null,null,null,"内房線","蘇我",22,null,null,null,null,null,null,null,null,null,null,1,null,1,null,null,null,null,1,null,null,null,72000000,null,251000,76000,null,2,951.07,null,null,null,null,null,null,null,null,null,null,null,null,null,null,null,null,null,null,null,null,null,null,null,null,null,null,1,null,1,null,null,null,60,200,1902.14,63.404666666666671,63,5,3780,576.40606060606069,27667.490909090913,34867.490909090913,0.10841043910660202,570.64200000000005,19,1710,192.1400000000001,"!"]
[100098898118,1,1,1,"（株）千葉東建設　","043-216-5550",null,null,null,2,"2019-05-11",null,null,null,"千葉県","千葉市緑区","誉田町１丁目",null,null,null,null,null,"外房線","誉田",11,null,null,null,null,null,null,null,null,null,null,1,null,1,null,null,null,null,2,null,null,null,8700000,null,154000,47000,null,2,187.84,null,null,null,null,null,null,null,null,null,null,null,null,null,null,null,null,null,null,null,null,null,null,null,null,null,null,1,null,1,12,null,null,50,100,187.84,6.2613333333333339,6,5,360,56.921212121212122,2732.2181818181821,3602.2181818181821,9.9938421780519066E-2,93.92,3,270,-82.16,"",null,null,null,null,null,null,null,null,null,null,null,null,null,null,null,null,null,null,1]
[100098898128,1,1,1,"（株）千葉東建設　","043-216-5550",null,null,null,2,"2019-05-11",null,null,null,"千葉県","千葉市中央区","川戸町",null,null,null,null,null,"総武中央線","千葉",null,null,26,null,null,2,null,null,null,null,null,1,null,1,null,null,null,null,2,null,null,null,10800000,null,261000,79000,null,1,137.19,null,null,null,null,null,null,null,null,null,null,null,null,null,null,null,null,null,null,null,null,null,null,null,null,null,null,4,1,1,1,null,null,50,100,137.19,4.5729999999999995,5,5,300,41.572727272727278,1995.4909090909091,3075.4909090909091,9.7545402951191823E-2,68.594999999999999,2,180,-42.81,""]
[100098898136,1,1,1,"（株）千葉東建設　","043-216-5550",null,null,null,2,"2019-05-11",null,null,null,"千葉県","千葉市中央区","葛城２丁目",null,null,null,null,null,"外房線","本千葉",16,null,null,null,null,null,null,null,null,null,null,1,null,1,null,null,null,null,2,null,null,null,18800000,null,357000,108000,null,1,174.42,null,null,null,null,null,null,null,null,null,null,null,null,null,null,null,null,null,null,null,null,null,null,null,null,null,null,1,null,1,null,null,null,60,200,348.84,11.627999999999998,12,5,720,105.7090909090909,5074.0363636363627,6954.0363636363627,0.10353699094312788,104.65199999999999,3,270,78.839999999999975,"!"]
[100098898140,1,1,1,"（株）千葉東建設　","043-216-5550",null,null,null,2,"2019-05-11",null,null,null,"千葉県","千葉市中央区","川戸町",null,null,null,null,null,"総武中央線","千葉",null,null,26,null,null,2,null,null,null,null,null,1,null,1,null,null,null,null,2,null,null,null,8900000,null,188000,57000,null,1,156.84,null,null,null,null,null,null,null,null,null,null,null,null,null,null,null,null,null,null,null,null,null,null,null,null,null,null,4,null,1,null,null,null,50,100,156.84,5.2279999999999998,5,5,300,47.527272727272731,2281.3090909090911,3171.3090909090911,9.4598158489181405E-2,78.42,2,180,-23.159999999999997,""]
[100098898299,1,1,1,"（株）千葉東建設　","043-216-5550",null,null,null,2,"2019-05-11",null,null,null,"千葉県","千葉市中央区","葛城２丁目",null,null,null,null,null,"外房線","本千葉",16,null,null,null,null,null,null,null,null,null,null,1,null,1,null,null,null,null,2,null,null,null,22800000,null,297000,90000,null,1,254,null,null,null,null,null,null,null,null,null,null,null,null,null,null,null,null,null,null,null,null,null,null,null,null,null,null,1,null,1,12,null,null,60,200,508,16.933333333333334,17,5,1020,153.93939393939394,7389.090909090909,9669.0909090909081,0.10549078600977813,152.4,5,450,58,"!"]
[100098898310,1,1,1,"（株）千葉東建設　","043-216-5550",null,null,null,2,"2019-05-11",null,null,null,"千葉県","千葉市緑区","刈田子町",null,null,null,null,null,"京成千原線","おゆみ野",8,null,null,null,null,null,null,null,null,null,null,1,null,1,null,null,null,null,2,null,null,null,15700000,null,301000,91000,null,1,172.79,null,null,null,null,null,null,null,null,null,null,null,null,null,null,null,null,null,null,null,null,null,null,null,null,null,null,1,1,2,null,null,null,null,null,172.79,5.759666666666666,6,5,360,52.360606060606059,2513.3090909090911,4083.3090909090911,8.8163788727502648E-2,103.67399999999999,3,270,-97.210000000000008,""]
[100098898333,1,1,1,"（株）千葉東建設　","043-216-5550",null,null,null,2,"2019-05-11",null,null,null,"千葉県","千葉市緑区","誉田町１丁目",null,null,null,null,null,"外房線","誉田",10,null,null,null,null,null,null,null,null,null,null,1,null,1,null,null,null,null,2,null,null,null,16400000,null,272000,83000,null,1,199.91,null,null,null,null,null,2,null,null,null,null,null,null,null,null,null,null,null,null,null,null,null,null,null,null,null,null,1,null,null,null,null,null,50,100,199.91,6.6636666666666668,7,5,420,60.578787878787878,2907.7818181818179,4547.7818181818184,9.2352715409710226E-2,99.954999999999998,3,270,-70.09,""]
[100098898341,1,1,1,"（株）千葉東建設　","043-216-5550",null,null,null,2,"2019-05-11",null,null,null,"千葉県","千葉市中央区","花輪町",null,null,null,null,null,"外房線","鎌取",null,null,5,null,null,5,null,null,null,null,null,1,null,1,null,null,null,null,1,null,null,null,12800000,null,310000,94000,null,1,136.88999999999999,null,null,null,null,null,null,null,null,null,null,null,null,null,null,null,null,null,null,null,null,null,null,null,null,null,null,1,null,1,2,null,null,60,200,273.77999999999997,9.1259999999999994,9,5,540,82.963636363636354,3982.2545454545448,5262.2545454545452,0.1026176129139256,82.133999999999986,2,180,93.779999999999973,"!",null,null,null,1,null,null,null,null,null,null,null,null,null,null,null,null,null,null,null,null,null,null,null,null,null,null,null,null,null,null,null,null,null,null,null,null,null,null,null,null,null,null,null,null,null,null,null,null,null,null,null,null,null,null,null,null,null,null,null,null,null,null,null,null,null,null,null,null,null,null,null,null,null,null,null,null,null,null,null,null,null,null,null,null,null,null,null,null,null,null,null,null,null,null,null,null,null,null,null,null,null,"建築条件（要相談）"]
[100098898345,1,1,1,"（株）千葉東建設　","043-216-5550",null,null,null,2,"2019-05-11",null,null,null,"千葉県","千葉市中央区","花輪町",null,null,null,null,null,"外房線","鎌取",null,null,5,null,null,5,null,null,null,null,null,1,null,1,null,null,null,null,1,null,null,null,11000000,null,270000,82000,null,1,135.06,null,null,null,null,null,null,null,null,null,null,null,null,null,null,null,null,null,null,null,null,null,null,null,null,null,null,1,null,1,2,null,null,60,200,270.12,9.0039999999999996,9,5,540,81.854545454545459,3929.0181818181818,5029.0181818181818,0.1073768239598548,81.036000000000001,2,180,90.12,"!",null,null,null,1,null,null,null,null,null,null,null,null,null,null,null,null,null,null,null,null,null,null,null,null,null,null,null,null,null,null,null,null,null,null,null,null,null,null,null,null,null,null,null,null,null,null,null,null,null,null,null,null,null,null,null,null,null,null,null,null,null,null,null,null,null,null,null,null,null,null,null,null,null,null,null,null,null,null,null,null,null,null,null,null,null,null,null,null,null,null,null,null,null,null,null,null,null,null,null,null,null,"建築条件（要相談）"]
[100098898386,1,1,1,"（株）千葉東建設　","043-216-5550",null,null,null,2,"2019-05-11",null,null,null,"千葉県","千葉市中央区","花輪町",null,null,null,null,null,"外房線","鎌取",null,null,5,null,null,5,null,null,null,null,null,1,null,1,null,null,null,null,1,null,null,null,12000000,null,298000,91000,null,1,133.16999999999999,null,null,null,null,null,null,null,null,null,null,null,null,null,null,null,null,null,null,null,null,null,null,null,null,null,null,1,null,1,2,null,null,60,200,266.33999999999997,8.8779999999999983,9,5,540,80.709090909090904,3874.0363636363631,5074.0363636363636,0.10642414860681115,79.901999999999987,2,180,86.339999999999975,"!",null,null,null,1,null,null,null,null,null,null,null,null,null,null,null,null,null,null,null,null,null,null,null,null,null,null,null,null,null,null,null,null,null,null,null,null,null,null,null,null,null,null,null,null,null,null,null,null,null,null,null,null,null,null,null,null,null,null,null,null,null,null,null,null,null,null,null,null,null,null,null,null,null,null,null,null,null,null,null,null,null,null,null,null,null,null,null,null,null,null,null,null,null,null,null,null,null,null,null,null,null,"建築条件（要相談）"]
[100098898401,1,1,1,"（株）千葉東建設　","043-216-5550",null,null,null,2,"2019-05-11",null,null,null,"千葉県","千葉市中央区","花輪町",null,null,null,null,null,"外房線","鎌取",null,null,5,null,null,5,null,null,null,null,null,1,null,1,null,null,null,null,1,null,null,null,10800000,null,271000,82000,null,1,132.11000000000001,null,null,null,null,null,null,null,null,null,null,null,null,null,null,null,null,null,null,null,null,null,null,null,null,null,null,1,null,1,2,null,null,60,200,264.22000000000003,8.8073333333333341,9,5,540,80.066666666666677,3843.2000000000003,4923.2000000000007,0.10968475788105296,79.266000000000005,2,180,84.220000000000027,"!",null,null,null,1,null,null,null,null,null,null,null,null,null,null,null,null,null,null,null,null,null,null,null,null,null,null,null,null,null,null,null,null,null,null,null,null,null,null,null,null,null,null,null,null,null,null,null,null,null,null,null,null,null,null,null,null,null,null,null,null,null,null,null,null,null,null,null,null,null,null,null,null,null,null,null,null,null,null,null,null,null,null,null,null,null,null,null,null,null,null,null,null,null,null,null,null,null,null,null,null,null,"建築条件（要相談）"]
[100098898416,1,1,1,"（株）千葉東建設　","043-216-5550",null,null,null,2,"2019-05-11",null,null,null,"千葉県","千葉市中央区","花輪町",null,null,null,null,null,"外房線","鎌取",null,null,5,null,null,5,null,null,null,null,null,1,null,1,null,null,null,null,1,null,null,null,10100000,null,250000,76000,null,1,133.91999999999999,null,null,null,null,null,null,null,null,null,null,null,null,null,null,null,null,null,null,null,null,null,null,null,null,null,null,1,null,1,2,null,null,60,200,267.83999999999997,8.927999999999999,9,5,540,81.163636363636357,3895.8545454545447,4905.8545454545447,0.11007256635856233,80.35199999999999,2,180,87.839999999999975,"!",null,null,null,1,null,null,null,null,null,null,null,null,null,null,null,null,null,null,null,null,null,null,null,null,null,null,null,null,null,null,null,null,null,null,null,null,null,null,null,null,null,null,null,null,null,null,null,null,null,null,null,null,null,null,null,null,null,null,null,null,null,null,null,null,null,null,null,null,null,null,null,null,null,null,null,null,null,null,null,null,null,null,null,null,null,null,null,null,null,null,null,null,null,null,null,null,null,null,null,null,null,"建築条件（要相談）"]
[100098898442,1,1,1,"（株）千葉東建設　","043-216-5550",null,null,null,2,"2019-05-11",null,null,null,"千葉県","千葉市中央区","川戸町",null,null,null,null,null,"総武中央線","千葉",null,null,26,null,null,2,null,null,null,null,null,1,null,1,null,null,null,null,2,null,null,null,8800000,null,217000,66000,null,1,134.32,null,null,null,null,null,null,null,null,null,null,null,null,null,null,null,null,null,null,null,null,null,null,null,null,null,null,4,null,1,null,null,null,null,null,134.32,4.4773333333333332,4,5,240,40.703030303030303,1953.7454545454543,2833.7454545454543,8.4693563289190033E-2,80.591999999999999,2,180,-45.680000000000007,""]
[100098898457,1,1,1,"（株）千葉東建設　","043-216-5550",null,null,null,2,"2019-05-11",null,null,null,"千葉県","市川市","国分６丁目",null,null,null,null,null,"総武線","市川",null,null,12,null,"道の駅いちかわ",2,null,null,null,null,null,1,null,1,null,null,null,null,1,null,null,null,13800000,null,515000,156000,null,1,88.69,null,null,null,null,null,null,null,null,null,null,null,null,null,null,null,null,null,null,null,null,null,null,null,null,null,null,1,null,1,12,null,null,60,160,141.904,4.7301333333333329,5,5,300,43.00121212121212,2064.0581818181818,3444.0581818181818,8.7106542387627287E-2,53.213999999999999,1,90,51.903999999999996,"!"]
[100098898471,1,1,1,"（株）千葉東建設　","043-216-5550",null,null,null,2,"2019-05-11",null,null,null,"千葉県","千葉市中央区","星久喜町",null,null,null,null,null,"京成千原線","大森台",13,null,null,null,null,null,null,null,null,null,null,1,null,1,null,null,null,null,2,null,null,null,9500000,null,276000,84000,null,1,114.12,null,null,null,null,null,null,null,null,null,null,null,null,null,null,null,null,null,null,null,null,null,null,null,null,null,null,1,null,1,1,null,null,60,150,171.18,5.7060000000000004,6,5,360,51.872727272727275,2489.8909090909092,3439.8909090909092,0.10465448164318107,68.471999999999994,2,180,-8.8199999999999932,""]
[100098898546,1,1,1,"（株）千葉東建設　","043-216-5550",null,"043-290-4155",null,2,"2019-05-11",null,null,null,"千葉県","大網白里市","季美の森南３丁目","2019-02-01",null,null,null,null,"外房線","大網",null,null,null,null,null,null,null,3.7,null,null,null,1,null,1,null,null,null,null,1,null,null,null,29700000,null,60000,19000,null,1,1637.43,null,null,null,null,null,2,null,null,null,null,null,null,null,null,null,null,null,null,null,null,null,null,null,null,null,3,1,null,1,12,null,4,60,200,3274.86,109.16200000000001,109,5,6540,992.38181818181829,47634.327272727278,50604.327272727278,0.12923795952771555,982.45799999999997,32,2880,394.86000000000013,"!",null,null,1,2,null,null,null,null,null,null,null,null,null,null,null,null,null,null,1,1,null,null,null,null,null,null,null,null,null,null,null,null,null,null,null,null,null,null,null,1]
[100098898563,1,1,1,"（株）千葉東建設　","043-216-5550",null,null,null,2,"2019-05-11",null,null,null,"千葉県","東金市","季美の森東１丁目","2019-01-03",null,null,"１－４、１－５、８８３－１２４",null,"外房線","大網",null,null,null,null,null,null,null,5.7,null,null,null,1,null,1,null,null,null,null,1,null,null,null,83600000,null,45000,14000,null,1,6145.8,null,null,null,null,null,2,null,null,null,null,null,null,null,null,null,null,null,null,null,null,null,null,null,null,null,1,1,null,1,3,null,4,60,200,12291.6,409.72,410,5,24600,3724.727272727273,178786.90909090909,187146.90909090909,0.1314475356258768,3687.48,122,10980,1311.6000000000004,"!",null,null,1,2,null,null,null,null,null,null,null,null,null,null,null,null,null,null,5,1]
[100098898627,1,1,1,"（株）千葉東建設　","043-216-5550",null,null,null,2,"2019-05-11",null,null,null,"千葉県","千葉市緑区","刈田子町",null,null,null,null,null,"京成千原線","おゆみ野",8,null,null,null,null,null,null,null,null,null,null,1,null,1,null,null,null,null,2,null,null,null,14500000,null,282000,86000,null,1,169.99,null,null,null,null,null,null,null,null,null,null,null,null,null,null,null,null,null,null,null,null,null,null,null,null,null,null,1,1,2,null,null,null,50,100,169.99,5.6663333333333332,6,5,360,51.512121212121215,2472.5818181818181,3922.5818181818181,9.1776288344411386E-2,84.995000000000005,2,180,-10.009999999999991,""]
[100098898640,1,1,1,"（株）千葉東建設　","043-216-5550",null,null,null,2,"2019-05-11",null,null,null,"千葉県","千葉市緑区","刈田子町",null,null,null,null,null,"京成千原線","おゆみ野",8,null,null,null,null,null,null,null,null,null,null,1,null,1,null,null,null,null,2,null,null,null,13800000,null,270000,82000,null,1,169.56,null,null,null,null,null,null,null,null,null,null,null,null,null,null,null,null,null,null,null,null,null,null,null,null,null,null,1,1,2,null,null,null,null,null,169.56,5.6520000000000001,6,5,360,51.381818181818183,2466.3272727272729,3846.3272727272729,9.3595779681207095E-2,101.736,3,270,-100.44,""]
[100098898650,1,1,1,"（株）千葉東建設　","043-216-5550",null,null,null,2,"2019-05-11",null,null,null,"千葉県","千葉市緑区","刈田子町",null,null,null,null,null,"京成千原線","おゆみ野",8,null,null,null,null,null,null,null,null,null,null,1,null,1,null,null,null,null,2,null,null,null,13800000,null,269000,82000,null,1,170.17,null,null,null,null,null,2,null,null,null,null,null,null,null,null,null,null,null,null,null,null,null,null,null,null,null,null,1,2,1,null,null,null,null,null,170.17,5.6723333333333326,6,5,360,51.566666666666663,2475.1999999999998,3855.2,9.338036937123885E-2,102.10199999999999,3,270,-99.830000000000013,"",null,null,null,null,null,null,null,null,null,null,null,null,null,null,null,null,null,null,null,null,null,null,null,null,null,null,null,null,null,null,null,null,null,null,null,null,null,null,null,null,null,null,null,null,null,null,null,null,null,null,null,null,null,null,null,null,null,null,null,null,null,null,null,null,null,null,null,null,null,null,null,null,null,null,null,null,null,null,null,null,null,null,null,null,null,null,null,null,null,null,null,null,null,null,null,null,null,null,null,null,null,"造成後引渡即可"]
[100098898656,1,1,1,"（株）千葉東建設　","043-216-5550",null,null,null,2,"2019-05-11",null,null,null,"千葉県","千葉市中央区","赤井町","３３９－２３",null,null,null,null,"京葉線","蘇我",null,null,10,null,null,5,null,null,null,null,null,2,null,1,null,null,null,null,1,null,null,null,5000000,null,138000,42000,null,1,120.04,null,null,null,null,null,2,null,null,null,0,null,null,null,null,null,null,null,null,2,null,null,null,null,null,null,null,null,null,null,null,null,null,null,null,120.04,4.0013333333333332,4,5,240,36.375757575757582,1746.0363636363638,2246.0363636363636,0.10685490399248777,72.024000000000001,2,180,-59.959999999999994,"",null,null,1,2]
[100098898713,1,1,1,"（株）千葉東建設　","043-216-5550",null,null,null,2,"2019-05-11",null,null,null,"千葉県","千葉市中央区","長洲２丁目",null,null,null,null,null,"内房線","本千葉",null,null,null,null,null,null,null,null,null,null,null,null,null,null,null,null,null,null,1,null,null,null,198000000,null,629000,191000,null,null,1041.1199999999999,null,null,null,null,null,null,null,null,null,1,null,null,null,null,null,null,null,null,null,null,null,null,null,null,null,null,null,null,null,null,null,null,null,null,1041.1199999999999,34.703999999999994,35,5,2100,315.4909090909091,15143.563636363637,34943.563636363637,6.0096904306996837E-2,624.67199999999991,20,1800,-758.88000000000011,""]
[100098898731,1,1,1,"（株）千葉東建設　","043-216-5550",null,null,null,2,"2019-05-11",null,null,null,"千葉県","千葉市中央区","星久喜町",null,null,null,null,null,"京成千原線","大森台",13,null,null,null,null,null,null,null,null,null,null,1,null,1,null,null,null,null,2,null,null,null,12700000,null,350000,106000,null,1,120.14,null,null,null,null,null,null,null,null,null,null,null,null,null,null,null,null,null,null,2,null,null,null,null,null,null,null,1,null,1,1,null,null,60,150,180.21,6.0070000000000006,6,5,360,54.609090909090916,2621.2363636363639,3891.2363636363639,9.2515582801446603E-2,72.084000000000003,2,180,0.21000000000000796,"!",null,null,1,2]
[100098898749,1,1,1,"（株）千葉東建設　","043-216-5550",null,null,null,2,"2019-05-11",null,null,null,"千葉県","千葉市緑区","刈田子町",null,null,null,null,null,"京成千原線","おゆみ野",8,null,null,null,null,null,null,null,null,null,null,1,null,1,null,null,null,null,2,null,null,null,12800000,null,251000,76000,null,1,168.92,null,null,null,null,null,null,null,null,null,null,null,null,null,null,null,null,null,null,null,null,null,null,null,null,null,null,1,2,1,null,null,null,null,null,168.92,5.6306666666666665,6,5,360,51.187878787878788,2457.0181818181818,3737.0181818181818,9.6333489023820648E-2,101.35199999999999,3,270,-101.08000000000001,"",null,null,null,null,null,null,null,null,null,null,null,null,null,null,null,null,null,null,null,null,null,null,null,null,null,null,null,null,null,null,null,null,null,null,null,null,null,null,null,null,null,null,null,null,null,null,null,null,null,null,null,null,null,null,null,null,null,null,null,null,null,null,null,null,null,null,null,null,null,null,null,null,null,null,null,null,null,null,null,null,null,null,null,null,null,null,null,null,null,null,null,null,null,null,null,null,null,null,null,null,null,"造成後引渡即可"]
[100098901326,1,1,1,"（有）サンオフィス　","0475-42-6856","鶴岡　亮輔","0475-42-6856","info@sun-o.co.jp",2,"2019-05-11",null,null,null,"千葉県","長生郡一宮町","一宮",null,null,null,null,null,"外房線","上総一ノ宮",23,null,null,null,null,null,null,null,null,null,null,1,null,1,null,null,null,null,3,1,null,null,10880000,null,50000,16000,null,1,719.78,null,null,null,null,null,null,null,null,null,null,null,null,null,null,null,null,null,null,null,null,null,null,null,null,null,null,1,1,3,null,null,null,null,null,719.78,23.992666666666665,24,5,1440,218.11515151515152,10469.527272727271,11557.527272727271,0.12459412519821794,431.86799999999999,14,1260,-540.22,"",null,null,null,null,null,null,null,null,null,null,null,null,null,null,null,null,null,null,1,1,null,null,null,null,null,null,null,null,null,null,null,null,null,null,null,null,null,null,null,1]
[100098903125,1,1,1,"（有）新茂原ホーム　","0475-25-3361",null,null,null,2,"2019-05-11",null,null,null,"千葉県","長生郡白子町","関","５２４１―６３",null,null,null,null,"外房線","本納",null,null,null,null,null,null,null,8.6999999999999993,null,null,null,1,null,1,null,null,null,null,4,1,null,null,5200000,null,52000,16000,null,null,331.84,null,null,null,null,null,null,null,null,null,null,null,null,null,null,null,null,null,null,null,null,null,null,null,null,null,null,4,null,3,99,null,null,60,200,663.68,22.122666666666664,22,5,1320,201.11515151515152,9653.5272727272732,10173.527272727273,0.12974850950059333,199.10399999999998,6,540,123.67999999999995,"!",null,null,1,null,null,null,null,null,null,null,null,null,null,null,null,null,null,null,2,2,null,null,5,5,null,null,null,null,null,null,null,null,null,null,null,null,null,null,null,null,null,null,null,null,null,null,null,null,null,null,null,null,null,null,null,null,null,null,null,null,null,null,null,null,null,null,null,null,null,null,null,null,null,null,null,null,null,null,null,null,null,null,null,null,null,null,null,null,null,null,null,null,null,null,null,null,null,null,null,null,null,"東南角地の広い土地。","南白亀川そばの明るい住宅地、別荘地。特注の物置・倉庫付き。"]
[100098903171,1,1,1,"ナリトモハウジング（株）　","043-266-8171",null,null,null,2,"2019-05-11","2019-05-11",null,null,"千葉県","千葉市若葉区","大宮台７丁目",null,null,null,null,null,"総武中央線","千葉",null,null,20,null,null,2,null,null,null,null,null,1,null,2,null,null,null,null,1,null,null,null,8800000,null,137000,42000,null,1,212.87,null,null,null,null,null,null,null,null,null,null,null,null,null,null,null,null,null,null,null,null,null,null,null,null,null,null,1,1,1,1,null,1,50,100,212.87,7.0956666666666672,7,5,420,64.506060606060615,3096.2909090909093,3976.2909090909093,0.10562607455097486,106.435,3,270,-57.129999999999995,"",null,null,1,2,null,null,null,null,null,null,null,null,null,null,null,null,null,null,1,1,null,null,7,4]
[100098903209,1,1,1,"（株）ハウジングサクセス　","03-5988-5266",null,null,null,2,"2019-05-11",null,null,null,"千葉県","松戸市","小金清志町３丁目",null,null,null,null,null,"武蔵野線","新松戸",7,null,null,null,null,null,null,null,null,null,null,2,null,2,null,null,null,null,4,null,null,null,19800000,null,446000,135000,null,1,146.76,null,null,null,null,null,null,null,null,null,null,null,null,null,null,null,null,null,null,null,null,null,null,null,null,null,null,null,null,null,null,null,null,null,null,146.76,4.8919999999999995,5,5,300,44.472727272727269,2134.6909090909089,4114.6909090909085,7.2909486186966452E-2,88.055999999999997,2,180,-33.240000000000009,"",null,null,null,2]
[100098903656,1,1,1,"岩澤不動産（株）　","043-244-7771",null,null,null,3,"2019-05-11",null,null,null,"千葉県","千葉市中央区","椿森３丁目",null,null,null,null,null,"総武中央線","千葉",15,null,null,null,null,null,null,null,"千葉都市モノレレール千葉公園駅より徒歩３分　総武本線東千葉駅より徒歩９分",null,null,1,null,1,null,null,null,null,1,null,null,null,52700000,null,800000,242000,null,2,218.04,null,null,null,null,null,null,null,null,null,null,null,null,null,null,null,null,null,null,null,null,null,null,null,null,null,null,3,null,1,4,null,null,80,200,436.08,14.536,15,5,900,132.14545454545456,6342.9818181818182,11612.981818181819,7.7499475508600091E-2,174.43200000000002,5,450,-13.920000000000016,"",null,null,null,2,null,null,null,null,null,null,null,null,null,null,null,null,null,null,null,1,10.199999999999999,2,7,19]
[100098903791,1,1,1,"一建設（株）　蓮田営業所　","048-765-7220",null,null,null,2,"2019-05-11",null,null,null,"千葉県","野田市","大殿井",null,null,null,null,null,"東武野田線","野田市",null,null,12,null,"電建第一住宅",3,null,null,null,null,null,null,null,null,null,null,null,null,1,null,null,null,10800000,null,220000,67000,null,1,162.69,null,null,null,null,null,null,null,null,null,null,null,null,null,null,null,null,null,null,null,null,null,null,null,null,null,null,1,null,1,1,null,null,50,100,162.69,5.423,5,5,300,49.300000000000004,2366.4,3446.4,8.7047353760445687E-2,81.344999999999999,2,180,-17.310000000000002,"",null,null,1,null,null,null,null,null,null,null,null,null,null,null,null,null,null,null,1,1]
[100098903802,1,1,1,"（株）ＬＡＮＤＩＡ　","043-296-1430","久保",null,null,2,"2019-05-11",null,null,null,"千葉県","成田市","飯田町",null,null,null,null,null,"京成本線","公津の杜",17,null,null,null,null,null,null,null,null,null,null,1,null,1,null,null,null,null,1,null,null,null,27800000,null,461000,140000,null,1,199.54,null,null,null,null,null,2,null,null,null,null,null,null,null,null,null,null,null,null,null,null,null,null,null,null,null,null,3,1,1,1,null,1,60,150,299.31,9.9770000000000003,10,5,600,90.7,4353.5999999999995,7133.5999999999995,8.4109005270830997E-2,119.72399999999999,3,270,29.310000000000002,"!",null,null,1,2,null,null,null,null,null,null,null,null,null,null,null,null,null,null,1,1,10.9,null,6,6,null,null,null,null,null,null,null,null,null,null,null,null,null,null,null,1]
[100098903815,1,1,1,"さくら都市　千葉支店　","043-420-8739",null,null,null,2,"2019-05-11",null,null,null,"千葉県","千葉市若葉区","大宮台３丁目",null,null,null,null,null,"総武線","千葉",null,null,30,null,null,3,240,null,null,null,null,2,null,1,null,null,null,null,1,null,3,null,11800000,null,130000,40000,null,1,300.99,null,null,null,null,null,null,null,null,null,null,null,null,null,null,null,null,null,null,null,null,null,null,null,null,null,null,null,null,null,null,null,null,null,null,300.99,10.032999999999999,10,5,600,91.209090909090918,4378.0363636363645,5558.0363636363645,0.10795179461680382,180.59399999999999,6,540,-239.01,""]
[100098903993,1,1,1,"（株）マーガレットの家　","043-488-2228",null,null,null,2,"2019-05-11",null,null,null,"千葉県","佐倉市","中志津４丁目",null,null,null,null,null,"京成本線","ユーカリが丘",19,null,null,null,null,null,null,null,null,null,null,1,201905,2,null,null,null,null,4,1,null,null,10800000,null,270000,82000,null,1,132.24,null,null,null,null,null,2,null,null,null,null,null,null,null,null,null,null,null,null,null,null,null,null,null,null,null,null,1,null,1,1,null,1,50,100,132.24,4.4080000000000004,4,5,240,40.072727272727278,1923.4909090909091,3003.4909090909091,7.9907017288972829E-2,66.12,2,180,-47.759999999999991,"",null,null,1,null,null,null,null,null,null,null,null,null,null,null,null,null,null,null,1,1]
[100098904023,1,1,1,"（株）中央住宅　ポラス住まいの情報館南柏営業所　","04-7170-9000","大野　正勝",null,null,2,"2019-05-11","2019-05-11",null,null,"千葉県","柏市","高南台３丁目",null,null,null,null,null,"東武野田線","高柳",11,null,null,null,null,null,null,null,null,null,null,2,null,2,null,null,null,null,5,null,null,null,19800000,null,348000,105000,null,1,188.62,null,null,null,null,null,2,null,null,null,0,null,null,null,null,null,null,null,null,2,null,null,null,null,null,null,3,1,null,1,1,null,null,50,100,188.62,6.2873333333333337,6,5,360,57.157575757575763,2743.5636363636363,4723.5636363636368,7.6213644551879164E-2,94.31,3,270,-81.38,"",null,null,null,2,null,null,null,null,null,null,null,null,null,null,null,null,null,null,2,1,null,null,2,6,1,null,null,3,6]
[100098904065,1,1,1,"（株）ハローホーム　","03-5612-8646","風見","03-5612-8646",null,2,"2019-05-11",null,null,null,"千葉県","市川市","須和田２丁目","２８ー１７",null,null,null,null,"総武中央線","市川",23,null,null,null,null,null,null,null,null,null,null,1,null,2,null,null,null,null,1,null,3,null,12700000,null,478000,145000,null,1,87.89,null,null,null,null,null,null,null,null,null,null,null,null,null,null,null,null,null,null,null,null,null,null,null,null,null,null,1,null,1,null,null,1,40,80,{"$f":"IF(ISBLANK(CI259),100,CI259)/100*BA259","v":70.311999999999998},{"$f":"CJ259/30","v":2.3437333333333332},{"$f":"ROUND(CK259,0)","v":2},5,{"$f":"CM259*12*CL259","v":120},{"$f":"CJ259/3.3","v":21.306666666666668},{"$f":"CO259*40*1.2","v":1022.72},{"$f":"CP259+(AU259/10000)","v":2292.7200000000003},{"$f":"CN259/CQ259","v":5.2339579189783311E-2},{"$f":"IF(ISBLANK(CH259),60,CH259)/100*BA259","v":35.155999999999999},{"$f":"ROUNDDOWN((CS259/30),0)","v":1},{"$f":"CT259*30*3","v":90},{"$f":"CJ259-CU259","v":-19.688000000000002},{"$f":"IF(CV259>0, \"!\",\"\")","v":""},null,null,1,2,null,null,null,null,null,null,null,null,null,null,null,null,null,null,1,2,5.0999999999999996,null,null,3.9,null,null,null,null,null,null,null,null,null,null,null,null,null,null,null,1,null,null,null,null,null,null,null,null,null,null,null,null,null,null,null,null,null,null,null,null,null,null,null,null,null,null,null,null,null,null,null,null,null,null,null,null,null,null,null,null,null,null,null,null,null,null,null,null,null,null,null,null,null,null,null,null,null,"ライフ",380,6,1]
[100098904092,1,1,1,"（株）ミッキーハウス　","03-5943-3777",null,null,null,2,"2019-05-11",null,null,null,"千葉県","千葉市緑区","落井町","１０１－１",null,null,null,null,"京成千原線","おゆみ野",18,null,null,null,null,null,null,null,null,null,null,1,null,2,null,null,null,null,1,null,null,null,9500000,null,121000,37000,null,1,261.16000000000003,null,null,null,null,null,null,null,null,null,null,null,null,null,null,null,null,null,null,null,null,null,null,null,null,null,null,null,null,null,null,null,null,null,null,261.16000000000003,8.7053333333333338,9,5,540,79.139393939393955,3798.6909090909094,4748.6909090909094,0.11371555031434499,156.696,5,450,-188.83999999999997,""]
[100098904127,1,1,1,"（有）春日不動産　","043-241-3383",null,null,null,2,"2019-05-11",null,null,null,"千葉県","千葉市中央区","登戸４丁目",null,null,null,null,null,"総武中央線","西千葉",10,null,null,null,null,null,null,null,null,null,null,2,null,2,null,null,null,null,4,1,null,null,120000000,null,991000,300000,null,2,400.32,null,null,null,null,null,null,null,null,null,1,null,null,null,null,null,null,null,null,null,null,null,null,null,null,null,3,1,null,1,11,null,1,60,160,640.51200000000006,21.3504,21,5,1260,194.09454545454548,9316.5381818181831,21316.538181818185,5.9109034931136686E-2,240.19199999999998,8,720,-79.487999999999943,"",null,null,1,2,null,null,null,null,null,null,null,null,null,null,null,null,null,null,5,1,21.4,null,6,null,1,21.4,null,2,null,null,null,null,null,null,null,null,null,null,null,1]
[100098904446,1,1,1,"（株）エムティーエス　","0439-53-1801",null,null,null,2,"2019-05-11","2019-05-11",null,null,"千葉県","君津市","南子安８丁目",null,null,null,null,null,null,null,null,null,null,null,null,null,null,null,null,null,null,1,null,1,null,null,null,null,3,1,null,null,12700000,null,191000,58000,null,null,220.93,null,null,null,null,null,null,null,null,null,null,null,null,null,null,null,null,null,null,null,null,null,null,null,null,null,null,1,null,1,1,null,1,50,100,220.93,7.3643333333333336,7,5,420,66.948484848484853,3213.5272727272727,4483.5272727272732,9.3676245164115907E-2,110.465,3,270,-49.069999999999993,"",null,null,4,2,null,null,null,null,null,null,null,null,null,null,null,null,null,null,2,1,13.8,null,1,6,1,14.5,null,3,18,null,null,null,null,null,null,null,null,null,null,1]
[100098904606,1,1,1,"（株）エムティーエス　","0439-53-1801",null,null,null,2,"2019-05-11",null,null,null,"千葉県","君津市","南子安８丁目",null,null,null,null,null,null,null,null,null,null,null,null,null,null,null,null,null,null,1,null,1,null,null,null,null,3,1,null,null,11300000,null,180000,55000,null,null,207.58,null,null,null,null,null,null,null,null,null,null,null,null,null,null,null,null,null,null,null,null,null,null,null,null,null,null,1,null,1,1,null,1,50,100,207.58,6.9193333333333333,7,5,420,62.903030303030313,3019.3454545454547,4149.3454545454551,0.10122078400098151,103.79,3,270,-62.419999999999987,"",null,null,4,2,null,null,null,null,null,null,null,null,null,null,null,null,null,null,1,1,11,null,1,6,null,null,null,null,null,null,null,null,null,null,null,null,null,null,null,1]
[100098905474,1,1,1,"ＷＡＶＥ住宅販売（株）　","047-330-1777",null,null,null,2,"2019-05-11",null,null,null,"千葉県","市川市","真間２丁目",null,null,null,null,null,"総武線","市川",11,null,null,null,null,null,null,null,null,null,null,1,null,2,null,null,null,null,1,4,3,null,57800000,null,1340000,406000,null,1,142.61000000000001,null,null,null,null,null,2,null,null,null,null,null,null,null,null,null,null,null,null,null,null,null,null,null,null,null,null,1,null,1,12,null,null,60,200,285.22000000000003,9.5073333333333334,10,5,600,86.430303030303037,4148.6545454545458,9928.6545454545449,6.0431148777825801E-2,85.566000000000003,2,180,105.22000000000003,"!",null,null,1,2,null,null,null,null,null,null,null,null,null,null,null,null,null,null,1,1,null,null,5,4.9000000000000004,null,null,null,null,null,null,null,null,null,null,null,null,null,null,null,1]
[100098905584,1,1,1,"スターツピタットハウス（株）　八千代緑が丘店","047-458-0271",null,null,null,2,"2019-05-11","2019-05-13",null,null,"千葉県","船橋市","坪井東５丁目",null,null,null,null,null,"東葉高速線","船橋日大前",5,null,null,null,null,null,null,null,null,null,null,2,null,2,null,null,null,null,3,1,null,null,22800000,null,488000,148000,null,2,154.59,null,null,null,null,null,1,null,null,null,0,null,null,null,null,null,null,null,null,null,null,null,null,null,null,null,3,4,null,1,1,null,1,50,100,154.59,5.1530000000000005,5,5,300,46.845454545454551,2248.5818181818181,4528.5818181818177,6.6245904798612462E-2,77.295000000000002,2,180,-25.409999999999997,"",null,null,1,2,null,null,null,null,null,null,null,null,null,null,null,null,null,null,1,2,null,1,6,null,null,null,null,null,null,null,null,null,null,null,null,null,null,null,null,1]
[100098907025,1,1,1,"（株）エムティーエス　","0439-53-1801",null,null,null,2,"2019-05-11",null,null,null,"千葉県","君津市","南子安８丁目",null,null,null,null,null,null,null,null,null,null,null,null,null,null,null,null,null,null,1,null,1,null,null,null,null,3,1,null,null,13800000,null,214000,65000,null,1,213.76,null,null,null,null,null,null,null,null,null,null,null,null,null,null,null,null,null,null,null,null,null,null,null,null,null,null,1,null,1,1,null,1,50,100,213.76,7.1253333333333329,7,5,420,64.775757575757581,3109.2363636363634,4489.2363636363634,9.3557114390785234E-2,106.88,3,270,-56.240000000000009,"",null,null,1,2,null,null,null,null,null,null,null,null,null,null,null,null,null,null,1,1,10.6,null,5,10,null,null,null,null,null,null,null,null,null,null,null,null,null,null,null,1]
[100098907372,1,1,1,"（株）エムティーエス　","0439-53-1801",null,null,null,2,"2019-05-11",null,null,null,"千葉県","君津市","南子安８丁目",null,null,null,null,null,null,null,null,null,null,null,null,null,null,null,null,null,null,1,null,1,null,null,null,null,3,1,null,null,13800000,null,214000,65000,null,null,213.67,null,null,null,null,null,null,null,null,null,null,null,null,null,null,null,null,null,null,null,null,null,null,null,null,null,null,1,null,1,1,null,1,50,100,213.67,7.1223333333333327,7,5,420,64.74848484848485,3107.9272727272728,4487.9272727272728,9.3584404219805864E-2,106.83499999999999,3,270,-56.330000000000013,"",null,null,1,2,null,null,null,null,null,null,null,null,null,null,null,null,null,null,1,1,10.6,null,5,10,null,null,null,null,null,null,null,null,null,null,null,null,null,null,null,1]
[100098907657,1,1,1,"ケイアイスター不動産（株）　松戸営業所","047-712-2507","西條・宮腰","047-712-2507",null,2,"2019-05-11",null,null,null,"千葉県","松戸市","五香南３丁目","１期１号地",null,null,"８番６（ナビ：８－６）",null,"新京成線","元山",2,160,null,null,null,null,null,null,null,null,null,1,null,2,null,null,null,null,1,null,null,null,17500000,null,483000,146000,null,1,119.99,null,null,null,null,null,2,null,null,null,0,null,null,null,null,null,null,null,null,2,null,null,null,null,null,null,null,1,null,1,12,null,1,60,200,239.98,7.9993333333333334,8,5,480,72.721212121212119,3490.6181818181817,5240.6181818181813,9.1592247965194953E-2,71.994,2,180,59.97999999999999,"!",null,null,null,2,null,null,null,null,null,null,null,null,null,null,null,null,null,null,1,1,7.8,null,1,4,null,null,null,null,null,null,null,null,null,null,null,null,null,null,null,null,null,null,null,null,null,null,null,null,null,null,null,null,null,null,null,null,null,null,null,null,null,null,null,null,null,null,null,null,null,null,null,null,null,null,null,null,null,null,null,null,null,null,null,null,null,null,null,null,null,null,null,null,null,null,null,null,null,"松戸市立六実保育所",819,11,1,null,null,"広告掲載：要承諾書"]
[100098907694,1,1,1,"ケイアイスター不動産（株）　松戸営業所","047-712-2507","西條・宮腰","047-712-2507",null,2,"2019-05-11",null,null,null,"千葉県","松戸市","五香南３丁目","１期２号地",null,null,"８番６（ナビ：８－６）",null,"新京成線","元山",2,160,null,null,null,null,null,null,null,null,null,1,null,2,null,null,null,null,1,null,null,null,16000000,null,474000,144000,null,1,111.67,null,null,null,null,null,2,null,null,null,0,null,null,null,null,null,null,null,null,2,null,null,null,null,null,null,null,1,null,1,12,null,1,60,200,223.34,7.4446666666666665,7,5,420,67.678787878787887,3248.5818181818186,4848.5818181818186,8.6623267534649301E-2,67.001999999999995,2,180,43.34,"!",null,null,null,2,null,null,null,null,null,null,null,null,null,null,null,null,null,null,1,1,7.8,null,1,4,null,null,null,null,null,null,null,null,null,null,null,null,null,null,null,null,null,null,null,null,null,null,null,null,null,null,null,null,null,null,null,null,null,null,null,null,null,null,null,null,null,null,null,null,null,null,null,null,null,null,null,null,null,null,null,null,null,null,null,null,null,null,null,null,null,null,null,null,null,null,null,null,null,"松戸市立六実保育所",819,11,1,null,null,"広告掲載：要承諾書"]
[100098907749,1,1,1,"ケイアイスター不動産（株）　松戸営業所","047-712-2507","西條・宮腰","047-712-2507",null,2,"2019-05-11",null,null,null,"千葉県","松戸市","五香南３丁目","１期３号地",null,null,"８番６（ナビ：８－６）",null,"新京成線","元山",2,160,null,null,null,null,null,null,null,null,null,1,null,2,null,null,null,null,1,null,null,null,17000000,null,503000,152000,null,1,111.86,null,null,null,null,null,2,null,null,null,0,null,null,null,null,null,null,null,null,2,null,null,null,null,null,null,null,1,null,1,12,null,1,60,200,223.72,7.4573333333333336,7,5,420,67.793939393939397,3254.1090909090913,4954.1090909090908,8.4778108897664378E-2,67.116,2,180,43.72,"!",null,null,null,2,null,null,null,null,null,null,null,null,null,null,null,null,null,null,1,1,7.8,null,1,4,null,null,null,null,null,null,null,null,null,null,null,null,null,null,null,null,null,null,null,null,null,null,null,null,null,null,null,null,null,null,null,null,null,null,null,null,null,null,null,null,null,null,null,null,null,null,null,null,null,null,null,null,null,null,null,null,null,null,null,null,null,null,null,null,null,null,null,null,null,null,null,null,null,"松戸市立六実保育所",819,11,1,null,null,"広告掲載：要承諾書"]
[100098907783,1,1,1,"ケイアイスター不動産（株）　松戸営業所","047-712-2507","西條・宮腰","047-712-2507",null,2,"2019-05-11",null,null,null,"千葉県","松戸市","小金きよしケ丘２丁目","２期１号地",null,null,"５番８、２８（ナビ：５－８）",null,"常磐緩行線","北小金",7,500,null,null,null,null,null,null,null,null,null,1,null,2,null,null,null,null,1,null,null,null,22500000,null,522000,158000,null,1,142.63999999999999,null,null,null,null,null,2,null,null,null,0,null,null,null,null,null,null,null,null,2,null,null,null,null,null,null,null,1,null,1,12,null,1,60,200,285.27999999999997,9.5093333333333323,10,5,600,86.448484848484838,4149.5272727272722,6399.5272727272722,9.3756925227431578E-2,85.583999999999989,2,180,105.27999999999997,"!",null,null,null,2,null,null,null,null,null,null,null,null,null,null,null,null,null,null,1,1,8.4,2,1,4,null,null,null,null,null,null,null,null,null,null,null,null,null,null,null,null,null,null,null,null,null,null,null,null,null,null,null,null,null,null,null,null,null,null,null,null,null,null,null,null,null,null,null,null,null,null,null,null,null,null,null,null,null,null,null,null,null,null,null,null,null,null,null,null,null,null,null,null,null,null,null,null,null,"北小金グレース保育園",615,8,1,null,null,"広告掲載：要承諾書"]
[100098907858,1,1,1,"ケイアイスター不動産（株）　松戸営業所","047-712-2507","西條・宮腰","047-712-2507",null,2,"2019-05-11",null,null,null,"千葉県","柏市","新富町２丁目","２期１号地",null,null,"４５０番１３（ナビ７－２）",null,"常磐緩行線","南柏",14,1120,null,null,null,null,null,null,null,null,null,2,null,2,null,null,null,null,1,null,null,null,21500000,null,572000,173000,null,null,124.39,null,null,null,null,null,null,null,null,null,1,null,4.76,null,null,null,null,null,null,null,null,null,null,null,null,null,null,9,null,1,12,null,null,60,200,248.78,8.2926666666666673,8,5,480,75.38787878787879,3618.6181818181817,5768.6181818181813,8.320883526541728E-2,74.634,2,180,68.78,"!",null,null,null,null,null,null,null,null,null,null,null,null,null,null,null,null,null,null,null,2,null,null,5,3.3,null,null,null,null,null,null,null,null,null,null,null,null,null,null,null,null,null,null,null,null,null,null,null,null,null,null,null,null,null,null,null,null,null,null,null,null,null,null,null,null,null,null,null,null,null,null,null,null,null,null,null,null,null,null,null,null,null,null,null,null,null,null,null,null,null,null,null,null,null,null,null,null,null,"柏陽幼稚園",416,6,1,null,null,"広告掲載：要承諾書"]
[100098907911,1,1,1,"ケイアイスター不動産（株）　松戸営業所","047-712-2507","西條・宮腰","047-712-2507",null,2,"2019-05-11",null,null,null,"千葉県","柏市","新富町２丁目","２期２号地",null,null,"４５０番１３（ナビ７－２）",null,"常磐緩行線","南柏",14,1120,null,null,null,null,null,null,null,null,null,2,null,2,null,null,null,null,1,null,null,null,21500000,null,577000,175000,null,null,123.36,null,null,null,null,null,null,null,null,null,1,null,4.76,null,null,null,null,null,null,null,null,null,null,null,null,null,null,9,null,1,12,null,null,60,200,246.72,8.2240000000000002,8,5,480,74.763636363636365,3588.6545454545453,5738.6545454545449,8.3643299347962469E-2,74.015999999999991,2,180,66.72,"!",null,null,null,null,null,null,null,null,null,null,null,null,null,null,null,null,null,null,null,2,null,null,5,3.3,null,null,null,null,null,null,null,null,null,null,null,null,null,null,null,null,null,null,null,null,null,null,null,null,null,null,null,null,null,null,null,null,null,null,null,null,null,null,null,null,null,null,null,null,null,null,null,null,null,null,null,null,null,null,null,null,null,null,null,null,null,null,null,null,null,null,null,null,null,null,null,null,null,"柏陽幼稚園",416,6,1,null,null,"広告掲載：要承諾書"]
[100098907944,1,1,1,"ケイアイスター不動産（株）　松戸営業所","047-712-2507","西條・宮腰","047-712-2507",null,2,"2019-05-11",null,null,null,"千葉県","柏市","高柳","３期１号地",null,null,"１５６８番１９（ナビ：１５６８番１９）",null,"東武野田線","高柳",9,720,null,null,null,null,null,null,null,null,null,2,null,2,null,null,null,null,1,null,null,null,16000000,null,321000,97000,null,null,165.28,null,null,null,null,null,null,null,null,null,null,null,null,null,null,null,null,null,null,null,null,null,null,null,null,null,null,1,null,1,1,null,null,50,100,165.28,5.5093333333333332,6,5,360,50.084848484848486,2404.0727272727272,4004.0727272727272,8.9908456843940721E-2,82.64,2,180,-14.719999999999999,"",null,null,null,null,null,null,null,null,null,null,null,null,null,null,null,null,null,null,null,2,null,null,8,4,null,null,null,null,null,null,null,null,null,null,null,null,null,null,null,null,null,null,null,null,null,null,null,null,null,null,null,null,null,null,null,null,null,null,null,null,null,null,null,null,null,null,null,null,null,null,null,null,null,null,null,null,null,null,null,null,null,null,null,null,null,null,null,null,null,null,null,null,null,null,null,null,null,"高柳保育園",736,10,1,null,null,"広告掲載：要承諾書"]
[100098908307,1,1,1,"ケイアイスター不動産（株）　松戸営業所","047-712-2507","西條・宮腰","047-712-2507",null,2,"2019-05-11",null,null,null,"千葉県","千葉市稲毛区","轟町５丁目","１期１号地",null,null,"８２番１０（ナビ：６－３）",null,"総武中央線","西千葉",18,1440,null,null,null,null,null,null,null,null,null,1,null,2,null,null,null,null,1,null,null,null,32000000,null,1052000,319000,null,1,100.56,null,null,null,null,null,2,null,null,null,0,null,null,null,null,null,null,null,null,2,null,null,null,null,null,null,null,1,null,1,12,null,1,60,200,201.12,6.7039999999999997,7,5,420,60.945454545454552,2925.3818181818183,6125.3818181818187,6.8567154255319146E-2,60.335999999999999,2,180,21.120000000000005,"!",null,null,null,2,null,null,null,null,null,null,null,null,null,null,null,null,null,null,1,1,7.7,2,7,5,null,null,null,null,null,null,null,null,null,null,null,null,null,null,null,null,null,null,null,null,null,null,null,null,null,null,null,null,null,null,null,null,null,null,null,null,null,null,null,null,null,null,null,null,null,null,null,null,null,null,null,null,null,null,null,null,null,null,null,null,null,null,null,null,null,null,null,null,null,null,null,null,null,"愛隣幼稚園",215,3,1,null,null,"広告ｊ掲載：要承諾書"]
[100098908554,1,1,1,"（株）東葉ハウジングセンター　","047-318-1717",null,null,null,2,"2019-05-11",null,null,null,"千葉県","千葉市中央区","末広２丁目",null,null,null,null,null,"外房線","本千葉",15,null,null,null,null,null,null,null,null,null,null,1,null,1,null,null,null,null,3,1,null,null,27000000,null,535000,162000,null,1,167,null,null,null,null,null,null,null,null,null,null,null,null,null,null,null,null,null,null,null,null,null,null,null,null,null,null,5,null,1,3,null,null,60,200,334,11.133333333333333,11,5,660,101.21212121212122,4858.1818181818189,7558.1818181818189,8.7322588405099821E-2,100.2,3,270,64,"!",null,null,1,2,null,null,null,null,null,null,null,null,null,null,null,null,null,null,1,1,10.6,null,null,11,null,null,null,null,null,null,null,null,null,null,null,null,null,null,null,1]
[100098908555,1,1,1,"ケイアイスター不動産（株）　松戸営業所","047-712-2507","西條・宮腰","047-712-2507",null,2,"2019-05-11",null,null,null,"千葉県","船橋市","夏見台５丁目","１期１号地",null,null,"６２７番９　ナビ：１２－１",null,"東武野田線","塚田",15,1200,null,null,null,null,null,null,null,null,null,2,null,2,null,null,null,null,1,null,null,null,29500000,null,596000,181000,null,1,163.75,null,null,null,null,null,1,null,null,null,0,null,null,null,null,null,null,null,null,2,null,null,null,null,null,null,null,5,null,1,1,null,1,50,100,163.75,5.458333333333333,5,5,300,49.621212121212125,2381.818181818182,5331.818181818182,5.6265984654731455E-2,81.875,2,180,-16.25,"",null,null,null,2,null,null,null,null,null,null,null,null,null,null,null,null,null,null,1,2,16.5,2,2,4,null,null,null,null,null,null,null,null,null,null,null,null,null,null,null,null,null,null,null,null,null,null,null,null,null,null,null,null,null,null,null,null,null,null,null,null,null,null,null,null,null,null,null,null,null,null,null,null,null,null,null,null,null,null,null,null,null,null,null,null,null,null,null,null,null,null,null,null,null,null,null,null,null,"夏見第一保育園",575,8,1,null,null,"広告掲載：要承諾書"]
[100098909113,1,1,1,"（株）梓　","03-5957-1045","長田（ながた）",null,null,2,"2019-05-11",null,null,null,"千葉県","鎌ケ谷市","初富","８０２－４０",null,null,null,null,"北総線","西白井",11,null,null,null,null,null,null,null,null,null,null,1,null,2,null,null,null,null,1,null,null,null,16800000,null,213000,65000,null,2,261.76,null,null,null,null,null,1,27.46,null,null,0,null,null,null,null,null,null,null,null,null,null,null,null,null,null,null,null,4,1,2,99,null,null,60,200,523.52,17.450666666666667,17,5,1020,158.64242424242425,7614.8363636363638,9294.8363636363647,0.10973834934743826,157.05599999999998,5,450,73.519999999999982,"!",null,null,1,2,null,null,null,null,null,null,null,null,null,null,null,null,null,null,5,1,9.6999999999999993,null,4,7,2,2,1,8,4,null,null,null,null,null,null,null,null,null,null,1]
[100098909480,1,1,1,"ケイアイスター不動産（株）　船橋営業所","047-401-1517","西條・中村","047-712-2057",null,2,"2019-05-11",null,null,null,"千葉県","八千代市","八千代台北９丁目","１期１号地",null,null,"８８４番８（ナビ：１１－３）",null,"京成本線","八千代台",10,800,null,null,null,null,null,null,null,null,null,null,null,2,null,null,null,null,1,null,null,null,20000000,null,485000,147000,null,1,136.46,null,null,null,null,null,1,13,null,null,0,null,null,null,null,null,null,null,null,2,null,null,null,null,null,null,null,3,null,1,1,null,null,50,100,136.46,4.5486666666666666,5,5,300,41.351515151515159,1984.8727272727276,3984.8727272727274,7.5284713096802444E-2,68.23,2,180,-43.539999999999992,"",null,null,null,null,null,null,null,null,null,null,null,null,null,null,null,null,null,null,1,2,null,1,6,4,null,null,null,null,null,null,null,null,null,null,null,null,null,null,null,null,null,null,null,null,null,null,null,null,null,null,null,null,null,null,null,null,null,null,null,null,null,null,null,null,null,null,null,null,null,null,null,null,null,null,null,null,null,null,null,null,null,null,null,null,null,null,null,null,null,null,null,null,null,null,null,null,null,"八千代わかば保育園",179,3,1,null,null,"広告掲載・要承諾書"]
[100098909668,1,1,1,"（株）野崎建築工業　新鎌ヶ谷支店　","047-404-9581","宮家",null,null,2,"2019-05-11",null,"2019-07-18",null,"千葉県","白井市","冨士","2019-05-30",null,null,null,null,"北総線","西白井",22,null,null,null,null,null,null,null,null,null,null,2,null,2,null,null,null,null,4,1,null,null,15800000,null,237000,72000,null,1,221,null,null,null,null,null,2,null,null,null,0,null,null,null,null,null,null,null,null,null,null,null,null,null,null,null,null,1,null,2,null,null,1,60,160,353.6,11.786666666666667,12,5,720,107.15151515151517,5143.2727272727279,6723.2727272727279,0.10709070257991236,132.6,4,360,-6.3999999999999773,"",null,null,1,2,null,null,null,null,null,null,null,null,null,null,null,null,null,null,1,1,14.2,null,null,4,null,null,null,null,null,null,null,null,null,null,null,null,null,null,null,1]
[100098910351,1,1,1,"大和住宅（株）　","047-452-4000",null,null,null,2,"2019-05-11",null,null,null,"千葉県","習志野市","藤崎４丁目",null,null,null,null,null,"総武線","津田沼",null,null,7,null,null,6,null,null,null,null,null,2,null,2,null,null,null,null,4,1,null,null,12800000,null,466000,141000,null,null,90.97,null,null,null,null,null,2,null,null,null,null,null,null,null,null,null,null,null,null,null,null,null,null,null,null,null,null,null,null,null,1,null,null,50,100,90.97,3.0323333333333333,3,5,180,27.566666666666666,1323.2,2603.1999999999998,6.9145666871542721E-2,45.484999999999999,1,90,0.96999999999999886,"!",null,null,null,2]
[100098910363,1,1,1,"（株）ハウスグランデ　","0438-38-4470","井上","090-3404-8046","house-g@peace.ocn.ne.jp",2,"2019-05-11","2019-05-12",null,null,"千葉県","木更津市","下郡","１７９５－２",null,null,"１７９５－３",null,"久留里線","下郡",23,null,null,null,null,null,null,null,"圏央道「木更津東」インター",null,2200,1,null,2,null,null,null,null,4,1,null,null,17500000,null,30000,9000,null,1,1950,null,null,null,null,null,2,null,null,null,null,null,null,null,null,null,null,null,null,null,null,null,null,null,null,null,3,5,null,2,null,null,13,null,null,1950,65,65,5,3900,590.90909090909099,28363.636363636368,30113.636363636368,0.12950943396226414,1170,39,3510,-1560,"",null,null,1,null,null,null,null,null,null,null,null,null,null,null,null,null,null,null,1,1,38,null,8,4,null,null,null,null,null,null,null,null,null,null,null,null,null,null,null,1]
[100098910407,1,1,1,"（株）ジー・アイ・シー・リミテッド　","04-7148-6011",null,null,null,2,"2019-05-11",null,null,null,"千葉県","船橋市","駿河台２丁目",null,null,null,null,null,"総武中央線","東船橋",17,null,null,null,null,null,null,null,null,null,null,1,null,2,null,null,null,null,2,null,null,null,21600000,null,714000,216000,null,1,100.01,null,null,null,null,null,1,146.74,null,null,0,null,null,null,null,null,null,null,null,2,null,null,null,null,null,null,null,null,1,1,13,null,null,60,200,200.02,6.6673333333333336,7,5,420,60.612121212121217,2909.3818181818183,5069.3818181818187,8.2850338574543769E-2,60.006,2,180,20.02000000000001,"!",null,null,1,1,null,null,null,null,null,null,null,null,null,null,null,null,null,null,1,2,9,1,2,4,null,null,null,null,null,null,null,null,null,null,null,null,null,null,null,1]
[100098910409,1,1,1,"（株）ジー・アイ・シー・リミテッド　","04-7148-6011",null,null,null,2,"2019-05-11",null,null,null,"千葉県","船橋市","駿河台２丁目",null,null,null,null,null,"総武中央線","東船橋",17,null,null,null,null,null,null,null,null,null,null,1,null,2,null,null,null,null,2,null,null,null,20200000,null,703000,213000,null,1,95,null,null,null,null,null,1,146.74,null,null,0,null,null,null,null,null,null,null,null,2,null,null,null,null,null,null,null,5,1,1,13,null,null,60,200,190,6.333333333333333,6,5,360,57.575757575757578,2763.6363636363635,4783.636363636364,7.5256556442417327E-2,57,1,90,100,"!",null,null,1,1,null,null,null,null,null,null,null,null,null,null,null,null,null,null,1,2,8.5,1,2,4,null,null,null,null,null,null,null,null,null,null,null,null,null,null,null,1]
[100098910412,1,1,1,"（株）ジー・アイ・シー・リミテッド　","04-7148-6011",null,null,null,2,"2019-05-11",null,null,null,"千葉県","船橋市","駿河台２丁目",null,null,null,null,null,"総武中央線","東船橋",17,null,null,null,null,null,null,null,null,null,null,1,null,2,null,null,null,null,2,null,null,null,19600000,null,683000,207000,null,1,95,null,null,null,null,null,1,146.74,null,null,0,null,null,null,null,null,null,null,null,2,null,null,null,null,null,null,null,5,1,1,13,null,null,60,200,190,6.333333333333333,6,5,360,57.575757575757578,2763.6363636363635,4723.636363636364,7.6212471131639717E-2,57,1,90,100,"!",null,null,1,1,null,null,null,null,null,null,null,null,null,null,null,null,null,null,1,2,8.3000000000000007,1,2,4,null,null,null,null,null,null,null,null,null,null,null,null,null,null,null,1]
[100098910416,1,1,1,"（株）ジー・アイ・シー・リミテッド　","04-7148-6011",null,null,null,2,"2019-05-11",null,null,null,"千葉県","流山市","駒木",null,null,null,null,null,"つくばＥＸ","流山おおたかの森",17,null,null,null,null,null,null,null,null,null,null,1,null,3,201904,null,null,null,2,1,null,null,29900000,null,651000,197000,null,1,152,null,null,null,null,null,2,null,null,null,0,null,null,null,null,null,null,null,null,2,null,null,null,null,null,null,null,1,null,1,1,null,null,60,150,228,7.6,8,5,480,69.090909090909093,3316.3636363636365,6306.363636363636,7.6113593772524149E-2,91.2,3,270,-42,"",null,null,1,1,null,null,null,null,null,null,null,null,null,null,null,null,null,null,1,1,11.8,2,7,6,null,null,null,null,null,null,null,null,null,null,null,null,null,null,null,1]
[100098910420,1,1,1,"（株）ジー・アイ・シー・リミテッド　","04-7148-6011",null,null,null,2,"2019-05-11",null,null,null,"千葉県","流山市","大字西平井",null,null,null,null,null,"つくばＥＸ","南流山",16,null,null,null,null,null,null,null,null,null,null,1,null,1,null,null,null,null,2,null,3,null,54800000,null,426000,129000,null,null,426,null,null,null,null,null,2,null,null,null,null,null,null,null,null,null,null,null,null,2,null,null,null,null,null,null,null,4,null,1,12,null,1,60,200,852,28.4,28,5,1680,258.18181818181819,12392.727272727274,17872.727272727272,9.3997965412004073E-2,255.6,8,720,132,"!",null,null,1,2,null,null,null,null,null,null,null,null,null,null,null,null,null,null,2,1,19.2,2,6,17,null,null,null,null,null,null,null,null,null,null,null,null,null,null,null,1]
[100098910422,1,1,1,"（株）ジー・アイ・シー・リミテッド　","04-7148-6011",null,null,null,2,"2019-05-11",null,null,null,"千葉県","流山市","大字西平井",null,null,null,null,null,"つくばＥＸ","流山セントラルパーク",12,null,null,null,null,null,null,null,null,null,null,1,null,1,null,null,null,null,2,null,3,null,54800000,null,426000,129000,null,null,426,null,null,null,null,null,2,null,null,null,null,null,null,null,null,null,null,null,null,2,null,null,null,null,null,null,null,4,null,1,12,null,1,60,200,852,28.4,28,5,1680,258.18181818181819,12392.727272727274,17872.727272727272,9.3997965412004073E-2,255.6,8,720,132,"!",null,null,1,2,null,null,null,null,null,null,null,null,null,null,null,null,null,null,2,1,19.2,2,6,17,null,null,null,null,null,null,null,null,null,null,null,null,null,null,null,1]
[100098910469,1,1,1,"大和住宅（株）　","047-452-4000",null,null,null,2,"2019-05-11",null,null,null,"千葉県","千葉市若葉区","桜木北３丁目",null,null,null,null,null,"総武線","都賀",13,null,null,null,null,null,null,null,null,null,null,1,null,2,null,null,null,null,1,null,null,null,25000000,null,267000,81000,null,null,310.60000000000002,null,null,null,null,null,null,null,null,null,null,null,null,null,null,null,null,null,null,null,null,null,null,null,null,null,null,null,null,null,null,null,null,null,null,310.60000000000002,10.353333333333333,10,5,600,94.121212121212139,4517.818181818182,7017.818181818182,8.54966578579201E-2,186.36,6,540,-229.39999999999998,"",null,null,1,2]
[100098910537,1,1,1,"東海住宅（株）　八千代支店　","047-484-1110",null,null,null,2,"2019-05-11",null,"2019-08-10",null,"千葉県","八千代市","高津",null,null,null,null,null,"東葉高速線","八千代緑が丘",19,1500,9,"東葉バス","高津団地",5,400,null,null,null,null,2,null,2,null,null,null,null,5,1,null,null,16500000,null,290000,88000,null,1,188.44,null,null,null,null,null,2,null,null,null,0,null,null,null,null,null,null,null,null,null,null,null,null,null,null,null,3,1,null,1,1,null,1,50,100,188.44,6.2813333333333334,6,5,360,57.103030303030309,2740.945454545455,4390.9454545454555,8.198689865922433E-2,94.22,3,270,-81.56,"",null,null,2,2,null,null,null,null,null,null,null,null,null,null,null,null,null,null,2,1,null,2,1,9,1,null,2,7,6,null,null,null,null,null,null,null,null,null,null,1]
[100098910801,1,1,1,"リバティーワールド（株）　","047-401-9450",null,null,null,2,"2019-05-11","2019-05-11",null,null,"千葉県","船橋市","宮本８丁目","2019-10-16",null,null,null,null,"総武中央線","東船橋",13,null,null,null,null,null,null,null,null,null,null,1,null,2,null,null,null,null,1,null,3,null,31800000,null,749000,227000,null,null,140.49,null,null,null,null,null,null,null,null,null,null,null,null,null,null,null,null,null,null,null,null,null,null,null,null,null,null,null,null,1,null,null,null,40,80,112.39200000000001,3.7464000000000004,4,5,240,34.058181818181822,1634.7927272727275,4814.7927272727275,4.9846382512076418E-2,56.196000000000005,1,90,22.39200000000001,"!",null,null,null,null,null,null,null,null,null,null,null,null,null,null,null,null,null,null,1,1,null,null,null,4.7]
[100098912892,1,1,1,"（有）リニューアルハウス　","047-480-7778",null,null,null,2,"2019-05-11",null,null,null,"千葉県","千葉市花見川区","長作町",null,null,null,null,null,"京成本線","実籾",7,null,null,null,null,null,null,null,null,null,null,1,null,2,null,null,null,null,4,1,null,null,20800000,null,357000,108000,null,1,193,null,null,null,null,null,2,null,null,null,null,null,null,null,null,null,null,null,null,null,null,null,null,null,null,null,null,1,null,2,1,null,1,50,100,193,6.4333333333333336,6,5,360,58.484848484848492,2807.2727272727275,4887.2727272727279,7.3660714285714274E-2,96.5,3,270,-77,"",null,null,1,null,null,null,null,null,null,null,null,null,null,null,null,null,null,null,1,1,null,null,null,5,null,null,null,null,null,null,null,null,null,null,null,null,null,null,null,1,null,null,null,null,null,null,null,null,null,null,null,null,null,null,null,null,null,null,null,null,null,null,null,null,null,null,null,null,null,null,null,null,null,null,null,null,null,null,null,null,null,null,null,null,null,null,null,null,null,null,null,null,null,null,null,null,null,null,null,null,null,"農転による建築制限あり　要確認"]
[100098913043,1,1,1,"ハウスオフ（株）　","0436-26-5001",null,null,null,3,"2019-05-12","2019-05-13",null,null,"千葉県","船橋市","三咲７丁目","２９－１９",null,null,null,null,"新京成線","三咲",11,880,null,null,null,null,null,null,null,null,null,2,null,2,null,null,null,null,4,1,null,null,5800000,null,130000,40000,null,1,147.94999999999999,null,null,null,null,null,2,null,null,null,null,null,null,null,null,null,null,null,null,null,null,null,null,null,null,null,null,1,null,2,null,null,1,50,100,147.94999999999999,4.9316666666666666,5,5,300,44.833333333333336,2152,2732,0.10980966325036604,73.974999999999994,2,180,-32.050000000000011,"",null,null,null,null,null,null,null,null,null,null,null,null,null,null,null,null,null,null,null,null,null,null,null,null,null,null,null,null,null,null,null,null,null,null,null,null,null,null,null,null,null,null,null,null,null,null,null,null,null,null,null,null,null,null,null,null,null,null,null,null,null,null,null,null,null,null,null,null,null,null,null,null,null,null,null,null,null,null,null,null,null,null,null,null,null,null,null,null,null,null,null,null,null,null,null,null,null,null,null,null,null,null,"上物あり"]
[100098914449,1,1,1,"三井不動産リアルティ（㈱）三井のリハウス柏の葉キャンパスセンター　","04-7135-6831",null,null,null,2,"2019-05-12","2019-05-13",null,null,"千葉県","柏市","松葉町６丁目",null,null,null,null,null,"常磐緩行線","北柏",null,null,10,null,"松葉町二丁目",2,null,null,null,null,null,2,null,1,null,null,null,null,4,null,null,null,25800000,null,394000,119000,null,1,217,null,null,null,null,null,null,null,null,null,null,null,null,null,null,null,null,null,null,null,null,null,null,null,null,null,3,3,1,1,1,null,1,50,100,217,7.2333333333333334,7,5,420,65.757575757575765,3156.3636363636365,5736.363636363636,7.321711568938194E-2,108.5,3,270,-53,"",null,null,null,2,null,null,null,null,null,null,null,null,null,null,null,null,null,null,1,1,13,2,2,6,null,null,null,null,null,null,null,null,null,null,null,null,null,null,null,1,null,null,null,null,null,null,null,null,null,null,null,null,null,null,null,null,null,null,null,null,null,null,null,null,null,null,null,null,null,null,null,null,null,null,null,null,null,null,null,null,null,null,null,null,null,null,null,null,null,null,null,null,null,null,null,null,null,"サンドラッグ柏松葉町店",300,4,1,"ＦＳＮＷ４Ａ０９　古家有り"]
[100098915040,1,1,1,"京成不動産（株）　八千代台センター","047-487-5558",null,null,null,2,"2019-05-12",null,null,null,"千葉県","八千代市","八千代台東５丁目",null,null,null,null,null,"京成本線","八千代台",18,null,null,null,null,null,null,null,null,null,null,2,null,1,null,null,null,null,4,1,null,null,13900000,null,224000,68000,null,1,205.77,null,null,null,null,null,1,26.45,null,null,1,null,null,null,null,null,null,null,null,null,null,null,null,null,null,null,3,1,null,1,1,null,1,50,100,205.77,6.859,7,5,420,62.354545454545459,2993.0181818181823,4383.0181818181827,9.5824380045298779E-2,102.88500000000001,3,270,-64.22999999999999,"",null,null,1,2,null,null,null,null,null,null,null,null,null,null,null,null,null,null,1,2,13.2,2,6,3.7,null,null,null,null,null,null,null,null,null,null,null,null,null,null,null,1]
[100098915565,1,1,1,"（株）ハウジングサクセス　","03-5988-5266",null,null,null,2,"2019-05-12",null,null,null,"千葉県","野田市","関宿台町","書類作成料１Ｐ",null,null,null,null,"東武野田線","川間",null,null,20,null,"関宿郵便局前",1,null,null,null,null,null,1,null,1,null,null,null,null,3,null,null,null,10500000,null,56000,17000,null,1,627,null,null,null,null,null,null,null,null,null,null,null,null,null,null,null,null,null,null,null,null,null,null,null,null,null,null,null,null,null,null,null,null,null,null,627,20.9,21,5,1260,190,9120,10170,0.12389380530973451,376.2,12,1080,-453,"",null,null,null,2]
[100098915569,1,1,1,"（株）ゆりのきハウジング　","047-487-8882","市橋",null,null,2,"2019-05-12",null,null,null,"千葉県","八千代市","大和田新田",null,null,null,null,null,"東葉高速線","八千代中央",20,null,null,null,null,null,null,null,null,null,null,1,null,2,null,null,null,null,4,1,null,null,32000000,null,362000,110000,null,null,292.24,null,null,null,null,null,null,null,null,null,null,null,null,null,null,null,null,null,null,null,null,null,null,null,null,null,null,1,null,1,1,null,1,60,150,438.36,14.612,15,5,900,132.83636363636364,6376.1454545454553,9576.1454545454544,9.3983534844158209E-2,175.34399999999999,5,450,-11.639999999999986,"",null,null,1,null,null,null,null,null,null,null,null,null,null,null,null,null,null,null,1,null,13.6,null,3,6,null,null,null,null,null,null,null,null,null,null,null,null,null,null,null,1,null,null,null,null,null,null,null,null,null,null,null,null,null,null,null,null,null,null,null,null,null,null,null,null,null,null,null,null,null,null,null,null,null,null,null,null,null,null,null,null,null,null,null,null,null,null,null,null,null,null,null,null,null,null,null,null,null,null,null,null,null,"公簿売買、確定測量は応相談"]
[100098915880,1,1,1,"一建設（株）　柏営業所　","04-7145-5236","中村","04-7145-5236",null,2,"2019-05-12",null,null,null,"千葉県","柏市","豊上町",null,null,null,null,null,"常磐線","柏",25,2000,5,null,null,null,null,null,null,null,null,2,null,4,201907,2,null,null,1,null,null,null,19800000,null,471000,143000,null,1,139,null,null,null,null,null,2,null,null,null,0,null,null,null,null,null,null,null,null,null,null,null,null,null,null,null,null,1,null,1,1,null,null,50,100,139,4.6333333333333337,5,5,300,42.121212121212125,2021.818181818182,4001.818181818182,7.4965924579736484E-2,69.5,2,180,-41,"",null,null,1,2,null,null,null,null,null,null,null,null,null,null,null,null,null,null,1,1,null,2,3,6,null,null,null,null,null,null,null,null,null,null,null,null,null,null,null,1,null,null,null,null,null,null,null,null,null,null,null,null,null,null,null,null,null,null,null,null,null,null,null,null,null,null,null,null,null,null,null,null,null,null,null,null,null,null,null,null,null,null,null,null,null,null,null,null,null,null,null,null,null,null,null,null,null,null,null,null,null,"豊上町　１区画",null,"豊上町"]
[100098916090,1,1,1,"（株）山一ハウス　","047-362-0021","山下昌弘",null,null,2,"2019-05-12","2019-05-12",null,null,"千葉県","松戸市","常盤平２丁目",null,null,null,null,null,"新京成線","常盤平",3,null,null,null,null,null,null,null,null,null,null,1,null,2,null,null,null,null,1,null,3,null,44800000,null,655000,198000,null,2,226.41,null,null,null,null,null,2,null,null,null,0,null,null,null,null,null,null,null,null,null,null,null,null,null,null,null,null,1,null,1,12,null,1,60,200,452.82,15.093999999999999,15,5,900,137.21818181818182,6586.4727272727278,11066.472727272729,8.1326726426750082E-2,135.846,4,360,92.82,"!",null,null,null,2,null,null,null,null,null,null,null,null,null,null,null,null,null,null,1,1,11.1,null,1,6,null,null,null,null,null,null,null,null,null,null,null,null,null,null,null,1]
[100098916471,1,1,1,"（株）キャンドゥコーポレーション　","047-473-7755",null,null,null,2,"2019-05-12","2019-05-12",null,null,"千葉県","千葉市美浜区","幕張西６丁目","2019-10-09",null,null,null,null,"総武中央線","幕張本郷",22,1760,null,null,null,null,null,null,null,null,null,2,null,2,null,null,null,null,4,1,null,null,39800000,null,604000,183000,null,null,218.15,null,null,null,null,null,null,null,null,null,null,null,null,null,null,null,null,null,null,null,null,null,null,null,null,null,null,1,null,1,1,null,1,50,100,218.15,7.2716666666666665,7,5,420,66.106060606060609,3173.0909090909095,7153.0909090909099,5.8715876162879356E-2,109.075,3,270,-51.849999999999994,"",null,null,1,null,null,null,null,null,null,null,null,null,null,null,null,null,null,null,null,null,null,null,8,5.9,null,null,null,4,16]
[100098916499,1,1,1,"（株）東洋ハウジング　","047-498-6481","遠藤","047-498-6481","endo@toyo-housing.jp",2,"2019-05-12","2019-05-13",null,null,"千葉県","船橋市","八木が谷２丁目","2019-01-28",null,null,null,null,"新京成線","二和向台",18,1440,null,null,null,null,null,null,null,null,null,2,null,2,null,null,null,null,3,1,null,null,6980000,null,140000,43000,null,1,165.34,null,null,null,null,null,1,51.36,null,null,null,null,null,null,null,null,null,null,null,null,null,null,null,null,null,null,null,1,null,1,1,null,1,60,150,248.01,8.2669999999999995,8,5,480,75.154545454545456,3607.4181818181814,4305.4181818181814,0.11148742810327791,99.203999999999994,3,270,-21.990000000000009,"",null,null,null,1,null,null,null,null,null,null,null,null,null,null,null,null,null,null,5,2,null,1,6,4,2,null,1,8,4,null,null,null,null,null,null,null,null,null,null,null,null,null,null,null,null,null,null,null,null,null,null,null,null,null,null,null,null,null,null,null,null,null,null,null,null,null,null,null,null,null,null,null,null,null,null,null,null,null,null,null,null,null,null,null,null,null,null,null,null,null,null,null,null,null,null,null,null,null,null,null,null,null,"解体・測量後引渡し"]
[100098916519,1,1,1,"（株）キャンドゥコーポレーション　","047-473-7755",null,null,null,2,"2019-05-12","2019-05-12",null,null,"千葉県","千葉市中央区","仁戸名町","５１９番地１３他",null,null,null,null,"京成千原線","大森台",10,800,null,null,null,null,null,null,null,null,null,1,null,2,null,null,null,null,4,1,null,null,23800000,null,104000,32000,null,null,762.07,null,null,null,null,null,null,null,null,null,null,null,null,null,null,null,null,null,null,null,null,null,null,null,null,null,null,1,null,1,2,null,1,60,200,1524.14,50.80466666666667,51,5,3060,461.86060606060613,22169.309090909093,24549.309090909093,0.12464709245659199,457.24200000000002,15,1350,174.1400000000001,"!",null,null,null,null,null,null,null,null,null,null,null,null,null,null,null,null,null,null,null,1,2.2999999999999998,null,8,4]
[100098918388,1,1,1,"（株）サンアイク不動産　","0475-47-2323",null,null,null,3,"2019-05-12",null,null,null,"千葉県","茂原市","小林","2033-02-01",null,null,null,null,"外房線","茂原",27,2100,null,null,null,null,null,null,null,null,null,null,null,2,null,null,null,null,4,1,null,null,44800000,null,129000,39000,null,1,1157,null,null,null,null,null,2,null,null,null,0,null,null,null,null,null,null,null,null,null,null,null,null,null,null,null,null,2,null,3,11,null,1,60,200,2314,77.13333333333334,77,5,4620,701.21212121212125,33658.181818181816,38138.181818181816,0.12113844393592678,694.19999999999993,23,2070,244,"!",null,null,1,2,null,null,null,null,null,null,null,null,null,null,null,null,null,null,2,1,null,null,3,9,1,null,null,5,5,null,null,null,null,null,null,null,null,null,null,1]
[100098918392,1,1,1,"大忠不動産（株）馬橋駅前支店　","047-343-3442",null,null,null,2,"2019-05-12",null,null,null,"千葉県","松戸市","二ツ木","４４３－１",null,null,null,null,"常磐緩行線","新松戸",8,null,null,null,null,null,null,null,null,null,null,1,null,2,null,null,null,null,1,null,null,null,26800000,null,709000,215000,null,null,125.01,null,null,null,null,null,null,null,null,null,null,null,null,null,null,null,null,null,null,null,null,null,null,null,null,null,3,1,null,1,1,null,null,50,100,125.01,4.1669999999999998,4,5,240,37.881818181818183,1818.3272727272727,4498.3272727272724,5.3353165621160194E-2,62.505000000000003,2,180,-54.989999999999995,"",null,null,null,null,null,null,null,null,null,null,null,null,null,null,null,null,null,null,null,null,null,null,5,7.3]
[100098918663,1,1,1,"住友不動産販売（株）　新松戸営業センター","047-343-2828","伊藤　功","047-343-2828",null,2,"2019-05-12","2019-05-13",null,null,"千葉県","柏市","高田",null,null,null,null,null,"常磐線","柏",20,1600,null,null,null,null,null,null,null,null,null,2,null,2,null,null,null,null,4,1,null,null,24800000,null,266000,81000,null,2,309.06,null,null,null,null,null,2,null,null,null,null,null,null,null,null,null,null,null,null,2,null,null,null,null,null,null,3,1,1,1,1,null,1,60,150,463.59000000000003,15.453000000000001,15,5,900,140.4818181818182,6743.1272727272735,9223.1272727272735,9.7580785062057432E-2,185.43600000000001,6,540,-76.409999999999968,"",null,null,1,2,null,null,null,null,null,null,null,null,null,null,null,null,null,null,1,1,18.5,2,6,8,null,null,null,null,0,null,null,null,null,0,null,null,null,null,0,1]
[100098918664,1,1,1,"住友不動産販売（株）　新松戸営業センター","047-343-2828","矢内寛章","047-343-2828",null,2,"2019-05-12","2019-05-13",null,null,"千葉県","松戸市","秋山２丁目",null,null,null,null,null,"武蔵野線","東松戸",11,880,null,null,null,null,null,null,null,null,null,1,null,2,null,null,null,null,4,1,null,null,28800000,null,601000,182000,null,1,158.66,null,null,null,null,null,2,null,null,null,null,null,null,null,null,null,null,null,null,2,null,null,null,null,null,null,3,3,1,1,11,null,1,50,150,237.99,7.9330000000000007,8,5,480,72.118181818181824,3461.6727272727276,6341.6727272727276,7.5689809399298147E-2,79.33,2,180,57.990000000000009,"!",null,null,1,2,null,null,null,null,null,null,null,null,null,null,null,null,null,null,1,1,7.9,2,7,6,null,null,null,null,0,null,null,null,null,0,null,null,null,null,0,1,null,null,null,null,null,null,null,null,null,null,null,null,null,null,null,null,null,null,null,null,null,null,null,null,null,null,null,null,null,null,null,null,null,null,null,null,null,null,null,null,null,null,null,null,null,null,null,null,null,null,null,null,null,null,null,null,null,null,null,null,null,"秋山地区地区計画区域","【契約にあたっては、農地法の届出を要す】"]
[100098918711,1,1,1,"住友不動産販売（株）　船橋営業センター","047-423-6321","飯島　弘樹","047-423-6321",null,2,"2019-05-12",null,null,null,"千葉県","船橋市","夏見台４丁目",null,null,null,null,null,"総武中央線","船橋",null,null,8,null,"三軒家",4,320,null,null,null,null,2,null,2,null,null,null,null,4,1,null,null,23000000,null,552000,167000,null,1,137.79,null,null,null,null,null,2,null,null,null,null,null,null,null,null,null,null,null,null,null,null,null,null,null,null,null,3,1,null,1,1,null,1,50,100,137.79,4.593,5,5,300,41.754545454545458,2004.2181818181818,4304.2181818181816,6.9699068989405741E-2,68.894999999999996,2,180,-42.210000000000008,"",null,null,1,2,null,null,null,null,null,null,null,null,null,null,null,null,null,null,1,1,9.6999999999999993,2,8,6,null,null,null,null,0,null,null,null,null,0,null,null,null,null,0,1,null,null,null,null,null,null,null,null,null,null,null,null,null,null,null,null,null,null,null,null,null,null,null,null,null,null,null,null,null,null,null,null,null,null,null,null,null,null,null,null,null,null,null,null,null,null,null,null,null,null,null,null,null,null,null,null,null,"ミニストップ船橋夏見台店",260,4,1]
[100098918898,1,1,1,"ホームズ不動産販売（株）　","043-246-9888",null,null,null,2,"2019-05-12",null,null,null,"千葉県","千葉市緑区","平川町",null,null,null,null,null,"外房線","誉田",null,null,5,"中央バス","平川入口",1,null,null,null,null,null,2,null,2,null,null,null,null,3,1,null,null,6500000,null,55000,17000,null,1,391.77,null,null,null,null,null,null,null,null,null,null,null,null,null,null,null,null,null,null,null,null,null,null,null,null,null,null,null,1,2,99,null,null,60,200,783.54,26.117999999999999,26,5,1560,237.43636363636364,11396.945454545456,12046.945454545456,0.12949340609916959,235.06199999999998,7,630,153.53999999999996,"!",null,null,null,2,null,null,null,null,null,null,null,null,null,null,null,null,null,null,null,1,15.8,2,5,3.8]
[100098921805,1,1,1,"アルフォート（株）　","047-473-7560",null,null,null,2,"2019-05-12",null,null,null,"千葉県","八千代市","米本",null,null,null,null,null,"東葉高速線","村上",58,null,null,null,null,null,null,10,null,null,null,null,null,2,null,null,null,null,4,1,null,null,15700000,null,16000,5000,null,null,3450,null,null,null,null,null,null,null,null,null,null,null,null,null,null,null,null,null,null,null,null,null,null,null,null,null,null,4,4,2,99,null,null,60,200,6900,230,230,5,13800,2090.909090909091,100363.63636363637,101933.63636363637,0.13538220054045857,2070,69,6210,690,"!"]
[100098921822,1,1,1,"アルフォート（株）　","047-473-7560",null,null,null,2,"2019-05-12",null,null,null,"千葉県","八街市","八街に",null,null,null,null,null,"総武線","八街",22,null,null,null,null,null,null,null,null,null,null,null,null,1,null,null,null,null,4,1,null,null,35900000,null,51000,16000,null,null,2372.1999999999998,null,null,null,null,null,null,null,null,null,null,null,null,null,null,null,null,null,null,null,null,null,null,null,null,null,null,1,null,3,12,null,null,60,200,4744.3999999999996,158.14666666666665,158,5,9480,1437.6969696969697,69009.454545454544,72599.454545454544,0.13057949345975553,1423.32,47,4230,514.39999999999964,"!",null,null,null,null,null,null,null,null,null,null,null,null,null,null,null,null,null,null,1,1,null,null,5,3.6,null,null,null,null,null,null,null,null,null,null,null,null,null,null,null,null,null,null,null,null,null,null,null,null,null,null,null,null,null,null,null,null,null,null,null,null,null,null,null,null,null,null,null,null,null,null,null,null,null,null,null,null,null,null,null,null,null,null,null,null,null,null,null,null,null,null,null,null,null,null,null,null,null,null,null,null,null,"セットバック要"]
[100098924553,1,1,1,"（有）さくら不動産　","047-349-7310",null,null,null,2,"2019-05-12",null,null,null,"千葉県","松戸市","常盤平西窪町","２２－３６",null,null,null,null,"武蔵野線","新八柱",10,null,null,null,null,null,null,null,null,null,null,1,null,1,null,null,null,null,4,1,null,null,12800000,null,554000,168000,null,2,76.48,null,null,null,null,null,1,14.04,null,null,null,null,null,null,null,null,null,null,null,null,null,null,null,null,null,null,null,1,null,1,1,null,1,50,100,76.48,2.5493333333333337,3,5,180,23.175757575757579,1112.4363636363639,2392.4363636363641,7.5237110894941617E-2,38.24,1,90,-13.519999999999996,"",null,null,1,2,null,null,null,null,null,null,null,null,null,null,null,null,null,null,2,1,4.2,null,3,8,2,11.3,2,5,4,null,null,null,null,null,null,null,null,null,null,1]
[100098924599,1,1,1,"（株）グリーンプラザ　","03-3650-2220",null,null,null,2,"2019-05-12",null,null,null,"千葉県","山武郡横芝光町","北清水","6647-01-01",null,null,null,null,"総武線","横芝",null,null,null,null,null,null,null,2.7,null,null,null,null,null,1,null,null,null,null,4,1,null,null,8330000,null,50000,16000,null,1,550.89,null,null,null,null,null,2,null,null,null,null,null,null,null,null,null,null,null,null,null,null,null,null,null,null,null,null,1,null,3,99,null,null,60,200,1101.78,36.725999999999999,37,5,2220,333.87272727272727,16025.890909090909,16858.890909090907,0.13168126017132586,330.53399999999999,11,990,111.77999999999997,"!"]
[100098926551,1,1,1,"（株）都通商　","03-3690-3850",null,null,null,3,"2019-05-12",null,null,null,"千葉県","松戸市","新松戸７丁目","２７４－２",null,null,null,null,"つくばＥＸ","南流山",12,null,null,null,null,null,null,null,null,null,null,1,null,2,null,null,null,null,4,1,null,null,25000000,null,773000,234000,null,1,107,null,null,null,null,null,null,null,null,null,null,null,null,null,null,null,null,null,null,null,null,null,null,null,null,null,null,3,null,1,11,null,null,70,200,214,7.1333333333333337,7,5,420,64.848484848484858,3112.7272727272734,5612.7272727272739,7.4829931972789102E-2,74.899999999999991,2,180,34,"!",null,null,5,2,null,null,null,null,null,null,null,null,null,null,null,null,null,null,5,1,7.4,2,7,6,null,null,null,null,null,null,null,null,null,null,null,null,null,null,null,null,null,null,null,null,null,null,null,null,null,null,null,null,null,null,null,null,null,null,null,null,null,null,null,null,null,null,null,null,null,null,null,null,null,null,null,null,null,null,null,null,null,null,null,null,null,null,null,null,null,null,null,null,null,null,null,null,null,null,null,null,null,"居住誘導区域内","都市機能誘導区域外、法２２条区域"]
[100098927313,1,1,1,"三幸商事（株）　","043-263-3535","堤",null,null,2,"2019-05-12",null,null,null,"千葉県","市原市","能満",null,null,null,null,null,"内房線","八幡宿",null,null,null,null,null,null,null,6,null,null,null,1,null,2,null,null,null,null,3,1,null,null,7500000,null,32000,10000,null,1,787,null,null,null,null,null,1,null,null,null,null,null,null,null,null,null,null,null,null,null,null,null,null,null,null,null,null,3,null,2,99,null,13,null,null,787,26.233333333333334,26,5,1560,238.4848484848485,11447.272727272728,12197.272727272728,0.12789744354177535,472.2,15,1350,-563,"",null,null,1,null,null,null,null,null,null,null,null,null,null,null,null,null,null,null,1,2,49.8,null,1,4,null,null,null,null,null,null,null,null,null,null,null,null,null,null,null,2]
[100098927921,1,1,1,"三菱ＵＦＪ不動産販売（株）　柏センター","04-7144-9595","渡部",null,null,2,"2019-05-12",null,"2019-07-25",null,"千葉県","我孫子市","つくし野１丁目",null,null,null,null,null,"常磐線","我孫子",16,null,null,null,null,null,null,null,null,null,null,2,null,2,null,null,null,null,4,1,null,null,17000000,null,326000,99000,null,1,172.49,null,null,null,null,null,2,null,null,null,null,null,null,null,null,null,null,null,null,null,null,null,null,null,null,null,3,1,null,1,1,null,null,50,100,172.49,5.7496666666666671,6,5,360,52.269696969696973,2508.9454545454546,4208.9454545454546,8.5532113420766165E-2,86.245000000000005,2,180,-7.5099999999999909,"",null,null,1,2,null,null,null,null,null,null,null,null,null,null,null,null,null,null,1,1,null,null,2,12]
[100098927948,1,1,1,"（株）ジー・アイ・シー・リミテッド　","04-7148-6011",null,null,null,2,"2019-05-12",null,null,null,"千葉県","習志野市","泉町３丁目",null,null,null,null,null,"京成本線","京成大久保",19,null,null,null,null,null,null,null,null,null,null,1,null,2,null,null,null,null,2,null,null,null,18800000,null,563000,171000,null,1,110.54,null,null,null,null,null,2,null,null,null,0,null,null,null,null,null,null,null,null,2,null,null,null,null,null,null,null,1,null,1,11,null,null,60,200,221.08,7.3693333333333335,7,5,420,66.993939393939399,3215.7090909090912,5095.7090909090912,8.2422287557445836E-2,66.323999999999998,2,180,41.080000000000013,"!",null,null,1,2,null,null,null,null,null,null,null,null,null,null,null,null,null,null,1,1,7.9,2,7,5.4,null,null,null,null,null,null,null,null,null,null,null,null,null,null,null,1]
[100098927975,1,1,1,"（株）ジー・アイ・シー・リミテッド　","04-7148-6011",null,null,null,2,"2019-05-12",null,null,null,"千葉県","習志野市","泉町３丁目",null,null,null,null,null,"京成本線","京成大久保",19,null,null,null,null,null,null,null,null,null,null,1,null,2,null,null,null,null,2,null,null,null,21200000,null,586000,178000,null,1,119.69,null,null,null,null,null,2,null,null,null,0,null,null,null,null,null,null,null,null,2,null,null,null,null,null,null,null,1,null,1,11,null,null,60,200,239.38,7.9793333333333329,8,5,480,72.539393939393946,3481.8909090909096,5601.8909090909092,8.568535299768909E-2,71.813999999999993,2,180,59.379999999999995,"!",null,null,1,2,null,null,null,null,null,null,null,null,null,null,null,null,null,null,2,1,8.6,2,5,6,null,null,null,null,null,null,null,null,null,null,null,null,null,null,null,1]
[100098928030,1,1,1,"創建住販（株）　中央店　","043-214-6130",null,null,null,2,"2019-05-12",null,null,null,"千葉県","千葉市稲毛区","稲丘町",null,null,null,null,null,"総武線","稲毛",14,null,null,null,null,null,null,null,null,null,null,1,null,1,null,null,null,null,1,4,3,null,32900000,null,804000,244000,null,1,135.38999999999999,null,null,null,null,null,2,null,null,null,0,null,null,null,null,null,null,null,null,null,null,null,null,null,null,null,null,1,null,1,1,null,1,60,150,203.08499999999998,6.769499999999999,7,5,420,61.540909090909089,2953.9636363636359,6243.9636363636364,6.7264965726898412E-2,81.233999999999995,2,180,23.08499999999998,"!",null,null,null,2,null,null,null,null,null,null,null,null,null,null,null,null,null,null,1,1,4,null,6,4.9000000000000004,null,null,null,null,null,null,null,null,null,null,null,null,null,null,null,1]
[100098928119,1,1,1,"（株）ジー・アイ・シー・リミテッド　","04-7148-6011",null,null,null,2,"2019-05-12",null,null,null,"千葉県","八千代市","緑が丘西７丁目",null,null,null,null,null,"東葉高速線","八千代緑が丘",23,null,null,null,null,null,null,null,null,null,null,1,null,2,null,null,null,null,2,null,null,null,15500000,null,361000,110000,null,1,142.06,null,null,null,null,null,2,null,null,null,0,null,null,null,null,null,null,null,null,2,null,null,null,null,null,null,null,1,null,1,1,12,null,null,null,142.06,4.7353333333333332,5,5,300,43.048484848484854,2066.3272727272729,3616.3272727272729,8.2957093585656963E-2,85.236000000000004,2,180,-37.94,"",null,null,1,2,null,null,null,null,null,null,null,null,null,null,null,null,null,null,1,1,7.7,2,7,16,null,null,null,null,null,null,null,null,null,null,null,null,null,null,null,1]
[100098928131,1,1,1,"（株）ジー・アイ・シー・リミテッド　","04-7148-6011",null,null,null,2,"2019-05-12",null,null,null,"千葉県","八千代市","緑が丘西７丁目",null,null,null,null,null,"東葉高速線","八千代緑が丘",23,null,null,null,null,null,null,null,null,null,null,1,null,2,null,null,null,null,2,null,null,null,15500000,null,361000,109000,null,1,142.26,null,null,null,null,null,2,null,null,null,0,null,null,null,null,null,null,null,null,2,null,null,null,null,null,null,null,1,null,1,1,12,null,null,null,142.26,4.742,5,5,300,43.109090909090909,2069.2363636363639,3619.2363636363639,8.2890413849229863E-2,85.355999999999995,2,180,-37.740000000000009,"",null,null,1,2,null,null,null,null,null,null,null,null,null,null,null,null,null,null,1,1,7.8,2,7,16,null,null,null,null,null,null,null,null,null,null,null,null,null,null,null,1]
[100098928139,1,1,1,"（株）ジー・アイ・シー・リミテッド　","04-7148-6011",null,null,null,2,"2019-05-12",null,null,null,"千葉県","八千代市","緑が丘西７丁目",null,null,null,null,null,"東葉高速線","八千代緑が丘",23,null,null,null,null,null,null,null,null,null,null,1,null,2,null,null,null,null,2,null,null,null,14300000,null,348000,105000,null,1,136.21,null,null,null,null,null,2,null,null,null,0,null,null,null,null,null,null,null,null,2,null,null,null,null,null,null,null,1,null,1,1,12,null,null,null,136.21,4.5403333333333338,5,5,300,41.275757575757581,1981.2363636363639,3411.2363636363639,8.7944653498065212E-2,81.725999999999999,2,180,-43.789999999999992,"",null,null,1,2,null,null,null,null,null,null,null,null,null,null,null,null,null,null,1,1,5.8,2,7,16,null,null,null,null,null,null,null,null,null,null,null,null,null,null,null,1]
[100098928206,1,1,1,"（株）ジー・アイ・シー・リミテッド　","04-7148-6011",null,null,null,2,"2019-05-12",null,null,null,"千葉県","八千代市","緑が丘西７丁目",null,null,null,null,null,"東葉高速線","八千代緑が丘",23,null,null,null,null,null,null,null,null,null,null,1,null,2,null,null,null,null,2,null,null,null,14800000,null,363000,110000,null,1,135.13999999999999,null,null,null,null,null,2,null,null,null,0,null,null,null,null,null,null,null,null,2,null,null,null,null,null,null,null,1,null,1,1,12,null,null,null,135.13999999999999,4.5046666666666662,5,5,300,40.951515151515153,1965.6727272727271,3445.6727272727271,8.7065726708598926E-2,81.083999999999989,2,180,-44.860000000000014,"",null,null,1,2,null,null,null,null,null,null,null,null,null,null,null,null,null,null,1,1,8,2,7,16,null,null,null,null,null,null,null,null,null,null,null,null,null,null,null,1]
[100098928214,1,1,1,"（株）ジー・アイ・シー・リミテッド　","04-7148-6011",null,null,null,2,"2019-05-12",null,null,null,"千葉県","八千代市","緑が丘西７丁目",null,null,null,null,null,"東葉高速線","八千代緑が丘",23,null,null,null,null,null,null,null,null,null,null,1,null,2,null,null,null,null,2,null,null,null,16200000,null,364000,110000,null,1,147.29,null,null,null,null,null,2,null,null,null,0,null,null,null,null,null,null,null,null,2,null,null,null,null,null,null,null,1,null,1,1,12,null,null,null,{"$f":"IF(ISBLANK(CI323),100,CI323)/100*BA323","v":147.29},{"$f":"CJ323/30","v":4.9096666666666664},{"$f":"ROUND(CK323,0)","v":5},5,{"$f":"CM323*12*CL323","v":300},{"$f":"CJ323/3.3","v":44.633333333333333},{"$f":"CO323*40*1.2","v":2142.3999999999996},{"$f":"CP323+(AU323/10000)","v":3762.3999999999996},{"$f":"CN323/CQ323","v":7.9736338507335747E-2},{"$f":"IF(ISBLANK(CH323),60,CH323)/100*BA323","v":88.373999999999995},{"$f":"ROUNDDOWN((CS323/30),0)","v":2},{"$f":"CT323*30*3","v":180},{"$f":"CJ323-CU323","v":-32.710000000000008},{"$f":"IF(CV323>0, \"!\",\"\")","v":""},null,null,1,2,null,null,null,null,null,null,null,null,null,null,null,null,null,null,1,1,9.4,2,7,16,null,null,null,null,null,null,null,null,null,null,null,null,null,null,null,1]
[100098928224,1,1,1,"（株）ジー・アイ・シー・リミテッド　","04-7148-6011",null,null,null,2,"2019-05-12",null,null,null,"千葉県","八千代市","緑が丘西７丁目",null,null,null,null,null,"東葉高速線","八千代緑が丘",23,null,null,null,null,null,null,null,null,null,null,1,null,2,null,null,null,null,2,null,null,null,17300000,null,353000,107000,null,1,162.13999999999999,null,null,null,null,null,2,null,null,null,0,null,null,null,null,null,null,null,null,2,null,null,null,null,null,null,null,1,null,1,1,12,null,null,null,162.13999999999999,5.4046666666666665,5,5,300,49.133333333333333,2358.3999999999996,4088.3999999999996,7.3378338714411517E-2,97.283999999999992,3,270,-107.86000000000001,"",null,null,1,2,null,null,null,null,null,null,null,null,null,null,null,null,null,null,2,1,19.5,2,7,16,null,null,null,null,null,null,null,null,null,null,null,null,null,null,null,1]
[100098928226,1,1,1,"（株）ジー・アイ・シー・リミテッド　","04-7148-6011",null,null,null,2,"2019-05-12",null,null,null,"千葉県","八千代市","緑が丘西７丁目",null,null,null,null,null,"東葉高速線","八千代緑が丘",23,null,null,null,null,null,null,null,null,null,null,1,null,2,null,null,null,null,2,null,null,null,15800000,null,361000,109000,null,1,145.03,null,null,null,null,null,2,null,null,null,0,null,null,null,null,null,null,null,null,2,null,null,null,null,null,null,null,1,null,1,1,12,null,null,null,145.03,4.8343333333333334,5,5,300,43.948484848484853,2109.5272727272727,3689.5272727272727,8.1311229820031139E-2,87.018000000000001,2,180,-34.97,"",null,null,1,2,null,null,null,null,null,null,null,null,null,null,null,null,null,null,1,1,7.8,2,2,6,null,null,null,null,null,null,null,null,null,null,null,null,null,null,null,1]
[100098928230,1,1,1,"（株）ジー・アイ・シー・リミテッド　","04-7148-6011",null,null,null,2,"2019-05-12",null,null,null,"千葉県","八千代市","緑が丘西７丁目",null,null,null,null,null,"東葉高速線","八千代緑が丘",23,null,null,null,null,null,null,null,null,null,null,1,null,2,null,null,null,null,2,null,null,null,15800000,null,360000,109000,null,1,145.21,null,null,null,null,null,2,null,null,null,0,null,null,null,null,null,null,null,null,2,null,null,null,null,null,null,null,1,null,1,1,12,null,null,null,145.21,4.8403333333333336,5,5,300,44.003030303030307,2112.1454545454544,3692.1454545454544,8.1253570232631439E-2,87.126000000000005,2,180,-34.789999999999992,"",null,null,2,2,null,null,null,null,null,null,null,null,null,null,null,null,null,null,1,1,8.8000000000000007,2,2,6,null,null,null,null,null,null,null,null,null,null,null,null,null,null,null,1]
[100098928234,1,1,1,"（株）ジー・アイ・シー・リミテッド　","04-7148-6011",null,null,null,2,"2019-05-12",null,null,null,"千葉県","八千代市","緑が丘西７丁目",null,null,null,null,null,"東葉高速線","八千代緑が丘",23,null,null,null,null,null,null,null,null,null,null,1,null,2,null,null,null,null,2,null,null,null,15000000,null,364000,110000,null,1,136.54,null,null,null,null,null,2,null,null,null,0,null,null,null,null,null,null,null,null,2,null,null,null,null,null,null,null,1,null,1,1,12,null,null,null,136.54,4.551333333333333,5,5,300,41.375757575757575,1986.0363636363636,3486.0363636363636,8.6057622097511111E-2,81.923999999999992,2,180,-43.460000000000008,"",null,null,null,2,null,null,null,null,null,null,null,null,null,null,null,null,null,null,2,1,5.0999999999999996,2,2,6,1,9.5,2,3,6,null,null,null,null,null,null,null,null,null,null,1]
[100098929182,1,1,1,"（株）ジー・アイ・シー・リミテッド　","04-7148-6011",null,null,null,2,"2019-05-12",null,null,null,"千葉県","八千代市","緑が丘西７丁目",null,null,null,null,null,"東葉高速線","八千代緑が丘",23,null,null,null,null,null,null,null,null,null,null,1,null,2,null,null,null,null,2,null,null,null,17300000,null,391000,119000,null,1,146.47,null,null,null,null,null,2,null,null,null,0,null,null,null,null,null,null,null,null,2,null,null,null,null,null,null,null,1,null,1,1,12,null,null,null,146.47,4.8823333333333334,5,5,300,44.38484848484849,2130.4727272727273,3860.4727272727273,7.7710690165123442E-2,87.881999999999991,2,180,-33.53,"",null,null,null,2,null,null,null,null,null,null,null,null,null,null,null,null,null,null,1,1,9.6999999999999993,2,3,6,null,null,null,null,null,null,null,null,null,null,null,null,null,null,null,1]
[100098929188,1,1,1,"創建住販（株）　中央店　","043-214-6130",null,null,null,2,"2019-05-12","2019-05-12",null,null,"千葉県","八千代市","緑が丘西１丁目","2019-02-01",null,null,null,null,"東葉高速線","八千代緑が丘",5,null,null,null,null,null,null,null,null,null,null,1,null,2,null,null,null,null,1,4,3,null,29500000,null,535000,162000,null,2,182.51,null,null,null,null,null,2,null,null,null,0,null,null,null,null,null,null,null,null,2,null,null,null,null,null,null,null,1,null,1,3,null,1,60,200,365.02,12.167333333333334,12,5,720,110.61212121212121,5309.3818181818178,8259.3818181818169,8.7173594325791512E-2,109.50599999999999,3,270,95.019999999999982,"!",null,null,1,2,null,null,null,null,null,null,null,null,null,null,null,null,null,null,2,1,null,null,1,6,1,null,null,7,6,null,null,null,null,null,null,null,null,null,null,1]
[100098929370,1,1,1,"（株）ジー・アイ・シー・リミテッド　","04-7148-6011",null,null,null,2,"2019-05-12",null,null,null,"千葉県","八千代市","緑が丘西７丁目",null,null,null,null,null,"東葉高速線","八千代緑が丘",23,null,null,null,null,null,null,null,null,null,null,1,null,2,null,null,null,null,2,null,null,null,11700000,null,287000,87000,null,1,135.15,null,null,null,null,null,2,null,null,null,0,null,null,null,null,null,null,null,null,1,null,null,null,null,null,null,null,1,null,1,1,12,null,null,null,135.15,4.5049999999999999,5,5,300,40.95454545454546,1965.818181818182,3135.818181818182,9.566881196729865E-2,81.09,2,180,-44.849999999999994,"",null,null,1,2,null,null,null,null,null,null,null,null,null,null,null,null,null,null,1,1,2.7,2,3,6,null,null,null,null,null,null,null,null,null,null,null,null,null,null,null,1]
[100098929520,1,1,1,"（株）ジー・アイ・シー・リミテッド　","04-7148-6011",null,null,null,2,"2019-05-12",null,null,null,"千葉県","八千代市","緑が丘西７丁目",null,null,null,null,null,"東葉高速線","八千代緑が丘",23,null,null,null,null,null,null,null,null,null,null,1,null,2,null,null,null,null,2,null,null,null,11300000,null,277000,84000,null,1,135.15,null,null,null,null,null,2,null,null,null,0,null,null,null,null,null,null,null,null,1,null,null,null,null,null,null,null,1,null,1,1,12,null,null,null,135.15,4.5049999999999999,5,5,300,40.95454545454546,1965.818181818182,3095.818181818182,9.6904915722088439E-2,81.09,2,180,-44.849999999999994,"",null,null,1,2,null,null,null,null,null,null,null,null,null,null,null,null,null,null,1,1,2.7,2,3,6,null,null,null,null,null,null,null,null,null,null,null,null,null,null,null,1]
[100098929629,1,1,1,"（株）ジー・アイ・シー・リミテッド　","04-7148-6011",null,null,null,2,"2019-05-12",null,null,null,"千葉県","八千代市","緑が丘西７丁目",null,null,null,null,null,"東葉高速線","八千代緑が丘",23,null,null,null,null,null,null,null,null,null,null,1,null,2,null,null,null,null,2,null,null,null,16500000,null,375000,114000,null,1,145.78,null,null,null,null,null,2,null,null,null,0,null,null,null,null,null,null,null,null,2,null,null,null,null,null,null,null,1,null,1,null,null,null,null,null,145.78,4.8593333333333337,5,5,300,44.175757575757579,2120.4363636363637,3770.4363636363637,7.9566387300240141E-2,87.468000000000004,2,180,-34.22,"",null,null,1,2,null,null,null,null,null,null,null,null,null,null,null,null,null,null,1,1,9.1,2,3,6,null,null,null,null,null,null,null,null,null,null,null,null,null,null,null,1]
[100098929646,1,1,1,"（株）ジー・アイ・シー・リミテッド　","04-7148-6011",null,null,null,2,"2019-05-12",null,null,null,"千葉県","八千代市","緑が丘西７丁目",null,null,null,null,null,"東葉高速線","八千代緑が丘",23,null,null,null,null,null,null,null,null,null,null,1,null,2,null,null,null,null,2,null,null,null,11700000,null,287000,87000,null,1,135.11000000000001,null,null,null,null,null,2,null,null,null,0,null,null,null,null,null,null,null,null,1,null,null,null,null,null,null,null,1,null,1,1,12,null,null,null,135.11000000000001,4.5036666666666667,5,5,300,40.942424242424252,1965.2363636363639,3135.2363636363639,9.5686565606188878E-2,81.066000000000003,2,180,-44.889999999999986,"",null,null,1,2,null,null,null,null,null,null,null,null,null,null,null,null,null,null,1,1,2.7,2,3,6,null,null,null,null,null,null,null,null,null,null,null,null,null,null,null,1]
[100098929649,1,1,1,"（株）プレシ－ク　","04-7176-1611","柴田","090-2483-5955","shibata@preseek.jp",2,"2019-05-12",null,null,null,"千葉県","野田市","山崎","１６０６－９",null,null,null,null,"東武野田線","梅郷",10,null,null,null,null,null,null,null,null,null,null,2,null,2,null,null,null,null,5,1,null,null,13500000,null,281000,85000,null,1,159.22,null,null,null,null,null,2,null,null,null,0,null,null,null,null,null,null,null,null,null,null,null,null,null,null,null,null,1,null,1,1,null,1,50,100,159.22,5.3073333333333332,5,5,300,48.24848484848485,2315.9272727272728,3665.9272727272728,8.1834684018926129E-2,79.61,2,180,-20.78,"",null,null,1,2,null,null,null,null,null,null,null,null,null,null,null,null,null,null,1,1,11.5,null,6,5.5,null,null,null,null,null,null,null,null,null,null,null,null,null,null,null,1,null,null,null,null,null,null,null,null,null,null,null,null,null,null,null,null,null,null,null,null,null,null,null,null,null,null,null,null,null,null,null,null,null,null,null,null,null,null,null,null,null,null,null,null,null,null,null,null,null,null,null,null,null,null,null,null,null,"南部小学校",1100]
[100098929650,1,1,1,"（株）プレシ－ク　","04-7176-1611","柴田","090-2483-5955","shibata@preseek.jp",2,"2019-05-12",null,null,null,"千葉県","柏市","光ケ丘３丁目","2019-02-02",null,null,null,null,"常磐緩行線","南柏",null,null,6,null,"光ヶ丘",6,null,null,null,null,null,2,null,2,null,null,null,null,5,1,null,null,12000000,null,287000,87000,null,2,138.65,null,null,null,null,null,1,20.43,null,null,null,null,null,null,null,null,null,null,null,null,null,null,null,null,null,null,3,1,null,1,1,null,1,50,100,138.65,4.621666666666667,5,5,300,42.015151515151516,2016.7272727272725,3216.7272727272725,9.3262491521591689E-2,69.325000000000003,2,180,-41.349999999999994,"",null,null,2,2,null,null,null,null,null,null,null,null,null,null,null,null,null,null,2,2,10,1,5,4,1,12,null,7,6,null,null,null,null,null,null,null,null,null,null,1,null,null,null,null,null,null,null,null,null,null,null,null,null,null,null,null,null,null,null,null,null,null,null,null,null,null,null,null,null,null,null,null,null,null,null,null,null,null,null,null,null,null,null,null,null,null,null,null,null,null,null,null,null,null,null,null,null,"酒井根西小学校",1000]
[100098929651,1,1,1,"（株）プレシ－ク　","04-7176-1611","柴田","090-2483-5955","shibata@preseek.jp",2,"2019-05-12",null,null,null,"千葉県","船橋市","小室町",2903,null,null,null,null,"北総線","小室",16,null,null,null,null,null,null,null,null,null,null,2,null,2,null,null,null,null,5,4,3,null,9900000,null,130000,40000,null,1,253.32,null,null,null,null,null,2,null,null,null,0,null,null,null,null,null,null,null,null,null,null,null,null,null,null,null,null,1,null,1,1,null,1,40,80,202.65600000000001,6.7552000000000003,7,5,420,61.410909090909094,2947.7236363636362,3937.7236363636362,0.10666060871347914,101.328,3,270,-67.343999999999994,"",null,null,4,2,null,null,null,null,null,null,null,null,null,null,null,null,null,null,3,1,5.5,null,4,6,1,26,null,7,16,1,2.6,null,1,24,null,null,null,null,null,1,null,null,null,null,null,null,null,null,null,null,null,null,null,null,null,null,null,null,null,null,null,null,null,null,null,null,null,null,null,null,null,null,null,null,null,null,null,null,null,null,null,null,null,null,null,null,null,null,null,null,null,null,null,null,null,null,null,"小室小学校",500]
[100098929653,1,1,1,"（株）プレシ－ク　","04-7176-1611","柴田","090-2483-5955","shibata@preseek.jp",2,"2019-05-12",null,null,null,"千葉県","流山市","前ケ崎","６６８－３５",null,null,null,null,"常磐緩行線","北小金",17,null,null,null,null,null,null,null,null,null,null,2,null,2,null,null,null,null,5,1,null,null,9800000,null,186000,56000,null,1,175,null,null,null,null,null,2,null,null,null,0,null,null,null,null,null,null,null,null,null,null,null,null,null,null,null,null,4,1,1,12,null,1,60,200,350,11.666666666666666,12,5,720,106.06060606060606,5090.9090909090901,6070.9090909090901,0.11859838274932616,105,3,270,80,"!",null,null,2,2,null,null,null,null,null,null,null,null,null,null,null,null,null,null,1,1,15,null,4,5.5,null,null,null,null,null,null,null,null,null,null,null,null,null,null,null,1,null,null,null,null,null,null,null,null,null,null,null,null,null,null,null,null,null,null,null,null,null,null,null,null,null,null,null,null,null,null,null,null,null,null,null,null,null,null,null,null,null,null,null,null,null,null,null,null,null,null,null,null,null,null,null,null,null,"向小金小学校",1000]
[100098929654,1,1,1,"（株）プレシ－ク　","04-7176-1611","柴田","090-2483-5955","shibata@preseek.jp",2,"2019-05-12",null,null,null,"千葉県","柏市","南逆井１丁目","2019-06-11",null,null,null,null,"新京成線","五香",18,null,null,null,null,null,null,null,null,null,null,1,null,2,null,null,null,null,5,1,null,null,7500000,null,255000,77000,null,2,97.52,null,null,null,null,null,2,null,null,null,0,null,null,null,null,null,null,null,null,null,null,null,null,null,null,null,null,1,null,1,1,null,1,50,100,97.52,3.2506666666666666,3,5,180,29.551515151515151,1418.4727272727271,2168.4727272727268,8.3007730618952613E-2,48.76,1,90,7.519999999999996,"!",null,null,1,2,null,null,null,null,null,null,null,null,null,null,null,null,null,null,1,1,7.1,null,5,5,null,null,null,null,null,null,null,null,null,null,null,null,null,null,null,1,null,null,null,null,null,null,null,null,null,null,null,null,null,null,null,null,null,null,null,null,null,null,null,null,null,null,null,null,null,null,null,null,null,null,null,null,null,null,null,null,null,null,null,null,null,null,null,null,null,null,null,null,null,null,null,null,null,"土南部小学校",1000]
[100098929655,1,1,1,"（株）プレシ－ク　","04-7176-1611","柴田","090-2483-5955","shibata@preseek.jp",2,"2019-05-12",null,null,null,"千葉県","柏市","新逆井１丁目","３２－１６",null,null,null,null,"新京成線","五香",27,null,null,null,null,null,null,null,null,null,null,1,null,2,null,null,null,null,5,1,null,null,6300000,null,183000,56000,null,1,114.05,null,null,null,null,null,1,18,null,null,null,null,null,null,null,null,null,null,null,null,null,null,null,null,null,null,null,1,null,1,1,null,1,50,100,114.05,3.8016666666666667,4,5,240,34.560606060606062,1658.909090909091,2288.909090909091,0.10485344348240527,57.024999999999999,1,90,24.049999999999997,"!",null,null,4,2,null,null,null,null,null,null,null,null,null,null,null,null,null,null,1,2,9.3000000000000007,1,4,4,null,null,null,null,null,null,null,null,null,null,null,null,null,null,null,1,null,null,null,null,null,null,null,null,null,null,null,null,null,null,null,null,null,null,null,null,null,null,null,null,null,null,null,null,null,null,null,null,null,null,null,null,null,null,null,null,null,null,null,null,null,null,null,null,null,null,null,null,null,null,null,null,null,"土南部小学校",550]
[100098929659,1,1,1,"（株）ジー・アイ・シー・リミテッド　","04-7148-6011",null,null,null,2,"2019-05-12",null,null,null,"千葉県","八千代市","緑が丘西７丁目",null,null,null,null,null,"東葉高速線","八千代緑が丘",23,null,null,null,null,null,null,null,null,null,null,1,null,2,null,null,null,null,2,null,null,null,16500000,null,375000,114000,null,1,145.75,null,null,null,null,null,2,null,null,null,0,null,null,null,null,null,null,null,null,2,null,null,null,null,null,null,null,1,null,1,null,null,null,null,null,145.75,4.8583333333333334,5,5,300,44.166666666666671,2120.0000000000005,3770.0000000000005,7.9575596816976124E-2,87.45,2,180,-34.25,"",null,null,1,2,null,null,null,null,null,null,null,null,null,null,null,null,null,null,1,1,11.2,2,3,6,null,null,null,null,null,null,null,null,null,null,null,null,null,null,null,1]
[100098929668,1,1,1,"（株）ジー・アイ・シー・リミテッド　","04-7148-6011",null,null,null,2,"2019-05-12",null,null,null,"千葉県","八千代市","緑が丘西７丁目",null,null,null,null,null,"東葉高速線","八千代緑が丘",23,null,null,null,null,null,null,null,null,null,null,1,null,2,null,null,null,null,2,null,null,null,11800000,null,288000,88000,null,1,135.44999999999999,null,null,null,null,null,2,null,null,null,0,null,null,null,null,null,null,null,null,1,null,null,null,null,null,null,null,1,null,1,1,12,null,null,null,135.44999999999999,4.5149999999999997,5,5,300,41.045454545454547,1970.1818181818182,3150.181818181818,9.5232598407018365E-2,81.27,2,180,-44.550000000000011,"",null,null,1,2,null,null,null,null,null,null,null,null,null,null,null,null,null,null,1,1,2.7,2,3,6,null,null,null,null,null,null,null,null,null,null,null,null,null,null,null,1]
[100098929695,1,1,1,"（株）コネクト　","043-306-6676","大場",433066676,null,2,"2019-05-12","2019-05-12",null,null,"千葉県","千葉市若葉区","西都賀４丁目",null,null,null,null,null,"総武線","都賀",5,null,null,null,null,null,null,null,null,null,null,1,null,1,null,null,null,null,1,4,null,null,32800000,null,536000,163000,null,2,202.45,null,null,null,null,null,null,null,null,null,null,null,null,null,null,null,null,null,null,null,null,null,null,null,null,null,null,null,null,null,null,null,null,null,null,202.45,6.7483333333333331,7,5,420,61.348484848484851,2944.7272727272725,6224.7272727272721,6.7472835611636875E-2,121.46999999999998,4,360,-157.55000000000001,"",null,null,1,null,null,null,null,null,null,null,null,null,null,null,null,null,null,null,2]
[100098929795,1,1,1,"（株）飯田産業本八幡店　","047-379-9888","渡辺","090-2200-9558","yoshiaki.watanabe@iidasangyo.co.jp",2,"2019-05-13",null,null,null,"千葉県","船橋市","旭町３丁目","2019-12-30",null,null,null,null,"東武野田線","馬込沢",14,null,null,null,null,null,null,null,null,null,null,2,null,2,null,null,null,null,1,4,3,null,14900000,null,580000,176000,null,2,85.05,null,null,null,null,null,1,null,null,null,2,null,null,null,null,null,null,null,null,null,null,null,null,null,null,null,null,1,null,1,1,null,1,50,100,85.05,2.835,3,5,180,25.772727272727273,1237.0909090909092,2727.090909090909,6.6004400293352888E-2,42.524999999999999,1,90,-4.9500000000000028,"",null,null,1,1,null,null,null,null,null,null,null,null,null,null,null,null,null,null,1,1,8.4,2,5,4,null,null,null,null,null,null,null,null,null,null,null,null,null,null,null,1,null,null,null,null,null,null,null,null,null,null,null,null,null,null,null,null,null,null,null,null,null,null,null,null,null,null,null,null,null,null,null,null,null,null,null,null,null,null,null,null,null,null,null,null,null,null,null,null,null,null,null,null,null,null,null,null,null,"丸山旭保育園",1280,16,1,"お手頃価格で憧れの間取り可能！","南向き　日当たり重視派にお薦め！","１号地"]
[100098929796,1,1,1,"（株）飯田産業本八幡店　","047-379-9888","渡辺","090-2200-9558","yoshiaki.watanabe@iidasangyo.co.jp",2,"2019-05-13",null,null,null,"千葉県","船橋市","旭町３丁目","2019-12-30",null,null,null,null,"東武野田線","馬込沢",14,null,null,null,null,null,null,null,null,null,null,2,null,2,null,null,null,null,1,4,3,null,15800000,null,626000,190000,null,2,83.44,null,null,null,null,null,1,null,null,null,2,null,null,null,null,null,null,null,null,2,null,null,null,null,null,null,null,1,null,1,1,null,1,50,100,83.44,2.7813333333333334,3,5,180,25.284848484848485,1213.6727272727271,2793.6727272727271,6.4431312316142977E-2,41.72,1,90,-6.5600000000000023,"",null,null,1,1,null,null,null,null,null,null,null,null,null,null,null,null,null,null,2,1,8.4,2,5,4,2,13.7,1,3,4,null,null,null,null,null,null,null,null,null,null,1,null,null,null,null,null,null,null,null,null,null,null,null,null,null,null,null,null,null,null,null,null,null,null,null,null,null,null,null,null,null,null,null,null,null,null,null,null,null,null,null,null,null,null,null,null,null,null,null,null,null,null,null,null,null,null,null,null,"丸山旭保育園",1280,16,1,"お手頃価格で憧れの間取り可能！","南向き　日当たり重視派にお薦め！","２号地"]
[100098929797,1,1,1,"（株）飯田産業本八幡店　","047-379-9888","宮澤","090-2200-9558","motoyawata@iidasangyo.co.jp",2,"2019-05-13",null,null,null,"千葉県","千葉市中央区","亀井町","１０－３５",null,null,null,null,"総武線","千葉",22,null,null,null,null,null,null,null,null,null,null,1,null,4,201909,3,null,null,1,4,3,null,21310000,null,537000,163000,null,2,131.31,null,null,null,null,null,1,null,null,null,0,null,null,null,null,null,null,null,null,1,null,null,null,null,null,null,null,1,null,1,12,null,1,60,200,262.62,8.7539999999999996,9,5,540,79.581818181818193,3819.9272727272732,5950.9272727272728,9.0742160885545722E-2,78.786000000000001,2,180,82.62,"!",null,null,1,1,null,null,null,null,null,null,null,null,null,null,null,null,null,null,1,2,null,1,7,4,null,null,null,null,null,null,null,null,null,null,null,null,null,null,null,1,null,null,null,null,null,null,null,null,null,null,null,null,null,null,null,null,null,null,null,null,null,null,null,null,null,null,null,null,null,null,null,null,null,null,null,null,null,null,null,null,null,null,null,null,null,null,null,null,null,null,null,null,null,null,null,null,null,"院内保育園",1360,17,1,"建築条件付き売地♪","条件外しも可能！　是非とも連絡ください。　陽当たり自慢！","Ｃ号地"]
[100098929799,1,1,1,"（株）飯田産業本八幡店　","047-379-9888","渡辺","090-2200-9558","yoshiaki.watanabe@iidasangyo.co.jp",2,"2019-05-13",null,null,null,"千葉県","市川市","曽谷４丁目","2019-09-25",null,null,null,null,"総武線","市川",null,null,19,null,"曽谷坂上",3,null,null,null,null,null,1,null,4,201906,2,null,null,1,4,3,null,22900000,null,609000,185000,null,2,124.44,null,null,null,null,null,null,null,null,null,0,null,null,null,null,null,null,null,null,null,null,null,null,null,null,null,null,1,null,1,1,null,1,50,100,124.44,4.1479999999999997,4,5,240,37.709090909090911,1810.0363636363638,4100.0363636363636,5.8536066198969408E-2,62.22,2,180,-55.56,"",null,null,1,2,null,null,null,null,null,null,null,null,null,null,null,null,null,null,1,1,11.5,2,3,5,null,null,null,null,null,null,null,null,null,null,null,null,null,null,null,1,null,null,null,null,null,null,null,null,null,null,null,null,null,null,null,null,null,null,null,null,null,null,null,null,null,null,null,null,null,null,null,null,null,null,null,null,null,null,null,null,null,null,null,null,null,null,null,null,null,null,null,null,null,null,null,null,null,"曽谷小学校",720,9,1,"土地売り　（条件付きなし）　","情熱の曽谷４丁目で、素敵なマイホームを！","Ｆ号地"]
[100098929801,1,1,1,"（株）飯田産業本八幡店　","047-379-9888","宮澤",null,"motoyawata@iidasangyo.co.jp",2,"2019-05-13",null,null,null,"千葉県","船橋市","三山６丁目","2019-04-11",null,null,null,null,"総武線","津田沼",null,null,16,"三山",null,3,null,null,null,null,null,1,null,2,null,null,null,null,1,4,null,null,16900000,null,530000,161000,null,2,105.55,null,null,null,null,null,2,null,null,null,0,null,null,null,null,null,null,null,null,2,null,null,null,null,null,null,null,1,null,1,11,null,1,60,160,168.88,5.6293333333333333,6,5,360,51.175757575757579,2456.4363636363637,4146.4363636363632,8.6821542266305354E-2,63.33,2,180,-11.120000000000005,"",null,null,1,2,null,null,null,null,null,null,null,null,null,null,null,null,null,null,1,1,8.9,null,7,6,null,null,null,null,null,null,null,null,null,null,null,null,null,null,null,1,null,null,null,null,null,null,null,null,null,null,null,null,null,null,null,null,null,null,null,null,null,null,null,null,null,null,null,null,null,null,null,null,null,null,null,null,null,null,null,null,null,null,null,null,null,null,null,null,null,null,null,null,null,null,null,null,null,"小鳩幼稚園",540,7,1,"前面道路広々６ｍ公道！","売地（条件なし）　全１３棟の大型現場の魅力をご覧あれ！","Ｊ号地"]
[100098931055,1,1,1,"三井不動産リアルティ千葉（株）三井のリハウス稲毛センター　","043-248-2921",null,null,null,2,"2019-05-13","2019-05-13",null,null,"千葉県","千葉市稲毛区","轟町１丁目",null,null,null,null,null,"総武中央線","西千葉",10,null,null,null,null,null,null,null,null,null,null,2,null,2,null,null,null,null,4,null,null,null,54800000,null,638000,193000,null,1,284.04000000000002,null,null,null,null,null,null,null,null,null,null,null,null,null,null,null,null,null,null,null,null,null,null,null,null,null,3,1,1,1,12,null,1,60,200,568.08000000000004,18.936,19,5,1140,172.14545454545456,8262.9818181818173,13742.981818181817,8.2951430416053684E-2,170.42400000000001,5,450,118.08000000000004,"!",null,null,1,2,null,null,null,null,null,null,null,null,null,null,null,null,null,null,1,1,9.8000000000000007,2,7,10.9,null,null,null,null,null,null,null,null,null,null,null,null,null,null,null,null,null,null,null,null,null,null,null,null,null,null,null,null,null,null,null,null,null,null,null,null,null,null,null,null,null,null,null,null,null,null,null,null,null,null,null,null,null,null,null,null,null,null,null,null,null,null,null,null,null,null,null,null,null,null,null,null,null,"ファミリーマート",210,3,1,"Ｆ６９Ｗ４Ａ１Ｅ　古家有り"]
[100098931152,1,1,1,"住友林業ホームサービス（株）　柏店　","04-7163-4181","藤田　貴久","04-7163-4181",null,2,"2019-05-13",null,null,null,"千葉県","柏市","永楽台１丁目",null,null,null,null,null,"東武野田線","新柏",12,950,null,null,null,null,null,null,null,null,null,2,null,2,null,null,null,null,4,1,null,null,14900000,null,388000,118000,null,1,127,null,null,null,null,null,2,null,null,null,0,null,null,null,null,null,null,null,null,2,null,null,null,null,null,null,3,9,null,1,1,null,1,50,100,127,4.2333333333333334,4,5,240,38.484848484848484,1847.2727272727273,3337.272727272727,7.1915009534186877E-2,63.5,2,180,-53,"",null,null,null,2,null,null,null,null,null,null,null,null,null,null,null,null,null,null,5,1,6.8,2,6,5.6,2,11.1,2,2,4,null,null,null,null,null,null,null,null,null,null,1,null,null,null,null,null,null,null,null,null,null,null,null,null,null,null,null,null,null,null,null,null,null,null,null,null,null,null,null,null,null,null,null,null,null,null,null,null,null,null,null,null,null,null,null,null,null,null,null,null,null,null,null,null,null,null,null,null,"新柏駅",950,12,1,"ＳＭＡ８９３８３"]
[100098931795,1,1,1,"富田不動産（株）　","047-338-1351",null,null,null,2,"2019-05-13",null,null,null,"千葉県","柏市","大井",1553,null,null,null,null,"常磐線","柏",null,null,10,null,"大井",14,null,null,null,null,null,1,null,null,null,null,null,null,4,1,null,null,14000000,null,162000,49000,null,null,287,null,null,null,null,null,2,null,null,null,null,null,null,null,null,null,null,null,null,null,null,null,null,null,null,null,null,3,null,2,null,null,1,50,100,287,9.5666666666666664,10,5,600,86.969696969696969,4174.545454545455,5574.545454545455,0.10763209393346379,143.5,4,360,-73,"",null,null,1,null,null,null,null,null,null,null,null,null,null,null,null,null,null,null,5,1,null,null,null,5,null,null,null,null,null,null,null,null,null,null,null,null,null,null,null,1]
[100098934402,1,1,1,"新栄開発（株）　","048-974-8717","矢﨑","048-974-8717","skaihatu@eos.ocn.ne.jp",2,"2019-05-13","2019-05-13",null,null,"千葉県","東金市","川場",null,null,null,null,null,"東金線","東金",15,null,null,null,null,null,null,null,null,null,null,1,null,2,null,null,null,null,1,null,null,null,6000000,null,121000,37000,null,1,165,null,null,null,null,null,1,407,null,null,null,null,null,null,null,null,null,null,null,null,null,null,null,null,null,null,null,1,null,1,11,null,null,60,200,330,11,11,5,660,100,4800,5400,0.12222222222222222,99,3,270,60,"!"]
[100098934872,1,1,1,"シー・エル・ジャパン（株）　","03-3555-8055",null,null,null,2,"2019-05-13",null,null,null,"千葉県","千葉市花見川区","南花園１丁目","１８番３号",null,null,null,null,"総武中央線","新検見川",6,null,null,null,null,null,null,null,null,null,null,1,null,1,null,null,null,null,4,null,null,null,18500000,null,241000,73000,null,1,254.54,null,null,null,null,null,null,null,null,null,null,null,null,null,null,null,null,null,null,null,null,null,null,null,null,null,null,1,null,null,1,null,null,60,150,381.81,12.727,13,5,780,115.7,5553.5999999999995,7403.5999999999995,0.10535415203414555,152.72399999999999,5,450,-68.19,"",null,null,null,null,null,null,null,null,null,null,null,null,null,null,null,null,null,null,null,1,null,null,null,null,null,null,null,null,null,null,null,null,null,null,null,null,null,null,null,null,null,null,null,null,null,null,null,null,null,null,null,null,null,null,null,null,null,null,null,null,null,null,null,null,null,null,null,null,null,null,null,null,null,null,null,null,null,null,null,null,null,null,null,null,null,null,null,null,null,null,null,null,null,null,null,null,null,null,null,null,null,"擁壁あり／絶対高さ１０ｍ／更地","公簿売買／４ｍ市道に２．１ｍ接道"]
[100098935481,1,1,1,"（株）石塚興産　","043-268-5811",null,null,null,2,"2019-05-13",null,null,null,"千葉県","千葉市稲毛区","宮野木町",null,null,null,"Ａ",null,"総武線","稲毛",30,null,null,null,"五反田",2,null,null,null,null,null,1,null,2,null,null,null,null,1,null,null,null,16500000,null,463000,140000,null,null,117.86,null,null,null,null,null,null,null,null,null,null,null,null,null,null,null,null,null,null,null,null,null,null,null,null,null,null,3,null,1,1,null,1,60,150,176.79,5.8929999999999998,6,5,360,53.572727272727271,2571.4909090909091,4221.4909090909096,8.5277928521590815E-2,70.715999999999994,2,180,-3.210000000000008,"",null,null,null,2]
[100098935775,1,1,1,"（株）東海　北習志野　","047-467-1521","松井",null,null,2,"2019-05-13",null,null,null,"千葉県","印西市","草深","１１１９－１３",null,null,null,null,"北総線","千葉ニュータウン中央",25,null,null,null,null,null,null,null,null,null,null,1,null,2,null,null,null,null,4,null,null,null,23650000,null,70000,22000,null,null,1117,null,null,null,null,null,null,null,null,null,null,null,null,null,null,null,null,null,null,null,null,null,null,null,null,null,null,5,null,2,99,null,null,50,100,1117,37.233333333333334,37,5,2220,338.4848484848485,16247.272727272728,18612.272727272728,0.11927613744596674,558.5,18,1620,-503,"",null,null,null,null,null,null,null,null,null,null,null,null,null,null,null,null,null,null,1,1,13,null,5,8,null,null,null,null,null,null,null,null,null,null,null,null,null,null,null,1]
[100098936555,1,1,1,"ベルエステート（株）　","0438-23-0021",null,null,null,2,"2019-05-13",null,null,null,"千葉県","木更津市","港南台１丁目",null,null,null,null,null,"内房線","木更津",null,null,10,null,null,8,null,null,null,null,null,1,null,1,null,null,null,null,4,1,null,null,13300000,null,188000,57000,null,1,234.62,null,null,null,null,null,null,null,null,null,null,null,null,null,null,null,null,null,null,null,null,null,null,null,null,null,3,1,null,1,1,null,1,50,100,234.62,7.8206666666666669,8,5,480,71.096969696969708,3412.6545454545462,4742.6545454545467,0.10120914255921115,117.31,3,270,-35.379999999999995,"",null,null,null,2,null,null,null,null,null,null,null,null,null,null,null,null,null,null,1,1,13.8,null,8,9.1999999999999993,null,null,null,null,null,null,null,null,null,null,null,null,null,null,null,1]
[100098936640,1,1,1,"（株）ゆりのきハウジング　","047-487-8882",null,null,null,2,"2019-05-13",null,null,null,"千葉県","八千代市","萱田","2237-08-01",null,null,null,null,"東葉高速線","八千代中央",10,null,null,null,null,null,null,null,null,null,null,1,null,2,null,null,null,null,1,null,null,null,19800000,null,448000,136000,null,1,146.35,null,null,null,null,null,1,null,null,null,null,null,null,null,null,null,null,null,null,null,null,null,null,null,null,null,null,3,1,1,3,null,1,60,200,292.7,9.7566666666666659,10,5,600,88.696969696969703,4257.454545454545,6237.454545454545,9.619308575759343E-2,87.809999999999988,2,180,112.69999999999999,"!",null,null,1,2,null,null,null,null,null,null,null,null,null,null,null,null,null,null,1,2,null,1,4,4,null,null,null,null,null,null,null,null,null,null,null,null,null,null,null,1]
[100098936720,1,1,1,"リープ不動産（株）　","04-7157-8555",null,null,null,2,"2019-05-13","2019-05-13",null,null,"千葉県","野田市","つつみ野１丁目",null,null,null,null,null,"東武野田線","愛宕",22,1760,null,null,null,null,null,null,null,null,null,1,null,1,null,null,null,null,4,1,null,null,12800000,null,214000,65000,null,1,198,null,null,null,null,null,null,null,null,null,null,null,null,null,null,null,null,null,null,null,null,null,null,null,null,null,null,5,null,1,1,null,1,50,100,198,6.6,7,5,420,60,2880,4160,0.10096153846153846,99,3,270,-72,"",null,null,1,null,null,null,null,null,null,null,null,null,null,null,null,null,null,null,null,1,14.7,null,6,6]
[100098938129,1,1,1,"麻布ベストハウス（株）　","03-6801-5891","松山","03-6801-5891","matsuyama@a-b-house.com",2,"2019-05-13",null,null,null,"千葉県","流山市","松ケ丘２丁目",null,null,null,null,null,"常磐緩行線","南柏",8,null,null,null,null,null,null,null,null,null,null,1,null,2,null,null,null,null,1,null,null,null,35800000,null,480000,145000,null,2,246.92,null,null,null,null,null,2,null,null,null,0,null,null,null,null,null,null,null,null,null,null,null,null,null,null,null,null,1,null,1,1,null,1,60,150,370.38,12.346,12,5,720,112.23636363636363,5387.3454545454542,8967.3454545454551,8.0291319616223711E-2,148.15199999999999,4,360,10.379999999999995,"!",null,null,1,2,null,null,null,null,null,null,null,null,null,null,null,null,null,null,1,1,14.2,2,1,6,null,null,null,null,null,null,null,null,null,null,null,null,null,null,null,1]
[100098938436,1,1,1,"ネクサスプロパティマネジメント（同）　","03-4589-1000","高田","080-5511-7762","takada@n-p-m.co.jp",2,"2019-05-13","2019-05-13",null,null,"千葉県","柏市","十余二","２５４－１８７",null,null,null,null,"つくばＥＸ","柏の葉キャンパス",25,null,null,null,null,null,null,null,null,null,null,2,null,2,null,null,null,null,1,null,null,null,18800000,null,274000,83000,null,1,227,null,null,null,null,null,null,null,null,null,null,null,null,null,null,null,null,null,null,null,null,null,null,null,null,null,null,1,null,1,12,null,null,60,200,454,15.133333333333333,15,5,900,137.57575757575759,6603.6363636363649,8483.636363636364,0.10608658379768537,136.19999999999999,4,360,94,"!",null,null,1,2,null,null,null,null,null,null,null,null,null,null,null,null,null,null,1,1,18.5,2,7,4,null,null,null,null,null,null,null,null,null,null,null,null,null,null,null,1]
[100098938772,1,1,1,"（株）ロイヤルホームズ　","047-461-3070",null,null,null,3,"2019-05-13",null,null,null,"千葉県","船橋市","大穴南５丁目","１８－３５",null,null,null,null,"新京成線","高根公団",13,null,null,null,null,null,null,null,null,null,null,1,null,1,null,null,null,null,4,1,null,null,6900000,null,265000,80000,null,1,86.28,null,null,null,null,null,null,26.64,null,null,null,null,null,null,null,null,null,null,null,null,null,null,null,null,null,null,null,3,null,1,1,null,null,50,100,86.28,2.8759999999999999,3,5,180,26.145454545454548,1254.9818181818184,1944.9818181818184,9.2545852263166736E-2,43.14,1,90,-3.7199999999999989,"",null,null,1,2,null,null,null,null,null,null,null,null,null,null,null,null,null,null,1,2,5.0999999999999996,null,6,4]
[100098938848,1,1,1,"（株）アクティブ・ワン　","03-6276-1061","松坂善活","03-6276-1061",null,2,"2019-05-13",null,"2019-08-12",null,"千葉県","館山市","館山",null,null,null,null,null,"内房線","館山",null,null,12,null,"館山小学校前",5,null,null,null,null,null,1,null,2,null,null,null,null,1,4,null,null,10800000,null,86000,26000,null,1,415.8,null,null,null,null,null,2,3.72,null,null,null,null,null,null,null,null,null,null,null,null,null,null,null,null,"水道加入者負担金有",75000,3,1,null,1,11,null,null,60,200,831.6,27.720000000000002,28,5,1680,252.00000000000003,12096.000000000002,13176.000000000002,0.12750455373406192,249.48,8,720,111.60000000000002,"!",null,null,1,2,null,null,null,null,null,null,null,null,null,null,null,null,null,null,2,1,17,null,null,null,null,null,null,6,4,null,null,null,8,4]
[100098938898,1,1,1,"首都圏住宅センター（株）　","0476-22-1238",null,null,null,2,"2019-05-13",null,null,null,"千葉県","成田市","公津の杜５丁目","1936-07-01",null,null,null,null,"京成本線","公津の杜",17,null,null,null,null,null,null,null,null,null,null,1,null,1,null,null,null,null,1,null,2,null,21900000,null,388000,118000,null,null,186.95,null,null,null,null,null,null,null,null,null,null,null,null,null,null,null,null,null,null,null,null,null,null,null,null,null,null,1,null,1,1,null,1,50,100,186.95,6.2316666666666665,6,5,360,56.651515151515149,2719.272727272727,4909.272727272727,7.3330617384541316E-2,93.474999999999994,3,270,-83.050000000000011,"",null,null,null,2,null,null,null,null,null,null,null,null,null,null,null,null,null,null,1,1,null,null,8]
[100098938996,1,1,1,"住友不動産販売（株）　船橋営業センター","047-423-6321","押谷　孝輔","047-423-6321",null,2,"2019-05-13",null,null,null,"千葉県","船橋市","大穴北１丁目",null,null,null,null,null,"新京成線","三咲",19,1520,null,null,null,null,null,null,null,null,null,1,null,2,null,null,null,null,3,1,null,null,30000000,null,181000,55000,null,2,548.96,null,null,null,null,null,2,null,null,null,null,null,null,null,null,null,null,null,null,2,null,null,null,null,null,null,3,3,3,1,1,null,1,50,100,548.96,18.298666666666669,18,5,1080,166.35151515151517,7984.8727272727283,10984.872727272728,9.8317024403808198E-2,274.48,9,810,-261.03999999999996,"",null,null,1,2,null,null,null,null,null,null,null,null,null,null,null,null,null,null,1,1,7.6,2,3,6.6,null,null,null,null,0,null,null,null,null,0,null,null,null,null,0,1,null,null,null,null,null,null,null,null,null,null,null,null,null,null,null,null,null,null,null,null,null,null,null,null,null,null,null,null,null,null,null,null,null,null,null,null,null,null,null,null,null,null,null,null,null,null,null,null,null,null,null,null,null,null,null,null,null,null,null,null,null,"実測面積：５４８．９６㎡","建築条件なし"]
[100098940322,1,1,1,"東急リバブル（株）　津田沼センター","047-455-4109",null,null,null,2,"2019-05-13","2019-05-13",null,null,"千葉県","習志野市","津田沼２丁目",null,null,null,null,null,"総武中央線","津田沼",11,null,null,null,null,null,null,null,null,null,null,2,null,2,null,null,null,null,3,1,null,null,55000000,null,1171000,354000,null,1,155.37,null,null,null,null,null,null,null,null,null,null,null,null,null,null,null,null,null,null,2,null,null,null,null,null,null,3,1,null,1,2,12,1,60,160,248.59200000000001,8.2864000000000004,8,5,480,75.330909090909103,3615.8836363636369,9115.8836363636365,5.2655345235568841E-2,93.221999999999994,3,270,-21.407999999999987,"",null,null,1,2,null,null,null,null,null,null,null,null,null,null,null,null,null,null,5,1,null,2,6,4,1,null,2,1,1.9,null,null,null,null,null,null,null,null,null,null,1,null,null,null,null,null,null,null,null,null,null,null,null,null,null,null,null,null,null,null,null,null,null,null,null,null,null,null,null,null,null,null,null,null,null,null,null,null,null,null,null,null,null,null,null,null,null,null,null,null,null,null,null,null,null,null,null,null,null,null,null,null,null,null,"ＣＵＭ１９５Ｇ０４"]
[100098940361,1,1,1,"（株）大京穴吹不動産　船橋店","047-421-5591","二見　竜","047-421-5591",null,2,"2019-05-13",null,null,null,"千葉県","市川市","平田２丁目",null,null,null,null,null,"総武中央線","本八幡",11,null,null,null,null,null,null,null,null,null,null,1,null,2,null,null,null,null,4,1,null,null,65800000,null,988000,299000,null,1,220.19,null,null,null,null,null,1,518.75,null,null,1,null,3.87,null,null,null,null,null,null,null,null,null,null,null,null,null,null,1,null,1,1,null,null,50,100,220.19,7.339666666666667,7,5,420,66.724242424242433,3202.763636363637,9782.7636363636375,4.2932653349490382E-2,110.095,3,270,-49.81,"",null,null,null,null,null,null,null,null,null,null,null,null,null,null,null,null,null,null,1,2,11,2,6,3.3,null,null,null,null,null,null,null,null,null,null,null,null,null,null,null,null,null,null,null,null,null,null,null,null,null,null,null,null,null,null,null,null,null,null,null,null,null,null,null,null,null,null,null,null,null,null,null,null,null,null,null,null,null,null,null,null,null,null,null,null,null,null,null,null,null,null,null,null,null,null,null,null,null,null,null,null,null,"ＭＨＦ０１６３７"]
[100098940723,1,1,1,"東建不動産（株）　","03-5958-1500","高橋",9071905722,null,2,"2019-05-13","2019-05-13",null,null,"千葉県","松戸市","金ケ作",null,null,null,null,null,null,null,null,null,null,null,null,null,null,null,null,null,null,2,null,null,null,null,null,null,4,null,null,null,18500000,null,286000,87000,null,1,214,null,null,null,null,null,null,null,null,null,null,null,null,null,null,null,null,null,null,null,null,null,null,null,null,null,null,null,null,null,null,null,null,null,null,214,7.1333333333333337,7,5,420,64.848484848484858,3112.7272727272734,4962.7272727272739,8.4630884777431747E-2,128.4,4,360,-146,""]
[100098941985,1,1,1,"千葉市宅地建物取引業協同組合　","043-284-8800","塚谷","043-284-8800","kumiai@fudousan-web.or.jp",3,"2019-05-13","2019-05-13",null,null,"千葉県","千葉市若葉区","小倉町",null,null,null,null,null,"千葉モノレ","小倉台",16,null,null,null,null,null,null,null,null,null,null,1,null,2,null,null,null,null,1,1,3.24,null,44000000,null,163000,50000,null,1,894.36,null,null,null,null,null,1,240.2,null,null,0,null,null,null,null,null,null,null,null,null,null,null,null,null,null,null,null,4,1,2,null,null,null,50,100,894.36,29.812000000000001,30,5,1800,271.01818181818186,13008.872727272728,17408.872727272726,0.10339555169359825,447.18,14,1260,-365.64,"",null,null,null,null,null,null,null,null,null,null,null,null,null,null,null,null,null,null,1,1,6.3,null,3,5,null,null,null,null,null,null,null,null,null,null,null,null,null,null,null,1,null,null,null,null,null,null,null,null,null,null,null,null,null,null,null,null,null,null,null,null,null,null,null,null,null,null,null,null,null,null,null,null,null,null,null,null,null,null,null,null,null,null,null,null,null,null,null,null,null,null,null,null,null,null,null,null,null,null,null,null,null,"④は済","①②③⑤区画の価格は各１，１００万円"]
[100098942603,1,1,1,"（株）高品ハウジング　","043-214-3388",null,null,null,2,"2019-05-13","2019-05-13",null,null,"千葉県","千葉市若葉区","小倉町",null,null,null,null,null,"千葉モノレ","小倉台",16,null,null,null,null,null,null,null,null,null,null,1,null,2,null,null,null,null,5,1,null,null,11000000,null,173000,53000,null,2,210.53,null,null,null,null,null,1,240.2,null,null,null,null,null,null,null,null,null,null,null,null,null,null,null,null,null,null,null,4,null,2,null,null,1,50,100,210.53,7.0176666666666669,7,5,420,63.796969696969704,3062.2545454545457,4162.2545454545452,0.10090685118205169,105.265,3,270,-59.47,"",null,null,1,null,null,null,null,null,null,null,null,null,null,null,null,null,null,null,null,null,null,null,null,null,null,null,null,null,null,null,null,null,null,null,null,null,null,null,null,null,null,null,null,null,null,null,null,null,null,null,null,null,null,null,null,null,null,null,null,null,null,null,null,null,null,null,null,null,null,null,null,null,null,null,null,null,null,null,null,null,null,null,null,null,null,null,null,null,null,null,null,null,null,null,null,null,null,null,null,null,null,"都市計画法第３５条第２項許可済"]
[100098942767,1,1,1,"（株）高品ハウジング　","043-214-3388",null,null,null,2,"2019-05-13",null,null,null,"千葉県","千葉市若葉区","小倉町",null,null,null,null,null,"千葉モノレ","小倉台",16,null,null,null,null,null,null,null,null,null,null,1,null,2,null,null,null,null,5,1,null,null,11000000,null,197000,60000,null,2,185.38,null,null,null,null,null,1,240.2,null,null,null,null,null,null,null,null,null,null,null,null,null,null,null,null,null,null,null,4,null,2,null,null,1,50,100,185.38,6.1793333333333331,6,5,360,56.175757575757579,2696.4363636363637,3796.4363636363637,9.4825769621271622E-2,92.69,3,270,-84.62,"",null,null,1,null,null,null,null,null,null,null,null,null,null,null,null,null,null,null,null,null,null,null,null,null,null,null,null,null,null,null,null,null,null,null,null,null,null,null,null,null,null,null,null,null,null,null,null,null,null,null,null,null,null,null,null,null,null,null,null,null,null,null,null,null,null,null,null,null,null,null,null,null,null,null,null,null,null,null,null,null,null,null,null,null,null,null,null,null,null,null,null,null,null,null,null,null,null,null,null,null,null,"都市計画法第３５条第２項許可済"]
[100098942774,1,1,1,"（株）高品ハウジング　","043-214-3388",null,null,null,2,"2019-05-13",null,null,null,"千葉県","千葉市若葉区","小倉町",null,null,null,null,null,"千葉モノレ","小倉台",16,null,null,null,null,null,null,null,null,null,null,1,null,2,null,null,null,null,5,1,null,null,11000000,null,219000,67000,null,2,166.16,null,null,null,null,null,1,240.2,null,null,null,null,null,null,null,null,null,null,null,null,null,null,null,null,null,null,null,4,null,2,null,null,1,50,100,166.16,5.5386666666666668,6,5,360,50.351515151515152,2416.8727272727269,3516.8727272727269,0.10236367020286619,83.08,2,180,-13.840000000000003,"",null,null,1,null,null,null,null,null,null,null,null,null,null,null,null,null,null,null,null,null,null,null,null,null,null,null,null,null,null,null,null,null,null,null,null,null,null,null,null,null,null,null,null,null,null,null,null,null,null,null,null,null,null,null,null,null,null,null,null,null,null,null,null,null,null,null,null,null,null,null,null,null,null,null,null,null,null,null,null,null,null,null,null,null,null,null,null,null,null,null,null,null,null,null,null,null,null,null,null,null,null,"都市計画法第３５条第２項許可済"]
[100098942780,1,1,1,"（株）高品ハウジング　","043-214-3388",null,null,null,2,"2019-05-13",null,null,null,"千葉県","千葉市若葉区","小倉町",null,null,null,null,null,"千葉モノレ","小倉台",16,null,null,null,null,null,null,null,null,null,null,1,null,2,null,null,null,null,5,1,null,null,11000000,null,219000,67000,null,2,166.17,null,null,null,null,null,1,240.2,null,null,null,null,null,null,null,null,null,null,null,null,null,null,null,null,null,null,null,4,null,2,null,null,1,50,100,166.17,5.5389999999999997,6,5,360,50.354545454545452,2417.0181818181813,3517.0181818181813,0.10235943671291799,83.084999999999994,2,180,-13.830000000000013,"",null,null,1,null,null,null,null,null,null,null,null,null,null,null,null,null,null,null,null,null,null,null,null,null,null,null,null,null,null,null,null,null,null,null,null,null,null,null,null,null,null,null,null,null,null,null,null,null,null,null,null,null,null,null,null,null,null,null,null,null,null,null,null,null,null,null,null,null,null,null,null,null,null,null,null,null,null,null,null,null,null,null,null,null,null,null,null,null,null,null,null,null,null,null,null,null,null,null,null,null,null,"都市計画法第３５条第２項許可済"]
[100098942863,1,1,1,"（株）ベアーズリアルエステート　","03-6206-6070",null,null,null,2,"2019-05-13",null,null,null,"千葉県","市川市","宮久保６丁目",null,null,null,null,null,"総武中央線","本八幡",null,null,10,null,null,10,null,null,null,null,null,1,null,2,null,null,null,null,4,null,null,null,22000000,null,390000,118000,null,1,186.58,null,null,null,null,null,1,18,null,null,0,null,null,null,null,null,null,null,null,1,null,null,null,null,null,null,3,1,null,1,1,null,null,50,100,186.58,6.219333333333334,6,5,360,56.539393939393946,2713.8909090909096,4913.8909090909092,7.3261699671432381E-2,93.29,3,270,-83.419999999999987,"",null,null,1,2,null,null,null,null,null,null,null,null,null,null,null,null,null,null,1,2,3.4,null,3,5]
[100098943777,1,1,1,"（株）ガイアホーム　","047-306-0222",null,null,null,2,"2019-05-13","2019-05-13","2019-08-12",null,"千葉県","八千代市","村上",null,null,null,null,null,"東葉高速線","村上",4,null,null,null,null,null,null,null,null,null,null,1,null,2,null,null,null,null,1,4,3,null,19800000,null,482000,146000,null,1,136,null,null,null,null,null,1,30,null,null,null,null,null,null,null,null,null,null,null,null,null,null,null,null,null,null,null,4,null,1,11,null,1,602,200,272,9.0666666666666664,9,5,540,82.424242424242422,3956.363636363636,5936.363636363636,9.0964777947932618E-2,818.71999999999991,27,2430,-2158,"",null,null,4,1,null,null,null,null,null,null,null,null,null,null,null,null,null,null,1,2,3,null,1,5,null,null,null,null,null,null,null,null,null,null,null,null,null,null,null,1,null,null,null,null,null,null,null,null,null,null,null,null,null,null,null,null,null,null,null,null,null,null,null,null,null,null,null,null,null,null,null,null,null,null,null,null,null,null,null,null,null,null,null,null,null,null,null,null,null,null,null,null,null,null,null,null,null,"イトーヨーカ堂",null,4,1]
[100098943899,1,1,1,"ファミリホーム（株）　","043-307-2701","後藤",null,"goto@familyhome.biz",2,"2019-05-13","2019-05-13",null,null,"千葉県","千葉市中央区","川戸町","３２４番１０",null,null,null,null,"総武線","千葉",null,null,22,null,"川戸公民館",5,null,null,null,null,null,2,null,2,null,null,null,null,4,null,null,null,5800000,null,128000,39000,null,1,150.31,null,null,null,null,null,1,107,null,null,0,null,null,null,null,null,null,null,null,null,null,null,null,null,null,null,null,1,1,1,null,null,1,50,100,150.31,5.0103333333333335,5,5,300,45.548484848484854,2186.3272727272729,2766.3272727272729,0.10844703840996923,75.155000000000001,2,180,-29.689999999999998,"",null,null,1,2,null,null,null,null,null,null,null,null,null,null,null,null,null,null,2,1,14.7,2,7,3.6,2,8,1,5,4,null,null,null,null,null,null,null,null,null,null,1]
[100098944030,1,1,1,"住友林業ホームサービス（株）　柏店　","04-7163-4181","井澤　貴史","04-7163-4181",null,2,"2019-05-13",null,null,null,"千葉県","柏市","柏の葉１丁目",null,null,null,null,null,"つくばＥＸ","柏の葉キャンパス",16,1241,null,null,null,null,null,null,null,null,null,2,null,2,null,null,null,null,4,1,null,null,30800000,null,539000,163000,null,1,188.99,null,null,null,null,null,2,null,null,null,0,null,null,null,null,null,null,null,null,2,null,null,null,null,null,null,3,1,null,1,1,null,1,50,100,188.99,6.299666666666667,6,5,360,57.269696969696973,2748.9454545454546,5828.9454545454546,6.1760742626141639E-2,94.495000000000005,3,270,-81.009999999999991,"",null,null,null,2,null,null,null,null,null,null,null,null,null,null,null,null,null,null,1,1,10.5,null,8,6,null,null,null,null,null,null,null,null,null,null,null,null,null,null,null,null,null,null,null,null,null,null,null,null,null,null,null,null,null,null,null,null,null,null,null,null,null,null,null,null,null,null,null,null,null,null,null,null,null,null,null,null,null,null,null,null,null,null,null,null,null,null,null,null,null,null,null,null,null,null,null,null,null,"辻仲病院柏の葉",1400,18,1,"ＳＭＡ９１１３７"]
[100098944044,1,1,1,"（株）ＫＴＹ四谷事務所　","03-5366-6678","加藤","03-5366-6678","info-kty@yotsuya-shihou.com",2,"2019-05-13",null,null,null,"千葉県","長生郡長南町","関原",null,null,null,null,null,"外房線","茂原",69,5500,14,null,"米満",10,800,null,null,null,null,1,null,2,null,null,null,null,5,1,null,null,5500000,null,24000,7000,null,1,790.19,null,null,null,null,null,null,null,null,null,1,null,null,null,null,null,null,null,null,null,null,null,null,null,null,null,null,1,null,3,99,null,1,60,200,1580.38,52.679333333333339,53,5,3180,478.90303030303033,22987.345454545455,23537.345454545455,0.13510444523751036,474.11400000000003,15,1350,230.38000000000011,"!",null,null,1,null,null,null,null,null,null,null,null,null,null,null,null,null,null,null,null,1,22.7,null,7,2.5,null,null,null,null,null,null,null,null,null,null,null,null,null,null,null,null,null,null,null,null,null,null,null,null,null,null,null,null,null,null,null,null,null,null,null,null,null,null,null,null,null,null,null,null,null,null,null,null,null,null,null,null,null,null,null,null,null,null,null,null,null,null,null,null,null,null,null,null,null,null,null,null,null,null,null,null,null,null,"セットバック要"]
[100098944294,1,1,1,"大里綜合管理（株）　","0475-72-3473","大０３５",null,null,2,"2019-05-13",null,null,null,"千葉県","大網白里市","大網",357,null,null,null,null,"外房線","大網",12,950,null,null,null,null,null,null,null,null,null,1,null,2,null,null,null,null,5,1,null,null,13200000,null,122000,37000,null,1,360.33,null,null,null,null,null,null,null,null,null,null,null,null,null,null,null,null,null,null,null,null,null,null,null,null,null,null,1,null,1,4,null,null,80,400,1441.32,48.043999999999997,48,5,2880,436.76363636363635,20964.654545454545,22284.654545454545,0.12923691476238031,288.26400000000001,9,810,631.31999999999994,"!",null,null,1,null,null,null,null,null,null,null,null,null,null,null,null,null,null,null,2,1,8.5,null,8,6.2,2,43,2,6,6.2,null,null,null,null,null,null,null,null,null,null,1]
[100098944400,1,1,1,"新建設（株）　","047-422-8301",null,null,null,2,"2019-05-13","2019-05-13",null,null,"千葉県","市川市","南大野１丁目",null,null,null,null,null,"武蔵野線","市川大野",18,null,null,null,null,null,null,null,null,null,null,1,null,1,null,null,null,null,5,2,null,null,29800000,null,562000,170000,null,null,175.52,null,null,null,null,null,null,null,null,null,null,null,null,null,null,null,null,null,null,null,null,null,null,null,null,null,null,1,null,1,1,null,null,50,100,175.52,5.8506666666666671,6,5,360,53.187878787878795,2553.0181818181823,5533.0181818181827,6.5063946686996402E-2,87.76,2,180,-4.4799999999999898,"",null,null,1,2,null,null,null,null,null,null,null,null,null,null,null,null,null,null,1,1,8.6999999999999993,null,8,6]
[100098945119,1,1,1,"（株）末與志商事　北千住駅前営業所　","03-3882-2026",null,null,null,2,"2019-05-13",null,null,null,"千葉県","山武市","森",1052,null,null,null,null,"総武線","日向",15,null,null,null,null,null,null,null,null,null,null,null,null,1,null,null,null,null,4,2,null,null,8500000,null,61000,19000,null,null,465.92,null,null,null,null,null,null,null,null,null,null,null,null,null,null,null,null,null,null,null,null,null,null,null,null,null,null,1,null,1,99,null,1,60,200,931.84,31.061333333333334,31,5,1860,282.37575757575758,13554.036363636364,14404.036363636364,0.12913047100433969,279.55200000000002,9,810,121.84000000000003,"!",null,null,1,null,null,null,null,null,null,null,null,null,null,null,null,null,null,null,5,1]
[100098945207,1,1,1,"（株）ＭＤＩ　不動産事業部","03-3544-2657","吉富","070-2194-3832",null,2,"2019-05-13",null,null,null,"千葉県","流山市","松ケ丘１丁目","４７５－３",null,null,null,null,"常磐緩行線","南柏",6,null,null,null,null,null,null,null,null,null,null,2,null,2,null,null,null,null,3,1,null,null,60000000,null,552000,167000,null,1,359.64,null,null,null,null,null,null,null,null,null,null,null,null,null,null,null,null,null,null,2,null,null,null,null,null,null,null,1,null,1,12,null,null,60,200,719.28,23.975999999999999,24,5,1440,217.96363636363637,10462.254545454545,16462.254545454547,8.7472830408736671E-2,215.78399999999999,7,630,89.279999999999973,"!",null,null,1,2,null,null,null,null,null,null,null,null,null,null,null,null,null,null,5,1,null,null,5,4.2,1,null,null,1,4.5]
[100098946903,1,1,1,"（株）１２６ハウジング　","0475-54-1260",null,null,null,2,"2019-05-13",null,null,null,"千葉県","東金市","八坂台２丁目","2019-01-01",null,null,null,null,"東金線","東金",null,null,null,null,"福祉センター",3,null,null,null,null,null,2,null,2,null,null,null,null,5,1,null,null,78000000,null,42000,13000,null,1,6178.84,null,null,null,null,null,2,null,null,null,null,null,null,null,null,null,null,null,null,null,null,null,null,null,null,null,null,1,null,1,3,null,19,60,200,12357.68,411.92266666666666,412,5,24720,3744.7515151515154,179748.07272727272,187548.07272727272,0.13180620648630789,3707.3040000000001,123,11070,1287.6800000000003,"!",null,null,2,null,null,null,null,null,null,null,null,null,null,null,null,null,null,null,null,null,null,null,null,null,null,null,null,null,null,null,null,null,null,null,null,null,null,null,null,null,null,null,null,null,null,null,null,null,null,null,null,null,null,null,null,null,null,null,null,null,null,null,null,null,null,null,null,null,null,null,null,null,null,null,null,null,null,null,null,null,null,null,null,null,null,null,null,null,null,null,null,null,null,null,null,null,null,null,null,null,null,"ドッグラン営業中"]
[100098947436,1,1,1,"一建設（株）　柏営業所　","04-7145-5236","岡田","04-7145-5236","okada.ri@hajime-kensetsu.co.jp",2,"2019-05-13",null,null,null,"千葉県","我孫子市","我孫子４丁目",null,null,null,null,null,"常磐線","我孫子",8,null,null,null,null,null,null,null,null,null,null,null,null,null,null,null,null,null,1,null,null,null,17000000,null,605000,183000,null,2,93,null,null,null,null,null,null,null,null,null,null,null,null,null,null,null,null,null,null,null,null,null,null,null,null,null,null,null,null,null,null,null,null,null,null,93,3.1,3,5,180,28.181818181818183,1352.7272727272727,3052.727272727273,5.8963668850506246E-2,55.8,1,90,3,"!"]
[100098947438,1,1,1,"一建設（株）　柏営業所　","04-7145-5236","岡田","04-7145-5236","okada.ri@hajime-kensetsu.co.jp",2,"2019-05-13",null,null,null,"千葉県","我孫子市","我孫子４丁目",null,null,null,null,null,"常磐線","我孫子",8,null,null,null,null,null,null,null,null,null,null,null,null,null,null,null,null,null,1,null,null,null,22000000,null,721000,218000,null,2,101,null,null,null,null,null,null,null,null,null,null,null,null,null,null,null,null,null,null,null,null,null,null,null,null,null,null,null,null,null,null,null,null,null,null,101,3.3666666666666667,3,5,180,30.606060606060609,1469.0909090909092,3669.090909090909,4.9058473736372649E-2,60.599999999999994,2,180,-79,""]
[100098947807,1,1,1,"（株）アクアエステート木更津　","0438-37-1200",null,null,null,2,"2019-05-13",null,null,null,"千葉県","富津市","篠部",null,null,null,null,null,"内房線","大貫",null,null,null,null,null,null,null,1.1000000000000001,null,null,null,2,null,2,null,null,null,null,5,null,null,null,5000000,null,50000,16000,null,null,331,null,null,null,null,null,null,null,null,null,null,null,null,null,null,null,null,null,null,null,null,null,null,null,null,null,null,1,null,2,null,null,null,null,null,331,11.033333333333333,11,5,660,100.30303030303031,4814.545454545455,5314.545454545455,0.12418747861785835,198.6,6,540,-209,"",null,null,null,null,null,null,null,null,null,null,null,null,null,null,null,null,null,null,1,1,null,null,6]
[100098947875,1,1,1,"積和不動産関東（株）　東関東仲介営業部　マスト千葉仲介営業所","043-297-3338",null,null,null,2,"2019-05-13","2019-05-13",null,null,"千葉県","八千代市","八千代台西１０丁目",null,null,null,null,null,"京成本線","八千代台",17,null,null,null,null,null,null,null,null,null,null,1,null,2,null,null,null,null,4,null,null,null,22800000,null,331000,100000,null,null,228.37,null,null,null,null,null,null,null,null,null,null,null,null,null,null,null,null,null,null,null,null,null,null,null,null,null,null,1,null,1,1,null,null,50,100,228.37,7.6123333333333338,8,5,480,69.203030303030303,3321.7454545454543,5601.7454545454548,8.5687577897798087E-2,114.185,3,270,-41.629999999999995,"",null,null,null,2,null,null,null,null,null,null,null,null,null,null,null,null,null,null,2,1,null,null,7,4.5,1,null,null,1,5]
[100098948023,1,1,1,"太陽ハウス（株）　新松戸支店　","047-343-8000",null,null,null,2,"2019-05-13",null,null,null,"千葉県","松戸市","二ツ木",null,null,null,null,null,"常磐緩行線","新松戸",19,null,null,null,null,null,null,null,null,null,null,null,null,2,null,null,null,null,4,null,null,null,6300000,null,291000,89000,null,1,71.59,null,null,null,null,null,null,null,null,null,null,null,null,null,null,null,null,null,null,null,null,null,null,null,null,null,null,null,null,null,null,null,null,null,null,71.59,2.3863333333333334,2,5,120,21.693939393939395,1041.3090909090909,1671.3090909090909,7.1800004351515415E-2,42.954000000000001,1,90,-18.409999999999997,"",null,null,null,2,null,null,null,null,null,null,null,null,null,null,null,null,null,null,2,null,null,null,null,null,null,null,null,null,null,null,null,null,null,null,null,null,null,null,null,1]
[100098948158,1,1,1,"（株）英知　二和向台店　","047-498-9022",null,null,null,2,"2019-05-13",null,null,null,"千葉県","袖ケ浦市","福王台４丁目",null,null,null,null,null,"内房線","袖ヶ浦",18,1400,null,null,null,null,null,null,null,null,null,1,null,2,null,null,null,null,5,null,null,null,12800000,null,168000,51000,null,1,252,null,null,null,null,null,null,null,null,null,null,null,null,null,null,null,null,null,null,null,null,null,null,null,null,null,null,4,null,1,1,null,null,60,150,{"$f":"IF(ISBLANK(CI387),100,CI387)/100*BA387","v":378},{"$f":"CJ387/30","v":12.6},{"$f":"ROUND(CK387,0)","v":13},5,{"$f":"CM387*12*CL387","v":780},{"$f":"CJ387/3.3","v":114.54545454545455},{"$f":"CO387*40*1.2","v":5498.181818181818},{"$f":"CP387+(AU387/10000)","v":6778.181818181818},{"$f":"CN387/CQ387","v":0.11507510729613735},{"$f":"IF(ISBLANK(CH387),60,CH387)/100*BA387","v":151.19999999999999},{"$f":"ROUNDDOWN((CS387/30),0)","v":5},{"$f":"CT387*30*3","v":450},{"$f":"CJ387-CU387","v":-72},{"$f":"IF(CV387>0, \"!\",\"\")","v":""},null,null,4,2,null,null,null,null,null,null,null,null,null,null,null,null,null,null,1,1,10,null,1,6,null,null,null,null,null,null,null,null,null,null,null,null,null,null,null,null,null,null,null,null,null,null,null,null,null,null,null,null,null,null,null,null,null,null,null,null,null,null,null,null,null,null,null,null,null,null,null,null,null,null,null,null,null,null,null,null,null,null,null,null,null,null,null,null,null,null,null,null,null,null,null,null,null,null,null,null,null,"建築条件ありません。"]
[100098948299,1,1,1,"ヤスイ住宅販売（株）　","047-330-9315",null,null,null,2,"2019-05-13",null,"2019-06-20",null,"千葉県","市川市","北方町４丁目","２３４１－１４",null,null,null,null,"総武中央線","本八幡",null,null,14,null,null,8,null,null,null,null,null,1,null,1,null,null,null,null,1,4,3,null,27800000,null,443000,134000,null,1,207.58,null,null,null,null,null,null,null,null,null,null,null,null,null,null,null,null,null,null,null,null,null,null,null,null,null,null,5,1,2,99,null,1,50,100,207.58,6.9193333333333333,7,5,420,62.903030303030313,3019.3454545454547,5799.3454545454551,7.2421966115298275E-2,103.79,3,270,-62.419999999999987,"",null,null,1,2,null,null,null,null,null,null,null,null,null,null,null,null,null,null,2,1,null,null,null,6,null,null,null,null,null,null,null,null,null,null,null,null,null,null,null,1]
[100098948368,1,1,1,"今山住建（株）　","04-7167-6633","徳淵","080-4135-3602",null,2,"2019-05-13",null,null,null,"千葉県","柏市","小青田１丁目",null,null,null,null,null,"つくばＥＸ","柏たなか",5,null,null,null,null,null,null,null,null,null,null,1,null,2,null,null,null,null,1,null,3,null,24800000,null,569000,172000,null,2,144.31,null,null,null,null,null,null,null,null,null,null,null,null,null,null,null,null,null,null,null,null,null,null,null,null,null,null,1,null,1,1,null,1,50,100,144.31,4.8103333333333333,5,5,300,43.730303030303034,2099.0545454545459,4579.0545454545463,6.5515707887297089E-2,72.155000000000001,2,180,-35.69,"",null,null,1,2,null,null,null,null,null,null,null,null,null,null,null,null,null,null,1,1,8.5,null,8,6,null,null,null,null,null,null,null,null,null,null,null,null,null,null,null,1,null,null,null,null,null,null,null,null,null,null,null,null,null,null,null,null,null,null,null,null,null,null,null,null,null,null,null,null,null,null,null,null,null,null,null,null,null,null,null,null,null,null,null,null,null,null,null,null,null,null,null,null,null,null,null,null,null,null,null,null,null,11]
[100098948378,1,1,1,"今山住建（株）　","04-7167-6633","徳淵","080-4135-3602",null,2,"2019-05-13",null,null,null,"千葉県","柏市","小青田１丁目",null,null,null,null,null,"つくばＥＸ","柏たなか",5,null,null,null,null,null,null,null,null,null,null,1,null,2,null,null,null,null,1,null,3,null,23800000,null,402000,122000,null,2,196.13,null,null,null,null,null,null,null,null,null,null,null,null,null,null,null,null,null,null,null,null,null,null,null,null,null,null,1,null,1,1,null,1,50,100,196.13,6.5376666666666665,7,5,420,59.433333333333337,2852.8,5232.8,8.0262956734444266E-2,98.064999999999998,3,270,-73.87,"",null,null,1,2,null,null,null,null,null,null,null,null,null,null,null,null,null,null,1,1,3,null,8,6,null,null,null,null,null,null,null,null,null,null,null,null,null,null,null,1,null,null,null,null,null,null,null,null,null,null,null,null,null,null,null,null,null,null,null,null,null,null,null,null,null,null,null,null,null,null,null,null,null,null,null,null,null,null,null,null,null,null,null,null,null,null,null,null,null,null,null,null,null,null,null,null,null,null,null,null,null,9]
[100098948394,1,1,1,"今山住建（株）　","04-7167-6633","徳淵","080-4135-3602",null,2,"2019-05-13",null,null,null,"千葉県","柏市","小青田１丁目",null,null,null,null,null,"つくばＥＸ","柏たなか",5,null,null,null,null,null,null,null,null,null,null,1,null,2,null,null,null,null,1,null,3,null,25800000,null,592000,179000,null,2,144.31,null,null,null,null,null,null,null,null,null,null,null,null,null,null,null,null,null,null,null,null,null,null,null,null,null,null,1,null,1,1,null,1,50,100,144.31,4.8103333333333333,5,5,300,43.730303030303034,2099.0545454545459,4679.0545454545463,6.4115516732206959E-2,72.155000000000001,2,180,-35.69,"",null,null,1,2,null,null,null,null,null,null,null,null,null,null,null,null,null,null,1,1,8.1999999999999993,null,8,6,null,null,null,null,null,null,null,null,null,null,null,null,null,null,null,1,null,null,null,null,null,null,null,null,null,null,null,null,null,null,null,null,null,null,null,null,null,null,null,null,null,null,null,null,null,null,null,null,null,null,null,null,null,null,null,null,null,null,null,null,null,null,null,null,null,null,null,null,null,null,null,null,null,null,null,null,null,10]
[100098948563,1,1,1,"（株）コネクト　","043-306-6676","大場","043-306-6676",null,2,"2019-05-13","2019-05-13",null,null,"千葉県","千葉市若葉区","西都賀４丁目",null,null,null,null,null,"総武線","都賀",5,null,null,null,null,null,null,null,null,null,null,1,null,1,null,null,null,null,1,4,null,null,15800000,null,515000,156000,null,1,101.59,null,null,null,null,null,2,null,null,null,null,null,null,null,null,null,null,null,null,null,null,null,null,null,null,null,null,null,null,1,null,null,null,null,null,101.59,3.3863333333333334,3,5,180,30.784848484848489,1477.6727272727273,3057.6727272727276,5.8868301500844371E-2,60.954000000000001,2,180,-78.41,"",null,null,2,null,null,null,null,null,null,null,null,null,null,null,null,null,null,null,1]
[100098948570,1,1,1,"（株）コネクト　","043-306-6676","大場","043-306-6676",null,2,"2019-05-13",null,null,null,"千葉県","千葉市若葉区","西都賀４丁目",null,null,null,null,null,"総武線","都賀",5,null,null,null,null,null,null,null,null,null,null,1,null,1,null,null,null,null,1,4,null,null,18800000,null,612000,186000,null,2,101.57,null,null,null,null,null,2,null,null,null,null,null,null,null,null,null,null,null,null,null,null,null,null,null,null,null,null,null,null,1,null,null,null,null,null,101.57,3.3856666666666664,3,5,180,30.778787878787877,1477.3818181818181,3357.3818181818178,5.3613205094879129E-2,60.941999999999993,2,180,-78.430000000000007,"",null,null,1,null,null,null,null,null,null,null,null,null,null,null,null,null,null,null,2,1]
[100098949106,1,1,1,"（株）ＴＯＷＮ－ＮＥＴ　","03-3420-1112",null,null,null,2,"2019-05-13","2019-05-13",null,null,"千葉県","柏市","千代田３丁目","2019-04-15",null,null,null,null,"常磐線","柏",17,null,null,null,null,null,null,null,null,null,null,null,null,null,null,null,null,null,4,null,null,null,38800000,null,342000,104000,null,1,376.06,null,null,null,null,null,null,null,null,null,null,null,null,null,null,null,null,null,null,null,null,null,null,null,null,null,null,null,null,null,null,null,null,null,null,376.06,12.535333333333334,13,5,780,113.95757575757577,5469.9636363636373,9349.9636363636382,8.3422784337518069E-2,225.636,7,630,-253.94,""]
[100098951145,1,1,1,"（株）アフィオ　","043-309-7350",null,null,null,2,"2019-05-13",null,null,null,"千葉県","千葉市緑区","大金沢町",null,null,null,null,null,"京成千原線","ちはら台",13,null,null,null,null,null,null,null,null,null,null,1,null,2,null,null,null,null,4,1,null,null,14500000,null,287000,87000,null,1,167.31,null,null,null,null,null,null,null,null,null,null,null,null,null,null,null,null,null,null,null,null,null,null,null,null,null,null,1,null,2,null,null,null,null,null,167.31,5.577,6,5,360,50.7,2433.6,3883.6,9.2697497167576484E-2,100.386,3,270,-102.69,""]
[100098951146,1,1,1,"（株）アフィオ　","043-309-7350",null,null,null,2,"2019-05-13",null,null,null,"千葉県","千葉市美浜区","幕張西５丁目",null,null,null,null,null,"総武中央線","幕張本郷",20,null,null,null,null,null,null,null,null,null,null,2,null,2,null,null,null,null,4,1,null,null,45560000,null,677000,205000,null,1,222.56,null,null,null,null,null,2,null,null,null,null,null,null,null,null,null,null,null,null,null,null,null,null,null,null,null,null,1,null,1,1,null,1,50,100,222.56,7.4186666666666667,7,5,420,67.442424242424252,3237.2363636363639,7793.2363636363643,5.3892886139029643E-2,111.28,3,270,-47.44,"",null,null,null,2,null,null,null,null,null,null,null,null,null,null,null,null,null,null,5,1,null,null,2,6,1,null,null,6,6,null,null,null,null,null,null,null,null,null,null,1]
[100098951147,1,1,1,"（株）アフィオ　","043-309-7350",null,null,null,2,"2019-05-13",null,null,null,"千葉県","千葉市花見川区","浪花町",null,null,null,null,null,"総武中央線","新検見川",9,null,null,null,null,null,null,null,null,null,null,1,null,1,null,null,null,null,5,1,null,null,26500000,null,662000,201000,null,1,132.36000000000001,null,null,null,null,null,null,null,null,null,null,null,null,null,null,null,null,null,null,null,null,null,null,null,null,null,null,1,null,1,1,null,1,60,150,198.54000000000002,6.6180000000000003,7,5,420,60.163636363636371,2887.854545454546,5537.8545454545456,7.5841645271224167E-2,79.416000000000011,2,180,18.54000000000002,"!"]
[100098951148,1,1,1,"（株）アフィオ　","043-309-7350",null,null,null,2,"2019-05-13",null,null,null,"千葉県","千葉市緑区","大金沢町",null,null,null,null,null,"京成千原線","ちはら台",13,null,null,null,null,null,null,null,null,null,null,1,null,2,null,null,null,null,4,1,null,null,15500000,null,310000,94000,null,1,165.3,null,null,null,null,null,null,null,null,null,null,null,null,null,null,null,null,null,null,null,null,null,null,null,null,null,null,1,null,2,null,null,null,null,null,165.3,5.5100000000000007,6,5,360,50.090909090909101,2404.3636363636365,3954.3636363636365,9.1038668444526183E-2,99.18,3,270,-104.69999999999999,""]
[100098951153,1,1,1,"（株）アフィオ　","043-309-7350",null,null,null,2,"2019-05-13",null,null,null,"千葉県","千葉市花見川区","浪花町",null,null,null,null,null,"総武中央線","新検見川",9,null,null,null,null,null,null,null,null,null,null,1,null,1,null,null,null,null,5,1,null,null,28500000,null,672000,204000,null,1,140.35,null,null,null,null,null,null,null,null,null,null,null,null,null,null,null,null,null,null,null,null,null,null,null,null,null,null,1,null,1,1,null,1,60,150,210.52499999999998,7.0174999999999992,7,5,420,63.79545454545454,3062.1818181818176,5912.181818181818,7.1039763815850171E-2,84.21,2,180,30.524999999999977,"!"]
[100098951157,1,1,1,"（株）アフィオ　","043-309-7350",null,null,null,2,"2019-05-13",null,null,null,"千葉県","市原市","惣社５丁目",null,null,null,null,null,"内房線","五井",18,null,null,null,null,null,null,null,null,null,null,null,null,2,null,null,null,null,4,null,null,null,26600000,null,211000,64000,null,2,418.08,null,null,null,null,null,null,null,null,null,null,null,null,null,null,null,null,null,null,null,null,null,null,null,null,null,null,1,null,1,1,12,null,50,100,418.08,13.936,14,5,840,126.69090909090909,6081.1636363636362,8741.1636363636353,9.6097045535855435E-2,209.04,6,540,-121.92000000000002,"",null,null,null,null,null,null,null,null,null,null,null,null,null,null,null,null,null,null,5,1,null,null,1,4,1,null,null,7,4.5]
[100098951159,1,1,1,"（株）アフィオ　","043-309-7350",null,null,null,2,"2019-05-13",null,null,null,"千葉県","市原市","惣社５丁目",null,null,null,null,null,"内房線","五井",18,null,null,null,null,null,null,null,null,null,null,1,null,2,null,null,null,null,4,1,null,null,14600000,null,221000,67000,null,2,218.59,null,null,null,null,null,null,null,null,null,null,null,null,null,null,null,null,null,null,null,null,null,null,null,null,null,null,null,null,null,null,null,null,null,null,218.59,7.2863333333333333,7,5,420,66.239393939393949,3179.4909090909096,4639.4909090909096,9.0527173827849444E-2,131.154,4,360,-141.41,""]
[100098951160,1,1,1,"（株）アフィオ　","043-309-7350",null,null,null,2,"2019-05-13",null,null,null,"千葉県","市原市","惣社５丁目",null,null,null,null,null,"内房線","五井",18,null,null,null,null,null,null,null,null,null,null,1,null,2,null,null,null,null,4,1,null,null,13300000,null,221000,67000,null,2,199.49,null,null,null,null,null,null,null,null,null,null,null,null,null,null,null,null,null,null,null,null,null,null,null,null,null,null,null,null,null,null,null,null,null,null,199.49,6.6496666666666666,7,5,420,60.45151515151516,2901.6727272727276,4231.6727272727276,9.9251531739007137E-2,119.694,3,270,-70.509999999999991,""]
[100098951190,1,1,1,"（株）コネクト　","043-306-6676","大場","043-306-6676",null,2,"2019-05-13","2019-05-13",null,null,"千葉県","千葉市稲毛区","稲毛町５丁目",null,null,null,null,null,"総武中央線","新検見川",15,null,null,null,null,null,null,null,null,null,null,1,null,2,null,null,null,null,1,4,null,null,26800000,null,654000,198000,null,2,135.55000000000001,null,null,null,null,null,2,null,null,null,null,null,null,null,null,null,null,null,null,null,null,null,null,null,null,null,null,3,null,1,1,null,null,50,100,135.55000000000001,4.5183333333333335,5,5,300,41.075757575757578,1971.6363636363635,4651.636363636364,6.4493433395872421E-2,67.775000000000006,2,180,-44.449999999999989,"",null,null,1,null,null,null,null,null,null,null,null,null,null,null,null,null,null,null,1,1]
[100098951193,1,1,1,"（株）コネクト　","043-306-6676","大場","043-306-6676",null,2,"2019-05-13","2019-05-13",null,null,"千葉県","千葉市稲毛区","稲毛町５丁目",null,null,null,null,null,"総武中央線","新検見川",15,null,null,null,null,null,null,null,null,null,null,1,null,2,null,null,null,null,1,4,null,null,24800000,null,552000,167000,null,2,148.78,null,null,null,null,null,2,null,null,null,null,null,null,null,null,null,null,null,null,null,null,null,null,null,null,null,null,3,null,1,1,null,null,50,100,148.78,4.9593333333333334,5,5,300,45.084848484848486,2164.0727272727272,4644.0727272727272,6.4598471561012283E-2,74.39,2,180,-31.22,"",null,null,1,null,null,null,null,null,null,null,null,null,null,null,null,null,null,null,1,1,6]
[100098951199,1,1,1,"（株）コネクト　","043-306-6676","大場","043-306-6676",null,2,"2019-05-13",null,null,null,"千葉県","千葉市稲毛区","稲毛町５丁目",null,null,null,null,null,"総武中央線","新検見川",5,null,null,null,null,null,null,null,null,null,null,1,null,2,null,null,null,null,1,4,null,null,31800000,null,704000,213000,null,2,149.46,null,null,null,null,null,2,null,null,null,null,null,null,null,null,null,null,null,null,null,null,null,null,null,null,null,null,3,null,1,1,null,null,50,100,149.46,4.9820000000000002,5,5,300,45.290909090909096,2173.9636363636369,5353.9636363636364,5.60332531888015E-2,74.73,2,180,-30.539999999999992,"",null,null,1,null,null,null,null,null,null,null,null,null,null,null,null,null,null,null,1,1]
[100098954790,1,1,1,"（株）ワイズ　","043-305-5164",null,null,null,2,"2019-05-14",null,null,null,"千葉県","千葉市花見川区","横戸町",null,null,null,null,null,"京成本線","京成大和田",17,null,null,null,null,null,null,null,null,null,null,1,null,2,null,null,null,null,1,null,null,null,13800000,null,235000,72000,null,1,194.29,null,null,null,null,null,2,null,null,null,null,null,null,null,null,null,null,null,null,null,null,null,null,null,null,null,null,1,null,1,1,null,null,50,100,194.29,6.4763333333333328,6,5,360,58.875757575757575,2826.0363636363636,4206.0363636363636,8.5591271419431819E-2,97.144999999999996,3,270,-75.710000000000008,"",null,null,null,null,null,null,null,null,null,null,null,null,null,null,null,null,null,null,null,null,null,1]
[100098956014,1,1,1,"タクトホーム（株）　松戸店　","047-312-3888",null,null,null,2,"2019-05-14",null,null,null,"千葉県","我孫子市","寿１丁目",null,null,null,null,null,"常磐線","我孫子",8,null,null,null,null,null,null,null,null,null,null,1,null,null,null,null,null,null,1,null,null,null,23800000,null,497000,151000,null,2,158.33000000000001,null,null,null,null,null,null,null,null,null,null,null,null,null,null,null,null,null,null,null,null,null,null,null,null,null,null,null,null,null,null,null,null,null,null,158.33000000000001,5.2776666666666667,5,5,300,47.978787878787884,2302.9818181818187,4682.9818181818191,6.4061747759780074E-2,94.998000000000005,3,270,-111.66999999999999,"",null,null,1,null,null,null,null,null,null,null,null,null,null,null,null,null,null,null,1]
[100098956365,1,1,1,"（株）京葉地建　","043-441-3976",null,null,null,2,"2019-05-14",null,null,null,"千葉県","千葉市中央区","南生実町",null,null,null,null,null,"京成千原線","学園前",10,null,null,null,null,null,null,null,null,null,null,2,null,1,null,null,null,null,4,1,null,null,8000000,null,182000,55000,null,1,145.87,null,null,null,null,null,1,161,null,null,null,null,null,null,null,null,null,null,null,null,null,null,null,null,null,null,null,1,null,1,1,12,1,50,100,145.87,4.8623333333333338,5,5,300,44.20303030303031,2121.7454545454548,2921.7454545454548,0.10267834918106238,72.935000000000002,2,180,-34.129999999999995,"",null,null,1,2,null,null,null,null,null,null,null,null,null,null,null,null,null,null,1,null,null,null,1]
[100098956546,1,1,1,"スマート（株）　","043-312-8992",null,null,null,2,"2019-05-14",null,null,null,"千葉県","千葉市若葉区","大宮町","２１７１－１５",null,null,null,null,null,null,null,null,null,null,null,null,null,null,null,null,null,null,null,null,null,null,null,null,1,null,null,null,7800000,null,52000,16000,null,null,496,null,null,null,null,null,null,null,null,null,null,null,null,null,null,null,null,null,null,null,null,null,null,null,null,null,null,null,null,null,null,null,13,null,null,496,16.533333333333335,17,5,1020,150.30303030303031,7214.545454545454,7994.545454545454,0.12758699113031613,297.59999999999997,9,810,-314,""]
[100098956667,1,1,1,"スマート（株）　","043-312-8992",null,null,null,2,"2019-05-14",null,null,null,"千葉県","千葉市緑区","高田町",2324,null,null,null,null,null,null,null,null,null,null,null,null,null,null,null,null,null,null,null,null,null,null,null,null,1,null,null,null,17800000,null,30000,9000,null,null,1983,null,null,null,null,null,null,null,null,null,null,null,null,null,null,null,null,null,null,null,null,null,null,null,null,null,null,null,null,null,null,null,null,null,null,1983,66.099999999999994,66,5,3960,600.90909090909099,28843.636363636368,30623.636363636368,0.12931188030635871,1189.8,39,3510,-1527,""]
[100098956710,1,1,1,"スマート（株）　","043-312-8992",null,null,null,2,"2019-05-14",null,null,null,"千葉県","柏市","青葉台２丁目","2019-11-06",null,null,null,null,"新京成線","常盤平",22,null,null,null,null,null,null,null,null,null,null,null,null,null,null,null,null,null,1,null,null,null,11800000,null,275000,84000,null,null,142,null,null,null,null,null,null,null,null,null,null,null,null,null,null,null,null,null,null,null,null,null,null,null,null,null,null,null,null,null,null,null,null,null,null,142,4.7333333333333334,5,5,300,43.030303030303031,2065.4545454545455,3245.4545454545455,9.2436974789915971E-2,85.2,2,180,-38,""]
[100098956758,1,1,1,"スマート（株）　","043-312-8992",null,null,null,2,"2019-05-14",null,null,null,"千葉県","千葉市中央区","仁戸名町","５２３－３８",null,null,null,null,"京成千原線","大森台",14,null,null,null,null,null,null,null,null,null,null,null,null,null,null,null,null,null,1,null,null,null,9800000,null,208000,63000,null,null,156.41999999999999,null,null,null,null,null,null,null,null,null,null,null,null,null,null,null,null,null,null,null,null,null,null,null,null,null,null,null,null,null,null,null,null,null,null,156.41999999999999,5.2139999999999995,5,5,300,47.4,2275.1999999999998,3255.2,9.216023593020399E-2,93.85199999999999,3,270,-113.58000000000001,""]
[100098956775,1,1,1,"（株）Ｈａｌｅ・ＣＯＲＰ　","043-307-8052","山﨑",null,"info@halecorp.co.jp",2,"2019-05-14",null,null,null,"千葉県","市原市","五井",null,null,null,null,null,"内房線","五井",11,null,null,null,null,null,null,null,null,null,null,null,null,null,null,null,null,null,4,null,null,null,18800000,null,418000,127000,null,1,148.99,null,null,null,null,null,null,null,null,null,null,null,null,null,null,null,null,null,null,null,null,null,null,null,null,null,null,null,null,null,null,null,null,null,null,148.99,4.9663333333333339,5,5,300,45.148484848484856,2167.1272727272731,4047.1272727272731,7.4126653248993674E-2,89.394000000000005,2,180,-31.009999999999991,""]
[100098956864,1,1,1,"スマート（株）　","043-312-8992",null,null,null,2,"2019-05-14",null,null,null,"千葉県","千葉市美浜区","真砂１丁目","2019-10-04",null,null,null,null,"京葉線","稲毛海岸",10,null,null,null,null,null,null,null,null,null,null,null,null,null,null,null,null,null,1,null,null,null,48800000,null,669000,203000,null,null,241.46,null,null,null,null,null,null,null,null,null,null,null,null,null,null,null,null,null,null,null,null,null,null,null,null,null,null,null,null,null,null,null,null,null,null,241.46,8.0486666666666675,8,5,480,73.169696969696972,3512.1454545454549,8392.1454545454544,5.7196339434276204E-2,144.876,4,360,-118.53999999999999,""]
[100098956867,1,1,1,"（株）東海住宅建設川間駅南口駅前店　","04-7127-0050",null,null,null,2,"2019-05-14",null,null,null,"千葉県","野田市","木間ケ瀬",null,null,null,null,null,"東武野田線","川間",null,null,13,"朝日バス","宝珠花上町",12,null,null,null,null,null,1,null,2,null,null,null,null,4,2,null,null,15980000,null,50000,15000,null,1,1066.1500000000001,null,null,null,null,null,null,null,null,null,1,null,null,null,null,null,null,null,null,null,null,null,null,null,null,null,null,3,3,1,11,null,1,60,150,1599.2250000000001,53.307500000000005,53,5,3180,484.61363636363643,23261.454545454548,24859.454545454548,0.12791913813657871,639.69000000000005,21,1890,-290.77499999999986,"",null,null,null,null,null,null,null,null,null,null,null,null,null,null,null,null,null,null,1,1,20.7,null,5,3.6,null,null,null,null,null,null,null,null,null,null,null,null,null,null,null,1,null,null,null,null,null,null,null,null,null,null,null,null,null,null,null,null,null,null,null,null,null,null,null,null,null,null,null,null,null,null,null,null,null,null,null,null,null,null,null,null,null,null,null,null,null,null,null,null,null,null,null,null,null,null,null,null,null,null,null,null,null,"農地法５条の届出が必要です。","上下水道の引込はありません。"]
[100098956887,1,1,1,"（株）ａｎｙｓｅｅ　","03-5798-2531","平山",null,null,2,"2019-05-14",null,null,null,"千葉県","木更津市","中島",null,null,null,null,null,"内房線","巌根",null,null,null,null,null,null,null,null,"車",14,null,1,null,2,null,null,null,null,3,1,null,null,10000000,null,71000,22000,null,1,466.1,null,null,null,null,null,null,null,null,null,null,null,null,null,null,null,null,null,null,null,null,null,null,null,null,null,null,1,null,2,null,null,null,600,200,932.2,31.073333333333334,31,5,1860,282.4848484848485,13559.272727272728,14559.272727272728,0.12775363404765472,2796.6000000000004,93,8370,-7437.8,"",null,null,null,1]
[100098956917,1,1,1,"（株）ａｎｙｓｅｅ　","03-5798-2531","前田",null,"maeda@anysee.co.jp",2,"2019-05-14",null,null,null,"千葉県","柏市","篠籠田",null,null,null,null,null,"常磐線","柏",null,null,null,null,null,null,null,4,null,null,null,1,null,2,null,null,null,null,3,null,null,null,50000000,null,649000,197000,null,1,255,null,null,null,null,null,null,null,null,null,null,null,null,null,null,null,null,null,null,null,null,null,null,null,null,null,null,3,null,null,1,null,null,50,100,255,8.5,9,5,540,77.27272727272728,3709.090909090909,8709.0909090909081,6.2004175365344472E-2,127.5,4,360,-105,"",null,null,1,null,null,null,null,null,null,null,null,null,null,null,null,null,null,null,1,null,null,null,5,null,null,null,null,null,null,null,null,null,null,null,null,null,null,null,null,1,null,null,null,null,null,null,null,null,null,null,null,null,null,null,null,null,null,null,null,null,null,null,null,null,null,null,null,null,null,null,null,null,null,null,null,null,null,null,null,null,null,null,null,null,null,null,null,null,null,null,null,null,null,null,null,null,null,null,null,null,null,"南側道路：都市計画道路"]
[100098956950,1,1,1,"（株）ａｎｙｓｅｅ　","03-5798-2531","森山",null,"moriyama@anysee.co.jp",2,"2019-05-14",null,null,null,"千葉県","銚子市","春日町",null,null,null,null,null,"総武線","銚子",null,null,null,null,null,null,null,2,null,null,null,1,null,2,null,null,null,null,3,null,null,null,30000000,null,111000,34000,null,1,900.78,null,null,null,null,null,null,null,null,null,null,null,null,null,null,null,null,null,null,null,null,null,null,null,null,null,null,1,null,null,1,null,null,40,80,720.62400000000002,24.020800000000001,24,5,1440,218.37090909090912,10481.803636363637,13481.803636363637,0.10681063445516867,360.31200000000001,12,1080,-359.37599999999998,"",null,null,1,null,null,null,null,null,null,null,null,null,null,null,null,null,null,null,5,null,null,null,null,null,null,null,null,null,null,null,null,null,null,null,null,null,null,null,null,1]
[100098957025,1,1,1,"スマート（株）　","043-312-8992",null,null,null,2,"2019-05-14",null,null,null,"千葉県","千葉市稲毛区","緑町１丁目","１３－１３",null,null,null,null,"京成千葉線","みどり台",5,null,null,null,null,null,null,null,null,null,null,null,null,null,null,null,null,null,1,null,null,null,44800000,null,1060000,321000,null,null,139.79,null,null,null,null,null,null,null,null,null,null,null,null,null,null,null,null,null,null,null,null,null,null,null,null,null,null,null,null,null,null,null,null,null,null,139.79,4.6596666666666664,5,5,300,42.360606060606059,2033.3090909090909,6513.3090909090906,4.6059536836463522E-2,83.873999999999995,2,180,-40.210000000000008,""]
[100098957054,1,1,1,"（株）京葉地建　","043-441-3976",null,null,null,2,"2019-05-14",null,null,null,"千葉県","千葉市若葉区","貝塚町",null,null,null,null,null,"総武線","千葉",null,null,10,null,null,8,null,null,null,null,null,2,null,1,null,null,null,null,4,1,null,null,13900000,null,126000,38000,null,1,367.15,null,null,null,null,null,null,null,null,null,null,null,null,null,null,null,null,null,null,null,null,null,null,null,null,null,null,null,null,2,99,null,null,null,null,367.15,12.238333333333333,12,5,720,111.25757575757575,5340.363636363636,6730.363636363636,0.10697787503039145,220.29,7,630,-262.85000000000002,"",null,null,null,null,null,null,null,null,null,null,null,null,null,null,null,null,null,null,1,1,null,null,3]
[100098957416,1,1,1,"矢部ハウス　","047-344-7730",null,null,null,2,"2019-05-14","2019-05-14",null,null,"千葉県","柏市","今谷上町","４５番２５",null,null,null,null,"常磐緩行線","南柏",2,160,null,null,null,null,null,null,null,null,null,1,null,2,null,null,null,null,1,9,3,60000,59800000,null,823000,249000,null,2,240.27,null,null,null,null,null,null,null,null,null,null,null,null,null,null,null,null,null,null,null,null,null,null,null,null,null,null,1,null,1,1,null,1,50,100,240.27,8.0090000000000003,8,5,480,72.809090909090912,3494.8363636363638,9474.8363636363647,5.0660505530438514E-2,120.13500000000001,4,360,-119.72999999999999,"",null,null,1,null,null,null,null,null,null,null,null,null,null,null,null,null,null,null,5,1,null,null,6,6.9,2,null,1,4,6.4]
[100098959609,1,1,1,"（株）高品ハウジング　千葉駅東口店　","043-308-0901",null,null,"housedo@takashina.co.jp",2,"2019-05-14",null,null,null,"千葉県","千葉市若葉区","小倉町",null,null,null,null,null,"千葉モノレ","小倉台",16,null,null,null,null,null,null,null,null,null,null,1,null,2,null,null,null,null,5,1,null,null,11000000,null,173000,53000,null,1,210.53,null,null,null,null,null,null,240.2,null,null,null,null,null,null,null,null,null,null,null,null,null,null,null,null,null,null,null,4,null,2,null,null,null,50,100,210.53,7.0176666666666669,7,5,420,63.796969696969704,3062.2545454545457,4162.2545454545452,0.10090685118205169,105.265,3,270,-59.47,"",null,null,1,null,null,null,null,null,null,null,null,null,null,null,null,null,null,null,null,null,null,null,null,null,null,null,null,null,null,null,null,null,null,null,null,null,null,null,null,null,null,null,null,null,null,null,null,null,null,null,null,null,null,null,null,null,null,null,null,null,null,null,null,null,null,null,null,null,null,null,null,null,null,null,null,null,null,null,null,null,null,null,null,null,null,null,null,null,null,null,null,null,null,null,null,null,null,null,null,null,null,"都市計画法第３５条第２項許可済","①区画　西側の土地です（図面参照）"]
[100098959676,1,1,1,"（株）高品ハウジング　千葉駅東口店　","043-308-0901",null,null,"housedo@takashina.co.jp",2,"2019-05-14",null,null,null,"千葉県","千葉市若葉区","小倉町",null,null,null,null,null,"千葉モノレ","小倉台",16,null,null,null,null,null,null,null,null,null,null,1,null,2,null,null,null,null,5,1,null,null,11000000,null,197000,60000,null,1,185.38,null,null,null,null,null,null,240.2,null,null,null,null,null,null,null,null,null,null,null,null,null,null,null,null,null,null,null,4,null,2,null,null,null,50,100,185.38,6.1793333333333331,6,5,360,56.175757575757579,2696.4363636363637,3796.4363636363637,9.4825769621271622E-2,92.69,3,270,-84.62,"",null,null,1,null,null,null,null,null,null,null,null,null,null,null,null,null,null,null,null,null,null,null,null,null,null,null,null,null,null,null,null,null,null,null,null,null,null,null,null,null,null,null,null,null,null,null,null,null,null,null,null,null,null,null,null,null,null,null,null,null,null,null,null,null,null,null,null,null,null,null,null,null,null,null,null,null,null,null,null,null,null,null,null,null,null,null,null,null,null,null,null,null,null,null,null,null,null,null,null,null,null,"都市計画法第３５条第２項許可済","②区画（図面参照）"]
[100098959707,1,1,1,"（株）高品ハウジング　千葉駅東口店　","043-308-0901",null,null,"housedo@takahsina.co.jp",2,"2019-05-14","2019-05-14",null,null,"千葉県","千葉市若葉区","小倉町",null,null,null,null,null,"千葉モノレ","小倉台",16,null,null,null,null,null,null,null,null,null,null,1,null,2,null,null,null,null,5,1,null,null,11000000,null,219000,67000,null,1,166.16,null,null,null,null,null,null,240.2,null,null,null,null,null,null,null,null,null,null,null,null,null,null,null,null,null,null,null,4,null,2,null,null,null,50,100,166.16,5.5386666666666668,6,5,360,50.351515151515152,2416.8727272727269,3516.8727272727269,0.10236367020286619,83.08,2,180,-13.840000000000003,"",null,null,1,null,null,null,null,null,null,null,null,null,null,null,null,null,null,null,null,null,null,null,null,null,null,null,null,null,null,null,null,null,null,null,null,null,null,null,null,null,null,null,null,null,null,null,null,null,null,null,null,null,null,null,null,null,null,null,null,null,null,null,null,null,null,null,null,null,null,null,null,null,null,null,null,null,null,null,null,null,null,null,null,null,null,null,null,null,null,null,null,null,null,null,null,null,null,null,null,null,null,"都市計画法第３５条第２項許可済","③区画の土地です（図面参照）"]
[100098959798,1,1,1,"（株）高品ハウジング　千葉駅東口店　","043-308-0901",null,null,"housedo@takashina.co.jp",2,"2019-05-14",null,null,null,"千葉県","千葉市若葉区","小倉町",null,null,null,null,null,"千葉モノレ","小倉台",16,null,null,null,null,null,null,null,null,null,null,1,null,2,null,null,null,null,5,1,null,null,11000000,null,219000,67000,null,1,166.12,null,null,null,null,null,null,240.02,null,null,null,null,null,null,null,null,null,null,null,null,null,null,null,null,null,null,null,4,null,2,null,null,null,50,100,166.12,5.5373333333333337,6,5,360,50.339393939393943,2416.2909090909093,3516.2909090909093,0.10238060766510165,83.06,2,180,-13.879999999999995,"",null,null,1,null,null,null,null,null,null,null,null,null,null,null,null,null,null,null,null,null,null,null,null,null,null,null,null,null,null,null,null,null,null,null,null,null,null,null,null,null,null,null,null,null,null,null,null,null,null,null,null,null,null,null,null,null,null,null,null,null,null,null,null,null,null,null,null,null,null,null,null,null,null,null,null,null,null,null,null,null,null,null,null,null,null,null,null,null,null,null,null,null,null,null,null,null,null,null,null,null,null,"都市計画法第３５条第２項許可済","④区画の土地です（図面参照）"]
[100098959804,1,1,1,"（株）新生エル開発　","04-7138-6771","清田",null,null,2,"2019-05-14",null,null,null,"千葉県","柏市","高柳",null,null,null,null,null,"東武野田線","高柳",8,null,null,null,null,null,null,null,null,null,null,1,null,1,null,null,null,null,4,1,null,null,24900000,null,360000,109000,null,2,229.14,null,null,null,null,null,null,null,null,null,null,null,null,null,null,null,null,null,null,null,null,null,null,null,null,null,null,null,1,null,1,null,1,50,100,229.14,7.6379999999999999,8,5,480,69.436363636363637,3332.9454545454546,5822.9454545454546,8.2432508383760789E-2,114.57,3,270,-40.860000000000014,"",null,null,1,2,null,null,null,null,null,null,null,null,null,null,null,null,null,null,1,1,8.3000000000000007,2,4,10,null,null,null,null,null,null,null,null,null,null,null,null,null,null,null,1]
[100098960711,1,1,1,"三井住友トラスト不動産（株）　津田沼センター","047-472-5661","伊藤　広貴","047-472-5661","tsudanuma@smtrc.jp",2,"2019-05-14",null,null,null,"千葉県","習志野市","藤崎５丁目",null,null,null,null,null,"京成本線","京成大久保",16,null,null,null,null,null,null,null,null,null,null,2,null,2,null,null,null,null,4,null,null,null,20000000,null,480000,146000,null,1,137.88999999999999,null,null,null,null,null,1,null,null,null,0,null,null,null,null,null,null,null,null,null,null,null,null,null,null,null,3,1,1,1,11,null,null,60,200,275.77999999999997,9.1926666666666659,9,5,540,83.569696969696963,4011.3454545454542,6011.3454545454542,8.9830139372822304E-2,82.733999999999995,2,180,95.779999999999973,"!",null,null,null,2,null,null,null,null,null,null,null,null,null,null,null,null,null,null,1,2,14,2,6,6,null,null,null,null,null,null,null,null,null,null,null,null,null,null,null,null,null,null,null,null,null,null,null,null,null,null,null,null,null,null,null,null,null,null,null,null,null,null,null,null,null,null,null,null,null,null,null,null,null,null,null,null,null,null,null,null,null,null,null,null,null,null,null,null,null,null,null,null,null,null,null,null,null,"社会福祉法人恩賜財団済生会千葉県済生会習",700,null,null,null,null,"Ｂｔｄ１８１５６２"]
[100098960719,1,1,1,"三井住友トラスト不動産（株）　柏センター","04-7142-3331","松永　龍之介","04-7142-3331","kashiwa@smtrc.jp",2,"2019-05-14","2019-05-14",null,null,"千葉県","柏市","みどり台３丁目",null,null,null,null,null,"東武野田線","江戸川台",19,null,null,null,null,null,null,null,null,null,null,1,null,2,null,null,null,null,4,null,null,null,17000000,null,321000,98000,null,1,175.14,null,null,null,null,null,2,null,null,null,0,null,null,null,null,null,null,null,null,null,null,null,null,null,null,null,3,1,1,1,1,null,null,60,150,262.70999999999998,8.7569999999999997,9,5,540,79.609090909090909,3821.2363636363634,5521.2363636363634,9.7804180881752439E-2,105.08399999999999,3,270,-7.2900000000000205,"",null,null,1,2,null,null,null,null,null,null,null,null,null,null,null,null,null,null,2,1,9.6999999999999993,2,3,8,1,11.5,2,1,4.3,null,null,null,null,null,null,null,null,null,null,null,null,null,null,null,null,null,null,null,null,null,null,null,null,null,null,null,null,null,null,null,null,null,null,null,null,null,null,null,null,null,null,null,null,null,null,null,null,null,null,null,null,null,null,null,null,null,null,null,null,null,null,null,null,null,null,null,null,"ヨークマート江戸川台店",720,null,null,null,null,"Ｂｋｓ１９００６０"]
[null,null,null,null,null,null,null,null,null,null,null,null,null,null,null,null,null,null,null,null,null,null,null,null,null,null,null,null,null,null,null,null,null,null,null,null,null,null,null,null,null,null,null,null,null,null,null,null,null,null,null,null,null,null,null,null,null,null,null,null,null,null,null,null,null,null,null,null,null,null,null,null,null,null,null,null,null,null,null,null,null,null,null,null,null,null,null,0,0,0,5,0,0,0,0,{"$error":"#DIV/0!"},0,0,0,0,""]
[null,null,null,null,null,null,null,null,null,null,null,null,null,null,null,null,null,null,null,null,null,null,null,null,null,null,null,null,null,null,null,null,null,null,null,null,null,null,null,null,null,null,null,null,null,null,null,null,null,null,null,null,null,null,null,null,null,null,null,null,null,null,null,null,null,null,null,null,null,null,null,null,null,null,null,null,null,null,null,null,null,null,null,null,null,null,null,0,0,0,5,0,0,0,0,{"$error":"#DIV/0!"},0,0,0,0,""]
[null,null,null,null,null,null,null,null,null,null,null,null,null,null,null,null,null,null,null,null,null,null,null,null,null,null,null,null,null,null,null,null,null,null,null,null,null,null,null,null,null,null,null,null,null,null,null,null,null,null,null,null,null,null,null,null,null,null,null,null,null,null,null,null,null,null,null,null,null,null,null,null,null,null,null,null,null,null,null,null,null,null,null,null,null,null,null,0,0,0,5,0,0,0,0,{"$error":"#DIV/0!"},0,0,0,0,""]
[null,null,null,null,null,null,null,null,null,null,null,null,null,null,null,null,null,null,null,null,null,null,null,null,null,null,null,null,null,null,null,null,null,null,null,null,null,null,null,null,null,null,null,null,null,null,null,null,null,null,null,null,null,null,null,null,null,null,null,null,null,null,null,null,null,null,null,null,null,null,null,null,null,null,null,null,null,null,null,null,null,null,null,null,null,null,null,0,0,0,5,0,0,0,0,{"$error":"#DIV/0!"},0,0,0,0,""]
[null,null,null,null,null,null,null,null,null,null,null,null,null,null,null,null,null,null,null,null,null,null,null,null,null,null,null,null,null,null,null,null,null,null,null,null,null,null,null,null,null,null,null,null,null,null,null,null,null,null,null,null,null,null,null,null,null,null,null,null,null,null,null,null,null,null,null,null,null,null,null,null,null,null,null,null,null,null,null,null,null,null,null,null,null,null,null,0,0,0,5,0,0,0,0,{"$error":"#DIV/0!"},0,0,0,0,""]
[null,null,null,null,null,null,null,null,null,null,null,null,null,null,null,null,null,null,null,null,null,null,null,null,null,null,null,null,null,null,null,null,null,null,null,null,null,null,null,null,null,null,null,null,null,null,null,null,null,null,null,null,null,null,null,null,null,null,null,null,null,null,null,null,null,null,null,null,null,null,null,null,null,null,null,null,null,null,null,null,null,null,null,null,null,null,null,0,0,0,5,0,0,0,0,{"$error":"#DIV/0!"},0,0,0,0,""]
[null,null,null,null,null,null,null,null,null,null,null,null,null,null,null,null,null,null,null,null,null,null,null,null,null,null,null,null,null,null,null,null,null,null,null,null,null,null,null,null,null,null,null,null,null,null,null,null,null,null,null,null,null,null,null,null,null,null,null,null,null,null,null,null,null,null,null,null,null,null,null,null,null,null,null,null,null,null,null,null,null,null,null,null,null,null,null,0,0,0,5,0,0,0,0,{"$error":"#DIV/0!"},0,0,0,0,""]
[null,null,null,null,null,null,null,null,null,null,null,null,null,null,null,null,null,null,null,null,null,null,null,null,null,null,null,null,null,null,null,null,null,null,null,null,null,null,null,null,null,null,null,null,null,null,null,null,null,null,null,null,null,null,null,null,null,null,null,null,null,null,null,null,null,null,null,null,null,null,null,null,null,null,null,null,null,null,null,null,null,null,null,null,null,null,null,0,0,0,5,0,0,0,0,{"$error":"#DIV/0!"},0,0,0,0,""]
[null,null,null,null,null,null,null,null,null,null,null,null,null,null,null,null,null,null,null,null,null,null,null,null,null,null,null,null,null,null,null,null,null,null,null,null,null,null,null,null,null,null,null,null,null,null,null,null,null,null,null,null,null,null,null,null,null,null,null,null,null,null,null,null,null,null,null,null,null,null,null,null,null,null,null,null,null,null,null,null,null,null,null,null,null,null,null,0,0,0,5,0,0,0,0,{"$error":"#DIV/0!"},0,0,0,0,""]
[null,null,null,null,null,null,null,null,null,null,null,null,null,null,null,null,null,null,null,null,null,null,null,null,null,null,null,null,null,null,null,null,null,null,null,null,null,null,null,null,null,null,null,null,null,null,null,null,null,null,null,null,null,null,null,null,null,null,null,null,null,null,null,null,null,null,null,null,null,null,null,null,null,null,null,null,null,null,null,null,null,null,null,null,null,null,null,0,0,0,5,0,0,0,0,{"$error":"#DIV/0!"},0,0,0,0,""]
[null,null,null,null,null,null,null,null,null,null,null,null,null,null,null,null,null,null,null,null,null,null,null,null,null,null,null,null,null,null,null,null,null,null,null,null,null,null,null,null,null,null,null,null,null,null,null,null,null,null,null,null,null,null,null,null,null,null,null,null,null,null,null,null,null,null,null,null,null,null,null,null,null,null,null,null,null,null,null,null,null,null,null,null,null,null,null,0,0,0,5,0,0,0,0,{"$error":"#DIV/0!"},0,0,0,0,""]
[null,null,null,null,null,null,null,null,null,null,null,null,null,null,null,null,null,null,null,null,null,null,null,null,null,null,null,null,null,null,null,null,null,null,null,null,null,null,null,null,null,null,null,null,null,null,null,null,null,null,null,null,null,null,null,null,null,null,null,null,null,null,null,null,null,null,null,null,null,null,null,null,null,null,null,null,null,null,null,null,null,null,null,null,null,null,null,0,0,0,5,0,0,0,0,{"$error":"#DIV/0!"},0,0,0,0,""]
[null,null,null,null,null,null,null,null,null,null,null,null,null,null,null,null,null,null,null,null,null,null,null,null,null,null,null,null,null,null,null,null,null,null,null,null,null,null,null,null,null,null,null,null,null,null,null,null,null,null,null,null,null,null,null,null,null,null,null,null,null,null,null,null,null,null,null,null,null,null,null,null,null,null,null,null,null,null,null,null,null,null,null,null,null,null,null,0,0,0,5,0,0,0,0,{"$error":"#DIV/0!"},0,0,0,0,""]
[null,null,null,null,null,null,null,null,null,null,null,null,null,null,null,null,null,null,null,null,null,null,null,null,null,null,null,null,null,null,null,null,null,null,null,null,null,null,null,null,null,null,null,null,null,null,null,null,null,null,null,null,null,null,null,null,null,null,null,null,null,null,null,null,null,null,null,null,null,null,null,null,null,null,null,null,null,null,null,null,null,null,null,null,null,null,null,0,0,0,5,0,0,0,0,{"$error":"#DIV/0!"},0,0,0,0,""]
[null,null,null,null,null,null,null,null,null,null,null,null,null,null,null,null,null,null,null,null,null,null,null,null,null,null,null,null,null,null,null,null,null,null,null,null,null,null,null,null,null,null,null,null,null,null,null,null,null,null,null,null,null,null,null,null,null,null,null,null,null,null,null,null,null,null,null,null,null,null,null,null,null,null,null,null,null,null,null,null,null,null,null,null,null,null,null,0,0,0,5,0,0,0,0,{"$error":"#DIV/0!"},0,0,0,0,""]
[null,null,null,null,null,null,null,null,null,null,null,null,null,null,null,null,null,null,null,null,null,null,null,null,null,null,null,null,null,null,null,null,null,null,null,null,null,null,null,null,null,null,null,null,null,null,null,null,null,null,null,null,null,null,null,null,null,null,null,null,null,null,null,null,null,null,null,null,null,null,null,null,null,null,null,null,null,null,null,null,null,null,null,null,null,null,null,0,0,0,5,0,0,0,0,{"$error":"#DIV/0!"},0,0,0,0,""]
[null,null,null,null,null,null,null,null,null,null,null,null,null,null,null,null,null,null,null,null,null,null,null,null,null,null,null,null,null,null,null,null,null,null,null,null,null,null,null,null,null,null,null,null,null,null,null,null,null,null,null,null,null,null,null,null,null,null,null,null,null,null,null,null,null,null,null,null,null,null,null,null,null,null,null,null,null,null,null,null,null,null,null,null,null,null,null,0,0,0,5,0,0,0,0,{"$error":"#DIV/0!"},0,0,0,0,""]
[null,null,null,null,null,null,null,null,null,null,null,null,null,null,null,null,null,null,null,null,null,null,null,null,null,null,null,null,null,null,null,null,null,null,null,null,null,null,null,null,null,null,null,null,null,null,null,null,null,null,null,null,null,null,null,null,null,null,null,null,null,null,null,null,null,null,null,null,null,null,null,null,null,null,null,null,null,null,null,null,null,null,null,null,null,null,null,0,0,0,5,0,0,0,0,{"$error":"#DIV/0!"},0,0,0,0,""]
[null,null,null,null,null,null,null,null,null,null,null,null,null,null,null,null,null,null,null,null,null,null,null,null,null,null,null,null,null,null,null,null,null,null,null,null,null,null,null,null,null,null,null,null,null,null,null,null,null,null,null,null,null,null,null,null,null,null,null,null,null,null,null,null,null,null,null,null,null,null,null,null,null,null,null,null,null,null,null,null,null,null,null,null,null,null,null,0,0,0,5,0,0,0,0,{"$error":"#DIV/0!"},0,0,0,0,""]
[null,null,null,null,null,null,null,null,null,null,null,null,null,null,null,null,null,null,null,null,null,null,null,null,null,null,null,null,null,null,null,null,null,null,null,null,null,null,null,null,null,null,null,null,null,null,null,null,null,null,null,null,null,null,null,null,null,null,null,null,null,null,null,null,null,null,null,null,null,null,null,null,null,null,null,null,null,null,null,null,null,null,null,null,null,null,null,0,0,0,5,0,0,0,0,{"$error":"#DIV/0!"},0,0,0,0,""]
[null,null,null,null,null,null,null,null,null,null,null,null,null,null,null,null,null,null,null,null,null,null,null,null,null,null,null,null,null,null,null,null,null,null,null,null,null,null,null,null,null,null,null,null,null,null,null,null,null,null,null,null,null,null,null,null,null,null,null,null,null,null,null,null,null,null,null,null,null,null,null,null,null,null,null,null,null,null,null,null,null,null,null,null,null,null,null,0,0,0,5,0,0,0,0,{"$error":"#DIV/0!"},0,0,0,0,""]
[null,null,null,null,null,null,null,null,null,null,null,null,null,null,null,null,null,null,null,null,null,null,null,null,null,null,null,null,null,null,null,null,null,null,null,null,null,null,null,null,null,null,null,null,null,null,null,null,null,null,null,null,null,null,null,null,null,null,null,null,null,null,null,null,null,null,null,null,null,null,null,null,null,null,null,null,null,null,null,null,null,null,null,null,null,null,null,0,0,0,5,0,0,0,0,{"$error":"#DIV/0!"},0,0,0,0,""]
[null,null,null,null,null,null,null,null,null,null,null,null,null,null,null,null,null,null,null,null,null,null,null,null,null,null,null,null,null,null,null,null,null,null,null,null,null,null,null,null,null,null,null,null,null,null,null,null,null,null,null,null,null,null,null,null,null,null,null,null,null,null,null,null,null,null,null,null,null,null,null,null,null,null,null,null,null,null,null,null,null,null,null,null,null,null,null,{"$f":"IF(ISBLANK(CI451),100,CI451)/100*BA451","v":0},{"$f":"CJ451/30","v":0},{"$f":"ROUND(CK451,0)","v":0},5,{"$f":"CM451*12*CL451","v":0},{"$f":"CJ451/3.3","v":0},{"$f":"CO451*40*1.2","v":0},{"$f":"CP451+(AU451/10000)","v":0},{"$f":"CN451/CQ451","v":{"$error":"#DIV/0!"}},{"$f":"IF(ISBLANK(CH451),60,CH451)/100*BA451","v":0},{"$f":"ROUNDDOWN((CS451/30),0)","v":0},{"$f":"CT451*30*3","v":0},{"$f":"CJ451-CU451","v":0},{"$f":"IF(CV451>0, \"!\",\"\")","v":""}]
[null,null,null,null,null,null,null,null,null,null,null,null,null,null,null,null,null,null,null,null,null,null,null,null,null,null,null,null,null,null,null,null,null,null,null,null,null,null,null,null,null,null,null,null,null,null,null,null,null,null,null,null,null,null,null,null,null,null,null,null,null,null,null,null,null,null,null,null,null,null,null,null,null,null,null,null,null,null,null,null,null,null,null,null,null,null,null,0,0,0,5,0,0,0,0,{"$error":"#DIV/0!"}]
[null,null,null,null,null,null,null,null,null,null,null,null,null,null,null,null,null,null,null,null,null,null,null,null,null,null,null,null,null,null,null,null,null,null,null,null,null,null,null,null,null,null,null,null,null,null,null,null,null,null,null,null,null,null,null,null,null,null,null,null,null,null,null,null,null,null,null,null,null,null,null,null,null,null,null,null,null,null,null,null,null,null,null,null,null,null,null,0,0,0,5,0,0,0,0,{"$error":"#DIV/0!"}]
[null,null,null,null,null,null,null,null,null,null,null,null,null,null,null,null,null,null,null,null,null,null,null,null,null,null,null,null,null,null,null,null,null,null,null,null,null,null,null,null,null,null,null,null,null,null,null,null,null,null,null,null,null,null,null,null,null,null,null,null,null,null,null,null,null,null,null,null,null,null,null,null,null,null,null,null,null,null,null,null,null,null,null,null,null,null,null,0,0,0,5,0,0,0,0,{"$error":"#DIV/0!"}]
[null,null,null,null,null,null,null,null,null,null,null,null,null,null,null,null,null,null,null,null,null,null,null,null,null,null,null,null,null,null,null,null,null,null,null,null,null,null,null,null,null,null,null,null,null,null,null,null,null,null,null,null,null,null,null,null,null,null,null,null,null,null,null,null,null,null,null,null,null,null,null,null,null,null,null,null,null,null,null,null,null,null,null,null,null,null,null,0,0,0,5,0,0,0,0,{"$error":"#DIV/0!"}]
[null,null,null,null,null,null,null,null,null,null,null,null,null,null,null,null,null,null,null,null,null,null,null,null,null,null,null,null,null,null,null,null,null,null,null,null,null,null,null,null,null,null,null,null,null,null,null,null,null,null,null,null,null,null,null,null,null,null,null,null,null,null,null,null,null,null,null,null,null,null,null,null,null,null,null,null,null,null,null,null,null,null,null,null,null,null,null,0,0,0,5,0,0,0,0,{"$error":"#DIV/0!"}]
[null,null,null,null,null,null,null,null,null,null,null,null,null,null,null,null,null,null,null,null,null,null,null,null,null,null,null,null,null,null,null,null,null,null,null,null,null,null,null,null,null,null,null,null,null,null,null,null,null,null,null,null,null,null,null,null,null,null,null,null,null,null,null,null,null,null,null,null,null,null,null,null,null,null,null,null,null,null,null,null,null,null,null,null,null,null,null,0,0,0,5,0,0,0,0,{"$error":"#DIV/0!"}]
[null,null,null,null,null,null,null,null,null,null,null,null,null,null,null,null,null,null,null,null,null,null,null,null,null,null,null,null,null,null,null,null,null,null,null,null,null,null,null,null,null,null,null,null,null,null,null,null,null,null,null,null,null,null,null,null,null,null,null,null,null,null,null,null,null,null,null,null,null,null,null,null,null,null,null,null,null,null,null,null,null,null,null,null,null,null,null,0,0,0,5,0,0,0,0,{"$error":"#DIV/0!"}]
[null,null,null,null,null,null,null,null,null,null,null,null,null,null,null,null,null,null,null,null,null,null,null,null,null,null,null,null,null,null,null,null,null,null,null,null,null,null,null,null,null,null,null,null,null,null,null,null,null,null,null,null,null,null,null,null,null,null,null,null,null,null,null,null,null,null,null,null,null,null,null,null,null,null,null,null,null,null,null,null,null,null,null,null,null,null,null,0,0,0,5,0,0,0,0,{"$error":"#DIV/0!"}]
[null,null,null,null,null,null,null,null,null,null,null,null,null,null,null,null,null,null,null,null,null,null,null,null,null,null,null,null,null,null,null,null,null,null,null,null,null,null,null,null,null,null,null,null,null,null,null,null,null,null,null,null,null,null,null,null,null,null,null,null,null,null,null,null,null,null,null,null,null,null,null,null,null,null,null,null,null,null,null,null,null,null,null,null,null,null,null,0,0,0,5,0,0,0,0,{"$error":"#DIV/0!"}]
[null,null,null,null,null,null,null,null,null,null,null,null,null,null,null,null,null,null,null,null,null,null,null,null,null,null,null,null,null,null,null,null,null,null,null,null,null,null,null,null,null,null,null,null,null,null,null,null,null,null,null,null,null,null,null,null,null,null,null,null,null,null,null,null,null,null,null,null,null,null,null,null,null,null,null,null,null,null,null,null,null,null,null,null,null,null,null,0,0,0,5,0,0,0,0,{"$error":"#DIV/0!"}]
[null,null,null,null,null,null,null,null,null,null,null,null,null,null,null,null,null,null,null,null,null,null,null,null,null,null,null,null,null,null,null,null,null,null,null,null,null,null,null,null,null,null,null,null,null,null,null,null,null,null,null,null,null,null,null,null,null,null,null,null,null,null,null,null,null,null,null,null,null,null,null,null,null,null,null,null,null,null,null,null,null,null,null,null,null,null,null,0,0,0,5,0,0,0,0,{"$error":"#DIV/0!"}]
[null,null,null,null,null,null,null,null,null,null,null,null,null,null,null,null,null,null,null,null,null,null,null,null,null,null,null,null,null,null,null,null,null,null,null,null,null,null,null,null,null,null,null,null,null,null,null,null,null,null,null,null,null,null,null,null,null,null,null,null,null,null,null,null,null,null,null,null,null,null,null,null,null,null,null,null,null,null,null,null,null,null,null,null,null,null,null,0,0,0,5,0,0,0,0,{"$error":"#DIV/0!"}]
[null,null,null,null,null,null,null,null,null,null,null,null,null,null,null,null,null,null,null,null,null,null,null,null,null,null,null,null,null,null,null,null,null,null,null,null,null,null,null,null,null,null,null,null,null,null,null,null,null,null,null,null,null,null,null,null,null,null,null,null,null,null,null,null,null,null,null,null,null,null,null,null,null,null,null,null,null,null,null,null,null,null,null,null,null,null,null,0,0,0,5,0,0,0,0,{"$error":"#DIV/0!"}]
[null,null,null,null,null,null,null,null,null,null,null,null,null,null,null,null,null,null,null,null,null,null,null,null,null,null,null,null,null,null,null,null,null,null,null,null,null,null,null,null,null,null,null,null,null,null,null,null,null,null,null,null,null,null,null,null,null,null,null,null,null,null,null,null,null,null,null,null,null,null,null,null,null,null,null,null,null,null,null,null,null,null,null,null,null,null,null,0,0,0,5,0,0,0,0,{"$error":"#DIV/0!"}]
[null,null,null,null,null,null,null,null,null,null,null,null,null,null,null,null,null,null,null,null,null,null,null,null,null,null,null,null,null,null,null,null,null,null,null,null,null,null,null,null,null,null,null,null,null,null,null,null,null,null,null,null,null,null,null,null,null,null,null,null,null,null,null,null,null,null,null,null,null,null,null,null,null,null,null,null,null,null,null,null,null,null,null,null,null,null,null,0,0,0,5,0,0,0,0,{"$error":"#DIV/0!"}]
[null,null,null,null,null,null,null,null,null,null,null,null,null,null,null,null,null,null,null,null,null,null,null,null,null,null,null,null,null,null,null,null,null,null,null,null,null,null,null,null,null,null,null,null,null,null,null,null,null,null,null,null,null,null,null,null,null,null,null,null,null,null,null,null,null,null,null,null,null,null,null,null,null,null,null,null,null,null,null,null,null,null,null,null,null,null,null,0,0,0,5,0,0,0,0,{"$error":"#DIV/0!"}]
[null,null,null,null,null,null,null,null,null,null,null,null,null,null,null,null,null,null,null,null,null,null,null,null,null,null,null,null,null,null,null,null,null,null,null,null,null,null,null,null,null,null,null,null,null,null,null,null,null,null,null,null,null,null,null,null,null,null,null,null,null,null,null,null,null,null,null,null,null,null,null,null,null,null,null,null,null,null,null,null,null,null,null,null,null,null,null,0,0,0,5,0,0,0,0,{"$error":"#DIV/0!"}]
[null,null,null,null,null,null,null,null,null,null,null,null,null,null,null,null,null,null,null,null,null,null,null,null,null,null,null,null,null,null,null,null,null,null,null,null,null,null,null,null,null,null,null,null,null,null,null,null,null,null,null,null,null,null,null,null,null,null,null,null,null,null,null,null,null,null,null,null,null,null,null,null,null,null,null,null,null,null,null,null,null,null,null,null,null,null,null,0,0,0,5,0,0,0,0,{"$error":"#DIV/0!"}]
[null,null,null,null,null,null,null,null,null,null,null,null,null,null,null,null,null,null,null,null,null,null,null,null,null,null,null,null,null,null,null,null,null,null,null,null,null,null,null,null,null,null,null,null,null,null,null,null,null,null,null,null,null,null,null,null,null,null,null,null,null,null,null,null,null,null,null,null,null,null,null,null,null,null,null,null,null,null,null,null,null,null,null,null,null,null,null,0,0,0,5,0,0,0,0,{"$error":"#DIV/0!"}]
[null,null,null,null,null,null,null,null,null,null,null,null,null,null,null,null,null,null,null,null,null,null,null,null,null,null,null,null,null,null,null,null,null,null,null,null,null,null,null,null,null,null,null,null,null,null,null,null,null,null,null,null,null,null,null,null,null,null,null,null,null,null,null,null,null,null,null,null,null,null,null,null,null,null,null,null,null,null,null,null,null,null,null,null,null,null,null,0,0,0,5,0,0,0,0,{"$error":"#DIV/0!"}]
[null,null,null,null,null,null,null,null,null,null,null,null,null,null,null,null,null,null,null,null,null,null,null,null,null,null,null,null,null,null,null,null,null,null,null,null,null,null,null,null,null,null,null,null,null,null,null,null,null,null,null,null,null,null,null,null,null,null,null,null,null,null,null,null,null,null,null,null,null,null,null,null,null,null,null,null,null,null,null,null,null,null,null,null,null,null,null,0,0,0,5,0,0,0,0,{"$error":"#DIV/0!"}]
[null,null,null,null,null,null,null,null,null,null,null,null,null,null,null,null,null,null,null,null,null,null,null,null,null,null,null,null,null,null,null,null,null,null,null,null,null,null,null,null,null,null,null,null,null,null,null,null,null,null,null,null,null,null,null,null,null,null,null,null,null,null,null,null,null,null,null,null,null,null,null,null,null,null,null,null,null,null,null,null,null,null,null,null,null,null,null,0,0,0,5,0,0,0,0,{"$error":"#DIV/0!"}]
[null,null,null,null,null,null,null,null,null,null,null,null,null,null,null,null,null,null,null,null,null,null,null,null,null,null,null,null,null,null,null,null,null,null,null,null,null,null,null,null,null,null,null,null,null,null,null,null,null,null,null,null,null,null,null,null,null,null,null,null,null,null,null,null,null,null,null,null,null,null,null,null,null,null,null,null,null,null,null,null,null,null,null,null,null,null,null,0,0,0,5,0,0,0,0,{"$error":"#DIV/0!"}]
[null,null,null,null,null,null,null,null,null,null,null,null,null,null,null,null,null,null,null,null,null,null,null,null,null,null,null,null,null,null,null,null,null,null,null,null,null,null,null,null,null,null,null,null,null,null,null,null,null,null,null,null,null,null,null,null,null,null,null,null,null,null,null,null,null,null,null,null,null,null,null,null,null,null,null,null,null,null,null,null,null,null,null,null,null,null,null,0,0,0,5,0,0,0,0,{"$error":"#DIV/0!"}]
[null,null,null,null,null,null,null,null,null,null,null,null,null,null,null,null,null,null,null,null,null,null,null,null,null,null,null,null,null,null,null,null,null,null,null,null,null,null,null,null,null,null,null,null,null,null,null,null,null,null,null,null,null,null,null,null,null,null,null,null,null,null,null,null,null,null,null,null,null,null,null,null,null,null,null,null,null,null,null,null,null,null,null,null,null,null,null,0,0,0,5,0,0,0,0,{"$error":"#DIV/0!"}]
[null,null,null,null,null,null,null,null,null,null,null,null,null,null,null,null,null,null,null,null,null,null,null,null,null,null,null,null,null,null,null,null,null,null,null,null,null,null,null,null,null,null,null,null,null,null,null,null,null,null,null,null,null,null,null,null,null,null,null,null,null,null,null,null,null,null,null,null,null,null,null,null,null,null,null,null,null,null,null,null,null,null,null,null,null,null,null,0,0,0,5,0,0,0,0,{"$error":"#DIV/0!"}]
[null,null,null,null,null,null,null,null,null,null,null,null,null,null,null,null,null,null,null,null,null,null,null,null,null,null,null,null,null,null,null,null,null,null,null,null,null,null,null,null,null,null,null,null,null,null,null,null,null,null,null,null,null,null,null,null,null,null,null,null,null,null,null,null,null,null,null,null,null,null,null,null,null,null,null,null,null,null,null,null,null,null,null,null,null,null,null,0,0,0,5,0,0,0,0,{"$error":"#DIV/0!"}]
[null,null,null,null,null,null,null,null,null,null,null,null,null,null,null,null,null,null,null,null,null,null,null,null,null,null,null,null,null,null,null,null,null,null,null,null,null,null,null,null,null,null,null,null,null,null,null,null,null,null,null,null,null,null,null,null,null,null,null,null,null,null,null,null,null,null,null,null,null,null,null,null,null,null,null,null,null,null,null,null,null,null,null,null,null,null,null,0,0,0,5,0,0,0,0,{"$error":"#DIV/0!"}]
[null,null,null,null,null,null,null,null,null,null,null,null,null,null,null,null,null,null,null,null,null,null,null,null,null,null,null,null,null,null,null,null,null,null,null,null,null,null,null,null,null,null,null,null,null,null,null,null,null,null,null,null,null,null,null,null,null,null,null,null,null,null,null,null,null,null,null,null,null,null,null,null,null,null,null,null,null,null,null,null,null,null,null,null,null,null,null,0,0,0,5,0,0,0,0,{"$error":"#DIV/0!"}]
[null,null,null,null,null,null,null,null,null,null,null,null,null,null,null,null,null,null,null,null,null,null,null,null,null,null,null,null,null,null,null,null,null,null,null,null,null,null,null,null,null,null,null,null,null,null,null,null,null,null,null,null,null,null,null,null,null,null,null,null,null,null,null,null,null,null,null,null,null,null,null,null,null,null,null,null,null,null,null,null,null,null,null,null,null,null,null,0,0,0,5,0,0,0,0,{"$error":"#DIV/0!"}]
[null,null,null,null,null,null,null,null,null,null,null,null,null,null,null,null,null,null,null,null,null,null,null,null,null,null,null,null,null,null,null,null,null,null,null,null,null,null,null,null,null,null,null,null,null,null,null,null,null,null,null,null,null,null,null,null,null,null,null,null,null,null,null,null,null,null,null,null,null,null,null,null,null,null,null,null,null,null,null,null,null,null,null,null,null,null,null,0,0,0,5,0,0,0,0,{"$error":"#DIV/0!"}]
[null,null,null,null,null,null,null,null,null,null,null,null,null,null,null,null,null,null,null,null,null,null,null,null,null,null,null,null,null,null,null,null,null,null,null,null,null,null,null,null,null,null,null,null,null,null,null,null,null,null,null,null,null,null,null,null,null,null,null,null,null,null,null,null,null,null,null,null,null,null,null,null,null,null,null,null,null,null,null,null,null,null,null,null,null,null,null,0,0,0,5,0,0,0,0,{"$error":"#DIV/0!"}]
[null,null,null,null,null,null,null,null,null,null,null,null,null,null,null,null,null,null,null,null,null,null,null,null,null,null,null,null,null,null,null,null,null,null,null,null,null,null,null,null,null,null,null,null,null,null,null,null,null,null,null,null,null,null,null,null,null,null,null,null,null,null,null,null,null,null,null,null,null,null,null,null,null,null,null,null,null,null,null,null,null,null,null,null,null,null,null,0,0,0,5,0,0,0,0,{"$error":"#DIV/0!"}]
[null,null,null,null,null,null,null,null,null,null,null,null,null,null,null,null,null,null,null,null,null,null,null,null,null,null,null,null,null,null,null,null,null,null,null,null,null,null,null,null,null,null,null,null,null,null,null,null,null,null,null,null,null,null,null,null,null,null,null,null,null,null,null,null,null,null,null,null,null,null,null,null,null,null,null,null,null,null,null,null,null,null,null,null,null,null,null,0,0,0,5,0,0,0,0,{"$error":"#DIV/0!"}]
[null,null,null,null,null,null,null,null,null,null,null,null,null,null,null,null,null,null,null,null,null,null,null,null,null,null,null,null,null,null,null,null,null,null,null,null,null,null,null,null,null,null,null,null,null,null,null,null,null,null,null,null,null,null,null,null,null,null,null,null,null,null,null,null,null,null,null,null,null,null,null,null,null,null,null,null,null,null,null,null,null,null,null,null,null,null,null,0,0,0,5,0,0,0,0,{"$error":"#DIV/0!"}]
[null,null,null,null,null,null,null,null,null,null,null,null,null,null,null,null,null,null,null,null,null,null,null,null,null,null,null,null,null,null,null,null,null,null,null,null,null,null,null,null,null,null,null,null,null,null,null,null,null,null,null,null,null,null,null,null,null,null,null,null,null,null,null,null,null,null,null,null,null,null,null,null,null,null,null,null,null,null,null,null,null,null,null,null,null,null,null,0,0,0,5,0,0,0,0,{"$error":"#DIV/0!"}]
[null,null,null,null,null,null,null,null,null,null,null,null,null,null,null,null,null,null,null,null,null,null,null,null,null,null,null,null,null,null,null,null,null,null,null,null,null,null,null,null,null,null,null,null,null,null,null,null,null,null,null,null,null,null,null,null,null,null,null,null,null,null,null,null,null,null,null,null,null,null,null,null,null,null,null,null,null,null,null,null,null,null,null,null,null,null,null,0,0,0,5,0,0,0,0,{"$error":"#DIV/0!"}]
[null,null,null,null,null,null,null,null,null,null,null,null,null,null,null,null,null,null,null,null,null,null,null,null,null,null,null,null,null,null,null,null,null,null,null,null,null,null,null,null,null,null,null,null,null,null,null,null,null,null,null,null,null,null,null,null,null,null,null,null,null,null,null,null,null,null,null,null,null,null,null,null,null,null,null,null,null,null,null,null,null,null,null,null,null,null,null,0,0,0,5,0,0,0,0,{"$error":"#DIV/0!"}]
[null,null,null,null,null,null,null,null,null,null,null,null,null,null,null,null,null,null,null,null,null,null,null,null,null,null,null,null,null,null,null,null,null,null,null,null,null,null,null,null,null,null,null,null,null,null,null,null,null,null,null,null,null,null,null,null,null,null,null,null,null,null,null,null,null,null,null,null,null,null,null,null,null,null,null,null,null,null,null,null,null,null,null,null,null,null,null,0,0,0,5,0,0,0,0,{"$error":"#DIV/0!"}]
[null,null,null,null,null,null,null,null,null,null,null,null,null,null,null,null,null,null,null,null,null,null,null,null,null,null,null,null,null,null,null,null,null,null,null,null,null,null,null,null,null,null,null,null,null,null,null,null,null,null,null,null,null,null,null,null,null,null,null,null,null,null,null,null,null,null,null,null,null,null,null,null,null,null,null,null,null,null,null,null,null,null,null,null,null,null,null,0,0,0,5,0,0,0,0,{"$error":"#DIV/0!"}]
[null,null,null,null,null,null,null,null,null,null,null,null,null,null,null,null,null,null,null,null,null,null,null,null,null,null,null,null,null,null,null,null,null,null,null,null,null,null,null,null,null,null,null,null,null,null,null,null,null,null,null,null,null,null,null,null,null,null,null,null,null,null,null,null,null,null,null,null,null,null,null,null,null,null,null,null,null,null,null,null,null,null,null,null,null,null,null,0,0,0,5,0,0,0,0,{"$error":"#DIV/0!"}]
[null,null,null,null,null,null,null,null,null,null,null,null,null,null,null,null,null,null,null,null,null,null,null,null,null,null,null,null,null,null,null,null,null,null,null,null,null,null,null,null,null,null,null,null,null,null,null,null,null,null,null,null,null,null,null,null,null,null,null,null,null,null,null,null,null,null,null,null,null,null,null,null,null,null,null,null,null,null,null,null,null,null,null,null,null,null,null,0,0,0,5,0,0,0,0,{"$error":"#DIV/0!"}]
[null,null,null,null,null,null,null,null,null,null,null,null,null,null,null,null,null,null,null,null,null,null,null,null,null,null,null,null,null,null,null,null,null,null,null,null,null,null,null,null,null,null,null,null,null,null,null,null,null,null,null,null,null,null,null,null,null,null,null,null,null,null,null,null,null,null,null,null,null,null,null,null,null,null,null,null,null,null,null,null,null,null,null,null,null,null,null,0,0,0,5,0,0,0,0,{"$error":"#DIV/0!"}]
[null,null,null,null,null,null,null,null,null,null,null,null,null,null,null,null,null,null,null,null,null,null,null,null,null,null,null,null,null,null,null,null,null,null,null,null,null,null,null,null,null,null,null,null,null,null,null,null,null,null,null,null,null,null,null,null,null,null,null,null,null,null,null,null,null,null,null,null,null,null,null,null,null,null,null,null,null,null,null,null,null,null,null,null,null,null,null,0,0,0,5,0,0,0,0,{"$error":"#DIV/0!"}]
[null,null,null,null,null,null,null,null,null,null,null,null,null,null,null,null,null,null,null,null,null,null,null,null,null,null,null,null,null,null,null,null,null,null,null,null,null,null,null,null,null,null,null,null,null,null,null,null,null,null,null,null,null,null,null,null,null,null,null,null,null,null,null,null,null,null,null,null,null,null,null,null,null,null,null,null,null,null,null,null,null,null,null,null,null,null,null,0,0,0,5,0,0,0,0,{"$error":"#DIV/0!"}]
[null,null,null,null,null,null,null,null,null,null,null,null,null,null,null,null,null,null,null,null,null,null,null,null,null,null,null,null,null,null,null,null,null,null,null,null,null,null,null,null,null,null,null,null,null,null,null,null,null,null,null,null,null,null,null,null,null,null,null,null,null,null,null,null,null,null,null,null,null,null,null,null,null,null,null,null,null,null,null,null,null,null,null,null,null,null,null,0,0,0,5,0,0,0,0,{"$error":"#DIV/0!"}]
[null,null,null,null,null,null,null,null,null,null,null,null,null,null,null,null,null,null,null,null,null,null,null,null,null,null,null,null,null,null,null,null,null,null,null,null,null,null,null,null,null,null,null,null,null,null,null,null,null,null,null,null,null,null,null,null,null,null,null,null,null,null,null,null,null,null,null,null,null,null,null,null,null,null,null,null,null,null,null,null,null,null,null,null,null,null,null,0,0,0,5,0,0,0,0,{"$error":"#DIV/0!"}]
[null,null,null,null,null,null,null,null,null,null,null,null,null,null,null,null,null,null,null,null,null,null,null,null,null,null,null,null,null,null,null,null,null,null,null,null,null,null,null,null,null,null,null,null,null,null,null,null,null,null,null,null,null,null,null,null,null,null,null,null,null,null,null,null,null,null,null,null,null,null,null,null,null,null,null,null,null,null,null,null,null,null,null,null,null,null,null,0,0,0,5,0,0,0,0,{"$error":"#DIV/0!"}]
[null,null,null,null,null,null,null,null,null,null,null,null,null,null,null,null,null,null,null,null,null,null,null,null,null,null,null,null,null,null,null,null,null,null,null,null,null,null,null,null,null,null,null,null,null,null,null,null,null,null,null,null,null,null,null,null,null,null,null,null,null,null,null,null,null,null,null,null,null,null,null,null,null,null,null,null,null,null,null,null,null,null,null,null,null,null,null,0,0,0,5,0,0,0,0,{"$error":"#DIV/0!"}]
[null,null,null,null,null,null,null,null,null,null,null,null,null,null,null,null,null,null,null,null,null,null,null,null,null,null,null,null,null,null,null,null,null,null,null,null,null,null,null,null,null,null,null,null,null,null,null,null,null,null,null,null,null,null,null,null,null,null,null,null,null,null,null,null,null,null,null,null,null,null,null,null,null,null,null,null,null,null,null,null,null,null,null,null,null,null,null,0,0,0,5,0,0,0,0,{"$error":"#DIV/0!"}]